Workbook

Sheet ACCUEILPRO
A1: Accueil
F7: =ACCUEIL!F7 -> 2022-07-24

Sheet ACCUEILPREM
A1: Accueil
F7: =ACCUEIL!F7 -> 2022-07-24

Sheet ACCUEILGP
A1: Accueil
F7: =ACCUEIL!F7 -> 2022-07-24

Sheet ACCUEIL
F7: 2022-07-24

Sheet Accueilagence
A1: Accueil
E7: =ACCUEIL!F7 -> 2022-07-24

Sheet Accueilsecteur
A1: Accueil
E7: =ACCUEIL!F7 -> 2022-07-24

Sheet AccueilDircom
A1: Accueil
E7: =ACCUEIL!F7 -> 2022-07-24

Sheet DC_FICHE
A1: Accueil
A2: BAROMETRE BDD
A4: UNITE: | B4: DIRECTION REGIONALE | E4: ETP perf : | F4: =VLOOKUP(A5,'RECAP DIRCOM'!$G$6:$I$12,3,FALSE) -> 220.24
A5: =VLOOKUP(B5,LISTES!$M$6:$N$12,2,FALSE) -> 262 | B5: BAS-RHIN
C6: Coefficient du critére | E6: Résultats | I6: Ecart au 1ier | M6: Evolution | O6: Rang
E7: du 1ier | G7: DIRECTION | I7: Du mois | K7: Au 31/12/2019
A9: RANG au CLASSEMENT GENERAL | K9: =VLOOKUP($A$5,#REF!,168,FALSE) ->  | M9: =+K9-O9 ->  | O9: =VLOOKUP($A$5,'RECAP DIRCOM'!$G$6:$CY$312,168,FALSE) -> 
A11: CRITERE CLIENTS | C11: 15% | O11: =VLOOKUP($A$5,'RECAP DIRCOM'!$G$6:$CY$312,23,FALSE) -> 34.69397021
B12: PNB Evolution nette Clients BP | C12: 4% | E12: ='RECAP DIRCOM'!#REF! ->  | G12: =VLOOKUP($A$5,'RECAP DIRCOM'!$G$6:$CY$312,6,FALSE) -> 0.8 | I12: =VLOOKUP($A$5,'RECAP DIRCOM'!$G$6:$CY$312,7,FALSE) -> 500% | K12: =VLOOKUP($A$5,#REF!,7,FALSE) ->  | M12: =+K12-I12 ->  | O12: =VLOOKUP($A$5,'RECAP DIRCOM'!$G$6:$CY$312,8,FALSE) -> 0.6170728629
B13: PNB Evolution nette Clients PREMIUM | C13: 5% | E13: ='RECAP DIRCOM'!#REF! ->  | G13: =VLOOKUP($A$5,'RECAP DIRCOM'!$G$6:$CY$312,10,FALSE) -> 4.0 | I13: =VLOOKUP($A$5,'RECAP DIRCOM'!$G$6:$CY$312,11,FALSE) -> 43% | K13: =VLOOKUP($A$5,#REF!,11,FALSE) ->  | M13: =+K13-I13 ->  | O13: =VLOOKUP($A$5,'RECAP DIRCOM'!$G$6:$CY$312,12,FALSE) -> 0.4342959454
B14: PNB Evolution nette Clients Jeunes Equipés | C14: 3% | E14: ='RECAP DIRCOM'!#REF! ->  | G14: =VLOOKUP($A$5,'RECAP DIRCOM'!$G$6:$CY$312,14,FALSE) -> 0.0 | I14: =VLOOKUP($A$5,'RECAP DIRCOM'!$G$6:$CY$312,15,FALSE) -> 0% | K14: =VLOOKUP($A$5,#REF!,15,FALSE) ->  | M14: =+K14-I14 ->  | O14: =VLOOKUP($A$5,'RECAP DIRCOM'!$G$6:$CY$312,16,FALSE) -> 0
B15: PNB Evolution nette Clients Pro Actifs Equipés | C15: 3% | E15: ='RECAP DIRCOM'!W4 -> 0.0 | G15: =VLOOKUP($A$5,'RECAP DIRCOM'!$G$6:$CY$312,18,FALSE) -> 3141.0 | I15: =VLOOKUP($A$5,'RECAP DIRCOM'!$G$6:$CY$312,19,FALSE) -> 1426% | K15: =VLOOKUP($A$5,#REF!,19,FALSE) ->  | M15: =+K15-I15 ->  | O15: =VLOOKUP($A$5,'RECAP DIRCOM'!$G$6:$CY$312,20,FALSE) -> 0.2481760827
A17: CRITERE BANCARISATION | C17: 15% | O17: =VLOOKUP($A$5,'RECAP DIRCOM'!$G$6:$CY$312,48,FALSE) -> 28334.98086
B18: PNB Ventes nettes forfaits | C18: 4% | E18: ='RECAP DIRCOM'!X4 -> 19.0 | G18: =VLOOKUP($A$5,'RECAP DIRCOM'!$G$6:$CY$312,31,FALSE) -> 0.0 | I18: =VLOOKUP($A$5,'RECAP DIRCOM'!$G$6:$CY$312,32,FALSE) -> 0% | K18: =VLOOKUP($A$5,#REF!,32,FALSE) ->  | M18: =+K18-I18 ->  | O18: =VLOOKUP($A$5,'RECAP DIRCOM'!$G$6:$CY$312,33,FALSE) -> 23686.55297
B19: PNB Ventes nettes IZICARTES Débit Différé | C19: 4% | E19: ='RECAP DIRCOM'!AB4 -> 44.3 | G19: =VLOOKUP($A$5,'RECAP DIRCOM'!$G$6:$CY$312,35,FALSE) -> 0.3 | I19: =VLOOKUP($A$5,'RECAP DIRCOM'!$G$6:$CY$312,36,FALSE) -> 500% | K19: =VLOOKUP($A$5,#REF!,36,FALSE) ->  | M19: =+K19-I19 ->  | O19: =VLOOKUP($A$5,'RECAP DIRCOM'!$G$6:$CY$312,37,FALSE) -> 7554
B20: PNB Ventes nettes cartes HDG Débit Différé | C20: 4% | E20: ='RECAP DIRCOM'!#REF! ->  | G20: =VLOOKUP($A$5,'RECAP DIRCOM'!$G$6:$CY$312,39,FALSE) -> 0.2 | I20: =VLOOKUP($A$5,'RECAP DIRCOM'!$G$6:$CY$312,40,FALSE) -> 300% | K20: =VLOOKUP($A$5,#REF!,40,FALSE) ->  | M20: =+K20-I20 ->  | O20: =VLOOKUP($A$5,'RECAP DIRCOM'!$G$6:$CY$312,41,FALSE) -> 0.2972894669
B21: PNB Ventes nettes Forfaits Pro, Carte pro | C21: 3% | E21: ='RECAP DIRCOM'!#REF! ->  | G21: =VLOOKUP($A$5,'RECAP DIRCOM'!$G$6:$CY$312,43,FALSE) -> 5.0 | I21: =VLOOKUP($A$5,'RECAP DIRCOM'!$G$6:$CY$312,44,FALSE) -> 0% | K21: =VLOOKUP($A$5,#REF!,44,FALSE) ->  | M21: =+K21-I21 ->  | O21: =VLOOKUP($A$5,'RECAP DIRCOM'!$G$6:$CY$312,45,FALSE) -> 0
A23: CRITERE EPARGNE | C23: 10% | O23: =VLOOKUP($A$5,'RECAP DIRCOM'!$G$6:$CY$312,69,FALSE) -> 0.3228372439
B24: PNB Epargne Liquide | C24: 3% | E24: ='RECAP DIRCOM'!AM4 -> 160.8 | G24: =VLOOKUP($A$5,'RECAP DIRCOM'!$G$6:$CY$312,56,FALSE) -> 2873.0 | I24: =VLOOKUP($A$5,'RECAP DIRCOM'!$G$6:$CY$312,57,FALSE) -> 1304% | K24: =VLOOKUP($A$5,#REF!,57,FALSE) ->  | M24: =+K24-I24 ->  | O24: =VLOOKUP($A$5,'RECAP DIRCOM'!$G$6:$CY$312,58,FALSE) -> 0.3883022564
B25: PNB CA UC + arbitrage | C25: 4% | E25: ='RECAP DIRCOM'!AQ4 -> 45.5 | G25: =VLOOKUP($A$5,'RECAP DIRCOM'!$G$6:$CY$312,60,FALSE) -> 0.4 | I25: =VLOOKUP($A$5,'RECAP DIRCOM'!$G$6:$CY$312,61,FALSE) -> 32% | K25: =VLOOKUP($A$5,#REF!,61,FALSE) ->  | M25: =+K25-I25 ->  | O25: =VLOOKUP($A$5,'RECAP DIRCOM'!$G$6:$CY$312,62,FALSE) -> 6
B26: PNB Excédent assurance vie | C26: 3% | E26: ='RECAP DIRCOM'!#REF! ->  | G26: =VLOOKUP($A$5,'RECAP DIRCOM'!$G$6:$CY$312,64,FALSE) -> 0.0 | I26: =VLOOKUP($A$5,'RECAP DIRCOM'!$G$6:$CY$312,65,FALSE) -> 0% | K26: =VLOOKUP($A$5,#REF!,65,FALSE) ->  | M26: =+K26-I26 ->  | O26: =VLOOKUP($A$5,'RECAP DIRCOM'!$G$6:$CY$312,66,FALSE) -> 0
A28: CRITERE CREDITS | C28: 15% | O28: =VLOOKUP($A$5,'RECAP DIRCOM'!$G$6:$CY$312,102,FALSE) -> 
B29: PNB crédit conso | C29: 4% | E29: ='RECAP DIRCOM'!BB4 -> 246.4 | G29: =VLOOKUP($A$5,'RECAP DIRCOM'!$G$6:$CY$312,77,FALSE) -> 5.0 | I29: =VLOOKUP($A$5,'RECAP DIRCOM'!$G$6:$CY$312,78,FALSE) -> 0% | K29: =VLOOKUP($A$5,#REF!,78,FALSE) ->  | M29: =+K29-I29 ->  | O29: =VLOOKUP($A$5,'RECAP DIRCOM'!$G$6:$CY$312,79,FALSE) -> 0
B30: PNB ADE crédit conso | C30: 1% | E30: ='RECAP DIRCOM'!#REF! ->  | G30: =VLOOKUP($A$5,'RECAP DIRCOM'!$G$6:$CY$312,81,FALSE) -> 0.0 | I30: =VLOOKUP($A$5,'RECAP DIRCOM'!$G$6:$CY$312,82,FALSE) -> 0% | K30: =VLOOKUP($A$5,#REF!,82,FALSE) ->  | O30: =VLOOKUP($A$5,'RECAP DIRCOM'!$G$6:$CY$312,83,FALSE) -> 0
B31: PNB crédit immo | C31: 4% | E31: ='RECAP DIRCOM'!BF4 -> 42.1 | G31: =VLOOKUP($A$5,'RECAP DIRCOM'!$G$6:$CY$312,85,FALSE) -> 0.0 | I31: =VLOOKUP($A$5,'RECAP DIRCOM'!$G$6:$CY$312,86,FALSE) -> 0% | K31: =VLOOKUP($A$5,#REF!,86,FALSE) ->  | O31: =VLOOKUP($A$5,'RECAP DIRCOM'!$G$6:$CY$312,87,FALSE) -> 0
B32: PNB ADE crédit immo | C32: 2% | E32: ='RECAP DIRCOM'!#REF! ->  | G32: =VLOOKUP($A$5,'RECAP DIRCOM'!$G$6:$CY$312,89,FALSE) -> 0.0 | I32: =VLOOKUP($A$5,'RECAP DIRCOM'!$G$6:$CY$312,90,FALSE) -> 0% | K32: =VLOOKUP($A$5,#REF!,90,FALSE) ->  | O32: =VLOOKUP($A$5,'RECAP DIRCOM'!$G$6:$CY$312,91,FALSE) -> 0
B33: PNB SACCEF | C33: 2% | E33: ='RECAP DIRCOM'!#REF! ->  | G33: =VLOOKUP($A$5,'RECAP DIRCOM'!$G$6:$CY$312,93,FALSE) -> 0.0 | I33: =VLOOKUP($A$5,'RECAP DIRCOM'!$G$6:$CY$312,94,FALSE) -> 30% | K33: =VLOOKUP($A$5,#REF!,94,FALSE) ->  | O33: =VLOOKUP($A$5,'RECAP DIRCOM'!$G$6:$CY$312,95,FALSE) -> 0.2495940477
B34: PNB Crédit MLT + Crédit Bail | C34: 2% | E34: ='RECAP DIRCOM'!BJ4 -> 21.3 | G34: =VLOOKUP($A$5,'RECAP DIRCOM'!$G$6:$CY$312,97,FALSE) -> 0.0 | I34: =VLOOKUP($A$5,'RECAP DIRCOM'!$G$6:$CY$312,98,FALSE) ->  | K34: =VLOOKUP($A$5,#REF!,98,FALSE) ->  | O34: =VLOOKUP($A$5,'RECAP DIRCOM'!$G$6:$CY$312,99,FALSE) -> 
A36: CRITERE IARD PREVOYANCE | C36: 15% | O36: =VLOOKUP($A$5,'RECAP DIRCOM'!$G$6:$CY$312,119,FALSE) -> 
B37: PNB Ventes nettes IARD | C37: 9% | E37: ='RECAP DIRCOM'!BU4 -> 113.4 | G37: =VLOOKUP($A$5,'RECAP DIRCOM'!$G$6:$CY$312,110,FALSE) ->  | I37: =VLOOKUP($A$5,'RECAP DIRCOM'!$G$6:$CY$312,111,FALSE) ->  | K37: =VLOOKUP($A$5,#REF!,111,FALSE) ->  | M37: =+K37-I37 ->  | O37: =VLOOKUP($A$5,'RECAP DIRCOM'!$G$6:$CY$312,112,FALSE) -> 
B38: PNB Ventes nettes Prévoyance | C38: 6% | E38: ='RECAP DIRCOM'!BY4 -> 31.7 | G38: =VLOOKUP($A$5,'RECAP DIRCOM'!$G$6:$CY$312,114,FALSE) ->  | I38: =VLOOKUP($A$5,'RECAP DIRCOM'!$G$6:$CY$312,115,FALSE) ->  | K38: =VLOOKUP($A$5,#REF!,115,FALSE) ->  | M38: =+K38-I38 ->  | O38: =VLOOKUP($A$5,'RECAP DIRCOM'!$G$6:$CY$312,116,FALSE) -> 
A40: CRITERE ACCELERATEURS PNB | C40: 15% | O40: =VLOOKUP($A$5,'RECAP DIRCOM'!$G$6:$CY$312,144,FALSE) -> 
B41: PNB Ventes brutes SED Finalisées | C41: 6% | E41: ='RECAP DIRCOM'!#REF! ->  | G41: =VLOOKUP($A$5,'RECAP DIRCOM'!$G$6:$CY$312,127,FALSE) ->  | I41: =VLOOKUP($A$5,'RECAP DIRCOM'!$G$6:$CY$312,128,FALSE) ->  | K41: =VLOOKUP($A$5,#REF!,128,FALSE) ->  | M41: =+K41-I41 ->  | O41: =VLOOKUP($A$5,'RECAP DIRCOM'!$G$6:$CY$312,129,FALSE) -> 
B42: PNB clients équipés E documents | C42: 3% | E42: ='RECAP DIRCOM'!#REF! ->  | G42: =VLOOKUP($A$5,'RECAP DIRCOM'!$G$6:$CY$312,131,FALSE) ->  | I42: =VLOOKUP($A$5,'RECAP DIRCOM'!$G$6:$CY$312,132,FALSE) ->  | K42: =VLOOKUP($A$5,#REF!,132,FALSE) ->  | M42: =+K42-I42 ->  | O42: =VLOOKUP($A$5,'RECAP DIRCOM'!$G$6:$CY$312,133,FALSE) -> 
B43: Economie opt'in | C43: 3% | E43: ='RECAP DIRCOM'!#REF! ->  | G43: =VLOOKUP($A$5,'RECAP DIRCOM'!$G$6:$CY$312,135,FALSE) ->  | I43: =VLOOKUP($A$5,'RECAP DIRCOM'!$G$6:$CY$312,136,FALSE) ->  | K43: =VLOOKUP($A$5,#REF!,136,FALSE) ->  | M43: =+K43-I43 ->  | O43: =VLOOKUP($A$5,'RECAP DIRCOM'!$G$6:$CY$312,137,FALSE) -> 
B44: Remises commerciales | C44: 3% | E44: ='RECAP DIRCOM'!#REF! ->  | G44: =VLOOKUP($A$5,'RECAP DIRCOM'!$G$6:$CY$312,139,FALSE) ->  | I44: =VLOOKUP($A$5,'RECAP DIRCOM'!$G$6:$CY$312,140,FALSE) ->  | K44: =VLOOKUP($A$5,#REF!,140,FALSE) ->  | M44: =+K44-I44 ->  | O44: =VLOOKUP($A$5,'RECAP DIRCOM'!$G$6:$CY$312,141,FALSE) -> 
A46: CRITERE Qualité-Satisfaction Clients | C46: 15% | O46: =VLOOKUP($A$5,'RECAP DIRCOM'!$G$6:$CY$312,159,FALSE) -> 
B47: Objectifs NPS* | C47: 8% | E47: ='RECAP DIRCOM'!K4 -> 25 | G47: =VLOOKUP($A$5,'RECAP DIRCOM'!$G$6:$CY$312,151,FALSE) ->  | I47: =VLOOKUP($A$5,'RECAP DIRCOM'!$G$6:$CY$312,152,FALSE) ->  | K47: =VLOOKUP($A$5,#REF!,152,FALSE) ->  | M47: =+K47-I47 ->  | O47: =VLOOKUP($A$5,'RECAP DIRCOM'!$G$6:$CY$312,153,FALSE) -> 
B48: Enquête Qualité Haute Définition | C48: 7% | E48: ='RECAP DIRCOM'!N4 -> 69% | G48: =VLOOKUP($A$5,'RECAP DIRCOM'!$G$6:$CY$312,154,FALSE) ->  | I48: =VLOOKUP($A$5,'RECAP DIRCOM'!$G$6:$CY$312,155,FALSE) ->  | K48: =VLOOKUP($A$5,#REF!,155,FALSE) ->  | M48: =+K48-I48 ->  | O48: =VLOOKUP($A$5,'RECAP DIRCOM'!$G$6:$CY$312,156,FALSE) -> 

Sheet DC_TOTAL
B1: Accueil | D1: BAROMETRE BDD - DIRECTIONS REGIONALES
D2: TOTAL GENERAL
D3: =ACCUEIL!F7 -> 2022-07-24
D7: TOTAL GENERAL | G7: Total Satisfaction Clients | J7: Total Bancarisation | M7: Total Epargne | P7: Total IARD Prévoyance | S7: Total Crédits
E8: coef | F8: =+I8+L8+O8+R8+U8 -> 100% | H8: coef | I8: =DC_SATISFACTION!L8 -> 20% | K8: coef | L8: =DC_BANCA!N8 -> 20% | N8: coef | O8: =DC_EPARGNE!N8 -> 20% | Q8: coef | R8: =DC_IARD!N8 -> 20% | T8: coef | U8: =DC_CREDIT!R8 -> 20%
A9: eds | B9: Direction | C9: ="ETP perf "&DATEMAJ!$C$28 -> ETP perf 24-juil | D9: Moyenne ecart au 1er | E9: % Ecart au 1er | F9: Rang CEGEE | G9: Moyenne ecart au 1er | H9: % Ecart au 1er | I9: Rang CEGEE | J9: Moyenne ecart au 1er | K9: % Ecart au 1er | L9: Rang CEGEE | M9: Moyenne ecart au 1er | N9: % Ecart au 1er | O9: Rang CEGEE | P9: Moyenne ecart au 1er | Q9: % Ecart au 1er | R9: Rang CEGEE | S9: Moyenne ecart au 1er | T9: % Ecart au 1er | U9: Rang CEGEE
A10: 50 | B10: Moselle | C10: 226 | D10: 5% | E10: 0% | F10: 1 | G10: 23% | H10: 23% | I10: 3 | J10: 1% | K10: 0% | L10: 1 | M10: 5% | N10: 0% | O10: 1 | P10: 2% | Q10: 2% | R10: 2 | S10: 6% | T10: 0% | U10: 1
A11: 262 | B11: Marne-Ardennes | C11: 193 | D11: 6% | E11: 1% | F11: 2 | G11: 14% | H11: 14% | I11: 2 | J11: 3% | K11: 2% | L11: 2 | M11: 19% | N11: 14% | O11: 4 | P11: 0% | Q11: 0% | R11: 1 | S11: 6% | T11: 0% | U11: 2
A12: 264 | B12: Meurthe et Moselle Meuse | C12: 202 | D12: 17% | E12: 12% | F12: 3 | G12: 34% | H12: 34% | I12: 4 | J12: 19% | K12: 19% | L12: 3 | M12: 13% | N12: 8% | O12: 2 | P12: 18% | Q12: 18% | R12: 3 | S12: 12% | T12: 6% | U12: 3
A13: 30 | B13: Vosges | C13: 116 | D13: 22% | E13: 17% | F13: 4 | G13: 0% | H13: 0% | I13: 1 | J13: 36% | K13: 36% | L13: 5 | M13: 14% | N13: 9% | O13: 3 | P13: 37% | Q13: 37% | R13: 6 | S13: 35% | T13: 29% | U13: 5
A14: 110 | B14: Bas-Rhin | C14: 220 | D14: 30% | E14: 25% | F14: 5 | G14: 43% | H14: 43% | I14: 5 | J14: 24% | K14: 23% | L14: 4 | M14: 30% | N14: 25% | O14: 5 | P14: 26% | Q14: 26% | R14: 5 | S14: 38% | T14: 32% | U14: 6
A15: 160 | B15: Aube Haute Marne | C15: 112 | D15: 38% | E15: 33% | F15: 6 | G15: 49% | H15: 49% | I15: 6 | J15: 42% | K15: 41% | L15: 6 | M15: 49% | N15: 44% | O15: 6 | P15: 26% | Q15: 26% | R15: 4 | S15: 35% | T15: 29% | U15: 4
A16: 80 | B16: Haut-Rhin | C16: 122 | D16: 60% | E16: 55% | F16: 7 | G16: 58% | H16: 58% | I16: 7 | J16: 60% | K16: 60% | L16: 7 | M16: 87% | N16: 82% | O16: 7 | P16: 56% | Q16: 56% | R16: 7 | S16: 48% | T16: 42% | U16: 7
B17: Total CEGEE Directions Régionales | C17: =SUM(C10:C16) -> 1192

Sheet DC_BANCA
B1: Accueil | D1: BAROMETRE BDD - DIRECTIONS REGIONALES
D2: BANCARISATION
D3: =ACCUEIL!F7 -> 2022-07-24
D7: Ventes Nettes produits pondérés | H7: Ventes sur client non détenteur de l’univers | L7: Total Bancarisation
D8: =DATEMAJ!C8 -> au 24/07 | F8: coef | G8: ='RECAP DIRCOM'!AA4 -> 12% | H8: =DATEMAJ!C9 -> au 24/07 | J8: coef | K8: ='RECAP DIRCOM'!AE4 -> 8% | M8: coef | N8: ='RECAP DIRCOM'!AH4 -> 20%
B9: Direction | C9: ="ETP perf "&DATEMAJ!$C$28 -> ETP perf 24-juil | D9: VN | E9: VN / ETP | F9: % Ecart au 1er | G9: Rang | H9: VB | I9: VB / ETP | J9: % Ecart au 1er | K9: Rang | L9: Moyenne ecart au 1er | M9: % Ecart au 1er | N9: Rang CEGEE
A10: 50 | B10: Aube Haute Marne | C10: =VLOOKUP($A10,'RECAP DIRCOM'!$G$6:$CU$12,3,FALSE) -> 112 | D10: =VLOOKUP($A10,'RECAP DIRCOM'!$G$6:$CU$12,18,FALSE) -> 957 | E10: =VLOOKUP($A10,'RECAP DIRCOM'!$G$6:$CU$12,19,FALSE) -> 8.51 | F10: =VLOOKUP($A10,'RECAP DIRCOM'!$G$6:$CU$12,20,FALSE) -> 55% | G10: =VLOOKUP($A10,'RECAP DIRCOM'!$G$6:$CU$12,21,FALSE) -> 6 | H10: =VLOOKUP($A10,'RECAP DIRCOM'!$G$6:$CU$12,22,FALSE) -> 3,840 | I10: =VLOOKUP($A10,'RECAP DIRCOM'!$G$6:$CU$12,23,FALSE) -> 34.17 | J10: =VLOOKUP($A10,'RECAP DIRCOM'!$G$6:$CU$12,24,FALSE) -> 23% | K10: =VLOOKUP($A10,'RECAP DIRCOM'!$G$6:$CU$12,25,FALSE) -> 5 | L10: =VLOOKUP($A10,'RECAP DIRCOM'!$G$6:$CU$12,26,FALSE) -> 42% | M10: =VLOOKUP($A10,'RECAP DIRCOM'!$G$6:$CU$12,27,FALSE) -> 41% | N10: =VLOOKUP($A10,'RECAP DIRCOM'!$G$6:$CU$12,28,FALSE) -> 6
A11: 262 | B11: Bas-Rhin | C11: =VLOOKUP($A11,'RECAP DIRCOM'!$G$6:$CU$12,3,FALSE) -> 220 | D11: =VLOOKUP($A11,'RECAP DIRCOM'!$G$6:$CU$12,18,FALSE) -> 3,141 | E11: =VLOOKUP($A11,'RECAP DIRCOM'!$G$6:$CU$12,19,FALSE) -> 14.26 | F11: =VLOOKUP($A11,'RECAP DIRCOM'!$G$6:$CU$12,20,FALSE) -> 25% | G11: =VLOOKUP($A11,'RECAP DIRCOM'!$G$6:$CU$12,21,FALSE) -> 3 | H11: =VLOOKUP($A11,'RECAP DIRCOM'!$G$6:$CU$12,22,FALSE) -> 7,641 | I11: =VLOOKUP($A11,'RECAP DIRCOM'!$G$6:$CU$12,23,FALSE) -> 34.69 | J11: =VLOOKUP($A11,'RECAP DIRCOM'!$G$6:$CU$12,24,FALSE) -> 22% | K11: =VLOOKUP($A11,'RECAP DIRCOM'!$G$6:$CU$12,25,FALSE) -> 4 | L11: =VLOOKUP($A11,'RECAP DIRCOM'!$G$6:$CU$12,26,FALSE) -> 24% | M11: =VLOOKUP($A11,'RECAP DIRCOM'!$G$6:$CU$12,27,FALSE) -> 23% | N11: =VLOOKUP($A11,'RECAP DIRCOM'!$G$6:$CU$12,28,FALSE) -> 4
A12: 264 | B12: Haut-Rhin | C12: =VLOOKUP($A12,'RECAP DIRCOM'!$G$6:$CU$12,3,FALSE) -> 122 | D12: =VLOOKUP($A12,'RECAP DIRCOM'!$G$6:$CU$12,18,FALSE) -> 541 | E12: =VLOOKUP($A12,'RECAP DIRCOM'!$G$6:$CU$12,19,FALSE) -> 4.44 | F12: =VLOOKUP($A12,'RECAP DIRCOM'!$G$6:$CU$12,20,FALSE) -> 77% | G12: =VLOOKUP($A12,'RECAP DIRCOM'!$G$6:$CU$12,21,FALSE) -> 7 | H12: =VLOOKUP($A12,'RECAP DIRCOM'!$G$6:$CU$12,22,FALSE) -> 3,441 | I12: =VLOOKUP($A12,'RECAP DIRCOM'!$G$6:$CU$12,23,FALSE) -> 28.27 | J12: =VLOOKUP($A12,'RECAP DIRCOM'!$G$6:$CU$12,24,FALSE) -> 36% | K12: =VLOOKUP($A12,'RECAP DIRCOM'!$G$6:$CU$12,25,FALSE) -> 7 | L12: =VLOOKUP($A12,'RECAP DIRCOM'!$G$6:$CU$12,26,FALSE) -> 60% | M12: =VLOOKUP($A12,'RECAP DIRCOM'!$G$6:$CU$12,27,FALSE) -> 60% | N12: =VLOOKUP($A12,'RECAP DIRCOM'!$G$6:$CU$12,28,FALSE) -> 7
A13: 30 | B13: Marne-Ardennes | C13: =VLOOKUP($A13,'RECAP DIRCOM'!$G$6:$CU$12,3,FALSE) -> 193 | D13: =VLOOKUP($A13,'RECAP DIRCOM'!$G$6:$CU$12,18,FALSE) -> 3,487 | E13: =VLOOKUP($A13,'RECAP DIRCOM'!$G$6:$CU$12,19,FALSE) -> 18.07 | F13: =VLOOKUP($A13,'RECAP DIRCOM'!$G$6:$CU$12,20,FALSE) -> 5% | G13: =VLOOKUP($A13,'RECAP DIRCOM'!$G$6:$CU$12,21,FALSE) -> 2 | H13: =VLOOKUP($A13,'RECAP DIRCOM'!$G$6:$CU$12,22,FALSE) -> 8,546 | I13: =VLOOKUP($A13,'RECAP DIRCOM'!$G$6:$CU$12,23,FALSE) -> 44.29 | J13: =VLOOKUP($A13,'RECAP DIRCOM'!$G$6:$CU$12,24,FALSE) -> 0% | K13: =VLOOKUP($A13,'RECAP DIRCOM'!$G$6:$CU$12,25,FALSE) -> 1 | L13: =VLOOKUP($A13,'RECAP DIRCOM'!$G$6:$CU$12,26,FALSE) -> 3% | M13: =VLOOKUP($A13,'RECAP DIRCOM'!$G$6:$CU$12,27,FALSE) -> 2% | N13: =VLOOKUP($A13,'RECAP DIRCOM'!$G$6:$CU$12,28,FALSE) -> 2
A14: 110 | B14: Meurthe et Moselle Meuse | C14: =VLOOKUP($A14,'RECAP DIRCOM'!$G$6:$CU$12,3,FALSE) -> 202 | D14: =VLOOKUP($A14,'RECAP DIRCOM'!$G$6:$CU$12,18,FALSE) -> 2,821 | E14: =VLOOKUP($A14,'RECAP DIRCOM'!$G$6:$CU$12,19,FALSE) -> 13.94 | F14: =VLOOKUP($A14,'RECAP DIRCOM'!$G$6:$CU$12,20,FALSE) -> 26% | G14: =VLOOKUP($A14,'RECAP DIRCOM'!$G$6:$CU$12,21,FALSE) -> 4 | H14: =VLOOKUP($A14,'RECAP DIRCOM'!$G$6:$CU$12,22,FALSE) -> 8,167 | I14: =VLOOKUP($A14,'RECAP DIRCOM'!$G$6:$CU$12,23,FALSE) -> 40.36 | J14: =VLOOKUP($A14,'RECAP DIRCOM'!$G$6:$CU$12,24,FALSE) -> 9% | K14: =VLOOKUP($A14,'RECAP DIRCOM'!$G$6:$CU$12,25,FALSE) -> 3 | L14: =VLOOKUP($A14,'RECAP DIRCOM'!$G$6:$CU$12,26,FALSE) -> 19% | M14: =VLOOKUP($A14,'RECAP DIRCOM'!$G$6:$CU$12,27,FALSE) -> 19% | N14: =VLOOKUP($A14,'RECAP DIRCOM'!$G$6:$CU$12,28,FALSE) -> 3
A15: 160 | B15: Moselle | C15: =VLOOKUP($A15,'RECAP DIRCOM'!$G$6:$CU$12,3,FALSE) -> 226 | D15: =VLOOKUP($A15,'RECAP DIRCOM'!$G$6:$CU$12,18,FALSE) -> 4,284 | E15: =VLOOKUP($A15,'RECAP DIRCOM'!$G$6:$CU$12,19,FALSE) -> 18.97 | F15: =VLOOKUP($A15,'RECAP DIRCOM'!$G$6:$CU$12,20,FALSE) -> 0% | G15: =VLOOKUP($A15,'RECAP DIRCOM'!$G$6:$CU$12,21,FALSE) -> 1 | H15: =VLOOKUP($A15,'RECAP DIRCOM'!$G$6:$CU$12,22,FALSE) -> 9,820 | I15: =VLOOKUP($A15,'RECAP DIRCOM'!$G$6:$CU$12,23,FALSE) -> 43.49 | J15: =VLOOKUP($A15,'RECAP DIRCOM'!$G$6:$CU$12,24,FALSE) -> 2% | K15: =VLOOKUP($A15,'RECAP DIRCOM'!$G$6:$CU$12,25,FALSE) -> 2 | L15: =VLOOKUP($A15,'RECAP DIRCOM'!$G$6:$CU$12,26,FALSE) -> 1% | M15: =VLOOKUP($A15,'RECAP DIRCOM'!$G$6:$CU$12,27,FALSE) -> 0% | N15: =VLOOKUP($A15,'RECAP DIRCOM'!$G$6:$CU$12,28,FALSE) -> 1
A16: 80 | B16: Vosges | C16: =VLOOKUP($A16,'RECAP DIRCOM'!$G$6:$CU$12,3,FALSE) -> 116 | D16: =VLOOKUP($A16,'RECAP DIRCOM'!$G$6:$CU$12,18,FALSE) -> 1,299 | E16: =VLOOKUP($A16,'RECAP DIRCOM'!$G$6:$CU$12,19,FALSE) -> 11.18 | F16: =VLOOKUP($A16,'RECAP DIRCOM'!$G$6:$CU$12,20,FALSE) -> 41% | G16: =VLOOKUP($A16,'RECAP DIRCOM'!$G$6:$CU$12,21,FALSE) -> 5 | H16: =VLOOKUP($A16,'RECAP DIRCOM'!$G$6:$CU$12,22,FALSE) -> 3,648 | I16: =VLOOKUP($A16,'RECAP DIRCOM'!$G$6:$CU$12,23,FALSE) -> 31.40 | J16: =VLOOKUP($A16,'RECAP DIRCOM'!$G$6:$CU$12,24,FALSE) -> 29% | K16: =VLOOKUP($A16,'RECAP DIRCOM'!$G$6:$CU$12,25,FALSE) -> 6 | L16: =VLOOKUP($A16,'RECAP DIRCOM'!$G$6:$CU$12,26,FALSE) -> 36% | M16: =VLOOKUP($A16,'RECAP DIRCOM'!$G$6:$CU$12,27,FALSE) -> 36% | N16: =VLOOKUP($A16,'RECAP DIRCOM'!$G$6:$CU$12,28,FALSE) -> 5
B17: Total CEGEE Directions Régionales | C17: =SUM(C10:C16) -> 1192

Sheet DC_EPARGNE
B1: Accueil | D1: BAROMETRE BDD - DIRECTIONS REGIONALES
D2: EPARGNE
D3: =ACCUEIL!F7 -> 2022-07-24
D7: Excédent Epargne hors DAV pondéré | H7: Ventes sur client non détenteur de l’univers | L7: Total Epargne
D8: =DATEMAJ!C14 -> au 24/07 | F8: coef | G8: ='RECAP DIRCOM'!AP4 -> 12% | H8: =DATEMAJ!C15 -> au 24/07 | J8: coef | K8: ='RECAP DIRCOM'!AT4 -> 8% | M8: coef | N8: ='RECAP DIRCOM'!AW4 -> 20%
B9: Direction | C9: ="ETP perf "&DATEMAJ!$C$28 -> ETP perf 24-juil | D9: Excédent | E9: Excédent / ETP | F9: % Ecart au 1er | G9: Rang | H9: VB | I9: VB / ETP | J9: % Ecart au 1er | K9: Rang | L9: Moyenne ecart au 1er | M9: % Ecart au 1er | N9: Rang CEGEE
A10: 50 | B10: Aube Haute Marne | C10: =VLOOKUP($A10,'RECAP DIRCOM'!$G$6:$CU$12,3,FALSE) -> 112 | D10: =VLOOKUP($A10,'RECAP DIRCOM'!$G$6:$CU$12,33,FALSE) -> 6,877 | E10: =VLOOKUP($A10,'RECAP DIRCOM'!$G$6:$CU$12,34,FALSE) -> 61.19 | F10: =VLOOKUP($A10,'RECAP DIRCOM'!$G$6:$CU$12,35,FALSE) -> 62% | G10: =VLOOKUP($A10,'RECAP DIRCOM'!$G$6:$CU$12,36,FALSE) -> 6 | H10: =VLOOKUP($A10,'RECAP DIRCOM'!$G$6:$CU$12,37,FALSE) -> 3,586 | I10: =VLOOKUP($A10,'RECAP DIRCOM'!$G$6:$CU$12,38,FALSE) -> 31.91 | J10: =VLOOKUP($A10,'RECAP DIRCOM'!$G$6:$CU$12,39,FALSE) -> 30% | K10: =VLOOKUP($A10,'RECAP DIRCOM'!$G$6:$CU$12,40,FALSE) -> 5 | L10: =VLOOKUP($A10,'RECAP DIRCOM'!$G$6:$CU$12,41,FALSE) -> 49% | M10: =VLOOKUP($A10,'RECAP DIRCOM'!$G$6:$CU$12,42,FALSE) -> 44% | N10: =VLOOKUP($A10,'RECAP DIRCOM'!$G$6:$CU$12,43,FALSE) -> 6
A11: 262 | B11: Bas-Rhin | C11: =VLOOKUP($A11,'RECAP DIRCOM'!$G$6:$CU$12,3,FALSE) -> 220 | D11: =VLOOKUP($A11,'RECAP DIRCOM'!$G$6:$CU$12,33,FALSE) -> 23,687 | E11: =VLOOKUP($A11,'RECAP DIRCOM'!$G$6:$CU$12,34,FALSE) -> 107.55 | F11: =VLOOKUP($A11,'RECAP DIRCOM'!$G$6:$CU$12,35,FALSE) -> 33% | G11: =VLOOKUP($A11,'RECAP DIRCOM'!$G$6:$CU$12,36,FALSE) -> 5 | H11: =VLOOKUP($A11,'RECAP DIRCOM'!$G$6:$CU$12,37,FALSE) -> 7,554 | I11: =VLOOKUP($A11,'RECAP DIRCOM'!$G$6:$CU$12,38,FALSE) -> 34.30 | J11: =VLOOKUP($A11,'RECAP DIRCOM'!$G$6:$CU$12,39,FALSE) -> 25% | K11: =VLOOKUP($A11,'RECAP DIRCOM'!$G$6:$CU$12,40,FALSE) -> 3 | L11: =VLOOKUP($A11,'RECAP DIRCOM'!$G$6:$CU$12,41,FALSE) -> 30% | M11: =VLOOKUP($A11,'RECAP DIRCOM'!$G$6:$CU$12,42,FALSE) -> 25% | N11: =VLOOKUP($A11,'RECAP DIRCOM'!$G$6:$CU$12,43,FALSE) -> 5
A12: 264 | B12: Haut-Rhin | C12: =VLOOKUP($A12,'RECAP DIRCOM'!$G$6:$CU$12,3,FALSE) -> 122 | D12: =VLOOKUP($A12,'RECAP DIRCOM'!$G$6:$CU$12,33,FALSE) -> -2,974 | E12: =VLOOKUP($A12,'RECAP DIRCOM'!$G$6:$CU$12,34,FALSE) -> -24.43 | F12: =VLOOKUP($A12,'RECAP DIRCOM'!$G$6:$CU$12,35,FALSE) -> 115% | G12: =VLOOKUP($A12,'RECAP DIRCOM'!$G$6:$CU$12,36,FALSE) -> 7 | H12: =VLOOKUP($A12,'RECAP DIRCOM'!$G$6:$CU$12,37,FALSE) -> 3,060 | I12: =VLOOKUP($A12,'RECAP DIRCOM'!$G$6:$CU$12,38,FALSE) -> 25.14 | J12: =VLOOKUP($A12,'RECAP DIRCOM'!$G$6:$CU$12,39,FALSE) -> 45% | K12: =VLOOKUP($A12,'RECAP DIRCOM'!$G$6:$CU$12,40,FALSE) -> 7 | L12: =VLOOKUP($A12,'RECAP DIRCOM'!$G$6:$CU$12,41,FALSE) -> 87% | M12: =VLOOKUP($A12,'RECAP DIRCOM'!$G$6:$CU$12,42,FALSE) -> 82% | N12: =VLOOKUP($A12,'RECAP DIRCOM'!$G$6:$CU$12,43,FALSE) -> 7
A13: 30 | B13: Marne-Ardennes | C13: =VLOOKUP($A13,'RECAP DIRCOM'!$G$6:$CU$12,3,FALSE) -> 193 | D13: =VLOOKUP($A13,'RECAP DIRCOM'!$G$6:$CU$12,33,FALSE) -> 22,008 | E13: =VLOOKUP($A13,'RECAP DIRCOM'!$G$6:$CU$12,34,FALSE) -> 114.05 | F13: =VLOOKUP($A13,'RECAP DIRCOM'!$G$6:$CU$12,35,FALSE) -> 29% | G13: =VLOOKUP($A13,'RECAP DIRCOM'!$G$6:$CU$12,36,FALSE) -> 4 | H13: =VLOOKUP($A13,'RECAP DIRCOM'!$G$6:$CU$12,37,FALSE) -> 8,403 | I13: =VLOOKUP($A13,'RECAP DIRCOM'!$G$6:$CU$12,38,FALSE) -> 43.55 | J13: =VLOOKUP($A13,'RECAP DIRCOM'!$G$6:$CU$12,39,FALSE) -> 4% | K13: =VLOOKUP($A13,'RECAP DIRCOM'!$G$6:$CU$12,40,FALSE) -> 2 | L13: =VLOOKUP($A13,'RECAP DIRCOM'!$G$6:$CU$12,41,FALSE) -> 19% | M13: =VLOOKUP($A13,'RECAP DIRCOM'!$G$6:$CU$12,42,FALSE) -> 14% | N13: =VLOOKUP($A13,'RECAP DIRCOM'!$G$6:$CU$12,43,FALSE) -> 4
A14: 110 | B14: Meurthe et Moselle Meuse | C14: =VLOOKUP($A14,'RECAP DIRCOM'!$G$6:$CU$12,3,FALSE) -> 202 | D14: =VLOOKUP($A14,'RECAP DIRCOM'!$G$6:$CU$12,33,FALSE) -> 31,094 | E14: =VLOOKUP($A14,'RECAP DIRCOM'!$G$6:$CU$12,34,FALSE) -> 153.66 | F14: =VLOOKUP($A14,'RECAP DIRCOM'!$G$6:$CU$12,35,FALSE) -> 4% | G14: =VLOOKUP($A14,'RECAP DIRCOM'!$G$6:$CU$12,36,FALSE) -> 2 | H14: =VLOOKUP($A14,'RECAP DIRCOM'!$G$6:$CU$12,37,FALSE) -> 6,928 | I14: =VLOOKUP($A14,'RECAP DIRCOM'!$G$6:$CU$12,38,FALSE) -> 34.24 | J14: =VLOOKUP($A14,'RECAP DIRCOM'!$G$6:$CU$12,39,FALSE) -> 25% | K14: =VLOOKUP($A14,'RECAP DIRCOM'!$G$6:$CU$12,40,FALSE) -> 4 | L14: =VLOOKUP($A14,'RECAP DIRCOM'!$G$6:$CU$12,41,FALSE) -> 13% | M14: =VLOOKUP($A14,'RECAP DIRCOM'!$G$6:$CU$12,42,FALSE) -> 8% | N14: =VLOOKUP($A14,'RECAP DIRCOM'!$G$6:$CU$12,43,FALSE) -> 2
A15: 160 | B15: Moselle | C15: =VLOOKUP($A15,'RECAP DIRCOM'!$G$6:$CU$12,3,FALSE) -> 226 | D15: =VLOOKUP($A15,'RECAP DIRCOM'!$G$6:$CU$12,33,FALSE) -> 33,328 | E15: =VLOOKUP($A15,'RECAP DIRCOM'!$G$6:$CU$12,34,FALSE) -> 147.59 | F15: =VLOOKUP($A15,'RECAP DIRCOM'!$G$6:$CU$12,35,FALSE) -> 8% | G15: =VLOOKUP($A15,'RECAP DIRCOM'!$G$6:$CU$12,36,FALSE) -> 3 | H15: =VLOOKUP($A15,'RECAP DIRCOM'!$G$6:$CU$12,37,FALSE) -> 10,281 | I15: =VLOOKUP($A15,'RECAP DIRCOM'!$G$6:$CU$12,38,FALSE) -> 45.53 | J15: =VLOOKUP($A15,'RECAP DIRCOM'!$G$6:$CU$12,39,FALSE) -> 0% | K15: =VLOOKUP($A15,'RECAP DIRCOM'!$G$6:$CU$12,40,FALSE) -> 1 | L15: =VLOOKUP($A15,'RECAP DIRCOM'!$G$6:$CU$12,41,FALSE) -> 5% | M15: =VLOOKUP($A15,'RECAP DIRCOM'!$G$6:$CU$12,42,FALSE) -> 0% | N15: =VLOOKUP($A15,'RECAP DIRCOM'!$G$6:$CU$12,43,FALSE) -> 1
A16: 80 | B16: Vosges | C16: =VLOOKUP($A16,'RECAP DIRCOM'!$G$6:$CU$12,3,FALSE) -> 116 | D16: =VLOOKUP($A16,'RECAP DIRCOM'!$G$6:$CU$12,33,FALSE) -> 18,678 | E16: =VLOOKUP($A16,'RECAP DIRCOM'!$G$6:$CU$12,34,FALSE) -> 160.77 | F16: =VLOOKUP($A16,'RECAP DIRCOM'!$G$6:$CU$12,35,FALSE) -> 0% | G16: =VLOOKUP($A16,'RECAP DIRCOM'!$G$6:$CU$12,36,FALSE) -> 1 | H16: =VLOOKUP($A16,'RECAP DIRCOM'!$G$6:$CU$12,37,FALSE) -> 3,427 | I16: =VLOOKUP($A16,'RECAP DIRCOM'!$G$6:$CU$12,38,FALSE) -> 29.50 | J16: =VLOOKUP($A16,'RECAP DIRCOM'!$G$6:$CU$12,39,FALSE) -> 35% | K16: =VLOOKUP($A16,'RECAP DIRCOM'!$G$6:$CU$12,40,FALSE) -> 6 | L16: =VLOOKUP($A16,'RECAP DIRCOM'!$G$6:$CU$12,41,FALSE) -> 14% | M16: =VLOOKUP($A16,'RECAP DIRCOM'!$G$6:$CU$12,42,FALSE) -> 9% | N16: =VLOOKUP($A16,'RECAP DIRCOM'!$G$6:$CU$12,43,FALSE) -> 3
B17: Total CEGEE Directions Régionales | C17: =SUM(C10:C16) -> 1192

Sheet DC_CREDIT
B1: Accueil | D1: BAROMETRE BDD - DIRECTIONS REGIONALES
D2: CREDITS
D3: =ACCUEIL!F7 -> 2022-07-24
D7: Engagements et ventes accessoires pondérés Immo | H7: Engagements et ventes accessoires pondérés Conso | L7: Ventes sur client non détenteur de l’univers | P7: Total Crédits
D8: =DATEMAJ!C18 -> au 24/07 | F8: coef | G8: ='RECAP DIRCOM'!BE4 -> 6% | H8: =DATEMAJ!C19 -> au 24/07 | J8: coef | K8: ='RECAP DIRCOM'!BI4 -> 6% | L8: =DATEMAJ!C20 -> au 24/07 | N8: coef | O8: ='RECAP DIRCOM'!BM4 -> 8% | Q8: coef | R8: ='RECAP DIRCOM'!BP4 -> 20%
B9: Direction | C9: ="ETP perf "&DATEMAJ!$C$28 -> ETP perf 24-juil | D9: PNB | E9: PNB / ETP | F9: % Ecart au 1er | G9: Rang | H9: PNB | I9: PNB / ETP | J9: % Ecart au 1er | K9: Rang | L9: VB | M9: VB / ETP | N9: % Ecart au 1er | O9: Rang | P9: Moyenne ecart au 1er | Q9: % Ecart au 1er | R9: Rang CEGEE
A10: 50 | B10: Aube Haute Marne | C10: =VLOOKUP($A10,'RECAP DIRCOM'!$G$6:$CU$12,3,FALSE) -> 112 | D10: =VLOOKUP($A10,'RECAP DIRCOM'!$G$6:$CU$12,48,FALSE) -> 13,225 | E10: =VLOOKUP($A10,'RECAP DIRCOM'!$G$6:$CU$12,49,FALSE) -> 117.67 | F10: =VLOOKUP($A10,'RECAP DIRCOM'!$G$6:$CU$12,50,FALSE) -> 52% | G10: =VLOOKUP($A10,'RECAP DIRCOM'!$G$6:$CU$12,51,FALSE) -> 5 | H10: =VLOOKUP($A10,'RECAP DIRCOM'!$G$6:$CU$12,52,FALSE) -> 4,052 | I10: =VLOOKUP($A10,'RECAP DIRCOM'!$G$6:$CU$12,53,FALSE) -> 36.05 | J10: =VLOOKUP($A10,'RECAP DIRCOM'!$G$6:$CU$12,54,FALSE) -> 14% | K10: =VLOOKUP($A10,'RECAP DIRCOM'!$G$6:$CU$12,55,FALSE) -> 3 | L10: =VLOOKUP($A10,'RECAP DIRCOM'!$G$6:$CU$12,56,FALSE) -> 1,490 | M10: =VLOOKUP($A10,'RECAP DIRCOM'!$G$6:$CU$12,57,FALSE) -> 13.26 | N10: =VLOOKUP($A10,'RECAP DIRCOM'!$G$6:$CU$12,58,FALSE) -> 38% | O10: =VLOOKUP($A10,'RECAP DIRCOM'!$G$6:$CU$12,59,FALSE) -> 5 | P10: =VLOOKUP($A10,'RECAP DIRCOM'!$G$6:$CU$12,60,FALSE) -> 35% | Q10: =VLOOKUP($A10,'RECAP DIRCOM'!$G$6:$CU$12,61,FALSE) -> 29% | R10: =VLOOKUP($A10,'RECAP DIRCOM'!$G$6:$CU$12,62,FALSE) -> 4
A11: 262 | B11: Bas-Rhin | C11: =VLOOKUP($A11,'RECAP DIRCOM'!$G$6:$CU$12,3,FALSE) -> 220 | D11: =VLOOKUP($A11,'RECAP DIRCOM'!$G$6:$CU$12,48,FALSE) -> 28,335 | E11: =VLOOKUP($A11,'RECAP DIRCOM'!$G$6:$CU$12,49,FALSE) -> 128.66 | F11: =VLOOKUP($A11,'RECAP DIRCOM'!$G$6:$CU$12,50,FALSE) -> 48% | G11: =VLOOKUP($A11,'RECAP DIRCOM'!$G$6:$CU$12,51,FALSE) -> 4 | H11: =VLOOKUP($A11,'RECAP DIRCOM'!$G$6:$CU$12,52,FALSE) -> 6,710 | I11: =VLOOKUP($A11,'RECAP DIRCOM'!$G$6:$CU$12,53,FALSE) -> 30.46 | J11: =VLOOKUP($A11,'RECAP DIRCOM'!$G$6:$CU$12,54,FALSE) -> 28% | K11: =VLOOKUP($A11,'RECAP DIRCOM'!$G$6:$CU$12,55,FALSE) -> 6 | L11: =VLOOKUP($A11,'RECAP DIRCOM'!$G$6:$CU$12,56,FALSE) -> 2,873 | M11: =VLOOKUP($A11,'RECAP DIRCOM'!$G$6:$CU$12,57,FALSE) -> 13.04 | N11: =VLOOKUP($A11,'RECAP DIRCOM'!$G$6:$CU$12,58,FALSE) -> 39% | O11: =VLOOKUP($A11,'RECAP DIRCOM'!$G$6:$CU$12,59,FALSE) -> 6 | P11: =VLOOKUP($A11,'RECAP DIRCOM'!$G$6:$CU$12,60,FALSE) -> 38% | Q11: =VLOOKUP($A11,'RECAP DIRCOM'!$G$6:$CU$12,61,FALSE) -> 32% | R11: =VLOOKUP($A11,'RECAP DIRCOM'!$G$6:$CU$12,62,FALSE) -> 6
A12: 264 | B12: Haut-Rhin | C12: =VLOOKUP($A12,'RECAP DIRCOM'!$G$6:$CU$12,3,FALSE) -> 122 | D12: =VLOOKUP($A12,'RECAP DIRCOM'!$G$6:$CU$12,48,FALSE) -> 11,891 | E12: =VLOOKUP($A12,'RECAP DIRCOM'!$G$6:$CU$12,49,FALSE) -> 97.69 | F12: =VLOOKUP($A12,'RECAP DIRCOM'!$G$6:$CU$12,50,FALSE) -> 60% | G12: =VLOOKUP($A12,'RECAP DIRCOM'!$G$6:$CU$12,51,FALSE) -> 7 | H12: =VLOOKUP($A12,'RECAP DIRCOM'!$G$6:$CU$12,52,FALSE) -> 3,405 | I12: =VLOOKUP($A12,'RECAP DIRCOM'!$G$6:$CU$12,53,FALSE) -> 27.98 | J12: =VLOOKUP($A12,'RECAP DIRCOM'!$G$6:$CU$12,54,FALSE) -> 33% | K12: =VLOOKUP($A12,'RECAP DIRCOM'!$G$6:$CU$12,55,FALSE) -> 7 | L12: =VLOOKUP($A12,'RECAP DIRCOM'!$G$6:$CU$12,56,FALSE) -> 1,281 | M12: =VLOOKUP($A12,'RECAP DIRCOM'!$G$6:$CU$12,57,FALSE) -> 10.52 | N12: =VLOOKUP($A12,'RECAP DIRCOM'!$G$6:$CU$12,58,FALSE) -> 51% | O12: =VLOOKUP($A12,'RECAP DIRCOM'!$G$6:$CU$12,59,FALSE) -> 7 | P12: =VLOOKUP($A12,'RECAP DIRCOM'!$G$6:$CU$12,60,FALSE) -> 48% | Q12: =VLOOKUP($A12,'RECAP DIRCOM'!$G$6:$CU$12,61,FALSE) -> 42% | R12: =VLOOKUP($A12,'RECAP DIRCOM'!$G$6:$CU$12,62,FALSE) -> 7
A13: 30 | B13: Marne-Ardennes | C13: =VLOOKUP($A13,'RECAP DIRCOM'!$G$6:$CU$12,3,FALSE) -> 193 | D13: =VLOOKUP($A13,'RECAP DIRCOM'!$G$6:$CU$12,48,FALSE) -> 47,536 | E13: =VLOOKUP($A13,'RECAP DIRCOM'!$G$6:$CU$12,49,FALSE) -> 246.35 | F13: =VLOOKUP($A13,'RECAP DIRCOM'!$G$6:$CU$12,50,FALSE) -> 0% | G13: =VLOOKUP($A13,'RECAP DIRCOM'!$G$6:$CU$12,51,FALSE) -> 1 | H13: =VLOOKUP($A13,'RECAP DIRCOM'!$G$6:$CU$12,52,FALSE) -> 6,453 | I13: =VLOOKUP($A13,'RECAP DIRCOM'!$G$6:$CU$12,53,FALSE) -> 33.44 | J13: =VLOOKUP($A13,'RECAP DIRCOM'!$G$6:$CU$12,54,FALSE) -> 21% | K13: =VLOOKUP($A13,'RECAP DIRCOM'!$G$6:$CU$12,55,FALSE) -> 4 | L13: =VLOOKUP($A13,'RECAP DIRCOM'!$G$6:$CU$12,56,FALSE) -> 4,115 | M13: =VLOOKUP($A13,'RECAP DIRCOM'!$G$6:$CU$12,57,FALSE) -> 21.33 | N13: =VLOOKUP($A13,'RECAP DIRCOM'!$G$6:$CU$12,58,FALSE) -> 0% | O13: =VLOOKUP($A13,'RECAP DIRCOM'!$G$6:$CU$12,59,FALSE) -> 1 | P13: =VLOOKUP($A13,'RECAP DIRCOM'!$G$6:$CU$12,60,FALSE) -> 6% | Q13: =VLOOKUP($A13,'RECAP DIRCOM'!$G$6:$CU$12,61,FALSE) -> 0% | R13: =VLOOKUP($A13,'RECAP DIRCOM'!$G$6:$CU$12,62,FALSE) -> 2
A14: 110 | B14: Meurthe et Moselle Meuse | C14: =VLOOKUP($A14,'RECAP DIRCOM'!$G$6:$CU$12,3,FALSE) -> 202 | D14: =VLOOKUP($A14,'RECAP DIRCOM'!$G$6:$CU$12,48,FALSE) -> 44,686 | E14: =VLOOKUP($A14,'RECAP DIRCOM'!$G$6:$CU$12,49,FALSE) -> 220.83 | F14: =VLOOKUP($A14,'RECAP DIRCOM'!$G$6:$CU$12,50,FALSE) -> 10% | G14: =VLOOKUP($A14,'RECAP DIRCOM'!$G$6:$CU$12,51,FALSE) -> 3 | H14: =VLOOKUP($A14,'RECAP DIRCOM'!$G$6:$CU$12,52,FALSE) -> 7,611 | I14: =VLOOKUP($A14,'RECAP DIRCOM'!$G$6:$CU$12,53,FALSE) -> 37.61 | J14: =VLOOKUP($A14,'RECAP DIRCOM'!$G$6:$CU$12,54,FALSE) -> 11% | K14: =VLOOKUP($A14,'RECAP DIRCOM'!$G$6:$CU$12,55,FALSE) -> 2 | L14: =VLOOKUP($A14,'RECAP DIRCOM'!$G$6:$CU$12,56,FALSE) -> 3,653 | M14: =VLOOKUP($A14,'RECAP DIRCOM'!$G$6:$CU$12,57,FALSE) -> 18.05 | N14: =VLOOKUP($A14,'RECAP DIRCOM'!$G$6:$CU$12,58,FALSE) -> 15% | O14: =VLOOKUP($A14,'RECAP DIRCOM'!$G$6:$CU$12,59,FALSE) -> 3 | P14: =VLOOKUP($A14,'RECAP DIRCOM'!$G$6:$CU$12,60,FALSE) -> 12% | Q14: =VLOOKUP($A14,'RECAP DIRCOM'!$G$6:$CU$12,61,FALSE) -> 6% | R14: =VLOOKUP($A14,'RECAP DIRCOM'!$G$6:$CU$12,62,FALSE) -> 3
A15: 160 | B15: Moselle | C15: =VLOOKUP($A15,'RECAP DIRCOM'!$G$6:$CU$12,3,FALSE) -> 226 | D15: =VLOOKUP($A15,'RECAP DIRCOM'!$G$6:$CU$12,48,FALSE) -> 52,965 | E15: =VLOOKUP($A15,'RECAP DIRCOM'!$G$6:$CU$12,49,FALSE) -> 234.56 | F15: =VLOOKUP($A15,'RECAP DIRCOM'!$G$6:$CU$12,50,FALSE) -> 5% | G15: =VLOOKUP($A15,'RECAP DIRCOM'!$G$6:$CU$12,51,FALSE) -> 2 | H15: =VLOOKUP($A15,'RECAP DIRCOM'!$G$6:$CU$12,52,FALSE) -> 9,499 | I15: =VLOOKUP($A15,'RECAP DIRCOM'!$G$6:$CU$12,53,FALSE) -> 42.07 | J15: =VLOOKUP($A15,'RECAP DIRCOM'!$G$6:$CU$12,54,FALSE) -> 0% | K15: =VLOOKUP($A15,'RECAP DIRCOM'!$G$6:$CU$12,55,FALSE) -> 1 | L15: =VLOOKUP($A15,'RECAP DIRCOM'!$G$6:$CU$12,56,FALSE) -> 4,263 | M15: =VLOOKUP($A15,'RECAP DIRCOM'!$G$6:$CU$12,57,FALSE) -> 18.88 | N15: =VLOOKUP($A15,'RECAP DIRCOM'!$G$6:$CU$12,58,FALSE) -> 11% | O15: =VLOOKUP($A15,'RECAP DIRCOM'!$G$6:$CU$12,59,FALSE) -> 2 | P15: =VLOOKUP($A15,'RECAP DIRCOM'!$G$6:$CU$12,60,FALSE) -> 6% | Q15: =VLOOKUP($A15,'RECAP DIRCOM'!$G$6:$CU$12,61,FALSE) -> 0% | R15: =VLOOKUP($A15,'RECAP DIRCOM'!$G$6:$CU$12,62,FALSE) -> 1
A16: 80 | B16: Vosges | C16: =VLOOKUP($A16,'RECAP DIRCOM'!$G$6:$CU$12,3,FALSE) -> 116 | D16: =VLOOKUP($A16,'RECAP DIRCOM'!$G$6:$CU$12,48,FALSE) -> 13,633 | E16: =VLOOKUP($A16,'RECAP DIRCOM'!$G$6:$CU$12,49,FALSE) -> 117.34 | F16: =VLOOKUP($A16,'RECAP DIRCOM'!$G$6:$CU$12,50,FALSE) -> 52% | G16: =VLOOKUP($A16,'RECAP DIRCOM'!$G$6:$CU$12,51,FALSE) -> 6 | H16: =VLOOKUP($A16,'RECAP DIRCOM'!$G$6:$CU$12,52,FALSE) -> 3,717 | I16: =VLOOKUP($A16,'RECAP DIRCOM'!$G$6:$CU$12,53,FALSE) -> 31.99 | J16: =VLOOKUP($A16,'RECAP DIRCOM'!$G$6:$CU$12,54,FALSE) -> 24% | K16: =VLOOKUP($A16,'RECAP DIRCOM'!$G$6:$CU$12,55,FALSE) -> 5 | L16: =VLOOKUP($A16,'RECAP DIRCOM'!$G$6:$CU$12,56,FALSE) -> 1,702 | M16: =VLOOKUP($A16,'RECAP DIRCOM'!$G$6:$CU$12,57,FALSE) -> 14.65 | N16: =VLOOKUP($A16,'RECAP DIRCOM'!$G$6:$CU$12,58,FALSE) -> 31% | O16: =VLOOKUP($A16,'RECAP DIRCOM'!$G$6:$CU$12,59,FALSE) -> 4 | P16: =VLOOKUP($A16,'RECAP DIRCOM'!$G$6:$CU$12,60,FALSE) -> 35% | Q16: =VLOOKUP($A16,'RECAP DIRCOM'!$G$6:$CU$12,61,FALSE) -> 29% | R16: =VLOOKUP($A16,'RECAP DIRCOM'!$G$6:$CU$12,62,FALSE) -> 5
B17: Total CEGEE Directions Régionales | C17: =SUM(C10:C16) -> 1192

Sheet DC_IARD
B1: Accueil | D1: BAROMETRE BDD - DIRECTIONS REGIONALES
D2: IARD ET PREVOYANCE
D3: =ACCUEIL!F7 -> 2022-07-24
D7: Ventes Nettes produits pondérés | H7: Ventes sur client non détenteur de l’univers | L7: Total IARD Prévoyance
D8: =DATEMAJ!C23 -> au 24/07 | F8: coef | G8: ='RECAP DIRCOM'!BX4 -> 12% | H8: =DATEMAJ!C24 -> au 24/07 | J8: coef | K8: ='RECAP DIRCOM'!CB4 -> 8% | M8: coef | N8: ='RECAP DIRCOM'!CE4 -> 20%
B9: Direction | C9: ="ETP perf "&DATEMAJ!$C$28 -> ETP perf 24-juil | D9: VN | E9: VN / ETP | F9: % Ecart au 1er | G9: Rang | H9: VB | I9: VB / ETP | J9: % Ecart au 1er | K9: Rang | L9: Moyenne ecart au 1er | M9: % Ecart au 1er | N9: Rang CEGEE
A10: 50 | B10: Aube Haute Marne | C10: =VLOOKUP($A10,'RECAP DIRCOM'!$G$6:$CU$12,3,FALSE) -> 112 | D10: =VLOOKUP($A10,'RECAP DIRCOM'!$G$6:$CU$12,67,FALSE) -> 9,258 | E10: =VLOOKUP($A10,'RECAP DIRCOM'!$G$6:$CU$12,68,FALSE) -> 82.37 | F10: =VLOOKUP($A10,'RECAP DIRCOM'!$G$6:$CU$12,69,FALSE) -> 27% | G10: =VLOOKUP($A10,'RECAP DIRCOM'!$G$6:$CU$12,70,FALSE) -> 4 | H10: =VLOOKUP($A10,'RECAP DIRCOM'!$G$6:$CU$12,71,FALSE) -> 2,717 | I10: =VLOOKUP($A10,'RECAP DIRCOM'!$G$6:$CU$12,72,FALSE) -> 24.17 | J10: =VLOOKUP($A10,'RECAP DIRCOM'!$G$6:$CU$12,73,FALSE) -> 24% | K10: =VLOOKUP($A10,'RECAP DIRCOM'!$G$6:$CU$12,74,FALSE) -> 5 | L10: =VLOOKUP($A10,'RECAP DIRCOM'!$G$6:$CU$12,75,FALSE) -> 26% | M10: =VLOOKUP($A10,'RECAP DIRCOM'!$G$6:$CU$12,76,FALSE) -> 26% | N10: =VLOOKUP($A10,'RECAP DIRCOM'!$G$6:$CU$12,77,FALSE) -> 4
A11: 262 | B11: Bas-Rhin | C11: =VLOOKUP($A11,'RECAP DIRCOM'!$G$6:$CU$12,3,FALSE) -> 220 | D11: =VLOOKUP($A11,'RECAP DIRCOM'!$G$6:$CU$12,67,FALSE) -> 16,911 | E11: =VLOOKUP($A11,'RECAP DIRCOM'!$G$6:$CU$12,68,FALSE) -> 76.78 | F11: =VLOOKUP($A11,'RECAP DIRCOM'!$G$6:$CU$12,69,FALSE) -> 32% | G11: =VLOOKUP($A11,'RECAP DIRCOM'!$G$6:$CU$12,70,FALSE) -> 5 | H11: =VLOOKUP($A11,'RECAP DIRCOM'!$G$6:$CU$12,71,FALSE) -> 5,765 | I11: =VLOOKUP($A11,'RECAP DIRCOM'!$G$6:$CU$12,72,FALSE) -> 26.18 | J11: =VLOOKUP($A11,'RECAP DIRCOM'!$G$6:$CU$12,73,FALSE) -> 17% | K11: =VLOOKUP($A11,'RECAP DIRCOM'!$G$6:$CU$12,74,FALSE) -> 4 | L11: =VLOOKUP($A11,'RECAP DIRCOM'!$G$6:$CU$12,75,FALSE) -> 26% | M11: =VLOOKUP($A11,'RECAP DIRCOM'!$G$6:$CU$12,76,FALSE) -> 26% | N11: =VLOOKUP($A11,'RECAP DIRCOM'!$G$6:$CU$12,77,FALSE) -> 5
A12: 264 | B12: Haut-Rhin | C12: =VLOOKUP($A12,'RECAP DIRCOM'!$G$6:$CU$12,3,FALSE) -> 122 | D12: =VLOOKUP($A12,'RECAP DIRCOM'!$G$6:$CU$12,67,FALSE) -> 4,059 | E12: =VLOOKUP($A12,'RECAP DIRCOM'!$G$6:$CU$12,68,FALSE) -> 33.35 | F12: =VLOOKUP($A12,'RECAP DIRCOM'!$G$6:$CU$12,69,FALSE) -> 71% | G12: =VLOOKUP($A12,'RECAP DIRCOM'!$G$6:$CU$12,70,FALSE) -> 7 | H12: =VLOOKUP($A12,'RECAP DIRCOM'!$G$6:$CU$12,71,FALSE) -> 2,508 | I12: =VLOOKUP($A12,'RECAP DIRCOM'!$G$6:$CU$12,72,FALSE) -> 20.60 | J12: =VLOOKUP($A12,'RECAP DIRCOM'!$G$6:$CU$12,73,FALSE) -> 35% | K12: =VLOOKUP($A12,'RECAP DIRCOM'!$G$6:$CU$12,74,FALSE) -> 7 | L12: =VLOOKUP($A12,'RECAP DIRCOM'!$G$6:$CU$12,75,FALSE) -> 56% | M12: =VLOOKUP($A12,'RECAP DIRCOM'!$G$6:$CU$12,76,FALSE) -> 56% | N12: =VLOOKUP($A12,'RECAP DIRCOM'!$G$6:$CU$12,77,FALSE) -> 7
A13: 30 | B13: Marne-Ardennes | C13: =VLOOKUP($A13,'RECAP DIRCOM'!$G$6:$CU$12,3,FALSE) -> 193 | D13: =VLOOKUP($A13,'RECAP DIRCOM'!$G$6:$CU$12,67,FALSE) -> 21,880 | E13: =VLOOKUP($A13,'RECAP DIRCOM'!$G$6:$CU$12,68,FALSE) -> 113.39 | F13: =VLOOKUP($A13,'RECAP DIRCOM'!$G$6:$CU$12,69,FALSE) -> 0% | G13: =VLOOKUP($A13,'RECAP DIRCOM'!$G$6:$CU$12,70,FALSE) -> 1 | H13: =VLOOKUP($A13,'RECAP DIRCOM'!$G$6:$CU$12,71,FALSE) -> 6,122 | I13: =VLOOKUP($A13,'RECAP DIRCOM'!$G$6:$CU$12,72,FALSE) -> 31.73 | J13: =VLOOKUP($A13,'RECAP DIRCOM'!$G$6:$CU$12,73,FALSE) -> 0% | K13: =VLOOKUP($A13,'RECAP DIRCOM'!$G$6:$CU$12,74,FALSE) -> 1 | L13: =VLOOKUP($A13,'RECAP DIRCOM'!$G$6:$CU$12,75,FALSE) -> 0% | M13: =VLOOKUP($A13,'RECAP DIRCOM'!$G$6:$CU$12,76,FALSE) -> 0% | N13: =VLOOKUP($A13,'RECAP DIRCOM'!$G$6:$CU$12,77,FALSE) -> 1
A14: 110 | B14: Meurthe et Moselle Meuse | C14: =VLOOKUP($A14,'RECAP DIRCOM'!$G$6:$CU$12,3,FALSE) -> 202 | D14: =VLOOKUP($A14,'RECAP DIRCOM'!$G$6:$CU$12,67,FALSE) -> 17,621 | E14: =VLOOKUP($A14,'RECAP DIRCOM'!$G$6:$CU$12,68,FALSE) -> 87.08 | F14: =VLOOKUP($A14,'RECAP DIRCOM'!$G$6:$CU$12,69,FALSE) -> 23% | G14: =VLOOKUP($A14,'RECAP DIRCOM'!$G$6:$CU$12,70,FALSE) -> 3 | H14: =VLOOKUP($A14,'RECAP DIRCOM'!$G$6:$CU$12,71,FALSE) -> 5,743 | I14: =VLOOKUP($A14,'RECAP DIRCOM'!$G$6:$CU$12,72,FALSE) -> 28.38 | J14: =VLOOKUP($A14,'RECAP DIRCOM'!$G$6:$CU$12,73,FALSE) -> 11% | K14: =VLOOKUP($A14,'RECAP DIRCOM'!$G$6:$CU$12,74,FALSE) -> 3 | L14: =VLOOKUP($A14,'RECAP DIRCOM'!$G$6:$CU$12,75,FALSE) -> 18% | M14: =VLOOKUP($A14,'RECAP DIRCOM'!$G$6:$CU$12,76,FALSE) -> 18% | N14: =VLOOKUP($A14,'RECAP DIRCOM'!$G$6:$CU$12,77,FALSE) -> 3
A15: 160 | B15: Moselle | C15: =VLOOKUP($A15,'RECAP DIRCOM'!$G$6:$CU$12,3,FALSE) -> 226 | D15: =VLOOKUP($A15,'RECAP DIRCOM'!$G$6:$CU$12,67,FALSE) -> 25,336 | E15: =VLOOKUP($A15,'RECAP DIRCOM'!$G$6:$CU$12,68,FALSE) -> 112.20 | F15: =VLOOKUP($A15,'RECAP DIRCOM'!$G$6:$CU$12,69,FALSE) -> 1% | G15: =VLOOKUP($A15,'RECAP DIRCOM'!$G$6:$CU$12,70,FALSE) -> 2 | H15: =VLOOKUP($A15,'RECAP DIRCOM'!$G$6:$CU$12,71,FALSE) -> 6,970 | I15: =VLOOKUP($A15,'RECAP DIRCOM'!$G$6:$CU$12,72,FALSE) -> 30.87 | J15: =VLOOKUP($A15,'RECAP DIRCOM'!$G$6:$CU$12,73,FALSE) -> 3% | K15: =VLOOKUP($A15,'RECAP DIRCOM'!$G$6:$CU$12,74,FALSE) -> 2 | L15: =VLOOKUP($A15,'RECAP DIRCOM'!$G$6:$CU$12,75,FALSE) -> 2% | M15: =VLOOKUP($A15,'RECAP DIRCOM'!$G$6:$CU$12,76,FALSE) -> 2% | N15: =VLOOKUP($A15,'RECAP DIRCOM'!$G$6:$CU$12,77,FALSE) -> 2
A16: 80 | B16: Vosges | C16: =VLOOKUP($A16,'RECAP DIRCOM'!$G$6:$CU$12,3,FALSE) -> 116 | D16: =VLOOKUP($A16,'RECAP DIRCOM'!$G$6:$CU$12,67,FALSE) -> 7,546 | E16: =VLOOKUP($A16,'RECAP DIRCOM'!$G$6:$CU$12,68,FALSE) -> 64.95 | F16: =VLOOKUP($A16,'RECAP DIRCOM'!$G$6:$CU$12,69,FALSE) -> 43% | G16: =VLOOKUP($A16,'RECAP DIRCOM'!$G$6:$CU$12,70,FALSE) -> 6 | H16: =VLOOKUP($A16,'RECAP DIRCOM'!$G$6:$CU$12,71,FALSE) -> 2,610 | I16: =VLOOKUP($A16,'RECAP DIRCOM'!$G$6:$CU$12,72,FALSE) -> 22.47 | J16: =VLOOKUP($A16,'RECAP DIRCOM'!$G$6:$CU$12,73,FALSE) -> 29% | K16: =VLOOKUP($A16,'RECAP DIRCOM'!$G$6:$CU$12,74,FALSE) -> 6 | L16: =VLOOKUP($A16,'RECAP DIRCOM'!$G$6:$CU$12,75,FALSE) -> 37% | M16: =VLOOKUP($A16,'RECAP DIRCOM'!$G$6:$CU$12,76,FALSE) -> 37% | N16: =VLOOKUP($A16,'RECAP DIRCOM'!$G$6:$CU$12,77,FALSE) -> 6
B17: Total CEGEE Directions Régionales | C17: =SUM(C10:C16) -> 1192

Sheet DC_SATISFACTION
B1: Accueil | D1: BAROMETRE BDD - DIRECTIONS REGIONALES
D2: SATISFACTION
D3: =ACCUEIL!F7 -> 2022-07-24
D7: NPS à froid (SAE) | G7: NPS à chaud (QHD) | J7: Total Satisfaction Clients
D8: =DATEMAJ!E4 -> au 30/06 | E8: coef | F8: ='RECAP DIRCOM'!M4 -> 10% | G8: =DATEMAJ!C5 -> au 30/06 | H8: coef | I8: ='RECAP DIRCOM'!P4 -> 10% | K8: coef | L8: ='RECAP DIRCOM'!S4 -> 20%
B9: Direction | C9: ="ETP perf "&DATEMAJ!$C$28 -> ETP perf 24-juil | E9: % Ecart au 1er | F9: Rang | H9: % Ecart au 1er | I9: Rang | J9: Moyenne ecart au 1er | K9: % Ecart au 1er | L9: Rang CEGEE
A10: 50 | B10: Aube Haute Marne | C10: =VLOOKUP($A10,'RECAP DIRCOM'!$G$6:$CU$12,3,FALSE) -> 112 | D10: =VLOOKUP($A10,'RECAP DIRCOM'!$G$6:$CU$12,5,FALSE) -> 5.5 | E10: =VLOOKUP($A10,'RECAP DIRCOM'!$G$6:$CU$12,6,FALSE) -> 78% | F10: =VLOOKUP($A10,'RECAP DIRCOM'!$G$6:$CU$12,7,FALSE) -> 6 | G10: =VLOOKUP($A10,'RECAP DIRCOM'!$G$6:$CU$12,8,FALSE) -> 55% | H10: =VLOOKUP($A10,'RECAP DIRCOM'!$G$6:$CU$12,9,FALSE) -> 20% | I10: =VLOOKUP($A10,'RECAP DIRCOM'!$G$6:$CU$12,10,FALSE) -> 6 | J10: =VLOOKUP($A10,'RECAP DIRCOM'!$G$6:$CU$12,11,FALSE) -> 49% | K10: =VLOOKUP($A10,'RECAP DIRCOM'!$G$6:$CU$12,12,FALSE) -> 49% | L10: =VLOOKUP($A10,'RECAP DIRCOM'!$G$6:$CU$12,13,FALSE) -> 6
A11: 262 | B11: Bas-Rhin | C11: =VLOOKUP($A11,'RECAP DIRCOM'!$G$6:$CU$12,3,FALSE) -> 220 | D11: =VLOOKUP($A11,'RECAP DIRCOM'!$G$6:$CU$12,5,FALSE) -> 5.75 | E11: =VLOOKUP($A11,'RECAP DIRCOM'!$G$6:$CU$12,6,FALSE) -> 77% | F11: =VLOOKUP($A11,'RECAP DIRCOM'!$G$6:$CU$12,7,FALSE) -> 5 | G11: =VLOOKUP($A11,'RECAP DIRCOM'!$G$6:$CU$12,8,FALSE) -> 62% | H11: =VLOOKUP($A11,'RECAP DIRCOM'!$G$6:$CU$12,9,FALSE) -> 10% | I11: =VLOOKUP($A11,'RECAP DIRCOM'!$G$6:$CU$12,10,FALSE) -> 4 | J11: =VLOOKUP($A11,'RECAP DIRCOM'!$G$6:$CU$12,11,FALSE) -> 43% | K11: =VLOOKUP($A11,'RECAP DIRCOM'!$G$6:$CU$12,12,FALSE) -> 43% | L11: =VLOOKUP($A11,'RECAP DIRCOM'!$G$6:$CU$12,13,FALSE) -> 5
A12: 264 | B12: Haut-Rhin | C12: =VLOOKUP($A12,'RECAP DIRCOM'!$G$6:$CU$12,3,FALSE) -> 122 | D12: =VLOOKUP($A12,'RECAP DIRCOM'!$G$6:$CU$12,5,FALSE) -> 3 | E12: =VLOOKUP($A12,'RECAP DIRCOM'!$G$6:$CU$12,6,FALSE) -> 88% | F12: =VLOOKUP($A12,'RECAP DIRCOM'!$G$6:$CU$12,7,FALSE) -> 7 | G12: =VLOOKUP($A12,'RECAP DIRCOM'!$G$6:$CU$12,8,FALSE) -> 50% | H12: =VLOOKUP($A12,'RECAP DIRCOM'!$G$6:$CU$12,9,FALSE) -> 28% | I12: =VLOOKUP($A12,'RECAP DIRCOM'!$G$6:$CU$12,10,FALSE) -> 7 | J12: =VLOOKUP($A12,'RECAP DIRCOM'!$G$6:$CU$12,11,FALSE) -> 58% | K12: =VLOOKUP($A12,'RECAP DIRCOM'!$G$6:$CU$12,12,FALSE) -> 58% | L12: =VLOOKUP($A12,'RECAP DIRCOM'!$G$6:$CU$12,13,FALSE) -> 7
A13: 30 | B13: Marne-Ardennes | C13: =VLOOKUP($A13,'RECAP DIRCOM'!$G$6:$CU$12,3,FALSE) -> 193 | D13: =VLOOKUP($A13,'RECAP DIRCOM'!$G$6:$CU$12,5,FALSE) -> 18.5 | E13: =VLOOKUP($A13,'RECAP DIRCOM'!$G$6:$CU$12,6,FALSE) -> 24% | F13: =VLOOKUP($A13,'RECAP DIRCOM'!$G$6:$CU$12,7,FALSE) -> 2 | G13: =VLOOKUP($A13,'RECAP DIRCOM'!$G$6:$CU$12,8,FALSE) -> 67% | H13: =VLOOKUP($A13,'RECAP DIRCOM'!$G$6:$CU$12,9,FALSE) -> 3% | I13: =VLOOKUP($A13,'RECAP DIRCOM'!$G$6:$CU$12,10,FALSE) -> 2 | J13: =VLOOKUP($A13,'RECAP DIRCOM'!$G$6:$CU$12,11,FALSE) -> 14% | K13: =VLOOKUP($A13,'RECAP DIRCOM'!$G$6:$CU$12,12,FALSE) -> 14% | L13: =VLOOKUP($A13,'RECAP DIRCOM'!$G$6:$CU$12,13,FALSE) -> 2
A14: 110 | B14: Meurthe et Moselle Meuse | C14: =VLOOKUP($A14,'RECAP DIRCOM'!$G$6:$CU$12,3,FALSE) -> 202 | D14: =VLOOKUP($A14,'RECAP DIRCOM'!$G$6:$CU$12,5,FALSE) -> 10.75 | E14: =VLOOKUP($A14,'RECAP DIRCOM'!$G$6:$CU$12,6,FALSE) -> 56% | F14: =VLOOKUP($A14,'RECAP DIRCOM'!$G$6:$CU$12,7,FALSE) -> 4 | G14: =VLOOKUP($A14,'RECAP DIRCOM'!$G$6:$CU$12,8,FALSE) -> 61% | H14: =VLOOKUP($A14,'RECAP DIRCOM'!$G$6:$CU$12,9,FALSE) -> 12% | I14: =VLOOKUP($A14,'RECAP DIRCOM'!$G$6:$CU$12,10,FALSE) -> 5 | J14: =VLOOKUP($A14,'RECAP DIRCOM'!$G$6:$CU$12,11,FALSE) -> 34% | K14: =VLOOKUP($A14,'RECAP DIRCOM'!$G$6:$CU$12,12,FALSE) -> 34% | L14: =VLOOKUP($A14,'RECAP DIRCOM'!$G$6:$CU$12,13,FALSE) -> 4
A15: 160 | B15: Moselle | C15: =VLOOKUP($A15,'RECAP DIRCOM'!$G$6:$CU$12,3,FALSE) -> 226 | D15: =VLOOKUP($A15,'RECAP DIRCOM'!$G$6:$CU$12,5,FALSE) -> 15.25 | E15: =VLOOKUP($A15,'RECAP DIRCOM'!$G$6:$CU$12,6,FALSE) -> 38% | F15: =VLOOKUP($A15,'RECAP DIRCOM'!$G$6:$CU$12,7,FALSE) -> 3 | G15: =VLOOKUP($A15,'RECAP DIRCOM'!$G$6:$CU$12,8,FALSE) -> 63% | H15: =VLOOKUP($A15,'RECAP DIRCOM'!$G$6:$CU$12,9,FALSE) -> 8% | I15: =VLOOKUP($A15,'RECAP DIRCOM'!$G$6:$CU$12,10,FALSE) -> 3 | J15: =VLOOKUP($A15,'RECAP DIRCOM'!$G$6:$CU$12,11,FALSE) -> 23% | K15: =VLOOKUP($A15,'RECAP DIRCOM'!$G$6:$CU$12,12,FALSE) -> 23% | L15: =VLOOKUP($A15,'RECAP DIRCOM'!$G$6:$CU$12,13,FALSE) -> 3
A16: 80 | B16: Vosges | C16: =VLOOKUP($A16,'RECAP DIRCOM'!$G$6:$CU$12,3,FALSE) -> 116 | D16: =VLOOKUP($A16,'RECAP DIRCOM'!$G$6:$CU$12,5,FALSE) -> 24.5 | E16: =VLOOKUP($A16,'RECAP DIRCOM'!$G$6:$CU$12,6,FALSE) -> 0% | F16: =VLOOKUP($A16,'RECAP DIRCOM'!$G$6:$CU$12,7,FALSE) -> 1 | G16: =VLOOKUP($A16,'RECAP DIRCOM'!$G$6:$CU$12,8,FALSE) -> 69% | H16: =VLOOKUP($A16,'RECAP DIRCOM'!$G$6:$CU$12,9,FALSE) -> 0% | I16: =VLOOKUP($A16,'RECAP DIRCOM'!$G$6:$CU$12,10,FALSE) -> 1 | J16: =VLOOKUP($A16,'RECAP DIRCOM'!$G$6:$CU$12,11,FALSE) -> 0% | K16: =VLOOKUP($A16,'RECAP DIRCOM'!$G$6:$CU$12,12,FALSE) -> 0% | L16: =VLOOKUP($A16,'RECAP DIRCOM'!$G$6:$CU$12,13,FALSE) -> 1
B17: Total CEGEE Directions Régionales | C17: =SUM(C10:C16) -> 1192

Sheet SE_FICHE
A1: Accueil
A2: BAROMETRE BDD
A4: UNITE: | B4: TERRITOIRE | E4: ETP perf : | F4: =VLOOKUP(A5,'RECAP SECT'!$G$6:$I$23,3,FALSE) -> 47.41
A5: =VLOOKUP(B5,LISTES!$H$6:$I$23,2,FALSE) -> 5130 | B5: COLMAR
C6: Coefficient du critére | E6: Résultats | I6: Ecart au 1ier | M6: Evolution | O6: Rang
E7: du 1ier | G7: du territoire | I7: Du mois | K7: Au 31/12/2019
A9: RANG au CLASSEMENT GENERAL | K9: =VLOOKUP($A$5,#REF!,168,FALSE) ->  | M9: =+K9-O9 ->  | O9: =VLOOKUP($A$5,'RECAP SECT'!$G$6:$CY$312,168,FALSE) ->  | S9: =VLOOKUP($A$5,#REF!,154,FALSE) ->  | U9: =+S9-O9 -> 
A11: CRITERE CONQUETE | C11: 15% | O11: =VLOOKUP($A$5,'RECAP SECT'!$G$6:$CY$312,23,FALSE) -> 34.65513605
B12: PNB Evolution nette Clients BP | C12: 4% | E12: ='RECAP SECT'!#REF! ->  | G12: =VLOOKUP($A$5,'RECAP SECT'!$G$6:$CY$312,6,FALSE) -> 0.9 | I12: =VLOOKUP($A$5,'RECAP SECT'!$G$6:$CY$312,7,FALSE) -> 1600% | K12: =VLOOKUP($A$5,#REF!,7,FALSE) ->  | M12: =+K12-I12 ->  | O12: =VLOOKUP($A$5,'RECAP SECT'!$G$6:$CY$312,8,FALSE) -> 0.5364569123 | S12: =VLOOKUP($A$5,#REF!,6,FALSE) ->  | U12: =+S12-I12 -> 
B13: PNB Evolution nette Clients PREMIUM | C13: 5% | E13: ='RECAP SECT'!#REF! ->  | G13: =VLOOKUP($A$5,'RECAP SECT'!$G$6:$CY$312,10,FALSE) -> 16.0 | I13: =VLOOKUP($A$5,'RECAP SECT'!$G$6:$CY$312,11,FALSE) -> 59% | K13: =VLOOKUP($A$5,#REF!,11,FALSE) ->  | M13: =+K13-I13 ->  | O13: =VLOOKUP($A$5,'RECAP SECT'!$G$6:$CY$312,12,FALSE) -> 0.5863080966 | S13: =VLOOKUP($A$5,#REF!,9,FALSE) ->  | U13: =+S13-I13 -> 
B14: PNB Evolution nette Clients Jeunes Equipés | C14: 3% | E14: ='RECAP SECT'!#REF! ->  | G14: =VLOOKUP($A$5,'RECAP SECT'!$G$6:$CY$312,14,FALSE) -> 0.0 | I14: =VLOOKUP($A$5,'RECAP SECT'!$G$6:$CY$312,15,FALSE) -> 0% | K14: =VLOOKUP($A$5,#REF!,15,FALSE) ->  | M14: =+K14-I14 ->  | O14: =VLOOKUP($A$5,'RECAP SECT'!$G$6:$CY$312,16,FALSE) -> 0 | S14: =VLOOKUP($A$5,#REF!,12,FALSE) ->  | U14: =+S14-I14 -> 
B15: PNB Evolution nette Clients Pro Actifs Equipés | C15: 3% | E15: ='RECAP SECT'!W4 -> 0.0 | G15: =VLOOKUP($A$5,'RECAP SECT'!$G$6:$CY$312,18,FALSE) -> 450.2 | I15: =VLOOKUP($A$5,'RECAP SECT'!$G$6:$CY$312,19,FALSE) -> 950% | K15: =VLOOKUP($A$5,#REF!,19,FALSE) ->  | M15: =+K15-I15 ->  | O15: =VLOOKUP($A$5,'RECAP SECT'!$G$6:$CY$312,20,FALSE) -> 0.6864120919 | S15: =VLOOKUP($A$5,#REF!,15,FALSE) ->  | U15: =+S15-I15 -> 
A17: CRITERE BANCARISATION | C17: 15% | O17: =VLOOKUP($A$5,'RECAP SECT'!$G$6:$CY$312,48,FALSE) -> 4975.270942
B18: PNB Ventes nettes forfaits | C18: 4% | E18: ='RECAP SECT'!X4 -> 30.3 | G18: =VLOOKUP($A$5,'RECAP SECT'!$G$6:$CY$312,31,FALSE) -> 0.0 | I18: =VLOOKUP($A$5,'RECAP SECT'!$G$6:$CY$312,32,FALSE) -> 0% | K18: =VLOOKUP($A$5,#REF!,32,FALSE) ->  | M18: =+K18-I18 ->  | O18: =VLOOKUP($A$5,'RECAP SECT'!$G$6:$CY$312,33,FALSE) -> 2305.998885 | S18: =VLOOKUP($A$5,#REF!,27,FALSE) ->  | U18: =+S18-I18 -> 
B19: PNB Ventes nettes IZICARTES Débit Différé | C19: 4% | E19: ='RECAP SECT'!AB4 -> 62.8 | G19: =VLOOKUP($A$5,'RECAP SECT'!$G$6:$CY$312,35,FALSE) -> 0.8 | I19: =VLOOKUP($A$5,'RECAP SECT'!$G$6:$CY$312,36,FALSE) -> 1600% | K19: =VLOOKUP($A$5,#REF!,36,FALSE) ->  | M19: =+K19-I19 ->  | O19: =VLOOKUP($A$5,'RECAP SECT'!$G$6:$CY$312,37,FALSE) -> 1483 | S19: =VLOOKUP($A$5,#REF!,30,FALSE) ->  | U19: =+S19-I19 -> 
B20: PNB Ventes nettes cartes HDG Débit Différé | C20: 4% | E20: ='RECAP SECT'!#REF! ->  | G20: =VLOOKUP($A$5,'RECAP SECT'!$G$6:$CY$312,39,FALSE) -> 0.5 | I20: =VLOOKUP($A$5,'RECAP SECT'!$G$6:$CY$312,40,FALSE) -> 1800% | K20: =VLOOKUP($A$5,#REF!,40,FALSE) ->  | M20: =+K20-I20 ->  | O20: =VLOOKUP($A$5,'RECAP SECT'!$G$6:$CY$312,41,FALSE) -> 0.7074064661 | S20: =VLOOKUP($A$5,#REF!,33,FALSE) ->  | U20: =+S20-I20 -> 
B21: PNB Ventes nettes Forfaits Pro, Carte pro | C21: 3% | E21: ='RECAP SECT'!#REF! ->  | G21: =VLOOKUP($A$5,'RECAP SECT'!$G$6:$CY$312,43,FALSE) -> 16.0 | I21: =VLOOKUP($A$5,'RECAP SECT'!$G$6:$CY$312,44,FALSE) -> 0% | K21: =VLOOKUP($A$5,#REF!,44,FALSE) ->  | M21: =+K21-I21 ->  | O21: =VLOOKUP($A$5,'RECAP SECT'!$G$6:$CY$312,45,FALSE) -> 0 | S21: =VLOOKUP($A$5,#REF!,39,FALSE) ->  | U21: =+S21-I21 -> 
A23: CRITERE EPARGNE | C23: 10% | O23: =VLOOKUP($A$5,'RECAP SECT'!$G$6:$CY$312,69,FALSE) -> 0.6170962489
B24: PNB Epargne Liquide | C24: 3% | E24: ='RECAP SECT'!AM4 -> 313.1 | G24: =VLOOKUP($A$5,'RECAP SECT'!$G$6:$CY$312,56,FALSE) -> 642.0 | I24: =VLOOKUP($A$5,'RECAP SECT'!$G$6:$CY$312,57,FALSE) -> 1354% | K24: =VLOOKUP($A$5,#REF!,57,FALSE) ->  | M24: =+K24-I24 ->  | O24: =VLOOKUP($A$5,'RECAP SECT'!$G$6:$CY$312,58,FALSE) -> 0.5595160756 | S24: =VLOOKUP($A$5,#REF!,51,FALSE) ->  | U24: =+S24-I24 -> 
B25: PNB CA UC + arbitrage | C25: 4% | E25: ='RECAP SECT'!AQ4 -> 62.8 | G25: =VLOOKUP($A$5,'RECAP SECT'!$G$6:$CY$312,60,FALSE) -> 0.5 | I25: =VLOOKUP($A$5,'RECAP SECT'!$G$6:$CY$312,61,FALSE) -> 49% | K25: =VLOOKUP($A$5,#REF!,61,FALSE) ->  | M25: =+K25-I25 ->  | O25: =VLOOKUP($A$5,'RECAP SECT'!$G$6:$CY$312,62,FALSE) -> 18 | S25: =VLOOKUP($A$5,#REF!,57,FALSE) ->  | U25: =+S25-I25 -> 
B26: PNB Excédent assurance vie | C26: 3% | E26: ='RECAP SECT'!#REF! ->  | G26: =VLOOKUP($A$5,'RECAP SECT'!$G$6:$CY$312,64,FALSE) -> 0.0 | I26: =VLOOKUP($A$5,'RECAP SECT'!$G$6:$CY$312,65,FALSE) -> 0% | K26: =VLOOKUP($A$5,#REF!,65,FALSE) ->  | M26: =+K26-I26 ->  | O26: =VLOOKUP($A$5,'RECAP SECT'!$G$6:$CY$312,66,FALSE) -> 0 | S26: =VLOOKUP($A$5,#REF!,60,FALSE) ->  | U26: =+S26-I26 -> 
A28: CRITERE CREDITS | C28: 15% | O28: =VLOOKUP($A$5,'RECAP SECT'!$G$6:$CY$312,102,FALSE) -> 
B29: PNB crédit conso | C29: 4% | E29: ='RECAP SECT'!BB4 -> 378.3 | G29: =VLOOKUP($A$5,'RECAP SECT'!$G$6:$CY$312,77,FALSE) -> 17.0 | I29: =VLOOKUP($A$5,'RECAP SECT'!$G$6:$CY$312,78,FALSE) -> 0% | K29: =VLOOKUP($A$5,#REF!,78,FALSE) ->  | M29: =+K29-I29 ->  | O29: =VLOOKUP($A$5,'RECAP SECT'!$G$6:$CY$312,79,FALSE) -> 0 | S29: =VLOOKUP($A$5,#REF!,75,FALSE) ->  | U29: =+S29-I29 -> 
B30: PNB ADE crédit conso | C30: 1% | E30: ='RECAP SECT'!#REF! ->  | G30: =VLOOKUP($A$5,'RECAP SECT'!$G$6:$CY$312,81,FALSE) -> 0.0 | I30: =VLOOKUP($A$5,'RECAP SECT'!$G$6:$CY$312,82,FALSE) -> 0% | K30: =VLOOKUP($A$5,#REF!,82,FALSE) ->  | O30: =VLOOKUP($A$5,'RECAP SECT'!$G$6:$CY$312,83,FALSE) -> 0 | S30: =VLOOKUP($A$5,#REF!,78,FALSE) -> 
B31: PNB crédit immo | C31: 4% | E31: ='RECAP SECT'!BF4 -> 53.3 | G31: =VLOOKUP($A$5,'RECAP SECT'!$G$6:$CY$312,85,FALSE) -> 0.0 | I31: =VLOOKUP($A$5,'RECAP SECT'!$G$6:$CY$312,86,FALSE) -> 0% | K31: =VLOOKUP($A$5,#REF!,86,FALSE) ->  | O31: =VLOOKUP($A$5,'RECAP SECT'!$G$6:$CY$312,87,FALSE) -> 0 | S31: =VLOOKUP($A$5,#REF!,81,FALSE) -> 
B32: PNB ADE crédit immo | C32: 2% | E32: ='RECAP SECT'!#REF! ->  | G32: =VLOOKUP($A$5,'RECAP SECT'!$G$6:$CY$312,89,FALSE) -> 0.0 | I32: =VLOOKUP($A$5,'RECAP SECT'!$G$6:$CY$312,90,FALSE) -> 0% | K32: =VLOOKUP($A$5,#REF!,90,FALSE) ->  | O32: =VLOOKUP($A$5,'RECAP SECT'!$G$6:$CY$312,91,FALSE) -> 0 | S32: =VLOOKUP($A$5,#REF!,84,FALSE) -> 
B33: PNB SACCEF | C33: 2% | E33: ='RECAP SECT'!#REF! ->  | G33: =VLOOKUP($A$5,'RECAP SECT'!$G$6:$CY$312,93,FALSE) -> 0.0 | I33: =VLOOKUP($A$5,'RECAP SECT'!$G$6:$CY$312,94,FALSE) -> 55% | K33: =VLOOKUP($A$5,#REF!,94,FALSE) ->  | O33: =VLOOKUP($A$5,'RECAP SECT'!$G$6:$CY$312,95,FALSE) -> 0.4067736222 | S33: =VLOOKUP($A$5,#REF!,87,FALSE) -> 
B34: PNB Crédit MLT + Crédit Bail | C34: 2% | E34: ='RECAP SECT'!BJ4 -> 30.7 | G34: =VLOOKUP($A$5,'RECAP SECT'!$G$6:$CY$312,97,FALSE) -> 0.0 | I34: =VLOOKUP($A$5,'RECAP SECT'!$G$6:$CY$312,98,FALSE) ->  | K34: =VLOOKUP($A$5,#REF!,98,FALSE) ->  | O34: =VLOOKUP($A$5,'RECAP SECT'!$G$6:$CY$312,99,FALSE) ->  | S34: =VLOOKUP($A$5,#REF!,90,FALSE) -> 
A36: CRITERE IARD PREVOYANCE | C36: 15% | O36: =VLOOKUP($A$5,'RECAP SECT'!$G$6:$CY$312,119,FALSE) -> 
B37: PNB Ventes nettes IARD | C37: 9% | E37: ='RECAP SECT'!BU4 -> 163.7 | G37: =VLOOKUP($A$5,'RECAP SECT'!$G$6:$CY$312,110,FALSE) ->  | I37: =VLOOKUP($A$5,'RECAP SECT'!$G$6:$CY$312,111,FALSE) ->  | K37: =VLOOKUP($A$5,#REF!,111,FALSE) ->  | M37: =+K37-I37 ->  | O37: =VLOOKUP($A$5,'RECAP SECT'!$G$6:$CY$312,112,FALSE) ->  | S37: =VLOOKUP($A$5,#REF!,102,FALSE) ->  | U37: =+S37-I37 -> 
B38: PNB Ventes nettes Prévoyance | C38: 6% | E38: ='RECAP SECT'!BY4 -> 43.1 | G38: =VLOOKUP($A$5,'RECAP SECT'!$G$6:$CY$312,114,FALSE) ->  | I38: =VLOOKUP($A$5,'RECAP SECT'!$G$6:$CY$312,115,FALSE) ->  | K38: =VLOOKUP($A$5,#REF!,115,FALSE) ->  | M38: =+K38-I38 ->  | O38: =VLOOKUP($A$5,'RECAP SECT'!$G$6:$CY$312,116,FALSE) ->  | S38: =VLOOKUP($A$5,#REF!,105,FALSE) ->  | U38: =+S38-I38 -> 
A40: CRITERE ACCELERATEURS PNB | C40: 15% | O40: =VLOOKUP($A$5,'RECAP SECT'!$G$6:$CY$312,144,FALSE) -> 
B41: PNB Ventes brutes SED Finalisées | C41: 6% | E41: ='RECAP SECT'!#REF! ->  | G41: =VLOOKUP($A$5,'RECAP SECT'!$G$6:$CY$312,127,FALSE) ->  | I41: =VLOOKUP($A$5,'RECAP SECT'!$G$6:$CY$312,128,FALSE) ->  | K41: =VLOOKUP($A$5,#REF!,128,FALSE) ->  | M41: =+K41-I41 ->  | O41: =VLOOKUP($A$5,'RECAP SECT'!$G$6:$CY$312,129,FALSE) ->  | S41: =VLOOKUP($A$5,#REF!,120,FALSE) ->  | U41: =+S41-I41 -> 
B42: PNB clients équipés E documents | C42: 3% | E42: ='RECAP SECT'!#REF! ->  | G42: =VLOOKUP($A$5,'RECAP SECT'!$G$6:$CY$312,131,FALSE) ->  | I42: =VLOOKUP($A$5,'RECAP SECT'!$G$6:$CY$312,132,FALSE) ->  | K42: =VLOOKUP($A$5,#REF!,132,FALSE) ->  | M42: =+K42-I42 ->  | O42: =VLOOKUP($A$5,'RECAP SECT'!$G$6:$CY$312,133,FALSE) ->  | S42: =VLOOKUP($A$5,#REF!,123,FALSE) ->  | U42: =+S42-I42 -> 
B43: Economie opt'in | C43: 3% | E43: ='RECAP SECT'!#REF! ->  | G43: =VLOOKUP($A$5,'RECAP SECT'!$G$6:$CY$312,135,FALSE) ->  | I43: =VLOOKUP($A$5,'RECAP SECT'!$G$6:$CY$312,136,FALSE) ->  | K43: =VLOOKUP($A$5,#REF!,136,FALSE) ->  | M43: =+K43-I43 ->  | O43: =VLOOKUP($A$5,'RECAP SECT'!$G$6:$CY$312,137,FALSE) -> 
B44: Remises commerciales | C44: 3% | E44: ='RECAP SECT'!#REF! ->  | G44: =VLOOKUP($A$5,'RECAP SECT'!$G$6:$CY$312,139,FALSE) ->  | I44: =VLOOKUP($A$5,'RECAP SECT'!$G$6:$CY$312,140,FALSE) ->  | K44: =VLOOKUP($A$5,#REF!,140,FALSE) ->  | M44: =+K44-I44 ->  | O44: =VLOOKUP($A$5,'RECAP SECT'!$G$6:$CY$312,141,FALSE) ->  | S44: =VLOOKUP($A$5,#REF!,126,FALSE) ->  | U44: =+S44-I44 -> 
A46: CRITERE Satisfaction Clients | C46: 15% | O46: =VLOOKUP($A$5,'RECAP SECT'!$G$6:$CY$312,159,FALSE) -> 
B47: Objectifs NPS* | C47: 8% | E47: ='RECAP SECT'!K4 -> 26 | G47: =VLOOKUP($A$5,'RECAP SECT'!$G$6:$CY$312,151,FALSE) ->  | I47: =VLOOKUP($A$5,'RECAP SECT'!$G$6:$CY$312,152,FALSE) ->  | K47: =VLOOKUP($A$5,#REF!,152,FALSE) ->  | M47: =+K47-I47 ->  | O47: =VLOOKUP($A$5,'RECAP SECT'!$G$6:$CY$312,153,FALSE) ->  | S47: =VLOOKUP($A$5,#REF!,138,FALSE) ->  | U47: =+S47-I47 -> 
B48: Enquête Qualité Haute Définition | C48: 7% | E48: ='RECAP SECT'!N4 -> 74% | G48: =VLOOKUP($A$5,'RECAP SECT'!$G$6:$CY$312,154,FALSE) ->  | I48: =VLOOKUP($A$5,'RECAP SECT'!$G$6:$CY$312,155,FALSE) ->  | K48: =VLOOKUP($A$5,#REF!,155,FALSE) ->  | M48: =+K48-I48 ->  | O48: =VLOOKUP($A$5,'RECAP SECT'!$G$6:$CY$312,156,FALSE) ->  | S48: =VLOOKUP($A$5,#REF!,141,FALSE) ->  | U48: =+S48-I48 -> 

Sheet SE_TOTAL
B1: Accueil | F1: BAROMETRE BDD - TERRITOIRES
F2: TOTAL GENERAL
F3: =ACCUEIL!F7 -> 2022-07-24
F7: TOTAL GENERAL | I7: Total Satisfaction Clients | L7: Total Bancarisation | O7: Total Epargne | R7: Total IARD Prévoyance | U7: Total Crédits
G8: coef | H8: =K8+N8+Q8+T8+W8 -> 100% | J8: coef | K8: =SE_SATISFACTION!N8 -> 20% | M8: coef | N8: =SE_BANCA!P8 -> 20% | P8: coef | Q8: =SE_EPARGNE!P8 -> 20% | S8: coef | T8: =SE_IARD!P8 -> 20% | V8: coef | W8: =SE_CREDIT!T8 -> 20%
B9: Direction | C9: eds | D9: Territoire | E9: ="ETP perf "&DATEMAJ!$C$28 -> ETP perf 24-juil | F9: Moyenne ecart au 1er | G9: % Ecart au 1er | H9: Rang CEGEE | I9: Moyenne ecart au 1er | J9: % Ecart au 1er | K9: Rang CEGEE | L9: Moyenne ecart au 1er | M9: % Ecart au 1er | N9: Rang CEGEE | O9: Moyenne ecart au 1er | P9: % Ecart au 1er | Q9: Rang CEGEE | R9: Moyenne ecart au 1er | S9: % Ecart au 1er | T9: Rang CEGEE | U9: Moyenne ecart au 1er | V9: % Ecart au 1er | W9: Rang CEGEE
A10: 50 | B10: MARNE-ARDENNES | C10: 11 | D10: REIMS | E10: 68.3 | F10: 14% | G10: 0% | H10: 1 | I10: 27% | J10: 27% | K10: 7 | L10: 5% | M10: 3% | N10: 2 | O10: 44% | P10: 31% | Q10: 10 | R10: 8% | S10: 7% | T10: 2 | U10: 8% | V10: 2% | W10: 2
A11: 50 | B11: MOSELLE | C11: 44 | D11: MOSELLE NORD | E11: 57.2 | F11: 15% | G11: 1% | H11: 2 | I11: 43% | J11: 43% | K11: 13 | L11: 3% | M11: 0% | N11: 1 | O11: 45% | P11: 32% | Q11: 11 | R11: 1% | S11: 0% | T11: 1 | U11: 5% | V11: 0% | W11: 1
A12: 262 | B12: MOSELLE | C12: 42 | D12: MOSELLE EST | E12: 59.9 | F12: 19% | G12: 5% | H12: 3 | I12: 16% | J12: 16% | K12: 5 | L12: 22% | M12: 19% | N12: 3 | O12: 38% | P12: 25% | Q12: 7 | R12: 15% | S12: 14% | T12: 4 | U12: 25% | V12: 20% | W12: 6
A13: 262 | B13: MARNE-ARDENNES | C13: 2 | D13: CHARLEVILLE MEZIERES | E13: 48.7 | F13: 19% | G13: 6% | H13: 4 | I13: 28% | J13: 28% | K13: 8 | L13: 38% | M13: 35% | N13: 9 | O13: 18% | P13: 5% | Q13: 4 | R13: 13% | S13: 12% | T13: 3 | U13: 23% | V13: 17% | W13: 5
A14: 262 | B14: MARNE-ARDENNES | C14: 6 | D14: CHALONS EN CHAMPAGNE | E14: 38.0 | F14: 20% | G14: 6% | H14: 5 | I14: 0% | J14: 0% | K14: 1 | L14: 25% | M14: 22% | N14: 4 | O14: 54% | P14: 41% | Q14: 13 | R14: 15% | S14: 14% | T14: 5 | U14: 29% | V14: 24% | W14: 9
A15: 264 | B15: AUBE HAUTE MARNE | C15: 21 | D15: CHAUMONT | E15: 33.9 | F15: 22% | G15: 8% | H15: 6 | I15: 22% | J15: 22% | K15: 6 | L15: 42% | M15: 39% | N15: 14 | O15: 13% | P15: 0% | Q15: 1 | R15: 20% | S15: 19% | T15: 8 | U15: 36% | V15: 30% | W15: 10
A16: 264 | B16: MEURTHE ET MOSELLE MEUSE | C16: 26 | D16: NANCY | E16: 55.1 | F16: 23% | G16: 9% | H16: 7 | I16: 37% | J16: 37% | K16: 12 | L16: 34% | M16: 32% | N16: 8 | O16: 14% | P16: 1% | Q16: 2 | R16: 33% | S16: 32% | T16: 10 | U16: 19% | V16: 14% | W16: 3
A17: 30 | B17: MOSELLE | C17: 45 | D17: METZ | E17: 72.6 | F17: 24% | G17: 10% | H17: 8 | I17: 30% | J17: 30% | K17: 9 | L17: 38% | M17: 36% | N17: 10 | O17: 16% | P17: 2% | Q17: 3 | R17: 31% | S17: 30% | T17: 9 | U17: 28% | V17: 23% | W17: 7
A18: 30 | B18: BAS-RHIN | C18: 5006 | D18: STRASBOURG | E18: 65.0 | F18: 26% | G18: 12% | H18: 9 | I18: 37% | J18: 37% | K18: 10 | L18: 27% | M18: 24% | N18: 5 | O18: 36% | P18: 23% | Q18: 6 | R18: 16% | S18: 15% | T18: 6 | U18: 36% | V18: 31% | W18: 11
A19: 30 | B19: VOSGES | C19: 57 | D19: EPINAL | E19: 52.7 | F19: 28% | G19: 14% | H19: 10 | I19: 9% | J19: 9% | K19: 3 | L19: 40% | M19: 37% | N19: 11 | O19: 33% | P19: 20% | Q19: 5 | R19: 41% | S19: 40% | T19: 14 | U19: 41% | V19: 35% | W19: 12
A20: 110 | B20: MEURTHE ET MOSELLE MEUSE | C20: 31 | D20: VERDUN | E20: 47.6 | F20: 29% | G20: 15% | H20: 11 | I20: 13% | J20: 13% | K20: 4 | L20: 33% | M20: 31% | N20: 7 | O20: 56% | P20: 43% | Q20: 15 | R20: 34% | S20: 33% | T20: 11 | U20: 29% | V20: 23% | W20: 8
A21: 110 | B21: MEURTHE ET MOSELLE MEUSE | C21: 27 | D21: PONT A MOUSSON | E21: 59.5 | F21: 29% | G21: 15% | H21: 12 | I21: 57% | J21: 57% | K21: 14 | L21: 33% | M21: 30% | N21: 6 | O21: 40% | P21: 26% | Q21: 8 | R21: 17% | S21: 15% | T21: 7 | U21: 21% | V21: 15% | W21: 4
A22: 110 | B22: VOSGES | C22: 55 | D22: SAINT DIE | E22: 39.9 | F22: 35% | G22: 21% | H22: 13 | I22: 6% | J22: 6% | K22: 2 | L22: 56% | M22: 54% | N22: 16 | O22: 44% | P22: 30% | Q22: 9 | R22: 47% | S22: 46% | T22: 16 | U22: 43% | V22: 38% | W22: 14
A23: 160 | B23: BAS-RHIN | C23: 5060 | D23: HAGUENAU | E23: 56.5 | F23: 41% | G23: 28% | H23: 14 | I23: 37% | J23: 37% | K23: 11 | L23: 42% | M23: 39% | N23: 13 | O23: 56% | P23: 42% | Q23: 14 | R23: 46% | S23: 44% | T23: 15 | U23: 50% | V23: 44% | W23: 17
A24: 160 | B24: BAS-RHIN | C24: 5101 | D24: SELESTAT | E24: 50.8 | F24: 42% | G24: 28% | H24: 15 | I24: 57% | J24: 57% | K24: 15 | L24: 40% | M24: 37% | N24: 12 | O24: 47% | P24: 34% | Q24: 12 | R24: 41% | S24: 39% | T24: 12 | U24: 45% | V24: 40% | W24: 15
A25: 160 | B25: AUBE HAUTE MARNE | C25: 14 | D25: TROYES | E25: 53.8 | F25: 54% | G25: 40% | H25: 16 | I25: 67% | J25: 67% | K25: 18 | L25: 56% | M25: 53% | N25: 15 | O25: 88% | P25: 74% | Q25: 17 | R25: 41% | S25: 39% | T25: 13 | U25: 43% | V25: 37% | W25: 13
A26: 80 | B26: HAUT-RHIN | C26: 5130 | D26: COLMAR | E26: 47.4 | F26: 55% | G26: 41% | H26: 17 | I26: 59% | J26: 59% | K26: 16 | L26: 59% | M26: 56% | N26: 17 | O26: 71% | P26: 57% | Q26: 16 | R26: 53% | S26: 51% | T26: 17 | U26: 54% | V26: 49% | W26: 18
A27: 80 | B27: HAUT-RHIN | C27: 5169 | D27: MULHOUSE | E27: 45.1 | F27: 65% | G27: 51% | H27: 18 | I27: 63% | J27: 63% | K27: 17 | L27: 71% | M27: 68% | N27: 18 | O27: 100% | P27: 87% | Q27: 18 | R27: 65% | S27: 64% | T27: 18 | U27: 48% | V27: 43% | W27: 16
A28: Total CEGEE Directions Régionales | E28: =SUM(E10:E27) -> 952

Sheet SE_BANCA
B1: Accueil | F1: BAROMETRE BDD - TERRITOIRES
F2: BANCARISATION
F3: =ACCUEIL!F7 -> 2022-07-24
F7: Ventes Nettes produits pondérés | J7: Ventes sur client non détenteur de l’univers | N7: Total Bancarisation
F8: =DATEMAJ!C8 -> au 24/07 | H8: coef | I8: ='RECAP DIRCOM'!AA4 -> 12% | J8: =DATEMAJ!C9 -> au 24/07 | L8: coef | M8: ='RECAP DIRCOM'!AE4 -> 8% | O8: coef | P8: ='RECAP DIRCOM'!AH4 -> 20%
B9: Direction | C9: eds | D9: Territoire | E9: ="ETP perf "&DATEMAJ!$C$28 -> ETP perf 24-juil | F9: VN | G9: VN / ETP | H9: % Ecart au 1er | I9: Rang | J9: VB | K9: VB / ETP | L9: % Ecart au 1er | M9: Rang | N9: Moyenne ecart au 1er | O9: % Ecart au 1er | P9: Rang CEGEE
A10: 50 | B10: AUBE HAUTE MARNE | C10: 21 | D10: CHAUMONT | E10: =VLOOKUP($C10,'RECAP SECT'!$G$6:$CU$253,3,FALSE) -> 33.9 | F10: =VLOOKUP($C10,'RECAP SECT'!$G$6:$CU$253,18,FALSE) -> 507 | G10: =VLOOKUP($C10,'RECAP SECT'!$G$6:$CU$253,19,FALSE) -> 14.97 | H10: =VLOOKUP($C10,'RECAP SECT'!$G$6:$CU$253,20,FALSE) -> 51% | I10: =VLOOKUP($C10,'RECAP SECT'!$G$6:$CU$253,21,FALSE) -> 13 | J10: =VLOOKUP($C10,'RECAP SECT'!$G$6:$CU$253,22,FALSE) -> 1,500 | K10: =VLOOKUP($C10,'RECAP SECT'!$G$6:$CU$253,23,FALSE) -> 44.26 | L10: =VLOOKUP($C10,'RECAP SECT'!$G$6:$CU$253,24,FALSE) -> 30% | M10: =VLOOKUP($C10,'RECAP SECT'!$G$6:$CU$253,25,FALSE) -> 11 | N10: =VLOOKUP($C10,'RECAP SECT'!$G$6:$CU$253,26,FALSE) -> 42% | O10: =VLOOKUP($C10,'RECAP SECT'!$G$6:$CU$253,27,FALSE) -> 39% | P10: =VLOOKUP($C10,'RECAP SECT'!$G$6:$CU$253,28,FALSE) -> 14
A11: 50 | B11: AUBE HAUTE MARNE | C11: 14 | D11: TROYES | E11: =VLOOKUP($C11,'RECAP SECT'!$G$6:$CU$253,3,FALSE) -> 53.8 | F11: =VLOOKUP($C11,'RECAP SECT'!$G$6:$CU$253,18,FALSE) -> 449 | G11: =VLOOKUP($C11,'RECAP SECT'!$G$6:$CU$253,19,FALSE) -> 8.35 | H11: =VLOOKUP($C11,'RECAP SECT'!$G$6:$CU$253,20,FALSE) -> 72% | I11: =VLOOKUP($C11,'RECAP SECT'!$G$6:$CU$253,21,FALSE) -> 17 | J11: =VLOOKUP($C11,'RECAP SECT'!$G$6:$CU$253,22,FALSE) -> 2,340 | K11: =VLOOKUP($C11,'RECAP SECT'!$G$6:$CU$253,23,FALSE) -> 43.48 | L11: =VLOOKUP($C11,'RECAP SECT'!$G$6:$CU$253,24,FALSE) -> 31% | M11: =VLOOKUP($C11,'RECAP SECT'!$G$6:$CU$253,25,FALSE) -> 12 | N11: =VLOOKUP($C11,'RECAP SECT'!$G$6:$CU$253,26,FALSE) -> 56% | O11: =VLOOKUP($C11,'RECAP SECT'!$G$6:$CU$253,27,FALSE) -> 53% | P11: =VLOOKUP($C11,'RECAP SECT'!$G$6:$CU$253,28,FALSE) -> 15
A12: 262 | B12: BAS-RHIN | C12: 5060 | D12: HAGUENAU | E12: =VLOOKUP($C12,'RECAP SECT'!$G$6:$CU$253,3,FALSE) -> 56.5 | F12: =VLOOKUP($C12,'RECAP SECT'!$G$6:$CU$253,18,FALSE) -> 972 | G12: =VLOOKUP($C12,'RECAP SECT'!$G$6:$CU$253,19,FALSE) -> 17.22 | H12: =VLOOKUP($C12,'RECAP SECT'!$G$6:$CU$253,20,FALSE) -> 43% | I12: =VLOOKUP($C12,'RECAP SECT'!$G$6:$CU$253,21,FALSE) -> 8 | J12: =VLOOKUP($C12,'RECAP SECT'!$G$6:$CU$253,22,FALSE) -> 2,135 | K12: =VLOOKUP($C12,'RECAP SECT'!$G$6:$CU$253,23,FALSE) -> 37.82 | L12: =VLOOKUP($C12,'RECAP SECT'!$G$6:$CU$253,24,FALSE) -> 40% | M12: =VLOOKUP($C12,'RECAP SECT'!$G$6:$CU$253,25,FALSE) -> 16 | N12: =VLOOKUP($C12,'RECAP SECT'!$G$6:$CU$253,26,FALSE) -> 42% | O12: =VLOOKUP($C12,'RECAP SECT'!$G$6:$CU$253,27,FALSE) -> 39% | P12: =VLOOKUP($C12,'RECAP SECT'!$G$6:$CU$253,28,FALSE) -> 13
A13: 262 | B13: BAS-RHIN | C13: 5101 | D13: SELESTAT | E13: =VLOOKUP($C13,'RECAP SECT'!$G$6:$CU$253,3,FALSE) -> 50.8 | F13: =VLOOKUP($C13,'RECAP SECT'!$G$6:$CU$253,18,FALSE) -> 907 | G13: =VLOOKUP($C13,'RECAP SECT'!$G$6:$CU$253,19,FALSE) -> 17.85 | H13: =VLOOKUP($C13,'RECAP SECT'!$G$6:$CU$253,20,FALSE) -> 41% | I13: =VLOOKUP($C13,'RECAP SECT'!$G$6:$CU$253,21,FALSE) -> 7 | J13: =VLOOKUP($C13,'RECAP SECT'!$G$6:$CU$253,22,FALSE) -> 1,957 | K13: =VLOOKUP($C13,'RECAP SECT'!$G$6:$CU$253,23,FALSE) -> 38.49 | L13: =VLOOKUP($C13,'RECAP SECT'!$G$6:$CU$253,24,FALSE) -> 39% | M13: =VLOOKUP($C13,'RECAP SECT'!$G$6:$CU$253,25,FALSE) -> 15 | N13: =VLOOKUP($C13,'RECAP SECT'!$G$6:$CU$253,26,FALSE) -> 40% | O13: =VLOOKUP($C13,'RECAP SECT'!$G$6:$CU$253,27,FALSE) -> 37% | P13: =VLOOKUP($C13,'RECAP SECT'!$G$6:$CU$253,28,FALSE) -> 12
A14: 262 | B14: BAS-RHIN | C14: 5006 | D14: STRASBOURG | E14: =VLOOKUP($C14,'RECAP SECT'!$G$6:$CU$253,3,FALSE) -> 65.0 | F14: =VLOOKUP($C14,'RECAP SECT'!$G$6:$CU$253,18,FALSE) -> 1,262 | G14: =VLOOKUP($C14,'RECAP SECT'!$G$6:$CU$253,19,FALSE) -> 19.41 | H14: =VLOOKUP($C14,'RECAP SECT'!$G$6:$CU$253,20,FALSE) -> 36% | I14: =VLOOKUP($C14,'RECAP SECT'!$G$6:$CU$253,21,FALSE) -> 5 | J14: =VLOOKUP($C14,'RECAP SECT'!$G$6:$CU$253,22,FALSE) -> 3,549 | K14: =VLOOKUP($C14,'RECAP SECT'!$G$6:$CU$253,23,FALSE) -> 54.60 | L14: =VLOOKUP($C14,'RECAP SECT'!$G$6:$CU$253,24,FALSE) -> 13% | M14: =VLOOKUP($C14,'RECAP SECT'!$G$6:$CU$253,25,FALSE) -> 3 | N14: =VLOOKUP($C14,'RECAP SECT'!$G$6:$CU$253,26,FALSE) -> 27% | O14: =VLOOKUP($C14,'RECAP SECT'!$G$6:$CU$253,27,FALSE) -> 24% | P14: =VLOOKUP($C14,'RECAP SECT'!$G$6:$CU$253,28,FALSE) -> 5
A15: 264 | B15: HAUT-RHIN | C15: 5130 | D15: COLMAR | E15: =VLOOKUP($C15,'RECAP SECT'!$G$6:$CU$253,3,FALSE) -> 47.4 | F15: =VLOOKUP($C15,'RECAP SECT'!$G$6:$CU$253,18,FALSE) -> 450 | G15: =VLOOKUP($C15,'RECAP SECT'!$G$6:$CU$253,19,FALSE) -> 9.50 | H15: =VLOOKUP($C15,'RECAP SECT'!$G$6:$CU$253,20,FALSE) -> 69% | I15: =VLOOKUP($C15,'RECAP SECT'!$G$6:$CU$253,21,FALSE) -> 16 | J15: =VLOOKUP($C15,'RECAP SECT'!$G$6:$CU$253,22,FALSE) -> 1,643 | K15: =VLOOKUP($C15,'RECAP SECT'!$G$6:$CU$253,23,FALSE) -> 34.66 | L15: =VLOOKUP($C15,'RECAP SECT'!$G$6:$CU$253,24,FALSE) -> 45% | M15: =VLOOKUP($C15,'RECAP SECT'!$G$6:$CU$253,25,FALSE) -> 18 | N15: =VLOOKUP($C15,'RECAP SECT'!$G$6:$CU$253,26,FALSE) -> 59% | O15: =VLOOKUP($C15,'RECAP SECT'!$G$6:$CU$253,27,FALSE) -> 56% | P15: =VLOOKUP($C15,'RECAP SECT'!$G$6:$CU$253,28,FALSE) -> 17
A16: 264 | B16: HAUT-RHIN | C16: 5169 | D16: MULHOUSE | E16: =VLOOKUP($C16,'RECAP SECT'!$G$6:$CU$253,3,FALSE) -> 45.1 | F16: =VLOOKUP($C16,'RECAP SECT'!$G$6:$CU$253,18,FALSE) -> 91 | G16: =VLOOKUP($C16,'RECAP SECT'!$G$6:$CU$253,19,FALSE) -> 2.01 | H16: =VLOOKUP($C16,'RECAP SECT'!$G$6:$CU$253,20,FALSE) -> 93% | I16: =VLOOKUP($C16,'RECAP SECT'!$G$6:$CU$253,21,FALSE) -> 18 | J16: =VLOOKUP($C16,'RECAP SECT'!$G$6:$CU$253,22,FALSE) -> 1,798 | K16: =VLOOKUP($C16,'RECAP SECT'!$G$6:$CU$253,23,FALSE) -> 39.88 | L16: =VLOOKUP($C16,'RECAP SECT'!$G$6:$CU$253,24,FALSE) -> 37% | M16: =VLOOKUP($C16,'RECAP SECT'!$G$6:$CU$253,25,FALSE) -> 14 | N16: =VLOOKUP($C16,'RECAP SECT'!$G$6:$CU$253,26,FALSE) -> 71% | O16: =VLOOKUP($C16,'RECAP SECT'!$G$6:$CU$253,27,FALSE) -> 68% | P16: =VLOOKUP($C16,'RECAP SECT'!$G$6:$CU$253,28,FALSE) -> 18
A17: 30 | B17: MARNE-ARDENNES | C17: 6 | D17: CHALONS EN CHAMPAGNE | E17: =VLOOKUP($C17,'RECAP SECT'!$G$6:$CU$253,3,FALSE) -> 38.0 | F17: =VLOOKUP($C17,'RECAP SECT'!$G$6:$CU$253,18,FALSE) -> 880 | G17: =VLOOKUP($C17,'RECAP SECT'!$G$6:$CU$253,19,FALSE) -> 23.16 | H17: =VLOOKUP($C17,'RECAP SECT'!$G$6:$CU$253,20,FALSE) -> 24% | I17: =VLOOKUP($C17,'RECAP SECT'!$G$6:$CU$253,21,FALSE) -> 3 | J17: =VLOOKUP($C17,'RECAP SECT'!$G$6:$CU$253,22,FALSE) -> 1,743 | K17: =VLOOKUP($C17,'RECAP SECT'!$G$6:$CU$253,23,FALSE) -> 45.86 | L17: =VLOOKUP($C17,'RECAP SECT'!$G$6:$CU$253,24,FALSE) -> 27% | M17: =VLOOKUP($C17,'RECAP SECT'!$G$6:$CU$253,25,FALSE) -> 10 | N17: =VLOOKUP($C17,'RECAP SECT'!$G$6:$CU$253,26,FALSE) -> 25% | O17: =VLOOKUP($C17,'RECAP SECT'!$G$6:$CU$253,27,FALSE) -> 22% | P17: =VLOOKUP($C17,'RECAP SECT'!$G$6:$CU$253,28,FALSE) -> 4
A18: 30 | B18: MARNE-ARDENNES | C18: 2 | D18: CHARLEVILLE MEZIERES | E18: =VLOOKUP($C18,'RECAP SECT'!$G$6:$CU$253,3,FALSE) -> 48.7 | F18: =VLOOKUP($C18,'RECAP SECT'!$G$6:$CU$253,18,FALSE) -> 722 | G18: =VLOOKUP($C18,'RECAP SECT'!$G$6:$CU$253,19,FALSE) -> 14.82 | H18: =VLOOKUP($C18,'RECAP SECT'!$G$6:$CU$253,20,FALSE) -> 51% | I18: =VLOOKUP($C18,'RECAP SECT'!$G$6:$CU$253,21,FALSE) -> 14 | J18: =VLOOKUP($C18,'RECAP SECT'!$G$6:$CU$253,22,FALSE) -> 2,513 | K18: =VLOOKUP($C18,'RECAP SECT'!$G$6:$CU$253,23,FALSE) -> 51.56 | L18: =VLOOKUP($C18,'RECAP SECT'!$G$6:$CU$253,24,FALSE) -> 18% | M18: =VLOOKUP($C18,'RECAP SECT'!$G$6:$CU$253,25,FALSE) -> 5 | N18: =VLOOKUP($C18,'RECAP SECT'!$G$6:$CU$253,26,FALSE) -> 38% | O18: =VLOOKUP($C18,'RECAP SECT'!$G$6:$CU$253,27,FALSE) -> 35% | P18: =VLOOKUP($C18,'RECAP SECT'!$G$6:$CU$253,28,FALSE) -> 9
A19: 30 | B19: MARNE-ARDENNES | C19: 11 | D19: REIMS | E19: =VLOOKUP($C19,'RECAP SECT'!$G$6:$CU$253,3,FALSE) -> 68.3 | F19: =VLOOKUP($C19,'RECAP SECT'!$G$6:$CU$253,18,FALSE) -> 1,885 | G19: =VLOOKUP($C19,'RECAP SECT'!$G$6:$CU$253,19,FALSE) -> 27.59 | H19: =VLOOKUP($C19,'RECAP SECT'!$G$6:$CU$253,20,FALSE) -> 9% | I19: =VLOOKUP($C19,'RECAP SECT'!$G$6:$CU$253,21,FALSE) -> 2 | J19: =VLOOKUP($C19,'RECAP SECT'!$G$6:$CU$253,22,FALSE) -> 4,290 | K19: =VLOOKUP($C19,'RECAP SECT'!$G$6:$CU$253,23,FALSE) -> 62.80 | L19: =VLOOKUP($C19,'RECAP SECT'!$G$6:$CU$253,24,FALSE) -> 0% | M19: =VLOOKUP($C19,'RECAP SECT'!$G$6:$CU$253,25,FALSE) -> 1 | N19: =VLOOKUP($C19,'RECAP SECT'!$G$6:$CU$253,26,FALSE) -> 5% | O19: =VLOOKUP($C19,'RECAP SECT'!$G$6:$CU$253,27,FALSE) -> 3% | P19: =VLOOKUP($C19,'RECAP SECT'!$G$6:$CU$253,28,FALSE) -> 2
A20: 110 | B20: MEURTHE ET MOSELLE MEUSE | C20: 26 | D20: NANCY | E20: =VLOOKUP($C20,'RECAP SECT'!$G$6:$CU$253,3,FALSE) -> 55.1 | F20: =VLOOKUP($C20,'RECAP SECT'!$G$6:$CU$253,18,FALSE) -> 921 | G20: =VLOOKUP($C20,'RECAP SECT'!$G$6:$CU$253,19,FALSE) -> 16.72 | H20: =VLOOKUP($C20,'RECAP SECT'!$G$6:$CU$253,20,FALSE) -> 45% | I20: =VLOOKUP($C20,'RECAP SECT'!$G$6:$CU$253,21,FALSE) -> 10 | J20: =VLOOKUP($C20,'RECAP SECT'!$G$6:$CU$253,22,FALSE) -> 2,805 | K20: =VLOOKUP($C20,'RECAP SECT'!$G$6:$CU$253,23,FALSE) -> 50.92 | L20: =VLOOKUP($C20,'RECAP SECT'!$G$6:$CU$253,24,FALSE) -> 19% | M20: =VLOOKUP($C20,'RECAP SECT'!$G$6:$CU$253,25,FALSE) -> 7 | N20: =VLOOKUP($C20,'RECAP SECT'!$G$6:$CU$253,26,FALSE) -> 34% | O20: =VLOOKUP($C20,'RECAP SECT'!$G$6:$CU$253,27,FALSE) -> 32% | P20: =VLOOKUP($C20,'RECAP SECT'!$G$6:$CU$253,28,FALSE) -> 8
A21: 110 | B21: MEURTHE ET MOSELLE MEUSE | C21: 27 | D21: PONT A MOUSSON | E21: =VLOOKUP($C21,'RECAP SECT'!$G$6:$CU$253,3,FALSE) -> 59.5 | F21: =VLOOKUP($C21,'RECAP SECT'!$G$6:$CU$253,18,FALSE) -> 1,020 | G21: =VLOOKUP($C21,'RECAP SECT'!$G$6:$CU$253,19,FALSE) -> 17.14 | H21: =VLOOKUP($C21,'RECAP SECT'!$G$6:$CU$253,20,FALSE) -> 43% | I21: =VLOOKUP($C21,'RECAP SECT'!$G$6:$CU$253,21,FALSE) -> 9 | J21: =VLOOKUP($C21,'RECAP SECT'!$G$6:$CU$253,22,FALSE) -> 3,116 | K21: =VLOOKUP($C21,'RECAP SECT'!$G$6:$CU$253,23,FALSE) -> 52.37 | L21: =VLOOKUP($C21,'RECAP SECT'!$G$6:$CU$253,24,FALSE) -> 17% | M21: =VLOOKUP($C21,'RECAP SECT'!$G$6:$CU$253,25,FALSE) -> 4 | N21: =VLOOKUP($C21,'RECAP SECT'!$G$6:$CU$253,26,FALSE) -> 33% | O21: =VLOOKUP($C21,'RECAP SECT'!$G$6:$CU$253,27,FALSE) -> 30% | P21: =VLOOKUP($C21,'RECAP SECT'!$G$6:$CU$253,28,FALSE) -> 6
A22: 110 | B22: MEURTHE ET MOSELLE MEUSE | C22: 31 | D22: VERDUN | E22: =VLOOKUP($C22,'RECAP SECT'!$G$6:$CU$253,3,FALSE) -> 47.6 | F22: =VLOOKUP($C22,'RECAP SECT'!$G$6:$CU$253,18,FALSE) -> 880 | G22: =VLOOKUP($C22,'RECAP SECT'!$G$6:$CU$253,19,FALSE) -> 18.48 | H22: =VLOOKUP($C22,'RECAP SECT'!$G$6:$CU$253,20,FALSE) -> 39% | I22: =VLOOKUP($C22,'RECAP SECT'!$G$6:$CU$253,21,FALSE) -> 6 | J22: =VLOOKUP($C22,'RECAP SECT'!$G$6:$CU$253,22,FALSE) -> 2,246 | K22: =VLOOKUP($C22,'RECAP SECT'!$G$6:$CU$253,23,FALSE) -> 47.15 | L22: =VLOOKUP($C22,'RECAP SECT'!$G$6:$CU$253,24,FALSE) -> 25% | M22: =VLOOKUP($C22,'RECAP SECT'!$G$6:$CU$253,25,FALSE) -> 8 | N22: =VLOOKUP($C22,'RECAP SECT'!$G$6:$CU$253,26,FALSE) -> 33% | O22: =VLOOKUP($C22,'RECAP SECT'!$G$6:$CU$253,27,FALSE) -> 31% | P22: =VLOOKUP($C22,'RECAP SECT'!$G$6:$CU$253,28,FALSE) -> 7
A23: 160 | B23: MOSELLE | C23: 45 | D23: METZ | E23: =VLOOKUP($C23,'RECAP SECT'!$G$6:$CU$253,3,FALSE) -> 72.6 | F23: =VLOOKUP($C23,'RECAP SECT'!$G$6:$CU$253,18,FALSE) -> 1,168 | G23: =VLOOKUP($C23,'RECAP SECT'!$G$6:$CU$253,19,FALSE) -> 16.08 | H23: =VLOOKUP($C23,'RECAP SECT'!$G$6:$CU$253,20,FALSE) -> 47% | I23: =VLOOKUP($C23,'RECAP SECT'!$G$6:$CU$253,21,FALSE) -> 12 | J23: =VLOOKUP($C23,'RECAP SECT'!$G$6:$CU$253,22,FALSE) -> 3,402 | K23: =VLOOKUP($C23,'RECAP SECT'!$G$6:$CU$253,23,FALSE) -> 46.83 | L23: =VLOOKUP($C23,'RECAP SECT'!$G$6:$CU$253,24,FALSE) -> 25% | M23: =VLOOKUP($C23,'RECAP SECT'!$G$6:$CU$253,25,FALSE) -> 9 | N23: =VLOOKUP($C23,'RECAP SECT'!$G$6:$CU$253,26,FALSE) -> 38% | O23: =VLOOKUP($C23,'RECAP SECT'!$G$6:$CU$253,27,FALSE) -> 36% | P23: =VLOOKUP($C23,'RECAP SECT'!$G$6:$CU$253,28,FALSE) -> 10
A24: 160 | B24: MOSELLE | C24: 42 | D24: MOSELLE EST | E24: =VLOOKUP($C24,'RECAP SECT'!$G$6:$CU$253,3,FALSE) -> 59.9 | F24: =VLOOKUP($C24,'RECAP SECT'!$G$6:$CU$253,18,FALSE) -> 1,383 | G24: =VLOOKUP($C24,'RECAP SECT'!$G$6:$CU$253,19,FALSE) -> 23.09 | H24: =VLOOKUP($C24,'RECAP SECT'!$G$6:$CU$253,20,FALSE) -> 24% | I24: =VLOOKUP($C24,'RECAP SECT'!$G$6:$CU$253,21,FALSE) -> 4 | J24: =VLOOKUP($C24,'RECAP SECT'!$G$6:$CU$253,22,FALSE) -> 3,070 | K24: =VLOOKUP($C24,'RECAP SECT'!$G$6:$CU$253,23,FALSE) -> 51.26 | L24: =VLOOKUP($C24,'RECAP SECT'!$G$6:$CU$253,24,FALSE) -> 18% | M24: =VLOOKUP($C24,'RECAP SECT'!$G$6:$CU$253,25,FALSE) -> 6 | N24: =VLOOKUP($C24,'RECAP SECT'!$G$6:$CU$253,26,FALSE) -> 22% | O24: =VLOOKUP($C24,'RECAP SECT'!$G$6:$CU$253,27,FALSE) -> 19% | P24: =VLOOKUP($C24,'RECAP SECT'!$G$6:$CU$253,28,FALSE) -> 3
A25: 160 | B25: MOSELLE | C25: 44 | D25: MOSELLE NORD | E25: =VLOOKUP($C25,'RECAP SECT'!$G$6:$CU$253,3,FALSE) -> 57.2 | F25: =VLOOKUP($C25,'RECAP SECT'!$G$6:$CU$253,18,FALSE) -> 1,732 | G25: =VLOOKUP($C25,'RECAP SECT'!$G$6:$CU$253,19,FALSE) -> 30.28 | H25: =VLOOKUP($C25,'RECAP SECT'!$G$6:$CU$253,20,FALSE) -> 0% | I25: =VLOOKUP($C25,'RECAP SECT'!$G$6:$CU$253,21,FALSE) -> 1 | J25: =VLOOKUP($C25,'RECAP SECT'!$G$6:$CU$253,22,FALSE) -> 3,348 | K25: =VLOOKUP($C25,'RECAP SECT'!$G$6:$CU$253,23,FALSE) -> 58.52 | L25: =VLOOKUP($C25,'RECAP SECT'!$G$6:$CU$253,24,FALSE) -> 7% | M25: =VLOOKUP($C25,'RECAP SECT'!$G$6:$CU$253,25,FALSE) -> 2 | N25: =VLOOKUP($C25,'RECAP SECT'!$G$6:$CU$253,26,FALSE) -> 3% | O25: =VLOOKUP($C25,'RECAP SECT'!$G$6:$CU$253,27,FALSE) -> 0% | P25: =VLOOKUP($C25,'RECAP SECT'!$G$6:$CU$253,28,FALSE) -> 1
A26: 80 | B26: VOSGES | C26: 57 | D26: EPINAL | E26: =VLOOKUP($C26,'RECAP SECT'!$G$6:$CU$253,3,FALSE) -> 52.7 | F26: =VLOOKUP($C26,'RECAP SECT'!$G$6:$CU$253,18,FALSE) -> 878 | G26: =VLOOKUP($C26,'RECAP SECT'!$G$6:$CU$253,19,FALSE) -> 16.66 | H26: =VLOOKUP($C26,'RECAP SECT'!$G$6:$CU$253,20,FALSE) -> 45% | I26: =VLOOKUP($C26,'RECAP SECT'!$G$6:$CU$253,21,FALSE) -> 11 | J26: =VLOOKUP($C26,'RECAP SECT'!$G$6:$CU$253,22,FALSE) -> 2,232 | K26: =VLOOKUP($C26,'RECAP SECT'!$G$6:$CU$253,23,FALSE) -> 42.37 | L26: =VLOOKUP($C26,'RECAP SECT'!$G$6:$CU$253,24,FALSE) -> 33% | M26: =VLOOKUP($C26,'RECAP SECT'!$G$6:$CU$253,25,FALSE) -> 13 | N26: =VLOOKUP($C26,'RECAP SECT'!$G$6:$CU$253,26,FALSE) -> 40% | O26: =VLOOKUP($C26,'RECAP SECT'!$G$6:$CU$253,27,FALSE) -> 37% | P26: =VLOOKUP($C26,'RECAP SECT'!$G$6:$CU$253,28,FALSE) -> 11
A27: 80 | B27: VOSGES | C27: 55 | D27: SAINT DIE | E27: =VLOOKUP($C27,'RECAP SECT'!$G$6:$CU$253,3,FALSE) -> 39.9 | F27: =VLOOKUP($C27,'RECAP SECT'!$G$6:$CU$253,18,FALSE) -> 422 | G27: =VLOOKUP($C27,'RECAP SECT'!$G$6:$CU$253,19,FALSE) -> 10.58 | H27: =VLOOKUP($C27,'RECAP SECT'!$G$6:$CU$253,20,FALSE) -> 65% | I27: =VLOOKUP($C27,'RECAP SECT'!$G$6:$CU$253,21,FALSE) -> 15 | J27: =VLOOKUP($C27,'RECAP SECT'!$G$6:$CU$253,22,FALSE) -> 1,416 | K27: =VLOOKUP($C27,'RECAP SECT'!$G$6:$CU$253,23,FALSE) -> 35.53 | L27: =VLOOKUP($C27,'RECAP SECT'!$G$6:$CU$253,24,FALSE) -> 43% | M27: =VLOOKUP($C27,'RECAP SECT'!$G$6:$CU$253,25,FALSE) -> 17 | N27: =VLOOKUP($C27,'RECAP SECT'!$G$6:$CU$253,26,FALSE) -> 56% | O27: =VLOOKUP($C27,'RECAP SECT'!$G$6:$CU$253,27,FALSE) -> 54% | P27: =VLOOKUP($C27,'RECAP SECT'!$G$6:$CU$253,28,FALSE) -> 16
A28: Total CEGEE Directions Régionales | E28: =SUM(E10:E27) -> 952

Sheet SE_EPARGNE
B1: Accueil | F1: BAROMETRE BDD - TERRITOIRES
F2: EPARGNE
F3: =ACCUEIL!F7 -> 2022-07-24
F7: Excédent Epargne hors DAV pondéré | J7: Ventes sur client non détenteur de l’univers | N7: Total Epargne
F8: =DATEMAJ!C14 -> au 24/07 | H8: coef | I8: ='RECAP DIRCOM'!AP4 -> 12% | J8: =DATEMAJ!C15 -> au 24/07 | L8: coef | M8: ='RECAP DIRCOM'!AT4 -> 8% | O8: coef | P8: ='RECAP DIRCOM'!AW4 -> 20%
A9: eds | B9: Direction | C9: eds | D9: Territoire | E9: ="ETP perf "&DATEMAJ!$C$28 -> ETP perf 24-juil | F9: Excédent | G9: Excédent / ETP | H9: % Ecart au 1er | I9: Rang | J9: VB | K9: VB / ETP | L9: % Ecart au 1er | M9: Rang | N9: Moyenne ecart au 1er | O9: % Ecart au 1er | P9: Rang CEGEE
A10: 50 | B10: AUBE HAUTE MARNE | C10: 21 | D10: CHAUMONT | E10: =VLOOKUP($C10,'RECAP SECT'!$G$6:$CU$253,3,FALSE) -> 33.9 | F10: =VLOOKUP($C10,'RECAP SECT'!$G$6:$CU$253,33,FALSE) -> 10,612 | G10: =VLOOKUP($C10,'RECAP SECT'!$G$6:$CU$253,34,FALSE) -> 313.13 | H10: =VLOOKUP($C10,'RECAP SECT'!$G$6:$CU$253,35,FALSE) -> 0% | I10: =VLOOKUP($C10,'RECAP SECT'!$G$6:$CU$253,36,FALSE) -> 1 | J10: =VLOOKUP($C10,'RECAP SECT'!$G$6:$CU$253,37,FALSE) -> 1,420 | K10: =VLOOKUP($C10,'RECAP SECT'!$G$6:$CU$253,38,FALSE) -> 41.90 | L10: =VLOOKUP($C10,'RECAP SECT'!$G$6:$CU$253,39,FALSE) -> 33% | M10: =VLOOKUP($C10,'RECAP SECT'!$G$6:$CU$253,40,FALSE) -> 9 | N10: =VLOOKUP($C10,'RECAP SECT'!$G$6:$CU$253,41,FALSE) -> 13% | O10: =VLOOKUP($C10,'RECAP SECT'!$G$6:$CU$253,42,FALSE) -> 0% | P10: =VLOOKUP($C10,'RECAP SECT'!$G$6:$CU$253,43,FALSE) -> 1
A11: 50 | B11: AUBE HAUTE MARNE | C11: 14 | D11: TROYES | E11: =VLOOKUP($C11,'RECAP SECT'!$G$6:$CU$253,3,FALSE) -> 53.8 | F11: =VLOOKUP($C11,'RECAP SECT'!$G$6:$CU$253,33,FALSE) -> -3,735 | G11: =VLOOKUP($C11,'RECAP SECT'!$G$6:$CU$253,34,FALSE) -> -69.39 | H11: =VLOOKUP($C11,'RECAP SECT'!$G$6:$CU$253,35,FALSE) -> 122% | I11: =VLOOKUP($C11,'RECAP SECT'!$G$6:$CU$253,36,FALSE) -> 17 | J11: =VLOOKUP($C11,'RECAP SECT'!$G$6:$CU$253,37,FALSE) -> 2,166 | K11: =VLOOKUP($C11,'RECAP SECT'!$G$6:$CU$253,38,FALSE) -> 40.25 | L11: =VLOOKUP($C11,'RECAP SECT'!$G$6:$CU$253,39,FALSE) -> 36% | M11: =VLOOKUP($C11,'RECAP SECT'!$G$6:$CU$253,40,FALSE) -> 12 | N11: =VLOOKUP($C11,'RECAP SECT'!$G$6:$CU$253,41,FALSE) -> 88% | O11: =VLOOKUP($C11,'RECAP SECT'!$G$6:$CU$253,42,FALSE) -> 74% | P11: =VLOOKUP($C11,'RECAP SECT'!$G$6:$CU$253,43,FALSE) -> 17
A12: 262 | B12: BAS-RHIN | C12: 5060 | D12: HAGUENAU | E12: =VLOOKUP($C12,'RECAP SECT'!$G$6:$CU$253,3,FALSE) -> 56.5 | F12: =VLOOKUP($C12,'RECAP SECT'!$G$6:$CU$253,33,FALSE) -> 6,143 | G12: =VLOOKUP($C12,'RECAP SECT'!$G$6:$CU$253,34,FALSE) -> 108.83 | H12: =VLOOKUP($C12,'RECAP SECT'!$G$6:$CU$253,35,FALSE) -> 65% | I12: =VLOOKUP($C12,'RECAP SECT'!$G$6:$CU$253,36,FALSE) -> 11 | J12: =VLOOKUP($C12,'RECAP SECT'!$G$6:$CU$253,37,FALSE) -> 2,083 | K12: =VLOOKUP($C12,'RECAP SECT'!$G$6:$CU$253,38,FALSE) -> 36.90 | L12: =VLOOKUP($C12,'RECAP SECT'!$G$6:$CU$253,39,FALSE) -> 41% | M12: =VLOOKUP($C12,'RECAP SECT'!$G$6:$CU$253,40,FALSE) -> 15 | N12: =VLOOKUP($C12,'RECAP SECT'!$G$6:$CU$253,41,FALSE) -> 56% | O12: =VLOOKUP($C12,'RECAP SECT'!$G$6:$CU$253,42,FALSE) -> 42% | P12: =VLOOKUP($C12,'RECAP SECT'!$G$6:$CU$253,43,FALSE) -> 14
A13: 262 | B13: BAS-RHIN | C13: 5101 | D13: SELESTAT | E13: =VLOOKUP($C13,'RECAP SECT'!$G$6:$CU$253,3,FALSE) -> 50.8 | F13: =VLOOKUP($C13,'RECAP SECT'!$G$6:$CU$253,33,FALSE) -> 7,531 | G13: =VLOOKUP($C13,'RECAP SECT'!$G$6:$CU$253,34,FALSE) -> 148.14 | H13: =VLOOKUP($C13,'RECAP SECT'!$G$6:$CU$253,35,FALSE) -> 53% | I13: =VLOOKUP($C13,'RECAP SECT'!$G$6:$CU$253,36,FALSE) -> 10 | J13: =VLOOKUP($C13,'RECAP SECT'!$G$6:$CU$253,37,FALSE) -> 1,977 | K13: =VLOOKUP($C13,'RECAP SECT'!$G$6:$CU$253,38,FALSE) -> 38.89 | L13: =VLOOKUP($C13,'RECAP SECT'!$G$6:$CU$253,39,FALSE) -> 38% | M13: =VLOOKUP($C13,'RECAP SECT'!$G$6:$CU$253,40,FALSE) -> 14 | N13: =VLOOKUP($C13,'RECAP SECT'!$G$6:$CU$253,41,FALSE) -> 47% | O13: =VLOOKUP($C13,'RECAP SECT'!$G$6:$CU$253,42,FALSE) -> 34% | P13: =VLOOKUP($C13,'RECAP SECT'!$G$6:$CU$253,43,FALSE) -> 12
A14: 262 | B14: BAS-RHIN | C14: 5006 | D14: STRASBOURG | E14: =VLOOKUP($C14,'RECAP SECT'!$G$6:$CU$253,3,FALSE) -> 65.0 | F14: =VLOOKUP($C14,'RECAP SECT'!$G$6:$CU$253,33,FALSE) -> 10,012 | G14: =VLOOKUP($C14,'RECAP SECT'!$G$6:$CU$253,34,FALSE) -> 154.03 | H14: =VLOOKUP($C14,'RECAP SECT'!$G$6:$CU$253,35,FALSE) -> 51% | I14: =VLOOKUP($C14,'RECAP SECT'!$G$6:$CU$253,36,FALSE) -> 8 | J14: =VLOOKUP($C14,'RECAP SECT'!$G$6:$CU$253,37,FALSE) -> 3,494 | K14: =VLOOKUP($C14,'RECAP SECT'!$G$6:$CU$253,38,FALSE) -> 53.75 | L14: =VLOOKUP($C14,'RECAP SECT'!$G$6:$CU$253,39,FALSE) -> 14% | M14: =VLOOKUP($C14,'RECAP SECT'!$G$6:$CU$253,40,FALSE) -> 4 | N14: =VLOOKUP($C14,'RECAP SECT'!$G$6:$CU$253,41,FALSE) -> 36% | O14: =VLOOKUP($C14,'RECAP SECT'!$G$6:$CU$253,42,FALSE) -> 23% | P14: =VLOOKUP($C14,'RECAP SECT'!$G$6:$CU$253,43,FALSE) -> 6
A15: 264 | B15: HAUT-RHIN | C15: 5130 | D15: COLMAR | E15: =VLOOKUP($C15,'RECAP SECT'!$G$6:$CU$253,3,FALSE) -> 47.4 | F15: =VLOOKUP($C15,'RECAP SECT'!$G$6:$CU$253,33,FALSE) -> 2,306 | G15: =VLOOKUP($C15,'RECAP SECT'!$G$6:$CU$253,34,FALSE) -> 48.64 | H15: =VLOOKUP($C15,'RECAP SECT'!$G$6:$CU$253,35,FALSE) -> 84% | I15: =VLOOKUP($C15,'RECAP SECT'!$G$6:$CU$253,36,FALSE) -> 16 | J15: =VLOOKUP($C15,'RECAP SECT'!$G$6:$CU$253,37,FALSE) -> 1,483 | K15: =VLOOKUP($C15,'RECAP SECT'!$G$6:$CU$253,38,FALSE) -> 31.28 | L15: =VLOOKUP($C15,'RECAP SECT'!$G$6:$CU$253,39,FALSE) -> 50% | M15: =VLOOKUP($C15,'RECAP SECT'!$G$6:$CU$253,40,FALSE) -> 18 | N15: =VLOOKUP($C15,'RECAP SECT'!$G$6:$CU$253,41,FALSE) -> 71% | O15: =VLOOKUP($C15,'RECAP SECT'!$G$6:$CU$253,42,FALSE) -> 57% | P15: =VLOOKUP($C15,'RECAP SECT'!$G$6:$CU$253,43,FALSE) -> 16
A16: 264 | B16: HAUT-RHIN | C16: 5169 | D16: MULHOUSE | E16: =VLOOKUP($C16,'RECAP SECT'!$G$6:$CU$253,3,FALSE) -> 45.1 | F16: =VLOOKUP($C16,'RECAP SECT'!$G$6:$CU$253,33,FALSE) -> -5,280 | G16: =VLOOKUP($C16,'RECAP SECT'!$G$6:$CU$253,34,FALSE) -> -117.10 | H16: =VLOOKUP($C16,'RECAP SECT'!$G$6:$CU$253,35,FALSE) -> 137% | I16: =VLOOKUP($C16,'RECAP SECT'!$G$6:$CU$253,36,FALSE) -> 18 | J16: =VLOOKUP($C16,'RECAP SECT'!$G$6:$CU$253,37,FALSE) -> 1,577 | K16: =VLOOKUP($C16,'RECAP SECT'!$G$6:$CU$253,38,FALSE) -> 34.97 | L16: =VLOOKUP($C16,'RECAP SECT'!$G$6:$CU$253,39,FALSE) -> 44% | M16: =VLOOKUP($C16,'RECAP SECT'!$G$6:$CU$253,40,FALSE) -> 16 | N16: =VLOOKUP($C16,'RECAP SECT'!$G$6:$CU$253,41,FALSE) -> 100% | O16: =VLOOKUP($C16,'RECAP SECT'!$G$6:$CU$253,42,FALSE) -> 87% | P16: =VLOOKUP($C16,'RECAP SECT'!$G$6:$CU$253,43,FALSE) -> 18
A17: 30 | B17: MARNE-ARDENNES | C17: 6 | D17: CHALONS EN CHAMPAGNE | E17: =VLOOKUP($C17,'RECAP SECT'!$G$6:$CU$253,3,FALSE) -> 38.0 | F17: =VLOOKUP($C17,'RECAP SECT'!$G$6:$CU$253,33,FALSE) -> 2,797 | G17: =VLOOKUP($C17,'RECAP SECT'!$G$6:$CU$253,34,FALSE) -> 73.58 | H17: =VLOOKUP($C17,'RECAP SECT'!$G$6:$CU$253,35,FALSE) -> 77% | I17: =VLOOKUP($C17,'RECAP SECT'!$G$6:$CU$253,36,FALSE) -> 15 | J17: =VLOOKUP($C17,'RECAP SECT'!$G$6:$CU$253,37,FALSE) -> 1,900 | K17: =VLOOKUP($C17,'RECAP SECT'!$G$6:$CU$253,38,FALSE) -> 49.99 | L17: =VLOOKUP($C17,'RECAP SECT'!$G$6:$CU$253,39,FALSE) -> 20% | M17: =VLOOKUP($C17,'RECAP SECT'!$G$6:$CU$253,40,FALSE) -> 6 | N17: =VLOOKUP($C17,'RECAP SECT'!$G$6:$CU$253,41,FALSE) -> 54% | O17: =VLOOKUP($C17,'RECAP SECT'!$G$6:$CU$253,42,FALSE) -> 41% | P17: =VLOOKUP($C17,'RECAP SECT'!$G$6:$CU$253,43,FALSE) -> 13
A18: 30 | B18: MARNE-ARDENNES | C18: 2 | D18: CHARLEVILLE MEZIERES | E18: =VLOOKUP($C18,'RECAP SECT'!$G$6:$CU$253,3,FALSE) -> 48.7 | F18: =VLOOKUP($C18,'RECAP SECT'!$G$6:$CU$253,33,FALSE) -> 11,860 | G18: =VLOOKUP($C18,'RECAP SECT'!$G$6:$CU$253,34,FALSE) -> 243.34 | H18: =VLOOKUP($C18,'RECAP SECT'!$G$6:$CU$253,35,FALSE) -> 22% | I18: =VLOOKUP($C18,'RECAP SECT'!$G$6:$CU$253,36,FALSE) -> 4 | J18: =VLOOKUP($C18,'RECAP SECT'!$G$6:$CU$253,37,FALSE) -> 2,695 | K18: =VLOOKUP($C18,'RECAP SECT'!$G$6:$CU$253,38,FALSE) -> 55.29 | L18: =VLOOKUP($C18,'RECAP SECT'!$G$6:$CU$253,39,FALSE) -> 12% | M18: =VLOOKUP($C18,'RECAP SECT'!$G$6:$CU$253,40,FALSE) -> 3 | N18: =VLOOKUP($C18,'RECAP SECT'!$G$6:$CU$253,41,FALSE) -> 18% | O18: =VLOOKUP($C18,'RECAP SECT'!$G$6:$CU$253,42,FALSE) -> 5% | P18: =VLOOKUP($C18,'RECAP SECT'!$G$6:$CU$253,43,FALSE) -> 4
A19: 30 | B19: MARNE-ARDENNES | C19: 11 | D19: REIMS | E19: =VLOOKUP($C19,'RECAP SECT'!$G$6:$CU$253,3,FALSE) -> 68.3 | F19: =VLOOKUP($C19,'RECAP SECT'!$G$6:$CU$253,33,FALSE) -> 7,351 | G19: =VLOOKUP($C19,'RECAP SECT'!$G$6:$CU$253,34,FALSE) -> 107.61 | H19: =VLOOKUP($C19,'RECAP SECT'!$G$6:$CU$253,35,FALSE) -> 66% | I19: =VLOOKUP($C19,'RECAP SECT'!$G$6:$CU$253,36,FALSE) -> 12 | J19: =VLOOKUP($C19,'RECAP SECT'!$G$6:$CU$253,37,FALSE) -> 3,808 | K19: =VLOOKUP($C19,'RECAP SECT'!$G$6:$CU$253,38,FALSE) -> 55.75 | L19: =VLOOKUP($C19,'RECAP SECT'!$G$6:$CU$253,39,FALSE) -> 11% | M19: =VLOOKUP($C19,'RECAP SECT'!$G$6:$CU$253,40,FALSE) -> 2 | N19: =VLOOKUP($C19,'RECAP SECT'!$G$6:$CU$253,41,FALSE) -> 44% | O19: =VLOOKUP($C19,'RECAP SECT'!$G$6:$CU$253,42,FALSE) -> 31% | P19: =VLOOKUP($C19,'RECAP SECT'!$G$6:$CU$253,43,FALSE) -> 10
A20: 110 | B20: MEURTHE ET MOSELLE MEUSE | C20: 26 | D20: NANCY | E20: =VLOOKUP($C20,'RECAP SECT'!$G$6:$CU$253,3,FALSE) -> 55.1 | F20: =VLOOKUP($C20,'RECAP SECT'!$G$6:$CU$253,33,FALSE) -> 16,026 | G20: =VLOOKUP($C20,'RECAP SECT'!$G$6:$CU$253,34,FALSE) -> 290.90 | H20: =VLOOKUP($C20,'RECAP SECT'!$G$6:$CU$253,35,FALSE) -> 7% | I20: =VLOOKUP($C20,'RECAP SECT'!$G$6:$CU$253,36,FALSE) -> 2 | J20: =VLOOKUP($C20,'RECAP SECT'!$G$6:$CU$253,37,FALSE) -> 2,583 | K20: =VLOOKUP($C20,'RECAP SECT'!$G$6:$CU$253,38,FALSE) -> 46.89 | L20: =VLOOKUP($C20,'RECAP SECT'!$G$6:$CU$253,39,FALSE) -> 25% | M20: =VLOOKUP($C20,'RECAP SECT'!$G$6:$CU$253,40,FALSE) -> 8 | N20: =VLOOKUP($C20,'RECAP SECT'!$G$6:$CU$253,41,FALSE) -> 14% | O20: =VLOOKUP($C20,'RECAP SECT'!$G$6:$CU$253,42,FALSE) -> 1% | P20: =VLOOKUP($C20,'RECAP SECT'!$G$6:$CU$253,43,FALSE) -> 2
A21: 110 | B21: MEURTHE ET MOSELLE MEUSE | C21: 27 | D21: PONT A MOUSSON | E21: =VLOOKUP($C21,'RECAP SECT'!$G$6:$CU$253,3,FALSE) -> 59.5 | F21: =VLOOKUP($C21,'RECAP SECT'!$G$6:$CU$253,33,FALSE) -> 10,833 | G21: =VLOOKUP($C21,'RECAP SECT'!$G$6:$CU$253,34,FALSE) -> 182.06 | H21: =VLOOKUP($C21,'RECAP SECT'!$G$6:$CU$253,35,FALSE) -> 42% | I21: =VLOOKUP($C21,'RECAP SECT'!$G$6:$CU$253,36,FALSE) -> 7 | J21: =VLOOKUP($C21,'RECAP SECT'!$G$6:$CU$253,37,FALSE) -> 2,365 | K21: =VLOOKUP($C21,'RECAP SECT'!$G$6:$CU$253,38,FALSE) -> 39.75 | L21: =VLOOKUP($C21,'RECAP SECT'!$G$6:$CU$253,39,FALSE) -> 37% | M21: =VLOOKUP($C21,'RECAP SECT'!$G$6:$CU$253,40,FALSE) -> 13 | N21: =VLOOKUP($C21,'RECAP SECT'!$G$6:$CU$253,41,FALSE) -> 40% | O21: =VLOOKUP($C21,'RECAP SECT'!$G$6:$CU$253,42,FALSE) -> 26% | P21: =VLOOKUP($C21,'RECAP SECT'!$G$6:$CU$253,43,FALSE) -> 8
A22: 110 | B22: MEURTHE ET MOSELLE MEUSE | C22: 31 | D22: VERDUN | E22: =VLOOKUP($C22,'RECAP SECT'!$G$6:$CU$253,3,FALSE) -> 47.6 | F22: =VLOOKUP($C22,'RECAP SECT'!$G$6:$CU$253,33,FALSE) -> 4,235 | G22: =VLOOKUP($C22,'RECAP SECT'!$G$6:$CU$253,34,FALSE) -> 88.90 | H22: =VLOOKUP($C22,'RECAP SECT'!$G$6:$CU$253,35,FALSE) -> 72% | I22: =VLOOKUP($C22,'RECAP SECT'!$G$6:$CU$253,36,FALSE) -> 13 | J22: =VLOOKUP($C22,'RECAP SECT'!$G$6:$CU$253,37,FALSE) -> 1,980 | K22: =VLOOKUP($C22,'RECAP SECT'!$G$6:$CU$253,38,FALSE) -> 41.56 | L22: =VLOOKUP($C22,'RECAP SECT'!$G$6:$CU$253,39,FALSE) -> 34% | M22: =VLOOKUP($C22,'RECAP SECT'!$G$6:$CU$253,40,FALSE) -> 10 | N22: =VLOOKUP($C22,'RECAP SECT'!$G$6:$CU$253,41,FALSE) -> 56% | O22: =VLOOKUP($C22,'RECAP SECT'!$G$6:$CU$253,42,FALSE) -> 43% | P22: =VLOOKUP($C22,'RECAP SECT'!$G$6:$CU$253,43,FALSE) -> 15
A23: 160 | B23: MOSELLE | C23: 45 | D23: METZ | E23: =VLOOKUP($C23,'RECAP SECT'!$G$6:$CU$253,3,FALSE) -> 72.6 | F23: =VLOOKUP($C23,'RECAP SECT'!$G$6:$CU$253,33,FALSE) -> 19,891 | G23: =VLOOKUP($C23,'RECAP SECT'!$G$6:$CU$253,34,FALSE) -> 273.83 | H23: =VLOOKUP($C23,'RECAP SECT'!$G$6:$CU$253,35,FALSE) -> 13% | I23: =VLOOKUP($C23,'RECAP SECT'!$G$6:$CU$253,36,FALSE) -> 3 | J23: =VLOOKUP($C23,'RECAP SECT'!$G$6:$CU$253,37,FALSE) -> 3,618 | K23: =VLOOKUP($C23,'RECAP SECT'!$G$6:$CU$253,38,FALSE) -> 49.81 | L23: =VLOOKUP($C23,'RECAP SECT'!$G$6:$CU$253,39,FALSE) -> 21% | M23: =VLOOKUP($C23,'RECAP SECT'!$G$6:$CU$253,40,FALSE) -> 7 | N23: =VLOOKUP($C23,'RECAP SECT'!$G$6:$CU$253,41,FALSE) -> 16% | O23: =VLOOKUP($C23,'RECAP SECT'!$G$6:$CU$253,42,FALSE) -> 2% | P23: =VLOOKUP($C23,'RECAP SECT'!$G$6:$CU$253,43,FALSE) -> 3
A24: 160 | B24: MOSELLE | C24: 42 | D24: MOSELLE EST | E24: =VLOOKUP($C24,'RECAP SECT'!$G$6:$CU$253,3,FALSE) -> 59.9 | F24: =VLOOKUP($C24,'RECAP SECT'!$G$6:$CU$253,33,FALSE) -> 9,090 | G24: =VLOOKUP($C24,'RECAP SECT'!$G$6:$CU$253,34,FALSE) -> 151.78 | H24: =VLOOKUP($C24,'RECAP SECT'!$G$6:$CU$253,35,FALSE) -> 52% | I24: =VLOOKUP($C24,'RECAP SECT'!$G$6:$CU$253,36,FALSE) -> 9 | J24: =VLOOKUP($C24,'RECAP SECT'!$G$6:$CU$253,37,FALSE) -> 3,073 | K24: =VLOOKUP($C24,'RECAP SECT'!$G$6:$CU$253,38,FALSE) -> 51.31 | L24: =VLOOKUP($C24,'RECAP SECT'!$G$6:$CU$253,39,FALSE) -> 18% | M24: =VLOOKUP($C24,'RECAP SECT'!$G$6:$CU$253,40,FALSE) -> 5 | N24: =VLOOKUP($C24,'RECAP SECT'!$G$6:$CU$253,41,FALSE) -> 38% | O24: =VLOOKUP($C24,'RECAP SECT'!$G$6:$CU$253,42,FALSE) -> 25% | P24: =VLOOKUP($C24,'RECAP SECT'!$G$6:$CU$253,43,FALSE) -> 7
A25: 160 | B25: MOSELLE | C25: 44 | D25: MOSELLE NORD | E25: =VLOOKUP($C25,'RECAP SECT'!$G$6:$CU$253,3,FALSE) -> 57.2 | F25: =VLOOKUP($C25,'RECAP SECT'!$G$6:$CU$253,33,FALSE) -> 4,346 | G25: =VLOOKUP($C25,'RECAP SECT'!$G$6:$CU$253,34,FALSE) -> 75.97 | H25: =VLOOKUP($C25,'RECAP SECT'!$G$6:$CU$253,35,FALSE) -> 76% | I25: =VLOOKUP($C25,'RECAP SECT'!$G$6:$CU$253,36,FALSE) -> 14 | J25: =VLOOKUP($C25,'RECAP SECT'!$G$6:$CU$253,37,FALSE) -> 3,590 | K25: =VLOOKUP($C25,'RECAP SECT'!$G$6:$CU$253,38,FALSE) -> 62.75 | L25: =VLOOKUP($C25,'RECAP SECT'!$G$6:$CU$253,39,FALSE) -> 0% | M25: =VLOOKUP($C25,'RECAP SECT'!$G$6:$CU$253,40,FALSE) -> 1 | N25: =VLOOKUP($C25,'RECAP SECT'!$G$6:$CU$253,41,FALSE) -> 45% | O25: =VLOOKUP($C25,'RECAP SECT'!$G$6:$CU$253,42,FALSE) -> 32% | P25: =VLOOKUP($C25,'RECAP SECT'!$G$6:$CU$253,43,FALSE) -> 11
A26: 80 | B26: VOSGES | C26: 57 | D26: EPINAL | E26: =VLOOKUP($C26,'RECAP SECT'!$G$6:$CU$253,3,FALSE) -> 52.7 | F26: =VLOOKUP($C26,'RECAP SECT'!$G$6:$CU$253,33,FALSE) -> 11,281 | G26: =VLOOKUP($C26,'RECAP SECT'!$G$6:$CU$253,34,FALSE) -> 214.15 | H26: =VLOOKUP($C26,'RECAP SECT'!$G$6:$CU$253,35,FALSE) -> 32% | I26: =VLOOKUP($C26,'RECAP SECT'!$G$6:$CU$253,36,FALSE) -> 5 | J26: =VLOOKUP($C26,'RECAP SECT'!$G$6:$CU$253,37,FALSE) -> 2,124 | K26: =VLOOKUP($C26,'RECAP SECT'!$G$6:$CU$253,38,FALSE) -> 40.32 | L26: =VLOOKUP($C26,'RECAP SECT'!$G$6:$CU$253,39,FALSE) -> 36% | M26: =VLOOKUP($C26,'RECAP SECT'!$G$6:$CU$253,40,FALSE) -> 11 | N26: =VLOOKUP($C26,'RECAP SECT'!$G$6:$CU$253,41,FALSE) -> 33% | O26: =VLOOKUP($C26,'RECAP SECT'!$G$6:$CU$253,42,FALSE) -> 20% | P26: =VLOOKUP($C26,'RECAP SECT'!$G$6:$CU$253,43,FALSE) -> 5
A27: 80 | B27: VOSGES | C27: 55 | D27: SAINT DIE | E27: =VLOOKUP($C27,'RECAP SECT'!$G$6:$CU$253,3,FALSE) -> 39.9 | F27: =VLOOKUP($C27,'RECAP SECT'!$G$6:$CU$253,33,FALSE) -> 7,397 | G27: =VLOOKUP($C27,'RECAP SECT'!$G$6:$CU$253,34,FALSE) -> 185.62 | H27: =VLOOKUP($C27,'RECAP SECT'!$G$6:$CU$253,35,FALSE) -> 41% | I27: =VLOOKUP($C27,'RECAP SECT'!$G$6:$CU$253,36,FALSE) -> 6 | J27: =VLOOKUP($C27,'RECAP SECT'!$G$6:$CU$253,37,FALSE) -> 1,303 | K27: =VLOOKUP($C27,'RECAP SECT'!$G$6:$CU$253,38,FALSE) -> 32.70 | L27: =VLOOKUP($C27,'RECAP SECT'!$G$6:$CU$253,39,FALSE) -> 48% | M27: =VLOOKUP($C27,'RECAP SECT'!$G$6:$CU$253,40,FALSE) -> 17 | N27: =VLOOKUP($C27,'RECAP SECT'!$G$6:$CU$253,41,FALSE) -> 44% | O27: =VLOOKUP($C27,'RECAP SECT'!$G$6:$CU$253,42,FALSE) -> 30% | P27: =VLOOKUP($C27,'RECAP SECT'!$G$6:$CU$253,43,FALSE) -> 9
A28: Total CEGEE Directions Régionales | E28: =SUM(E10:E27) -> 952

Sheet SE_CREDIT
B1: Accueil | F1: BAROMETRE BDD - TERRITOIRES
F2: CREDITS
F3: =ACCUEIL!F7 -> 2022-07-24
F7: Engagements et ventes accessoires pondérés Immo | J7: Engagements et ventes accessoires pondérés Conso | N7: Ventes sur client non détenteur de l’univers | R7: Total Crédits
F8: =DATEMAJ!C18 -> au 24/07 | H8: coef | I8: ='RECAP DIRCOM'!BE4 -> 6% | J8: =DATEMAJ!C19 -> au 24/07 | L8: coef | M8: ='RECAP DIRCOM'!BI4 -> 6% | N8: =DATEMAJ!C20 -> au 24/07 | P8: coef | Q8: ='RECAP DIRCOM'!BM4 -> 8% | S8: coef | T8: ='RECAP DIRCOM'!BP4 -> 20%
B9: Direction | C9: eds | D9: Territoire | E9: ="ETP perf "&DATEMAJ!$C$28 -> ETP perf 24-juil | F9: PNB | G9: PNB / ETP | H9: % Ecart au 1er | I9: Rang | J9: PNB | K9: PNB / ETP | L9: % Ecart au 1er | M9: Rang | N9: VB | O9: VB / ETP | P9: % Ecart au 1er | Q9: Rang | R9: Moyenne ecart au 1er | S9: % Ecart au 1er | T9: Rang CEGEE
A10: 50 | B10: AUBE HAUTE MARNE | C10: 21 | D10: CHAUMONT | E10: =VLOOKUP($C10,'RECAP SECT'!$G$6:$CU$253,3,FALSE) -> 33.9 | F10: =VLOOKUP($C10,'RECAP SECT'!$G$6:$CU$253,48,FALSE) -> 4,920 | G10: =VLOOKUP($C10,'RECAP SECT'!$G$6:$CU$253,49,FALSE) -> 145.18 | H10: =VLOOKUP($C10,'RECAP SECT'!$G$6:$CU$253,50,FALSE) -> 62% | I10: =VLOOKUP($C10,'RECAP SECT'!$G$6:$CU$253,51,FALSE) -> 15 | J10: =VLOOKUP($C10,'RECAP SECT'!$G$6:$CU$253,52,FALSE) -> 1,709 | K10: =VLOOKUP($C10,'RECAP SECT'!$G$6:$CU$253,53,FALSE) -> 50.44 | L10: =VLOOKUP($C10,'RECAP SECT'!$G$6:$CU$253,54,FALSE) -> 5% | M10: =VLOOKUP($C10,'RECAP SECT'!$G$6:$CU$253,55,FALSE) -> 4 | N10: =VLOOKUP($C10,'RECAP SECT'!$G$6:$CU$253,56,FALSE) -> 638 | O10: =VLOOKUP($C10,'RECAP SECT'!$G$6:$CU$253,57,FALSE) -> 18.83 | P10: =VLOOKUP($C10,'RECAP SECT'!$G$6:$CU$253,58,FALSE) -> 39% | Q10: =VLOOKUP($C10,'RECAP SECT'!$G$6:$CU$253,59,FALSE) -> 12 | R10: =VLOOKUP($C10,'RECAP SECT'!$G$6:$CU$253,60,FALSE) -> 36% | S10: =VLOOKUP($C10,'RECAP SECT'!$G$6:$CU$253,61,FALSE) -> 30% | T10: =VLOOKUP($C10,'RECAP SECT'!$G$6:$CU$253,62,FALSE) -> 10
A11: 50 | B11: AUBE HAUTE MARNE | C11: 14 | D11: TROYES | E11: =VLOOKUP($C11,'RECAP SECT'!$G$6:$CU$253,3,FALSE) -> 53.8 | F11: =VLOOKUP($C11,'RECAP SECT'!$G$6:$CU$253,48,FALSE) -> 8,304 | G11: =VLOOKUP($C11,'RECAP SECT'!$G$6:$CU$253,49,FALSE) -> 154.30 | H11: =VLOOKUP($C11,'RECAP SECT'!$G$6:$CU$253,50,FALSE) -> 59% | I11: =VLOOKUP($C11,'RECAP SECT'!$G$6:$CU$253,51,FALSE) -> 13 | J11: =VLOOKUP($C11,'RECAP SECT'!$G$6:$CU$253,52,FALSE) -> 2,342 | K11: =VLOOKUP($C11,'RECAP SECT'!$G$6:$CU$253,53,FALSE) -> 43.52 | L11: =VLOOKUP($C11,'RECAP SECT'!$G$6:$CU$253,54,FALSE) -> 18% | M11: =VLOOKUP($C11,'RECAP SECT'!$G$6:$CU$253,55,FALSE) -> 9 | N11: =VLOOKUP($C11,'RECAP SECT'!$G$6:$CU$253,56,FALSE) -> 852 | O11: =VLOOKUP($C11,'RECAP SECT'!$G$6:$CU$253,57,FALSE) -> 15.83 | P11: =VLOOKUP($C11,'RECAP SECT'!$G$6:$CU$253,58,FALSE) -> 49% | Q11: =VLOOKUP($C11,'RECAP SECT'!$G$6:$CU$253,59,FALSE) -> 14 | R11: =VLOOKUP($C11,'RECAP SECT'!$G$6:$CU$253,60,FALSE) -> 43% | S11: =VLOOKUP($C11,'RECAP SECT'!$G$6:$CU$253,61,FALSE) -> 37% | T11: =VLOOKUP($C11,'RECAP SECT'!$G$6:$CU$253,62,FALSE) -> 13
A12: 262 | B12: BAS-RHIN | C12: 5060 | D12: HAGUENAU | E12: =VLOOKUP($C12,'RECAP SECT'!$G$6:$CU$253,3,FALSE) -> 56.5 | F12: =VLOOKUP($C12,'RECAP SECT'!$G$6:$CU$253,48,FALSE) -> 6,474 | G12: =VLOOKUP($C12,'RECAP SECT'!$G$6:$CU$253,49,FALSE) -> 114.69 | H12: =VLOOKUP($C12,'RECAP SECT'!$G$6:$CU$253,50,FALSE) -> 70% | I12: =VLOOKUP($C12,'RECAP SECT'!$G$6:$CU$253,51,FALSE) -> 17 | J12: =VLOOKUP($C12,'RECAP SECT'!$G$6:$CU$253,52,FALSE) -> 2,362 | K12: =VLOOKUP($C12,'RECAP SECT'!$G$6:$CU$253,53,FALSE) -> 41.83 | L12: =VLOOKUP($C12,'RECAP SECT'!$G$6:$CU$253,54,FALSE) -> 22% | M12: =VLOOKUP($C12,'RECAP SECT'!$G$6:$CU$253,55,FALSE) -> 11 | N12: =VLOOKUP($C12,'RECAP SECT'!$G$6:$CU$253,56,FALSE) -> 768 | O12: =VLOOKUP($C12,'RECAP SECT'!$G$6:$CU$253,57,FALSE) -> 13.60 | P12: =VLOOKUP($C12,'RECAP SECT'!$G$6:$CU$253,58,FALSE) -> 56% | Q12: =VLOOKUP($C12,'RECAP SECT'!$G$6:$CU$253,59,FALSE) -> 17 | R12: =VLOOKUP($C12,'RECAP SECT'!$G$6:$CU$253,60,FALSE) -> 50% | S12: =VLOOKUP($C12,'RECAP SECT'!$G$6:$CU$253,61,FALSE) -> 44% | T12: =VLOOKUP($C12,'RECAP SECT'!$G$6:$CU$253,62,FALSE) -> 17
A13: 262 | B13: BAS-RHIN | C13: 5101 | D13: SELESTAT | E13: =VLOOKUP($C13,'RECAP SECT'!$G$6:$CU$253,3,FALSE) -> 50.8 | F13: =VLOOKUP($C13,'RECAP SECT'!$G$6:$CU$253,48,FALSE) -> 7,951 | G13: =VLOOKUP($C13,'RECAP SECT'!$G$6:$CU$253,49,FALSE) -> 156.40 | H13: =VLOOKUP($C13,'RECAP SECT'!$G$6:$CU$253,50,FALSE) -> 59% | I13: =VLOOKUP($C13,'RECAP SECT'!$G$6:$CU$253,51,FALSE) -> 12 | J13: =VLOOKUP($C13,'RECAP SECT'!$G$6:$CU$253,52,FALSE) -> 1,973 | K13: =VLOOKUP($C13,'RECAP SECT'!$G$6:$CU$253,53,FALSE) -> 38.81 | L13: =VLOOKUP($C13,'RECAP SECT'!$G$6:$CU$253,54,FALSE) -> 27% | M13: =VLOOKUP($C13,'RECAP SECT'!$G$6:$CU$253,55,FALSE) -> 15 | N13: =VLOOKUP($C13,'RECAP SECT'!$G$6:$CU$253,56,FALSE) -> 795 | O13: =VLOOKUP($C13,'RECAP SECT'!$G$6:$CU$253,57,FALSE) -> 15.64 | P13: =VLOOKUP($C13,'RECAP SECT'!$G$6:$CU$253,58,FALSE) -> 49% | Q13: =VLOOKUP($C13,'RECAP SECT'!$G$6:$CU$253,59,FALSE) -> 15 | R13: =VLOOKUP($C13,'RECAP SECT'!$G$6:$CU$253,60,FALSE) -> 45% | S13: =VLOOKUP($C13,'RECAP SECT'!$G$6:$CU$253,61,FALSE) -> 40% | T13: =VLOOKUP($C13,'RECAP SECT'!$G$6:$CU$253,62,FALSE) -> 15
A14: 262 | B14: BAS-RHIN | C14: 5006 | D14: STRASBOURG | E14: =VLOOKUP($C14,'RECAP SECT'!$G$6:$CU$253,3,FALSE) -> 65.0 | F14: =VLOOKUP($C14,'RECAP SECT'!$G$6:$CU$253,48,FALSE) -> 13,910 | G14: =VLOOKUP($C14,'RECAP SECT'!$G$6:$CU$253,49,FALSE) -> 214.00 | H14: =VLOOKUP($C14,'RECAP SECT'!$G$6:$CU$253,50,FALSE) -> 43% | I14: =VLOOKUP($C14,'RECAP SECT'!$G$6:$CU$253,51,FALSE) -> 9 | J14: =VLOOKUP($C14,'RECAP SECT'!$G$6:$CU$253,52,FALSE) -> 2,375 | K14: =VLOOKUP($C14,'RECAP SECT'!$G$6:$CU$253,53,FALSE) -> 36.54 | L14: =VLOOKUP($C14,'RECAP SECT'!$G$6:$CU$253,54,FALSE) -> 31% | M14: =VLOOKUP($C14,'RECAP SECT'!$G$6:$CU$253,55,FALSE) -> 17 | N14: =VLOOKUP($C14,'RECAP SECT'!$G$6:$CU$253,56,FALSE) -> 1,310 | O14: =VLOOKUP($C14,'RECAP SECT'!$G$6:$CU$253,57,FALSE) -> 20.15 | P14: =VLOOKUP($C14,'RECAP SECT'!$G$6:$CU$253,58,FALSE) -> 34% | Q14: =VLOOKUP($C14,'RECAP SECT'!$G$6:$CU$253,59,FALSE) -> 9 | R14: =VLOOKUP($C14,'RECAP SECT'!$G$6:$CU$253,60,FALSE) -> 36% | S14: =VLOOKUP($C14,'RECAP SECT'!$G$6:$CU$253,61,FALSE) -> 31% | T14: =VLOOKUP($C14,'RECAP SECT'!$G$6:$CU$253,62,FALSE) -> 11
A15: 264 | B15: HAUT-RHIN | C15: 5130 | D15: COLMAR | E15: =VLOOKUP($C15,'RECAP SECT'!$G$6:$CU$253,3,FALSE) -> 47.4 | F15: =VLOOKUP($C15,'RECAP SECT'!$G$6:$CU$253,48,FALSE) -> 4,975 | G15: =VLOOKUP($C15,'RECAP SECT'!$G$6:$CU$253,49,FALSE) -> 104.94 | H15: =VLOOKUP($C15,'RECAP SECT'!$G$6:$CU$253,50,FALSE) -> 72% | I15: =VLOOKUP($C15,'RECAP SECT'!$G$6:$CU$253,51,FALSE) -> 18 | J15: =VLOOKUP($C15,'RECAP SECT'!$G$6:$CU$253,52,FALSE) -> 1,683 | K15: =VLOOKUP($C15,'RECAP SECT'!$G$6:$CU$253,53,FALSE) -> 35.51 | L15: =VLOOKUP($C15,'RECAP SECT'!$G$6:$CU$253,54,FALSE) -> 33% | M15: =VLOOKUP($C15,'RECAP SECT'!$G$6:$CU$253,55,FALSE) -> 18 | N15: =VLOOKUP($C15,'RECAP SECT'!$G$6:$CU$253,56,FALSE) -> 642 | O15: =VLOOKUP($C15,'RECAP SECT'!$G$6:$CU$253,57,FALSE) -> 13.54 | P15: =VLOOKUP($C15,'RECAP SECT'!$G$6:$CU$253,58,FALSE) -> 56% | Q15: =VLOOKUP($C15,'RECAP SECT'!$G$6:$CU$253,59,FALSE) -> 18 | R15: =VLOOKUP($C15,'RECAP SECT'!$G$6:$CU$253,60,FALSE) -> 54% | S15: =VLOOKUP($C15,'RECAP SECT'!$G$6:$CU$253,61,FALSE) -> 49% | T15: =VLOOKUP($C15,'RECAP SECT'!$G$6:$CU$253,62,FALSE) -> 18
A16: 264 | B16: HAUT-RHIN | C16: 5169 | D16: MULHOUSE | E16: =VLOOKUP($C16,'RECAP SECT'!$G$6:$CU$253,3,FALSE) -> 45.1 | F16: =VLOOKUP($C16,'RECAP SECT'!$G$6:$CU$253,48,FALSE) -> 6,916 | G16: =VLOOKUP($C16,'RECAP SECT'!$G$6:$CU$253,49,FALSE) -> 153.38 | H16: =VLOOKUP($C16,'RECAP SECT'!$G$6:$CU$253,50,FALSE) -> 59% | I16: =VLOOKUP($C16,'RECAP SECT'!$G$6:$CU$253,51,FALSE) -> 14 | J16: =VLOOKUP($C16,'RECAP SECT'!$G$6:$CU$253,52,FALSE) -> 1,722 | K16: =VLOOKUP($C16,'RECAP SECT'!$G$6:$CU$253,53,FALSE) -> 38.19 | L16: =VLOOKUP($C16,'RECAP SECT'!$G$6:$CU$253,54,FALSE) -> 28% | M16: =VLOOKUP($C16,'RECAP SECT'!$G$6:$CU$253,55,FALSE) -> 16 | N16: =VLOOKUP($C16,'RECAP SECT'!$G$6:$CU$253,56,FALSE) -> 639 | O16: =VLOOKUP($C16,'RECAP SECT'!$G$6:$CU$253,57,FALSE) -> 14.17 | P16: =VLOOKUP($C16,'RECAP SECT'!$G$6:$CU$253,58,FALSE) -> 54% | Q16: =VLOOKUP($C16,'RECAP SECT'!$G$6:$CU$253,59,FALSE) -> 16 | R16: =VLOOKUP($C16,'RECAP SECT'!$G$6:$CU$253,60,FALSE) -> 48% | S16: =VLOOKUP($C16,'RECAP SECT'!$G$6:$CU$253,61,FALSE) -> 43% | T16: =VLOOKUP($C16,'RECAP SECT'!$G$6:$CU$253,62,FALSE) -> 16
A17: 30 | B17: MARNE-ARDENNES | C17: 6 | D17: CHALONS EN CHAMPAGNE | E17: =VLOOKUP($C17,'RECAP SECT'!$G$6:$CU$253,3,FALSE) -> 38.0 | F17: =VLOOKUP($C17,'RECAP SECT'!$G$6:$CU$253,48,FALSE) -> 8,772 | G17: =VLOOKUP($C17,'RECAP SECT'!$G$6:$CU$253,49,FALSE) -> 230.79 | H17: =VLOOKUP($C17,'RECAP SECT'!$G$6:$CU$253,50,FALSE) -> 39% | I17: =VLOOKUP($C17,'RECAP SECT'!$G$6:$CU$253,51,FALSE) -> 8 | J17: =VLOOKUP($C17,'RECAP SECT'!$G$6:$CU$253,52,FALSE) -> 1,674 | K17: =VLOOKUP($C17,'RECAP SECT'!$G$6:$CU$253,53,FALSE) -> 44.04 | L17: =VLOOKUP($C17,'RECAP SECT'!$G$6:$CU$253,54,FALSE) -> 17% | M17: =VLOOKUP($C17,'RECAP SECT'!$G$6:$CU$253,55,FALSE) -> 8 | N17: =VLOOKUP($C17,'RECAP SECT'!$G$6:$CU$253,56,FALSE) -> 806 | O17: =VLOOKUP($C17,'RECAP SECT'!$G$6:$CU$253,57,FALSE) -> 21.20 | P17: =VLOOKUP($C17,'RECAP SECT'!$G$6:$CU$253,58,FALSE) -> 31% | Q17: =VLOOKUP($C17,'RECAP SECT'!$G$6:$CU$253,59,FALSE) -> 6 | R17: =VLOOKUP($C17,'RECAP SECT'!$G$6:$CU$253,60,FALSE) -> 29% | S17: =VLOOKUP($C17,'RECAP SECT'!$G$6:$CU$253,61,FALSE) -> 24% | T17: =VLOOKUP($C17,'RECAP SECT'!$G$6:$CU$253,62,FALSE) -> 9
A18: 30 | B18: MARNE-ARDENNES | C18: 2 | D18: CHARLEVILLE MEZIERES | E18: =VLOOKUP($C18,'RECAP SECT'!$G$6:$CU$253,3,FALSE) -> 48.7 | F18: =VLOOKUP($C18,'RECAP SECT'!$G$6:$CU$253,48,FALSE) -> 13,166 | G18: =VLOOKUP($C18,'RECAP SECT'!$G$6:$CU$253,49,FALSE) -> 270.12 | H18: =VLOOKUP($C18,'RECAP SECT'!$G$6:$CU$253,50,FALSE) -> 29% | I18: =VLOOKUP($C18,'RECAP SECT'!$G$6:$CU$253,51,FALSE) -> 5 | J18: =VLOOKUP($C18,'RECAP SECT'!$G$6:$CU$253,52,FALSE) -> 2,040 | K18: =VLOOKUP($C18,'RECAP SECT'!$G$6:$CU$253,53,FALSE) -> 41.85 | L18: =VLOOKUP($C18,'RECAP SECT'!$G$6:$CU$253,54,FALSE) -> 22% | M18: =VLOOKUP($C18,'RECAP SECT'!$G$6:$CU$253,55,FALSE) -> 10 | N18: =VLOOKUP($C18,'RECAP SECT'!$G$6:$CU$253,56,FALSE) -> 1,209 | O18: =VLOOKUP($C18,'RECAP SECT'!$G$6:$CU$253,57,FALSE) -> 24.81 | P18: =VLOOKUP($C18,'RECAP SECT'!$G$6:$CU$253,58,FALSE) -> 19% | Q18: =VLOOKUP($C18,'RECAP SECT'!$G$6:$CU$253,59,FALSE) -> 3 | R18: =VLOOKUP($C18,'RECAP SECT'!$G$6:$CU$253,60,FALSE) -> 23% | S18: =VLOOKUP($C18,'RECAP SECT'!$G$6:$CU$253,61,FALSE) -> 17% | T18: =VLOOKUP($C18,'RECAP SECT'!$G$6:$CU$253,62,FALSE) -> 5
A19: 30 | B19: MARNE-ARDENNES | C19: 11 | D19: REIMS | E19: =VLOOKUP($C19,'RECAP SECT'!$G$6:$CU$253,3,FALSE) -> 68.3 | F19: =VLOOKUP($C19,'RECAP SECT'!$G$6:$CU$253,48,FALSE) -> 25,598 | G19: =VLOOKUP($C19,'RECAP SECT'!$G$6:$CU$253,49,FALSE) -> 374.73 | H19: =VLOOKUP($C19,'RECAP SECT'!$G$6:$CU$253,50,FALSE) -> 1% | I19: =VLOOKUP($C19,'RECAP SECT'!$G$6:$CU$253,51,FALSE) -> 2 | J19: =VLOOKUP($C19,'RECAP SECT'!$G$6:$CU$253,52,FALSE) -> 2,739 | K19: =VLOOKUP($C19,'RECAP SECT'!$G$6:$CU$253,53,FALSE) -> 40.10 | L19: =VLOOKUP($C19,'RECAP SECT'!$G$6:$CU$253,54,FALSE) -> 25% | M19: =VLOOKUP($C19,'RECAP SECT'!$G$6:$CU$253,55,FALSE) -> 13 | N19: =VLOOKUP($C19,'RECAP SECT'!$G$6:$CU$253,56,FALSE) -> 2,100 | O19: =VLOOKUP($C19,'RECAP SECT'!$G$6:$CU$253,57,FALSE) -> 30.74 | P19: =VLOOKUP($C19,'RECAP SECT'!$G$6:$CU$253,58,FALSE) -> 0% | Q19: =VLOOKUP($C19,'RECAP SECT'!$G$6:$CU$253,59,FALSE) -> 1 | R19: =VLOOKUP($C19,'RECAP SECT'!$G$6:$CU$253,60,FALSE) -> 8% | S19: =VLOOKUP($C19,'RECAP SECT'!$G$6:$CU$253,61,FALSE) -> 2% | T19: =VLOOKUP($C19,'RECAP SECT'!$G$6:$CU$253,62,FALSE) -> 2
A20: 110 | B20: MEURTHE ET MOSELLE MEUSE | C20: 26 | D20: NANCY | E20: =VLOOKUP($C20,'RECAP SECT'!$G$6:$CU$253,3,FALSE) -> 55.1 | F20: =VLOOKUP($C20,'RECAP SECT'!$G$6:$CU$253,48,FALSE) -> 16,989 | G20: =VLOOKUP($C20,'RECAP SECT'!$G$6:$CU$253,49,FALSE) -> 308.39 | H20: =VLOOKUP($C20,'RECAP SECT'!$G$6:$CU$253,50,FALSE) -> 18% | I20: =VLOOKUP($C20,'RECAP SECT'!$G$6:$CU$253,51,FALSE) -> 3 | J20: =VLOOKUP($C20,'RECAP SECT'!$G$6:$CU$253,52,FALSE) -> 2,442 | K20: =VLOOKUP($C20,'RECAP SECT'!$G$6:$CU$253,53,FALSE) -> 44.33 | L20: =VLOOKUP($C20,'RECAP SECT'!$G$6:$CU$253,54,FALSE) -> 17% | M20: =VLOOKUP($C20,'RECAP SECT'!$G$6:$CU$253,55,FALSE) -> 6 | N20: =VLOOKUP($C20,'RECAP SECT'!$G$6:$CU$253,56,FALSE) -> 1,345 | O20: =VLOOKUP($C20,'RECAP SECT'!$G$6:$CU$253,57,FALSE) -> 24.41 | P20: =VLOOKUP($C20,'RECAP SECT'!$G$6:$CU$253,58,FALSE) -> 21% | Q20: =VLOOKUP($C20,'RECAP SECT'!$G$6:$CU$253,59,FALSE) -> 4 | R20: =VLOOKUP($C20,'RECAP SECT'!$G$6:$CU$253,60,FALSE) -> 19% | S20: =VLOOKUP($C20,'RECAP SECT'!$G$6:$CU$253,61,FALSE) -> 14% | T20: =VLOOKUP($C20,'RECAP SECT'!$G$6:$CU$253,62,FALSE) -> 3
A21: 110 | B21: MEURTHE ET MOSELLE MEUSE | C21: 27 | D21: PONT A MOUSSON | E21: =VLOOKUP($C21,'RECAP SECT'!$G$6:$CU$253,3,FALSE) -> 59.5 | F21: =VLOOKUP($C21,'RECAP SECT'!$G$6:$CU$253,48,FALSE) -> 17,842 | G21: =VLOOKUP($C21,'RECAP SECT'!$G$6:$CU$253,49,FALSE) -> 299.87 | H21: =VLOOKUP($C21,'RECAP SECT'!$G$6:$CU$253,50,FALSE) -> 21% | I21: =VLOOKUP($C21,'RECAP SECT'!$G$6:$CU$253,51,FALSE) -> 4 | J21: =VLOOKUP($C21,'RECAP SECT'!$G$6:$CU$253,52,FALSE) -> 2,628 | K21: =VLOOKUP($C21,'RECAP SECT'!$G$6:$CU$253,53,FALSE) -> 44.18 | L21: =VLOOKUP($C21,'RECAP SECT'!$G$6:$CU$253,54,FALSE) -> 17% | M21: =VLOOKUP($C21,'RECAP SECT'!$G$6:$CU$253,55,FALSE) -> 7 | N21: =VLOOKUP($C21,'RECAP SECT'!$G$6:$CU$253,56,FALSE) -> 1,399 | O21: =VLOOKUP($C21,'RECAP SECT'!$G$6:$CU$253,57,FALSE) -> 23.51 | P21: =VLOOKUP($C21,'RECAP SECT'!$G$6:$CU$253,58,FALSE) -> 24% | Q21: =VLOOKUP($C21,'RECAP SECT'!$G$6:$CU$253,59,FALSE) -> 5 | R21: =VLOOKUP($C21,'RECAP SECT'!$G$6:$CU$253,60,FALSE) -> 21% | S21: =VLOOKUP($C21,'RECAP SECT'!$G$6:$CU$253,61,FALSE) -> 15% | T21: =VLOOKUP($C21,'RECAP SECT'!$G$6:$CU$253,62,FALSE) -> 4
A22: 110 | B22: MEURTHE ET MOSELLE MEUSE | C22: 31 | D22: VERDUN | E22: =VLOOKUP($C22,'RECAP SECT'!$G$6:$CU$253,3,FALSE) -> 47.6 | F22: =VLOOKUP($C22,'RECAP SECT'!$G$6:$CU$253,48,FALSE) -> 9,854 | G22: =VLOOKUP($C22,'RECAP SECT'!$G$6:$CU$253,49,FALSE) -> 206.85 | H22: =VLOOKUP($C22,'RECAP SECT'!$G$6:$CU$253,50,FALSE) -> 45% | I22: =VLOOKUP($C22,'RECAP SECT'!$G$6:$CU$253,51,FALSE) -> 10 | J22: =VLOOKUP($C22,'RECAP SECT'!$G$6:$CU$253,52,FALSE) -> 2,540 | K22: =VLOOKUP($C22,'RECAP SECT'!$G$6:$CU$253,53,FALSE) -> 53.32 | L22: =VLOOKUP($C22,'RECAP SECT'!$G$6:$CU$253,54,FALSE) -> 0% | M22: =VLOOKUP($C22,'RECAP SECT'!$G$6:$CU$253,55,FALSE) -> 1 | N22: =VLOOKUP($C22,'RECAP SECT'!$G$6:$CU$253,56,FALSE) -> 909 | O22: =VLOOKUP($C22,'RECAP SECT'!$G$6:$CU$253,57,FALSE) -> 19.08 | P22: =VLOOKUP($C22,'RECAP SECT'!$G$6:$CU$253,58,FALSE) -> 38% | Q22: =VLOOKUP($C22,'RECAP SECT'!$G$6:$CU$253,59,FALSE) -> 10 | R22: =VLOOKUP($C22,'RECAP SECT'!$G$6:$CU$253,60,FALSE) -> 29% | S22: =VLOOKUP($C22,'RECAP SECT'!$G$6:$CU$253,61,FALSE) -> 23% | T22: =VLOOKUP($C22,'RECAP SECT'!$G$6:$CU$253,62,FALSE) -> 8
A23: 160 | B23: MOSELLE | C23: 45 | D23: METZ | E23: =VLOOKUP($C23,'RECAP SECT'!$G$6:$CU$253,3,FALSE) -> 72.6 | F23: =VLOOKUP($C23,'RECAP SECT'!$G$6:$CU$253,48,FALSE) -> 17,474 | G23: =VLOOKUP($C23,'RECAP SECT'!$G$6:$CU$253,49,FALSE) -> 240.55 | H23: =VLOOKUP($C23,'RECAP SECT'!$G$6:$CU$253,50,FALSE) -> 36% | I23: =VLOOKUP($C23,'RECAP SECT'!$G$6:$CU$253,51,FALSE) -> 6 | J23: =VLOOKUP($C23,'RECAP SECT'!$G$6:$CU$253,52,FALSE) -> 3,394 | K23: =VLOOKUP($C23,'RECAP SECT'!$G$6:$CU$253,53,FALSE) -> 46.72 | L23: =VLOOKUP($C23,'RECAP SECT'!$G$6:$CU$253,54,FALSE) -> 12% | M23: =VLOOKUP($C23,'RECAP SECT'!$G$6:$CU$253,55,FALSE) -> 5 | N23: =VLOOKUP($C23,'RECAP SECT'!$G$6:$CU$253,56,FALSE) -> 1,469 | O23: =VLOOKUP($C23,'RECAP SECT'!$G$6:$CU$253,57,FALSE) -> 20.22 | P23: =VLOOKUP($C23,'RECAP SECT'!$G$6:$CU$253,58,FALSE) -> 34% | Q23: =VLOOKUP($C23,'RECAP SECT'!$G$6:$CU$253,59,FALSE) -> 8 | R23: =VLOOKUP($C23,'RECAP SECT'!$G$6:$CU$253,60,FALSE) -> 28% | S23: =VLOOKUP($C23,'RECAP SECT'!$G$6:$CU$253,61,FALSE) -> 23% | T23: =VLOOKUP($C23,'RECAP SECT'!$G$6:$CU$253,62,FALSE) -> 7
A24: 160 | B24: MOSELLE | C24: 42 | D24: MOSELLE EST | E24: =VLOOKUP($C24,'RECAP SECT'!$G$6:$CU$253,3,FALSE) -> 59.9 | F24: =VLOOKUP($C24,'RECAP SECT'!$G$6:$CU$253,48,FALSE) -> 13,851 | G24: =VLOOKUP($C24,'RECAP SECT'!$G$6:$CU$253,49,FALSE) -> 231.28 | H24: =VLOOKUP($C24,'RECAP SECT'!$G$6:$CU$253,50,FALSE) -> 39% | I24: =VLOOKUP($C24,'RECAP SECT'!$G$6:$CU$253,51,FALSE) -> 7 | J24: =VLOOKUP($C24,'RECAP SECT'!$G$6:$CU$253,52,FALSE) -> 3,155 | K24: =VLOOKUP($C24,'RECAP SECT'!$G$6:$CU$253,53,FALSE) -> 52.68 | L24: =VLOOKUP($C24,'RECAP SECT'!$G$6:$CU$253,54,FALSE) -> 1% | M24: =VLOOKUP($C24,'RECAP SECT'!$G$6:$CU$253,55,FALSE) -> 2 | N24: =VLOOKUP($C24,'RECAP SECT'!$G$6:$CU$253,56,FALSE) -> 1,224 | O24: =VLOOKUP($C24,'RECAP SECT'!$G$6:$CU$253,57,FALSE) -> 20.44 | P24: =VLOOKUP($C24,'RECAP SECT'!$G$6:$CU$253,58,FALSE) -> 34% | Q24: =VLOOKUP($C24,'RECAP SECT'!$G$6:$CU$253,59,FALSE) -> 7 | R24: =VLOOKUP($C24,'RECAP SECT'!$G$6:$CU$253,60,FALSE) -> 25% | S24: =VLOOKUP($C24,'RECAP SECT'!$G$6:$CU$253,61,FALSE) -> 20% | T24: =VLOOKUP($C24,'RECAP SECT'!$G$6:$CU$253,62,FALSE) -> 6
A25: 160 | B25: MOSELLE | C25: 44 | D25: MOSELLE NORD | E25: =VLOOKUP($C25,'RECAP SECT'!$G$6:$CU$253,3,FALSE) -> 57.2 | F25: =VLOOKUP($C25,'RECAP SECT'!$G$6:$CU$253,48,FALSE) -> 21,640 | G25: =VLOOKUP($C25,'RECAP SECT'!$G$6:$CU$253,49,FALSE) -> 378.26 | H25: =VLOOKUP($C25,'RECAP SECT'!$G$6:$CU$253,50,FALSE) -> 0% | I25: =VLOOKUP($C25,'RECAP SECT'!$G$6:$CU$253,51,FALSE) -> 1 | J25: =VLOOKUP($C25,'RECAP SECT'!$G$6:$CU$253,52,FALSE) -> 2,951 | K25: =VLOOKUP($C25,'RECAP SECT'!$G$6:$CU$253,53,FALSE) -> 51.58 | L25: =VLOOKUP($C25,'RECAP SECT'!$G$6:$CU$253,54,FALSE) -> 3% | M25: =VLOOKUP($C25,'RECAP SECT'!$G$6:$CU$253,55,FALSE) -> 3 | N25: =VLOOKUP($C25,'RECAP SECT'!$G$6:$CU$253,56,FALSE) -> 1,570 | O25: =VLOOKUP($C25,'RECAP SECT'!$G$6:$CU$253,57,FALSE) -> 27.44 | P25: =VLOOKUP($C25,'RECAP SECT'!$G$6:$CU$253,58,FALSE) -> 11% | Q25: =VLOOKUP($C25,'RECAP SECT'!$G$6:$CU$253,59,FALSE) -> 2 | R25: =VLOOKUP($C25,'RECAP SECT'!$G$6:$CU$253,60,FALSE) -> 5% | S25: =VLOOKUP($C25,'RECAP SECT'!$G$6:$CU$253,61,FALSE) -> 0% | T25: =VLOOKUP($C25,'RECAP SECT'!$G$6:$CU$253,62,FALSE) -> 1
A26: 80 | B26: VOSGES | C26: 57 | D26: EPINAL | E26: =VLOOKUP($C26,'RECAP SECT'!$G$6:$CU$253,3,FALSE) -> 52.7 | F26: =VLOOKUP($C26,'RECAP SECT'!$G$6:$CU$253,48,FALSE) -> 8,354 | G26: =VLOOKUP($C26,'RECAP SECT'!$G$6:$CU$253,49,FALSE) -> 158.58 | H26: =VLOOKUP($C26,'RECAP SECT'!$G$6:$CU$253,50,FALSE) -> 58% | I26: =VLOOKUP($C26,'RECAP SECT'!$G$6:$CU$253,51,FALSE) -> 11 | J26: =VLOOKUP($C26,'RECAP SECT'!$G$6:$CU$253,52,FALSE) -> 2,066 | K26: =VLOOKUP($C26,'RECAP SECT'!$G$6:$CU$253,53,FALSE) -> 39.23 | L26: =VLOOKUP($C26,'RECAP SECT'!$G$6:$CU$253,54,FALSE) -> 26% | M26: =VLOOKUP($C26,'RECAP SECT'!$G$6:$CU$253,55,FALSE) -> 14 | N26: =VLOOKUP($C26,'RECAP SECT'!$G$6:$CU$253,56,FALSE) -> 999 | O26: =VLOOKUP($C26,'RECAP SECT'!$G$6:$CU$253,57,FALSE) -> 18.96 | P26: =VLOOKUP($C26,'RECAP SECT'!$G$6:$CU$253,58,FALSE) -> 38% | Q26: =VLOOKUP($C26,'RECAP SECT'!$G$6:$CU$253,59,FALSE) -> 11 | R26: =VLOOKUP($C26,'RECAP SECT'!$G$6:$CU$253,60,FALSE) -> 41% | S26: =VLOOKUP($C26,'RECAP SECT'!$G$6:$CU$253,61,FALSE) -> 35% | T26: =VLOOKUP($C26,'RECAP SECT'!$G$6:$CU$253,62,FALSE) -> 12
A27: 80 | B27: VOSGES | C27: 55 | D27: SAINT DIE | E27: =VLOOKUP($C27,'RECAP SECT'!$G$6:$CU$253,3,FALSE) -> 39.9 | F27: =VLOOKUP($C27,'RECAP SECT'!$G$6:$CU$253,48,FALSE) -> 5,279 | G27: =VLOOKUP($C27,'RECAP SECT'!$G$6:$CU$253,49,FALSE) -> 132.47 | H27: =VLOOKUP($C27,'RECAP SECT'!$G$6:$CU$253,50,FALSE) -> 65% | I27: =VLOOKUP($C27,'RECAP SECT'!$G$6:$CU$253,51,FALSE) -> 16 | J27: =VLOOKUP($C27,'RECAP SECT'!$G$6:$CU$253,52,FALSE) -> 1,650 | K27: =VLOOKUP($C27,'RECAP SECT'!$G$6:$CU$253,53,FALSE) -> 41.41 | L27: =VLOOKUP($C27,'RECAP SECT'!$G$6:$CU$253,54,FALSE) -> 22% | M27: =VLOOKUP($C27,'RECAP SECT'!$G$6:$CU$253,55,FALSE) -> 12 | N27: =VLOOKUP($C27,'RECAP SECT'!$G$6:$CU$253,56,FALSE) -> 703 | O27: =VLOOKUP($C27,'RECAP SECT'!$G$6:$CU$253,57,FALSE) -> 17.64 | P27: =VLOOKUP($C27,'RECAP SECT'!$G$6:$CU$253,58,FALSE) -> 43% | Q27: =VLOOKUP($C27,'RECAP SECT'!$G$6:$CU$253,59,FALSE) -> 13 | R27: =VLOOKUP($C27,'RECAP SECT'!$G$6:$CU$253,60,FALSE) -> 43% | S27: =VLOOKUP($C27,'RECAP SECT'!$G$6:$CU$253,61,FALSE) -> 38% | T27: =VLOOKUP($C27,'RECAP SECT'!$G$6:$CU$253,62,FALSE) -> 14
A28: Total CEGEE Directions Régionales | E28: =SUM(E10:E27) -> 952

Sheet SE_IARD
B1: Accueil | F1: BAROMETRE BDD - TERRITOIRES
F2: IARD ET PREVOYANCE
F3: =ACCUEIL!F7 -> 2022-07-24
F7: Ventes Nettes produits pondérés | J7: Ventes sur client non détenteur de l’univers | N7: Total IARD Prévoyance
F8: =DATEMAJ!C23 -> au 24/07 | H8: coef | I8: ='RECAP DIRCOM'!BX4 -> 12% | J8: =DATEMAJ!C24 -> au 24/07 | L8: coef | M8: ='RECAP DIRCOM'!CB4 -> 8% | O8: coef | P8: ='RECAP DIRCOM'!CE4 -> 20%
B9: Direction | C9: eds | D9: Territoire | E9: ="ETP perf "&DATEMAJ!$C$28 -> ETP perf 24-juil | F9: VN | G9: VN / ETP | H9: % Ecart au 1er | I9: Rang | J9: VB | K9: VB / ETP | L9: % Ecart au 1er | M9: Rang | N9: Moyenne ecart au 1er | O9: % Ecart au 1er | P9: Rang CEGEE
A10: 50 | B10: AUBE HAUTE MARNE | C10: 21 | D10: CHAUMONT | E10: =VLOOKUP($C10,'RECAP SECT'!$G$6:$CU$253,3,FALSE) -> 33.9 | F10: =VLOOKUP($C10,'RECAP SECT'!$G$6:$CU$253,67,FALSE) -> 4,662 | G10: =VLOOKUP($C10,'RECAP SECT'!$G$6:$CU$253,68,FALSE) -> 137.56 | H10: =VLOOKUP($C10,'RECAP SECT'!$G$6:$CU$253,69,FALSE) -> 16% | I10: =VLOOKUP($C10,'RECAP SECT'!$G$6:$CU$253,70,FALSE) -> 6 | J10: =VLOOKUP($C10,'RECAP SECT'!$G$6:$CU$253,71,FALSE) -> 1,087 | K10: =VLOOKUP($C10,'RECAP SECT'!$G$6:$CU$253,72,FALSE) -> 32.07 | L10: =VLOOKUP($C10,'RECAP SECT'!$G$6:$CU$253,73,FALSE) -> 26% | M10: =VLOOKUP($C10,'RECAP SECT'!$G$6:$CU$253,74,FALSE) -> 10 | N10: =VLOOKUP($C10,'RECAP SECT'!$G$6:$CU$253,75,FALSE) -> 20% | O10: =VLOOKUP($C10,'RECAP SECT'!$G$6:$CU$253,76,FALSE) -> 19% | P10: =VLOOKUP($C10,'RECAP SECT'!$G$6:$CU$253,77,FALSE) -> 8
A11: 50 | B11: AUBE HAUTE MARNE | C11: 14 | D11: TROYES | E11: =VLOOKUP($C11,'RECAP SECT'!$G$6:$CU$253,3,FALSE) -> 53.8 | F11: =VLOOKUP($C11,'RECAP SECT'!$G$6:$CU$253,67,FALSE) -> 4,596 | G11: =VLOOKUP($C11,'RECAP SECT'!$G$6:$CU$253,68,FALSE) -> 85.40 | H11: =VLOOKUP($C11,'RECAP SECT'!$G$6:$CU$253,69,FALSE) -> 48% | I11: =VLOOKUP($C11,'RECAP SECT'!$G$6:$CU$253,70,FALSE) -> 14 | J11: =VLOOKUP($C11,'RECAP SECT'!$G$6:$CU$253,71,FALSE) -> 1,630 | K11: =VLOOKUP($C11,'RECAP SECT'!$G$6:$CU$253,72,FALSE) -> 30.29 | L11: =VLOOKUP($C11,'RECAP SECT'!$G$6:$CU$253,73,FALSE) -> 30% | M11: =VLOOKUP($C11,'RECAP SECT'!$G$6:$CU$253,74,FALSE) -> 12 | N11: =VLOOKUP($C11,'RECAP SECT'!$G$6:$CU$253,75,FALSE) -> 41% | O11: =VLOOKUP($C11,'RECAP SECT'!$G$6:$CU$253,76,FALSE) -> 39% | P11: =VLOOKUP($C11,'RECAP SECT'!$G$6:$CU$253,77,FALSE) -> 13
A12: 262 | B12: BAS-RHIN | C12: 5060 | D12: HAGUENAU | E12: =VLOOKUP($C12,'RECAP SECT'!$G$6:$CU$253,3,FALSE) -> 56.5 | F12: =VLOOKUP($C12,'RECAP SECT'!$G$6:$CU$253,67,FALSE) -> 4,409 | G12: =VLOOKUP($C12,'RECAP SECT'!$G$6:$CU$253,68,FALSE) -> 78.10 | H12: =VLOOKUP($C12,'RECAP SECT'!$G$6:$CU$253,69,FALSE) -> 52% | I12: =VLOOKUP($C12,'RECAP SECT'!$G$6:$CU$253,70,FALSE) -> 15 | J12: =VLOOKUP($C12,'RECAP SECT'!$G$6:$CU$253,71,FALSE) -> 1,569 | K12: =VLOOKUP($C12,'RECAP SECT'!$G$6:$CU$253,72,FALSE) -> 27.79 | L12: =VLOOKUP($C12,'RECAP SECT'!$G$6:$CU$253,73,FALSE) -> 35% | M12: =VLOOKUP($C12,'RECAP SECT'!$G$6:$CU$253,74,FALSE) -> 16 | N12: =VLOOKUP($C12,'RECAP SECT'!$G$6:$CU$253,75,FALSE) -> 46% | O12: =VLOOKUP($C12,'RECAP SECT'!$G$6:$CU$253,76,FALSE) -> 44% | P12: =VLOOKUP($C12,'RECAP SECT'!$G$6:$CU$253,77,FALSE) -> 15
A13: 262 | B13: BAS-RHIN | C13: 5101 | D13: SELESTAT | E13: =VLOOKUP($C13,'RECAP SECT'!$G$6:$CU$253,3,FALSE) -> 50.8 | F13: =VLOOKUP($C13,'RECAP SECT'!$G$6:$CU$253,67,FALSE) -> 4,519 | G13: =VLOOKUP($C13,'RECAP SECT'!$G$6:$CU$253,68,FALSE) -> 88.89 | H13: =VLOOKUP($C13,'RECAP SECT'!$G$6:$CU$253,69,FALSE) -> 46% | I13: =VLOOKUP($C13,'RECAP SECT'!$G$6:$CU$253,70,FALSE) -> 12 | J13: =VLOOKUP($C13,'RECAP SECT'!$G$6:$CU$253,71,FALSE) -> 1,473 | K13: =VLOOKUP($C13,'RECAP SECT'!$G$6:$CU$253,72,FALSE) -> 28.97 | L13: =VLOOKUP($C13,'RECAP SECT'!$G$6:$CU$253,73,FALSE) -> 33% | M13: =VLOOKUP($C13,'RECAP SECT'!$G$6:$CU$253,74,FALSE) -> 13 | N13: =VLOOKUP($C13,'RECAP SECT'!$G$6:$CU$253,75,FALSE) -> 41% | O13: =VLOOKUP($C13,'RECAP SECT'!$G$6:$CU$253,76,FALSE) -> 39% | P13: =VLOOKUP($C13,'RECAP SECT'!$G$6:$CU$253,77,FALSE) -> 12
A14: 262 | B14: BAS-RHIN | C14: 5006 | D14: STRASBOURG | E14: =VLOOKUP($C14,'RECAP SECT'!$G$6:$CU$253,3,FALSE) -> 65.0 | F14: =VLOOKUP($C14,'RECAP SECT'!$G$6:$CU$253,67,FALSE) -> 7,983 | G14: =VLOOKUP($C14,'RECAP SECT'!$G$6:$CU$253,68,FALSE) -> 122.82 | H14: =VLOOKUP($C14,'RECAP SECT'!$G$6:$CU$253,69,FALSE) -> 25% | I14: =VLOOKUP($C14,'RECAP SECT'!$G$6:$CU$253,70,FALSE) -> 8 | J14: =VLOOKUP($C14,'RECAP SECT'!$G$6:$CU$253,71,FALSE) -> 2,723 | K14: =VLOOKUP($C14,'RECAP SECT'!$G$6:$CU$253,72,FALSE) -> 41.89 | L14: =VLOOKUP($C14,'RECAP SECT'!$G$6:$CU$253,73,FALSE) -> 3% | M14: =VLOOKUP($C14,'RECAP SECT'!$G$6:$CU$253,74,FALSE) -> 2 | N14: =VLOOKUP($C14,'RECAP SECT'!$G$6:$CU$253,75,FALSE) -> 16% | O14: =VLOOKUP($C14,'RECAP SECT'!$G$6:$CU$253,76,FALSE) -> 15% | P14: =VLOOKUP($C14,'RECAP SECT'!$G$6:$CU$253,77,FALSE) -> 6
A15: 264 | B15: HAUT-RHIN | C15: 5130 | D15: COLMAR | E15: =VLOOKUP($C15,'RECAP SECT'!$G$6:$CU$253,3,FALSE) -> 47.4 | F15: =VLOOKUP($C15,'RECAP SECT'!$G$6:$CU$253,67,FALSE) -> 2,971 | G15: =VLOOKUP($C15,'RECAP SECT'!$G$6:$CU$253,68,FALSE) -> 62.67 | H15: =VLOOKUP($C15,'RECAP SECT'!$G$6:$CU$253,69,FALSE) -> 62% | I15: =VLOOKUP($C15,'RECAP SECT'!$G$6:$CU$253,70,FALSE) -> 17 | J15: =VLOOKUP($C15,'RECAP SECT'!$G$6:$CU$253,71,FALSE) -> 1,249 | K15: =VLOOKUP($C15,'RECAP SECT'!$G$6:$CU$253,72,FALSE) -> 26.34 | L15: =VLOOKUP($C15,'RECAP SECT'!$G$6:$CU$253,73,FALSE) -> 39% | M15: =VLOOKUP($C15,'RECAP SECT'!$G$6:$CU$253,74,FALSE) -> 18 | N15: =VLOOKUP($C15,'RECAP SECT'!$G$6:$CU$253,75,FALSE) -> 53% | O15: =VLOOKUP($C15,'RECAP SECT'!$G$6:$CU$253,76,FALSE) -> 51% | P15: =VLOOKUP($C15,'RECAP SECT'!$G$6:$CU$253,77,FALSE) -> 17
A16: 264 | B16: HAUT-RHIN | C16: 5169 | D16: MULHOUSE | E16: =VLOOKUP($C16,'RECAP SECT'!$G$6:$CU$253,3,FALSE) -> 45.1 | F16: =VLOOKUP($C16,'RECAP SECT'!$G$6:$CU$253,67,FALSE) -> 1,088 | G16: =VLOOKUP($C16,'RECAP SECT'!$G$6:$CU$253,68,FALSE) -> 24.13 | H16: =VLOOKUP($C16,'RECAP SECT'!$G$6:$CU$253,69,FALSE) -> 85% | I16: =VLOOKUP($C16,'RECAP SECT'!$G$6:$CU$253,70,FALSE) -> 18 | J16: =VLOOKUP($C16,'RECAP SECT'!$G$6:$CU$253,71,FALSE) -> 1,259 | K16: =VLOOKUP($C16,'RECAP SECT'!$G$6:$CU$253,72,FALSE) -> 27.92 | L16: =VLOOKUP($C16,'RECAP SECT'!$G$6:$CU$253,73,FALSE) -> 35% | M16: =VLOOKUP($C16,'RECAP SECT'!$G$6:$CU$253,74,FALSE) -> 15 | N16: =VLOOKUP($C16,'RECAP SECT'!$G$6:$CU$253,75,FALSE) -> 65% | O16: =VLOOKUP($C16,'RECAP SECT'!$G$6:$CU$253,76,FALSE) -> 64% | P16: =VLOOKUP($C16,'RECAP SECT'!$G$6:$CU$253,77,FALSE) -> 18
A17: 30 | B17: MARNE-ARDENNES | C17: 6 | D17: CHALONS EN CHAMPAGNE | E17: =VLOOKUP($C17,'RECAP SECT'!$G$6:$CU$253,3,FALSE) -> 38.0 | F17: =VLOOKUP($C17,'RECAP SECT'!$G$6:$CU$253,67,FALSE) -> 5,258 | G17: =VLOOKUP($C17,'RECAP SECT'!$G$6:$CU$253,68,FALSE) -> 138.33 | H17: =VLOOKUP($C17,'RECAP SECT'!$G$6:$CU$253,69,FALSE) -> 15% | I17: =VLOOKUP($C17,'RECAP SECT'!$G$6:$CU$253,70,FALSE) -> 5 | J17: =VLOOKUP($C17,'RECAP SECT'!$G$6:$CU$253,71,FALSE) -> 1,388 | K17: =VLOOKUP($C17,'RECAP SECT'!$G$6:$CU$253,72,FALSE) -> 36.52 | L17: =VLOOKUP($C17,'RECAP SECT'!$G$6:$CU$253,73,FALSE) -> 15% | M17: =VLOOKUP($C17,'RECAP SECT'!$G$6:$CU$253,74,FALSE) -> 6 | N17: =VLOOKUP($C17,'RECAP SECT'!$G$6:$CU$253,75,FALSE) -> 15% | O17: =VLOOKUP($C17,'RECAP SECT'!$G$6:$CU$253,76,FALSE) -> 14% | P17: =VLOOKUP($C17,'RECAP SECT'!$G$6:$CU$253,77,FALSE) -> 5
A18: 30 | B18: MARNE-ARDENNES | C18: 2 | D18: CHARLEVILLE MEZIERES | E18: =VLOOKUP($C18,'RECAP SECT'!$G$6:$CU$253,3,FALSE) -> 48.7 | F18: =VLOOKUP($C18,'RECAP SECT'!$G$6:$CU$253,67,FALSE) -> 6,990 | G18: =VLOOKUP($C18,'RECAP SECT'!$G$6:$CU$253,68,FALSE) -> 143.41 | H18: =VLOOKUP($C18,'RECAP SECT'!$G$6:$CU$253,69,FALSE) -> 12% | I18: =VLOOKUP($C18,'RECAP SECT'!$G$6:$CU$253,70,FALSE) -> 2 | J18: =VLOOKUP($C18,'RECAP SECT'!$G$6:$CU$253,71,FALSE) -> 1,792 | K18: =VLOOKUP($C18,'RECAP SECT'!$G$6:$CU$253,72,FALSE) -> 36.77 | L18: =VLOOKUP($C18,'RECAP SECT'!$G$6:$CU$253,73,FALSE) -> 15% | M18: =VLOOKUP($C18,'RECAP SECT'!$G$6:$CU$253,74,FALSE) -> 5 | N18: =VLOOKUP($C18,'RECAP SECT'!$G$6:$CU$253,75,FALSE) -> 13% | O18: =VLOOKUP($C18,'RECAP SECT'!$G$6:$CU$253,76,FALSE) -> 12% | P18: =VLOOKUP($C18,'RECAP SECT'!$G$6:$CU$253,77,FALSE) -> 3
A19: 30 | B19: MARNE-ARDENNES | C19: 11 | D19: REIMS | E19: =VLOOKUP($C19,'RECAP SECT'!$G$6:$CU$253,3,FALSE) -> 68.3 | F19: =VLOOKUP($C19,'RECAP SECT'!$G$6:$CU$253,67,FALSE) -> 9,632 | G19: =VLOOKUP($C19,'RECAP SECT'!$G$6:$CU$253,68,FALSE) -> 141.00 | H19: =VLOOKUP($C19,'RECAP SECT'!$G$6:$CU$253,69,FALSE) -> 14% | I19: =VLOOKUP($C19,'RECAP SECT'!$G$6:$CU$253,70,FALSE) -> 3 | J19: =VLOOKUP($C19,'RECAP SECT'!$G$6:$CU$253,71,FALSE) -> 2,942 | K19: =VLOOKUP($C19,'RECAP SECT'!$G$6:$CU$253,72,FALSE) -> 43.07 | L19: =VLOOKUP($C19,'RECAP SECT'!$G$6:$CU$253,73,FALSE) -> 0% | M19: =VLOOKUP($C19,'RECAP SECT'!$G$6:$CU$253,74,FALSE) -> 1 | N19: =VLOOKUP($C19,'RECAP SECT'!$G$6:$CU$253,75,FALSE) -> 8% | O19: =VLOOKUP($C19,'RECAP SECT'!$G$6:$CU$253,76,FALSE) -> 7% | P19: =VLOOKUP($C19,'RECAP SECT'!$G$6:$CU$253,77,FALSE) -> 2
A20: 110 | B20: MEURTHE ET MOSELLE MEUSE | C20: 26 | D20: NANCY | E20: =VLOOKUP($C20,'RECAP SECT'!$G$6:$CU$253,3,FALSE) -> 55.1 | F20: =VLOOKUP($C20,'RECAP SECT'!$G$6:$CU$253,67,FALSE) -> 5,218 | G20: =VLOOKUP($C20,'RECAP SECT'!$G$6:$CU$253,68,FALSE) -> 94.72 | H20: =VLOOKUP($C20,'RECAP SECT'!$G$6:$CU$253,69,FALSE) -> 42% | I20: =VLOOKUP($C20,'RECAP SECT'!$G$6:$CU$253,70,FALSE) -> 11 | J20: =VLOOKUP($C20,'RECAP SECT'!$G$6:$CU$253,71,FALSE) -> 1,927 | K20: =VLOOKUP($C20,'RECAP SECT'!$G$6:$CU$253,72,FALSE) -> 34.98 | L20: =VLOOKUP($C20,'RECAP SECT'!$G$6:$CU$253,73,FALSE) -> 19% | M20: =VLOOKUP($C20,'RECAP SECT'!$G$6:$CU$253,74,FALSE) -> 8 | N20: =VLOOKUP($C20,'RECAP SECT'!$G$6:$CU$253,75,FALSE) -> 33% | O20: =VLOOKUP($C20,'RECAP SECT'!$G$6:$CU$253,76,FALSE) -> 32% | P20: =VLOOKUP($C20,'RECAP SECT'!$G$6:$CU$253,77,FALSE) -> 10
A21: 110 | B21: MEURTHE ET MOSELLE MEUSE | C21: 27 | D21: PONT A MOUSSON | E21: =VLOOKUP($C21,'RECAP SECT'!$G$6:$CU$253,3,FALSE) -> 59.5 | F21: =VLOOKUP($C21,'RECAP SECT'!$G$6:$CU$253,67,FALSE) -> 7,627 | G21: =VLOOKUP($C21,'RECAP SECT'!$G$6:$CU$253,68,FALSE) -> 128.18 | H21: =VLOOKUP($C21,'RECAP SECT'!$G$6:$CU$253,69,FALSE) -> 22% | I21: =VLOOKUP($C21,'RECAP SECT'!$G$6:$CU$253,70,FALSE) -> 7 | J21: =VLOOKUP($C21,'RECAP SECT'!$G$6:$CU$253,71,FALSE) -> 2,336 | K21: =VLOOKUP($C21,'RECAP SECT'!$G$6:$CU$253,72,FALSE) -> 39.26 | L21: =VLOOKUP($C21,'RECAP SECT'!$G$6:$CU$253,73,FALSE) -> 9% | M21: =VLOOKUP($C21,'RECAP SECT'!$G$6:$CU$253,74,FALSE) -> 4 | N21: =VLOOKUP($C21,'RECAP SECT'!$G$6:$CU$253,75,FALSE) -> 17% | O21: =VLOOKUP($C21,'RECAP SECT'!$G$6:$CU$253,76,FALSE) -> 15% | P21: =VLOOKUP($C21,'RECAP SECT'!$G$6:$CU$253,77,FALSE) -> 7
A22: 110 | B22: MEURTHE ET MOSELLE MEUSE | C22: 31 | D22: VERDUN | E22: =VLOOKUP($C22,'RECAP SECT'!$G$6:$CU$253,3,FALSE) -> 47.6 | F22: =VLOOKUP($C22,'RECAP SECT'!$G$6:$CU$253,67,FALSE) -> 4,776 | G22: =VLOOKUP($C22,'RECAP SECT'!$G$6:$CU$253,68,FALSE) -> 100.25 | H22: =VLOOKUP($C22,'RECAP SECT'!$G$6:$CU$253,69,FALSE) -> 39% | I22: =VLOOKUP($C22,'RECAP SECT'!$G$6:$CU$253,70,FALSE) -> 10 | J22: =VLOOKUP($C22,'RECAP SECT'!$G$6:$CU$253,71,FALSE) -> 1,480 | K22: =VLOOKUP($C22,'RECAP SECT'!$G$6:$CU$253,72,FALSE) -> 31.07 | L22: =VLOOKUP($C22,'RECAP SECT'!$G$6:$CU$253,73,FALSE) -> 28% | M22: =VLOOKUP($C22,'RECAP SECT'!$G$6:$CU$253,74,FALSE) -> 11 | N22: =VLOOKUP($C22,'RECAP SECT'!$G$6:$CU$253,75,FALSE) -> 34% | O22: =VLOOKUP($C22,'RECAP SECT'!$G$6:$CU$253,76,FALSE) -> 33% | P22: =VLOOKUP($C22,'RECAP SECT'!$G$6:$CU$253,77,FALSE) -> 11
A23: 160 | B23: MOSELLE | C23: 45 | D23: METZ | E23: =VLOOKUP($C23,'RECAP SECT'!$G$6:$CU$253,3,FALSE) -> 72.6 | F23: =VLOOKUP($C23,'RECAP SECT'!$G$6:$CU$253,67,FALSE) -> 7,610 | G23: =VLOOKUP($C23,'RECAP SECT'!$G$6:$CU$253,68,FALSE) -> 104.76 | H23: =VLOOKUP($C23,'RECAP SECT'!$G$6:$CU$253,69,FALSE) -> 36% | I23: =VLOOKUP($C23,'RECAP SECT'!$G$6:$CU$253,70,FALSE) -> 9 | J23: =VLOOKUP($C23,'RECAP SECT'!$G$6:$CU$253,71,FALSE) -> 2,409 | K23: =VLOOKUP($C23,'RECAP SECT'!$G$6:$CU$253,72,FALSE) -> 33.16 | L23: =VLOOKUP($C23,'RECAP SECT'!$G$6:$CU$253,73,FALSE) -> 23% | M23: =VLOOKUP($C23,'RECAP SECT'!$G$6:$CU$253,74,FALSE) -> 9 | N23: =VLOOKUP($C23,'RECAP SECT'!$G$6:$CU$253,75,FALSE) -> 31% | O23: =VLOOKUP($C23,'RECAP SECT'!$G$6:$CU$253,76,FALSE) -> 30% | P23: =VLOOKUP($C23,'RECAP SECT'!$G$6:$CU$253,77,FALSE) -> 9
A24: 160 | B24: MOSELLE | C24: 42 | D24: MOSELLE EST | E24: =VLOOKUP($C24,'RECAP SECT'!$G$6:$CU$253,3,FALSE) -> 59.9 | F24: =VLOOKUP($C24,'RECAP SECT'!$G$6:$CU$253,67,FALSE) -> 8,363 | G24: =VLOOKUP($C24,'RECAP SECT'!$G$6:$CU$253,68,FALSE) -> 139.64 | H24: =VLOOKUP($C24,'RECAP SECT'!$G$6:$CU$253,69,FALSE) -> 15% | I24: =VLOOKUP($C24,'RECAP SECT'!$G$6:$CU$253,70,FALSE) -> 4 | J24: =VLOOKUP($C24,'RECAP SECT'!$G$6:$CU$253,71,FALSE) -> 2,170 | K24: =VLOOKUP($C24,'RECAP SECT'!$G$6:$CU$253,72,FALSE) -> 36.23 | L24: =VLOOKUP($C24,'RECAP SECT'!$G$6:$CU$253,73,FALSE) -> 16% | M24: =VLOOKUP($C24,'RECAP SECT'!$G$6:$CU$253,74,FALSE) -> 7 | N24: =VLOOKUP($C24,'RECAP SECT'!$G$6:$CU$253,75,FALSE) -> 15% | O24: =VLOOKUP($C24,'RECAP SECT'!$G$6:$CU$253,76,FALSE) -> 14% | P24: =VLOOKUP($C24,'RECAP SECT'!$G$6:$CU$253,77,FALSE) -> 4
A25: 160 | B25: MOSELLE | C25: 44 | D25: MOSELLE NORD | E25: =VLOOKUP($C25,'RECAP SECT'!$G$6:$CU$253,3,FALSE) -> 57.2 | F25: =VLOOKUP($C25,'RECAP SECT'!$G$6:$CU$253,67,FALSE) -> 9,363 | G25: =VLOOKUP($C25,'RECAP SECT'!$G$6:$CU$253,68,FALSE) -> 163.66 | H25: =VLOOKUP($C25,'RECAP SECT'!$G$6:$CU$253,69,FALSE) -> 0% | I25: =VLOOKUP($C25,'RECAP SECT'!$G$6:$CU$253,70,FALSE) -> 1 | J25: =VLOOKUP($C25,'RECAP SECT'!$G$6:$CU$253,71,FALSE) -> 2,391 | K25: =VLOOKUP($C25,'RECAP SECT'!$G$6:$CU$253,72,FALSE) -> 41.79 | L25: =VLOOKUP($C25,'RECAP SECT'!$G$6:$CU$253,73,FALSE) -> 3% | M25: =VLOOKUP($C25,'RECAP SECT'!$G$6:$CU$253,74,FALSE) -> 3 | N25: =VLOOKUP($C25,'RECAP SECT'!$G$6:$CU$253,75,FALSE) -> 1% | O25: =VLOOKUP($C25,'RECAP SECT'!$G$6:$CU$253,76,FALSE) -> 0% | P25: =VLOOKUP($C25,'RECAP SECT'!$G$6:$CU$253,77,FALSE) -> 1
A26: 80 | B26: VOSGES | C26: 57 | D26: EPINAL | E26: =VLOOKUP($C26,'RECAP SECT'!$G$6:$CU$253,3,FALSE) -> 52.7 | F26: =VLOOKUP($C26,'RECAP SECT'!$G$6:$CU$253,67,FALSE) -> 4,580 | G26: =VLOOKUP($C26,'RECAP SECT'!$G$6:$CU$253,68,FALSE) -> 86.94 | H26: =VLOOKUP($C26,'RECAP SECT'!$G$6:$CU$253,69,FALSE) -> 47% | I26: =VLOOKUP($C26,'RECAP SECT'!$G$6:$CU$253,70,FALSE) -> 13 | J26: =VLOOKUP($C26,'RECAP SECT'!$G$6:$CU$253,71,FALSE) -> 1,522 | K26: =VLOOKUP($C26,'RECAP SECT'!$G$6:$CU$253,72,FALSE) -> 28.89 | L26: =VLOOKUP($C26,'RECAP SECT'!$G$6:$CU$253,73,FALSE) -> 33% | M26: =VLOOKUP($C26,'RECAP SECT'!$G$6:$CU$253,74,FALSE) -> 14 | N26: =VLOOKUP($C26,'RECAP SECT'!$G$6:$CU$253,75,FALSE) -> 41% | O26: =VLOOKUP($C26,'RECAP SECT'!$G$6:$CU$253,76,FALSE) -> 40% | P26: =VLOOKUP($C26,'RECAP SECT'!$G$6:$CU$253,77,FALSE) -> 14
A27: 80 | B27: VOSGES | C27: 55 | D27: SAINT DIE | E27: =VLOOKUP($C27,'RECAP SECT'!$G$6:$CU$253,3,FALSE) -> 39.9 | F27: =VLOOKUP($C27,'RECAP SECT'!$G$6:$CU$253,67,FALSE) -> 2,966 | G27: =VLOOKUP($C27,'RECAP SECT'!$G$6:$CU$253,68,FALSE) -> 74.43 | H27: =VLOOKUP($C27,'RECAP SECT'!$G$6:$CU$253,69,FALSE) -> 55% | I27: =VLOOKUP($C27,'RECAP SECT'!$G$6:$CU$253,70,FALSE) -> 16 | J27: =VLOOKUP($C27,'RECAP SECT'!$G$6:$CU$253,71,FALSE) -> 1,088 | K27: =VLOOKUP($C27,'RECAP SECT'!$G$6:$CU$253,72,FALSE) -> 27.30 | L27: =VLOOKUP($C27,'RECAP SECT'!$G$6:$CU$253,73,FALSE) -> 37% | M27: =VLOOKUP($C27,'RECAP SECT'!$G$6:$CU$253,74,FALSE) -> 17 | N27: =VLOOKUP($C27,'RECAP SECT'!$G$6:$CU$253,75,FALSE) -> 47% | O27: =VLOOKUP($C27,'RECAP SECT'!$G$6:$CU$253,76,FALSE) -> 46% | P27: =VLOOKUP($C27,'RECAP SECT'!$G$6:$CU$253,77,FALSE) -> 16
A28: Total CEGEE Directions Régionales | E28: =SUM(E10:E27) -> 952

Sheet SE_SATISFACTION
B1: Accueil | F1: BAROMETRE BDD - TERRITOIRES
F2: SATISFACTION
F3: =ACCUEIL!F7 -> 2022-07-24
F7: NPS à froid (SAE) | I7: NPS à chaud (QHD) | L7: Total Satisfaction Clients
F8: =DATEMAJ!E4 -> au 30/06 | G8: coef | H8: ='RECAP DIRCOM'!M4 -> 10% | I8: =DATEMAJ!C5 -> au 30/06 | J8: coef | K8: ='RECAP DIRCOM'!P4 -> 10% | M8: coef | N8: ='RECAP DIRCOM'!S4 -> 20%
B9: Direction | C9: eds | D9: Territoire | E9: ="ETP perf "&DATEMAJ!$C$28 -> ETP perf 24-juil | G9: % Ecart au 1er | H9: Rang | J9: % Ecart au 1er | K9: Rang | L9: Moyenne ecart au 1er | M9: % Ecart au 1er | N9: Rang CEGEE
A10: 50 | B10: AUBE HAUTE MARNE | C10: 21 | D10: CHAUMONT | E10: =VLOOKUP($C10,'RECAP SECT'!$G$6:$CU$253,3,FALSE) -> 33.9 | F10: =VLOOKUP($C10,'RECAP SECT'!$G$6:$CU$253,5,FALSE) -> 17.75 | G10: =VLOOKUP($C10,'RECAP SECT'!$G$6:$CU$253,6,FALSE) -> 32% | H10: =VLOOKUP($C10,'RECAP SECT'!$G$6:$CU$253,7,FALSE) -> 6 | I10: =VLOOKUP($C10,'RECAP SECT'!$G$6:$CU$253,8,FALSE) -> 66% | J10: =VLOOKUP($C10,'RECAP SECT'!$G$6:$CU$253,9,FALSE) -> 12% | K10: =VLOOKUP($C10,'RECAP SECT'!$G$6:$CU$253,10,FALSE) -> 8 | L10: =VLOOKUP($C10,'RECAP SECT'!$G$6:$CU$253,11,FALSE) -> 22% | M10: =VLOOKUP($C10,'RECAP SECT'!$G$6:$CU$253,12,FALSE) -> 22% | N10: =VLOOKUP($C10,'RECAP SECT'!$G$6:$CU$253,13,FALSE) -> 6
A11: 50 | B11: AUBE HAUTE MARNE | C11: 14 | D11: TROYES | E11: =VLOOKUP($C11,'RECAP SECT'!$G$6:$CU$253,3,FALSE) -> 53.8 | F11: =VLOOKUP($C11,'RECAP SECT'!$G$6:$CU$253,5,FALSE) -> 0 | G11: =VLOOKUP($C11,'RECAP SECT'!$G$6:$CU$253,6,FALSE) -> 100% | H11: =VLOOKUP($C11,'RECAP SECT'!$G$6:$CU$253,7,FALSE) -> 18 | I11: =VLOOKUP($C11,'RECAP SECT'!$G$6:$CU$253,8,FALSE) -> 48% | J11: =VLOOKUP($C11,'RECAP SECT'!$G$6:$CU$253,9,FALSE) -> 35% | K11: =VLOOKUP($C11,'RECAP SECT'!$G$6:$CU$253,10,FALSE) -> 17 | L11: =VLOOKUP($C11,'RECAP SECT'!$G$6:$CU$253,11,FALSE) -> 67% | M11: =VLOOKUP($C11,'RECAP SECT'!$G$6:$CU$253,12,FALSE) -> 67% | N11: =VLOOKUP($C11,'RECAP SECT'!$G$6:$CU$253,13,FALSE) -> 18
A12: 262 | B12: BAS-RHIN | C12: 5060 | D12: HAGUENAU | E12: =VLOOKUP($C12,'RECAP SECT'!$G$6:$CU$253,3,FALSE) -> 56.5 | F12: =VLOOKUP($C12,'RECAP SECT'!$G$6:$CU$253,5,FALSE) -> 11.25 | G12: =VLOOKUP($C12,'RECAP SECT'!$G$6:$CU$253,6,FALSE) -> 57% | H12: =VLOOKUP($C12,'RECAP SECT'!$G$6:$CU$253,7,FALSE) -> 10 | I12: =VLOOKUP($C12,'RECAP SECT'!$G$6:$CU$253,8,FALSE) -> 62% | J12: =VLOOKUP($C12,'RECAP SECT'!$G$6:$CU$253,9,FALSE) -> 17% | K12: =VLOOKUP($C12,'RECAP SECT'!$G$6:$CU$253,10,FALSE) -> 11 | L12: =VLOOKUP($C12,'RECAP SECT'!$G$6:$CU$253,11,FALSE) -> 37% | M12: =VLOOKUP($C12,'RECAP SECT'!$G$6:$CU$253,12,FALSE) -> 37% | N12: =VLOOKUP($C12,'RECAP SECT'!$G$6:$CU$253,13,FALSE) -> 11
A13: 262 | B13: BAS-RHIN | C13: 5101 | D13: SELESTAT | E13: =VLOOKUP($C13,'RECAP SECT'!$G$6:$CU$253,3,FALSE) -> 50.8 | F13: =VLOOKUP($C13,'RECAP SECT'!$G$6:$CU$253,5,FALSE) -> 1.5 | G13: =VLOOKUP($C13,'RECAP SECT'!$G$6:$CU$253,6,FALSE) -> 94% | H13: =VLOOKUP($C13,'RECAP SECT'!$G$6:$CU$253,7,FALSE) -> 17 | I13: =VLOOKUP($C13,'RECAP SECT'!$G$6:$CU$253,8,FALSE) -> 59% | J13: =VLOOKUP($C13,'RECAP SECT'!$G$6:$CU$253,9,FALSE) -> 20% | K13: =VLOOKUP($C13,'RECAP SECT'!$G$6:$CU$253,10,FALSE) -> 14 | L13: =VLOOKUP($C13,'RECAP SECT'!$G$6:$CU$253,11,FALSE) -> 57% | M13: =VLOOKUP($C13,'RECAP SECT'!$G$6:$CU$253,12,FALSE) -> 57% | N13: =VLOOKUP($C13,'RECAP SECT'!$G$6:$CU$253,13,FALSE) -> 15
A14: 262 | B14: BAS-RHIN | C14: 5006 | D14: STRASBOURG | E14: =VLOOKUP($C14,'RECAP SECT'!$G$6:$CU$253,3,FALSE) -> 65.0 | F14: =VLOOKUP($C14,'RECAP SECT'!$G$6:$CU$253,5,FALSE) -> 9.75 | G14: =VLOOKUP($C14,'RECAP SECT'!$G$6:$CU$253,6,FALSE) -> 63% | H14: =VLOOKUP($C14,'RECAP SECT'!$G$6:$CU$253,7,FALSE) -> 12 | I14: =VLOOKUP($C14,'RECAP SECT'!$G$6:$CU$253,8,FALSE) -> 66% | J14: =VLOOKUP($C14,'RECAP SECT'!$G$6:$CU$253,9,FALSE) -> 11% | K14: =VLOOKUP($C14,'RECAP SECT'!$G$6:$CU$253,10,FALSE) -> 7 | L14: =VLOOKUP($C14,'RECAP SECT'!$G$6:$CU$253,11,FALSE) -> 37% | M14: =VLOOKUP($C14,'RECAP SECT'!$G$6:$CU$253,12,FALSE) -> 37% | N14: =VLOOKUP($C14,'RECAP SECT'!$G$6:$CU$253,13,FALSE) -> 10
A15: 264 | B15: HAUT-RHIN | C15: 5130 | D15: COLMAR | E15: =VLOOKUP($C15,'RECAP SECT'!$G$6:$CU$253,3,FALSE) -> 47.4 | F15: =VLOOKUP($C15,'RECAP SECT'!$G$6:$CU$253,5,FALSE) -> 2.75 | G15: =VLOOKUP($C15,'RECAP SECT'!$G$6:$CU$253,6,FALSE) -> 90% | H15: =VLOOKUP($C15,'RECAP SECT'!$G$6:$CU$253,7,FALSE) -> 16 | I15: =VLOOKUP($C15,'RECAP SECT'!$G$6:$CU$253,8,FALSE) -> 54% | J15: =VLOOKUP($C15,'RECAP SECT'!$G$6:$CU$253,9,FALSE) -> 28% | K15: =VLOOKUP($C15,'RECAP SECT'!$G$6:$CU$253,10,FALSE) -> 16 | L15: =VLOOKUP($C15,'RECAP SECT'!$G$6:$CU$253,11,FALSE) -> 59% | M15: =VLOOKUP($C15,'RECAP SECT'!$G$6:$CU$253,12,FALSE) -> 59% | N15: =VLOOKUP($C15,'RECAP SECT'!$G$6:$CU$253,13,FALSE) -> 16
A16: 264 | B16: HAUT-RHIN | C16: 5169 | D16: MULHOUSE | E16: =VLOOKUP($C16,'RECAP SECT'!$G$6:$CU$253,3,FALSE) -> 45.1 | F16: =VLOOKUP($C16,'RECAP SECT'!$G$6:$CU$253,5,FALSE) -> 3 | G16: =VLOOKUP($C16,'RECAP SECT'!$G$6:$CU$253,6,FALSE) -> 89% | H16: =VLOOKUP($C16,'RECAP SECT'!$G$6:$CU$253,7,FALSE) -> 15 | I16: =VLOOKUP($C16,'RECAP SECT'!$G$6:$CU$253,8,FALSE) -> 47% | J16: =VLOOKUP($C16,'RECAP SECT'!$G$6:$CU$253,9,FALSE) -> 37% | K16: =VLOOKUP($C16,'RECAP SECT'!$G$6:$CU$253,10,FALSE) -> 18 | L16: =VLOOKUP($C16,'RECAP SECT'!$G$6:$CU$253,11,FALSE) -> 63% | M16: =VLOOKUP($C16,'RECAP SECT'!$G$6:$CU$253,12,FALSE) -> 63% | N16: =VLOOKUP($C16,'RECAP SECT'!$G$6:$CU$253,13,FALSE) -> 17
A17: 30 | B17: MARNE-ARDENNES | C17: 6 | D17: CHALONS EN CHAMPAGNE | E17: =VLOOKUP($C17,'RECAP SECT'!$G$6:$CU$253,3,FALSE) -> 38.0 | F17: =VLOOKUP($C17,'RECAP SECT'!$G$6:$CU$253,5,FALSE) -> 26.25 | G17: =VLOOKUP($C17,'RECAP SECT'!$G$6:$CU$253,6,FALSE) -> 0% | H17: =VLOOKUP($C17,'RECAP SECT'!$G$6:$CU$253,7,FALSE) -> 1 | I17: =VLOOKUP($C17,'RECAP SECT'!$G$6:$CU$253,8,FALSE) -> 74% | J17: =VLOOKUP($C17,'RECAP SECT'!$G$6:$CU$253,9,FALSE) -> 0% | K17: =VLOOKUP($C17,'RECAP SECT'!$G$6:$CU$253,10,FALSE) -> 1 | L17: =VLOOKUP($C17,'RECAP SECT'!$G$6:$CU$253,11,FALSE) -> 0% | M17: =VLOOKUP($C17,'RECAP SECT'!$G$6:$CU$253,12,FALSE) -> 0% | N17: =VLOOKUP($C17,'RECAP SECT'!$G$6:$CU$253,13,FALSE) -> 1
A18: 30 | B18: MARNE-ARDENNES | C18: 2 | D18: CHARLEVILLE MEZIERES | E18: =VLOOKUP($C18,'RECAP SECT'!$G$6:$CU$253,3,FALSE) -> 48.7 | F18: =VLOOKUP($C18,'RECAP SECT'!$G$6:$CU$253,5,FALSE) -> 14.5 | G18: =VLOOKUP($C18,'RECAP SECT'!$G$6:$CU$253,6,FALSE) -> 45% | H18: =VLOOKUP($C18,'RECAP SECT'!$G$6:$CU$253,7,FALSE) -> 9 | I18: =VLOOKUP($C18,'RECAP SECT'!$G$6:$CU$253,8,FALSE) -> 66% | J18: =VLOOKUP($C18,'RECAP SECT'!$G$6:$CU$253,9,FALSE) -> 11% | K18: =VLOOKUP($C18,'RECAP SECT'!$G$6:$CU$253,10,FALSE) -> 6 | L18: =VLOOKUP($C18,'RECAP SECT'!$G$6:$CU$253,11,FALSE) -> 28% | M18: =VLOOKUP($C18,'RECAP SECT'!$G$6:$CU$253,12,FALSE) -> 28% | N18: =VLOOKUP($C18,'RECAP SECT'!$G$6:$CU$253,13,FALSE) -> 8
A19: 30 | B19: MARNE-ARDENNES | C19: 11 | D19: REIMS | E19: =VLOOKUP($C19,'RECAP SECT'!$G$6:$CU$253,3,FALSE) -> 68.3 | F19: =VLOOKUP($C19,'RECAP SECT'!$G$6:$CU$253,5,FALSE) -> 16.25 | G19: =VLOOKUP($C19,'RECAP SECT'!$G$6:$CU$253,6,FALSE) -> 38% | H19: =VLOOKUP($C19,'RECAP SECT'!$G$6:$CU$253,7,FALSE) -> 7 | I19: =VLOOKUP($C19,'RECAP SECT'!$G$6:$CU$253,8,FALSE) -> 63% | J19: =VLOOKUP($C19,'RECAP SECT'!$G$6:$CU$253,9,FALSE) -> 15% | K19: =VLOOKUP($C19,'RECAP SECT'!$G$6:$CU$253,10,FALSE) -> 9 | L19: =VLOOKUP($C19,'RECAP SECT'!$G$6:$CU$253,11,FALSE) -> 27% | M19: =VLOOKUP($C19,'RECAP SECT'!$G$6:$CU$253,12,FALSE) -> 27% | N19: =VLOOKUP($C19,'RECAP SECT'!$G$6:$CU$253,13,FALSE) -> 7
A20: 110 | B20: MEURTHE ET MOSELLE MEUSE | C20: 26 | D20: NANCY | E20: =VLOOKUP($C20,'RECAP SECT'!$G$6:$CU$253,3,FALSE) -> 55.1 | F20: =VLOOKUP($C20,'RECAP SECT'!$G$6:$CU$253,5,FALSE) -> 10.75 | G20: =VLOOKUP($C20,'RECAP SECT'!$G$6:$CU$253,6,FALSE) -> 59% | H20: =VLOOKUP($C20,'RECAP SECT'!$G$6:$CU$253,7,FALSE) -> 11 | I20: =VLOOKUP($C20,'RECAP SECT'!$G$6:$CU$253,8,FALSE) -> 62% | J20: =VLOOKUP($C20,'RECAP SECT'!$G$6:$CU$253,9,FALSE) -> 16% | K20: =VLOOKUP($C20,'RECAP SECT'!$G$6:$CU$253,10,FALSE) -> 10 | L20: =VLOOKUP($C20,'RECAP SECT'!$G$6:$CU$253,11,FALSE) -> 37% | M20: =VLOOKUP($C20,'RECAP SECT'!$G$6:$CU$253,12,FALSE) -> 37% | N20: =VLOOKUP($C20,'RECAP SECT'!$G$6:$CU$253,13,FALSE) -> 12
A21: 110 | B21: MEURTHE ET MOSELLE MEUSE | C21: 27 | D21: PONT A MOUSSON | E21: =VLOOKUP($C21,'RECAP SECT'!$G$6:$CU$253,3,FALSE) -> 59.5 | F21: =VLOOKUP($C21,'RECAP SECT'!$G$6:$CU$253,5,FALSE) -> 3.5 | G21: =VLOOKUP($C21,'RECAP SECT'!$G$6:$CU$253,6,FALSE) -> 87% | H21: =VLOOKUP($C21,'RECAP SECT'!$G$6:$CU$253,7,FALSE) -> 14 | I21: =VLOOKUP($C21,'RECAP SECT'!$G$6:$CU$253,8,FALSE) -> 54% | J21: =VLOOKUP($C21,'RECAP SECT'!$G$6:$CU$253,9,FALSE) -> 27% | K21: =VLOOKUP($C21,'RECAP SECT'!$G$6:$CU$253,10,FALSE) -> 15 | L21: =VLOOKUP($C21,'RECAP SECT'!$G$6:$CU$253,11,FALSE) -> 57% | M21: =VLOOKUP($C21,'RECAP SECT'!$G$6:$CU$253,12,FALSE) -> 57% | N21: =VLOOKUP($C21,'RECAP SECT'!$G$6:$CU$253,13,FALSE) -> 14
A22: 110 | B22: MEURTHE ET MOSELLE MEUSE | C22: 31 | D22: VERDUN | E22: =VLOOKUP($C22,'RECAP SECT'!$G$6:$CU$253,3,FALSE) -> 47.6 | F22: =VLOOKUP($C22,'RECAP SECT'!$G$6:$CU$253,5,FALSE) -> 22 | G22: =VLOOKUP($C22,'RECAP SECT'!$G$6:$CU$253,6,FALSE) -> 16% | H22: =VLOOKUP($C22,'RECAP SECT'!$G$6:$CU$253,7,FALSE) -> 4 | I22: =VLOOKUP($C22,'RECAP SECT'!$G$6:$CU$253,8,FALSE) -> 67% | J22: =VLOOKUP($C22,'RECAP SECT'!$G$6:$CU$253,9,FALSE) -> 10% | K22: =VLOOKUP($C22,'RECAP SECT'!$G$6:$CU$253,10,FALSE) -> 5 | L22: =VLOOKUP($C22,'RECAP SECT'!$G$6:$CU$253,11,FALSE) -> 13% | M22: =VLOOKUP($C22,'RECAP SECT'!$G$6:$CU$253,12,FALSE) -> 13% | N22: =VLOOKUP($C22,'RECAP SECT'!$G$6:$CU$253,13,FALSE) -> 4
A23: 160 | B23: MOSELLE | C23: 45 | D23: METZ | E23: =VLOOKUP($C23,'RECAP SECT'!$G$6:$CU$253,3,FALSE) -> 72.6 | F23: =VLOOKUP($C23,'RECAP SECT'!$G$6:$CU$253,5,FALSE) -> 15.25 | G23: =VLOOKUP($C23,'RECAP SECT'!$G$6:$CU$253,6,FALSE) -> 42% | H23: =VLOOKUP($C23,'RECAP SECT'!$G$6:$CU$253,7,FALSE) -> 8 | I23: =VLOOKUP($C23,'RECAP SECT'!$G$6:$CU$253,8,FALSE) -> 61% | J23: =VLOOKUP($C23,'RECAP SECT'!$G$6:$CU$253,9,FALSE) -> 18% | K23: =VLOOKUP($C23,'RECAP SECT'!$G$6:$CU$253,10,FALSE) -> 13 | L23: =VLOOKUP($C23,'RECAP SECT'!$G$6:$CU$253,11,FALSE) -> 30% | M23: =VLOOKUP($C23,'RECAP SECT'!$G$6:$CU$253,12,FALSE) -> 30% | N23: =VLOOKUP($C23,'RECAP SECT'!$G$6:$CU$253,13,FALSE) -> 9
A24: 160 | B24: MOSELLE | C24: 42 | D24: MOSELLE EST | E24: =VLOOKUP($C24,'RECAP SECT'!$G$6:$CU$253,3,FALSE) -> 59.9 | F24: =VLOOKUP($C24,'RECAP SECT'!$G$6:$CU$253,5,FALSE) -> 20 | G24: =VLOOKUP($C24,'RECAP SECT'!$G$6:$CU$253,6,FALSE) -> 24% | H24: =VLOOKUP($C24,'RECAP SECT'!$G$6:$CU$253,7,FALSE) -> 5 | I24: =VLOOKUP($C24,'RECAP SECT'!$G$6:$CU$253,8,FALSE) -> 68% | J24: =VLOOKUP($C24,'RECAP SECT'!$G$6:$CU$253,9,FALSE) -> 9% | K24: =VLOOKUP($C24,'RECAP SECT'!$G$6:$CU$253,10,FALSE) -> 4 | L24: =VLOOKUP($C24,'RECAP SECT'!$G$6:$CU$253,11,FALSE) -> 16% | M24: =VLOOKUP($C24,'RECAP SECT'!$G$6:$CU$253,12,FALSE) -> 16% | N24: =VLOOKUP($C24,'RECAP SECT'!$G$6:$CU$253,13,FALSE) -> 5
A25: 160 | B25: MOSELLE | C25: 44 | D25: MOSELLE NORD | E25: =VLOOKUP($C25,'RECAP SECT'!$G$6:$CU$253,3,FALSE) -> 57.2 | F25: =VLOOKUP($C25,'RECAP SECT'!$G$6:$CU$253,5,FALSE) -> 8.25 | G25: =VLOOKUP($C25,'RECAP SECT'!$G$6:$CU$253,6,FALSE) -> 69% | H25: =VLOOKUP($C25,'RECAP SECT'!$G$6:$CU$253,7,FALSE) -> 13 | I25: =VLOOKUP($C25,'RECAP SECT'!$G$6:$CU$253,8,FALSE) -> 61% | J25: =VLOOKUP($C25,'RECAP SECT'!$G$6:$CU$253,9,FALSE) -> 17% | K25: =VLOOKUP($C25,'RECAP SECT'!$G$6:$CU$253,10,FALSE) -> 12 | L25: =VLOOKUP($C25,'RECAP SECT'!$G$6:$CU$253,11,FALSE) -> 43% | M25: =VLOOKUP($C25,'RECAP SECT'!$G$6:$CU$253,12,FALSE) -> 43% | N25: =VLOOKUP($C25,'RECAP SECT'!$G$6:$CU$253,13,FALSE) -> 13
A26: 80 | B26: VOSGES | C26: 57 | D26: EPINAL | E26: =VLOOKUP($C26,'RECAP SECT'!$G$6:$CU$253,3,FALSE) -> 52.7 | F26: =VLOOKUP($C26,'RECAP SECT'!$G$6:$CU$253,5,FALSE) -> 23.5 | G26: =VLOOKUP($C26,'RECAP SECT'!$G$6:$CU$253,6,FALSE) -> 10% | H26: =VLOOKUP($C26,'RECAP SECT'!$G$6:$CU$253,7,FALSE) -> 3 | I26: =VLOOKUP($C26,'RECAP SECT'!$G$6:$CU$253,8,FALSE) -> 69% | J26: =VLOOKUP($C26,'RECAP SECT'!$G$6:$CU$253,9,FALSE) -> 7% | K26: =VLOOKUP($C26,'RECAP SECT'!$G$6:$CU$253,10,FALSE) -> 2 | L26: =VLOOKUP($C26,'RECAP SECT'!$G$6:$CU$253,11,FALSE) -> 9% | M26: =VLOOKUP($C26,'RECAP SECT'!$G$6:$CU$253,12,FALSE) -> 9% | N26: =VLOOKUP($C26,'RECAP SECT'!$G$6:$CU$253,13,FALSE) -> 3
A27: 80 | B27: VOSGES | C27: 55 | D27: SAINT DIE | E27: =VLOOKUP($C27,'RECAP SECT'!$G$6:$CU$253,3,FALSE) -> 39.9 | F27: =VLOOKUP($C27,'RECAP SECT'!$G$6:$CU$253,5,FALSE) -> 25.25 | G27: =VLOOKUP($C27,'RECAP SECT'!$G$6:$CU$253,6,FALSE) -> 4% | H27: =VLOOKUP($C27,'RECAP SECT'!$G$6:$CU$253,7,FALSE) -> 2 | I27: =VLOOKUP($C27,'RECAP SECT'!$G$6:$CU$253,8,FALSE) -> 68% | J27: =VLOOKUP($C27,'RECAP SECT'!$G$6:$CU$253,9,FALSE) -> 8% | K27: =VLOOKUP($C27,'RECAP SECT'!$G$6:$CU$253,10,FALSE) -> 3 | L27: =VLOOKUP($C27,'RECAP SECT'!$G$6:$CU$253,11,FALSE) -> 6% | M27: =VLOOKUP($C27,'RECAP SECT'!$G$6:$CU$253,12,FALSE) -> 6% | N27: =VLOOKUP($C27,'RECAP SECT'!$G$6:$CU$253,13,FALSE) -> 2
A28: Total CEGEE Directions Régionales | E28: =SUM(E10:E27) -> 952

Sheet AG_CLASS
B1: Accueil | H1: BAROMETRE BDD - AGENCES
H2: CLASSEMENTS
H3: =ACCUEIL!F7 -> 2022-07-24
H8: CLASSEMENT GENERAL | I8: CRITERE Satisfaction Clients | J8: NPS à froid (SAE) | K8: NPS à chaud (QHD) | L8: CRITERE BANCARISATION | M8: Ventes Nettes produits pondérés | N8: Ventes sur client non détenteur de l’univers | O8: CRITERE EPARGNE | P8: Excédent Epargne hors DAV pondéré | Q8: Ventes sur client non détenteur de l’univers | R8: CRITERE IARD PREVOYANCE | S8: Ventes Nettes produits pondérés | T8: Ventes sur client non détenteur de l’univers | U8: CRITERE CREDITS | V8: Engagements et ventes accessoires pondérés Immo | W8: Engagements et ventes accessoires pondérés Conso | X8: Ventes sur client non détenteur de l’univers
B9: Direction | C9: eds | D9: Territoire | E9: eds | F9: Agence | G9: ="ETP perf "&DATEMAJ!$C$28 -> ETP perf 24-juil | H9: Rang | I9: Rang | J9: Rang | K9: Rang | L9: Rang | M9: Rang | N9: Rang | O9: Rang | P9: Rang | Q9: Rang | R9: Rang | S9: Rang | T9: Rang | U9: Rang | V9: Rang | W9: Rang | X9: Rang
A10: 50 | B10: MOSELLE | C10: 44 | D10: MOSELLE NORD | E10: 557508 | F10: NILVANGE | G10: 1.7 | H10: 1 | I10: 59 | J10: 63 | K10: 46 | L10: 1 | M10: 1 | N10: 1 | O10: 3 | P10: 106 | Q10: 1 | R10: 1 | S10: 1 | T10: 1 | U10: 1 | V10: 1 | W10: 5 | X10: 1
A11: 50 | B11: MOSELLE | C11: 42 | D11: MOSELLE EST | E11: 457163 | F11: BEHREN LES FORBACH | G11: 1.9 | H11: 2 | I11: 12 | J11: 17 | K11: 14 | L11: 2 | M11: 4 | N11: 4 | O11: 27 | P11: 86 | Q11: 3 | R11: 32 | S11: 87 | T11: 5 | U11: 2 | V11: 2 | W11: 1 | X11: 3
A12: 50 | B12: VOSGES | C12: 57 | D12: EPINAL | E12: 488288 | F12: EPINAL LEOPOLD BOURG | G12: 2.0 | H12: 3 | I12: 2 | J12: 2 | K12: 4 | L12: 26 | M12: 18 | N12: 50 | O12: 4 | P12: 4 | Q12: 27 | R12: 69 | S12: 42 | T12: 143 | U12: 32 | V12: 42 | W12: 61 | X12: 32
A13: 50 | B13: MARNE ARDENNES | C13: 2 | D13: CHARLEVILLE MEZIERES | E13: 508820 | F13: VOUZIERS | G13: 2.9 | H13: 4 | I13: 42 | J13: 37 | K13: 98 | L13: 35 | M13: 45 | N13: 39 | O13: 9 | P13: 6 | Q13: 104 | R13: 3 | S13: 2 | T13: 10 | U13: 31 | V13: 75 | W13: 9 | X13: 57
A14: 50 | B14: MARNE ARDENNES | C14: 11 | D14: REIMS | E14: 551305 | F14: REIMS HIPPODROME | G14: 5.3 | H14: 5 | I14: 74 | J14: 74 | K14: 78 | L14: 21 | M14: 55 | N14: 7 | O14: 19 | P14: 24 | Q14: 23 | R14: 10 | S14: 9 | T14: 14 | U14: 13 | V14: 19 | W14: 89 | X14: 7
A15: 50 | B15: MARNE ARDENNES | C15: 6 | D15: CHALONS EN CHAMPAGNE | E15: 451115 | F15: MOURMELON LE GRAND | G15: 2.8 | H15: 6 | I15: 69 | J15: 109 | K15: 8 | L15: 6 | M15: 6 | N15: 15 | O15: 25 | P15: 64 | Q15: 8 | R15: 11 | S15: 16 | T15: 9 | U15: 38 | V15: 70 | W15: 22 | X15: 50
A16: 50 | B16: MOSELLE | C16: 44 | D16: MOSELLE NORD | E16: 557660 | F16: UCKANGE | G16: 1.8 | H16: 7 | I16: 228 | J16: 182 | K16: 228 | L16: 8 | M16: 22 | N16: 5 | O16: 44 | P16: 180 | Q16: 2 | R16: 2 | S16: 3 | T16: 3 | U16: 3 | V16: 4 | W16: 53 | X16: 2
A17: 50 | B17: MOSELLE | C17: 44 | D17: MOSELLE NORD | E17: 557113 | F17: AUDUN LE TICHE | G17: 2.0 | H17: 8 | I17: 124 | J17: 186 | K17: 19 | L17: 4 | M17: 14 | N17: 2 | O17: 52 | P17: 131 | Q17: 4 | R17: 12 | S17: 21 | T17: 8 | U17: 14 | V17: 16 | W17: 14 | X17: 31
A18: 50 | B18: MARNE ARDENNES | C18: 6 | D18: CHALONS EN CHAMPAGNE | E18: 551330 | F18: MONTMIRAIL | G18: 2.8 | H18: 9 | I18: 8 | J18: 11 | K18: 20 | L18: 24 | M18: 10 | N18: 66 | O18: 87 | P18: 89 | Q18: 83 | R18: 15 | S18: 13 | T18: 27 | U18: 87 | V18: 69 | W18: 190 | X18: 47
A19: 50 | B19: BAS RHIN | C19: 5006 | D19: STRASBOURG | E19: 4037 | F19: MUNDOLSHEIM | G19: 3.7 | H19: 10 | I19: 66 | J19: 62 | K19: 84 | L19: 20 | M19: 30 | N19: 25 | O19: 86 | P19: 120 | Q19: 21 | R19: 7 | S19: 7 | T19: 17 | U19: 23 | V19: 20 | W19: 148 | X19: 13
A20: 50 | B20: MEURTHE ET MOSELLE MEUSE | C20: 26 | D20: NANCY | E20: 554476 | F20: NANCY ARTEM | G20: 2.8 | H20: 11 | I20: 57 | J20: 71 | K20: 22 | L20: 15 | M20: 19 | N20: 24 | O20: 150 | P20: 133 | Q20: 156 | R20: 62 | S20: 52 | T20: 96 | U20: 5 | V20: 3 | W20: 114 | X20: 4
A21: 50 | B21: MEURTHE ET MOSELLE MEUSE | C21: 26 | D21: NANCY | E21: 554601 | F21: SAINT MAX | G21: 3.4 | H21: 12 | I21: 22 | J21: 28 | K21: 21 | L21: 71 | M21: 64 | N21: 102 | O21: 11 | P21: 8 | Q21: 87 | R21: 28 | S21: 23 | T21: 75 | U21: 61 | V21: 52 | W21: 96 | X21: 70
A22: 50 | B22: MARNE ARDENNES | C22: 6 | D22: CHALONS EN CHAMPAGNE | E22: 451120 | F22: SARRY | G22: 2.3 | H22: 13 | I22: 3 | J22: 3 | K22: 6 | L22: 25 | M22: 15 | N22: 59 | O22: 128 | P22: 139 | Q22: 62 | R22: 57 | S22: 50 | T22: 89 | U22: 80 | V22: 58 | W22: 162 | X22: 77
A23: 50 | B23: MOSELLE | C23: 45 | D23: METZ | E23: 457443 | F23: METZ REPUBLIQUE | G23: 3.6 | H23: 14 | I23: 38 | J23: 41 | K23: 39 | L23: 118 | M23: 111 | N23: 131 | O23: 1 | P23: 1 | Q23: 85 | R23: 22 | S23: 15 | T23: 51 | U23: 157 | V23: 179 | W23: 84 | X23: 175
A24: 50 | B24: MARNE ARDENNES | C24: 11 | D24: REIMS | E24: 551340 | F24: BETHENY | G24: 2.4 | H24: 15 | I24: 53 | J24: 38 | K24: 100 | L24: 17 | M24: 24 | N24: 19 | O24: 67 | P24: 110 | Q24: 10 | R24: 97 | S24: 103 | T24: 100 | U24: 15 | V24: 5 | W24: 129 | X24: 18
A25: 50 | B25: MARNE ARDENNES | C25: 11 | D25: REIMS | E25: 551349 | F25: REIMS SAINT REMI | G25: 2.9 | H25: 16 | I25: 126 | J25: 138 | K25: 97 | L25: 3 | M25: 5 | N25: 8 | O25: 166 | P25: 210 | Q25: 16 | R25: 14 | S25: 24 | T25: 16 | U25: 9 | V25: 6 | W25: 118 | X25: 11
A26: 50 | B26: MOSELLE | C26: 42 | D26: MOSELLE EST | E26: 457165 | F26: BITCHE | G26: 2.4 | H26: 17 | I26: 35 | J26: 33 | K26: 44 | L26: 11 | M26: 3 | N26: 62 | O26: 105 | P26: 144 | Q26: 19 | R26: 16 | S26: 11 | T26: 35 | U26: 136 | V26: 158 | W26: 50 | X26: 201
A27: 50 | B27: BAS RHIN | C27: 5006 | D27: STRASBOURG | E27: 4048 | F27: STRASBOURG KOENIGSHOFFEN | G27: 1.9 | H27: 18 | I27: 177 | J27: 202 | K27: 158 | L27: 12 | M27: 16 | N27: 17 | O27: 16 | P27: 37 | Q27: 7 | R27: 18 | S27: 78 | T27: 4 | U27: 24 | V27: 79 | W27: 19 | X27: 15
A28: 262 | B28: AUBE HAUTE MARNE | C28: 21 | D28: CHAUMONT | E28: 510590 | F28: CHAUMONT REPUBLIQUE | G28: 2.9 | H28: 19 | I28: 41 | J28: 56 | K28: 33 | L28: 130 | M28: 176 | N28: 70 | O28: 28 | P28: 36 | Q28: 42 | R28: 19 | S28: 14 | T28: 50 | U28: 39 | V28: 86 | W28: 15 | X28: 53
A29: 262 | B29: MEURTHE ET MOSELLE MEUSE | C29: 27 | D29: PONT A MOUSSON | E29: 554506 | F29: CHALIGNY NEUVES MAISONS | G29: 3.4 | H29: 20 | I29: 143 | J29: 127 | K29: 175 | L29: 9 | M29: 11 | N29: 20 | O29: 176 | P29: 200 | Q29: 50 | R29: 5 | S29: 6 | T29: 19 | U29: 10 | V29: 15 | W29: 52 | X29: 12
A30: 262 | B30: MARNE ARDENNES | C30: 2 | D30: CHARLEVILLE MEZIERES | E30: 408801 | F30: CHARLEVILLE JEAN JAURES | G30: 8.8 | H30: 21 | I30: 55 | J30: 66 | K30: 32 | L30: 58 | M30: 75 | N30: 56 | O30: 66 | P30: 88 | Q30: 22 | R30: 33 | S30: 30 | T30: 70 | U30: 35 | V30: 22 | W30: 172 | X30: 26
A31: 262 | B31: MOSELLE | C31: 42 | D31: MOSELLE EST | E31: 557250 | F31: CREUTZWALD | G31: 2.5 | H31: 22 | I31: 17 | J31: 16 | K31: 34 | L31: 149 | M31: 164 | N31: 103 | O31: 80 | P31: 95 | Q31: 43 | R31: 54 | S31: 37 | T31: 118 | U31: 37 | V31: 59 | W31: 7 | X31: 115
A32: 262 | B32: MOSELLE | C32: 45 | D32: METZ | E32: 457453 | F32: MONTIGNY LES METZ | G32: 7.0 | H32: 23 | I32: 18 | J32: 22 | K32: 15 | L32: 45 | M32: 32 | N32: 86 | O32: 120 | P32: 170 | Q32: 11 | R32: 106 | S32: 90 | T32: 155 | U32: 43 | V32: 35 | W32: 76 | X32: 59
A33: 262 | B33: MARNE ARDENNES | C33: 6 | D33: CHALONS EN CHAMPAGNE | E33: 551354 | F33: VERTUS | G33: 2.0 | H33: 24 | I33: 1 | J33: 1 | K33: 1 | L33: 167 | M33: 132 | N33: 221 | O33: 29 | P33: 19 | Q33: 144 | R33: 192 | S33: 196 | T33: 161 | U33: 126 | V33: 138 | W33: 75 | X33: 150
A34: 262 | B34: MARNE ARDENNES | C34: 11 | D34: REIMS | E34: 451350 | F34: REIMS CENTRE VILLE | G34: 6.5 | H34: 25 | I34: 153 | J34: 150 | K34: 160 | L34: 19 | M34: 27 | N34: 18 | O34: 92 | P34: 113 | Q34: 36 | R34: 25 | S34: 39 | T34: 25 | U34: 7 | V34: 12 | W34: 72 | X34: 5
A35: 262 | B35: MEURTHE ET MOSELLE MEUSE | C35: 27 | D35: PONT A MOUSSON | E35: 554381 | F35: LAXOU ARISTIDE BRIAND | G35: 2.4 | H35: 26 | I35: 175 | J35: 197 | K35: 156 | L35: 7 | M35: 9 | N35: 10 | O35: 156 | P35: 197 | Q35: 15 | R35: 17 | S35: 28 | T35: 18 | U35: 8 | V35: 8 | W35: 60 | X35: 10
A36: 262 | B36: MEURTHE ET MOSELLE MEUSE | C36: 27 | D36: PONT A MOUSSON | E36: 554531 | F36: POMPEY | G36: 3.0 | H36: 27 | I36: 210 | J36: 197 | K36: 204 | L36: 5 | M36: 12 | N36: 3 | O36: 103 | P36: 147 | Q36: 17 | R36: 52 | S36: 83 | T36: 24 | U36: 4 | V36: 7 | W36: 12 | X36: 6
A37: 262 | B37: MEURTHE ET MOSELLE MEUSE | C37: 26 | D37: NANCY | E37: 554356 | F37: JARVILLE LA MALGRANGE | G37: 4.3 | H37: 28 | I37: 40 | J37: 53 | K37: 36 | L37: 30 | M37: 17 | N37: 91 | O37: 132 | P37: 146 | Q37: 52 | R37: 61 | S37: 59 | T37: 58 | U37: 46 | V37: 37 | W37: 146 | X37: 34
A38: 262 | B38: MOSELLE | C38: 44 | D38: MOSELLE NORD | E38: 557352 | F38: HETTANGE GRANDE | G38: 2.9 | H38: 29 | I38: 152 | J38: 132 | K38: 182 | L38: 23 | M38: 44 | N38: 12 | O38: 78 | P38: 92 | Q38: 44 | R38: 50 | S38: 61 | T38: 38 | U38: 6 | V38: 23 | W38: 3 | X38: 17
A39: 262 | B39: MEURTHE ET MOSELLE MEUSE | C39: 26 | D39: NANCY | E39: 454481 | F39: NANCY PLACE DOMBASLE | G39: 7.9 | H39: 30 | I39: 157 | J39: 150 | K39: 166 | L39: 46 | M39: 83 | N39: 30 | O39: 6 | P39: 14 | Q39: 9 | R39: 95 | S39: 134 | T39: 41 | U39: 17 | V39: 9 | W39: 92 | X39: 23
A40: 262 | B40: MARNE ARDENNES | C40: 6 | D40: CHALONS EN CHAMPAGNE | E40: 551110 | F40: CHALONS ROOSEVELT | G40: 4.2 | H40: 31 | I40: 20 | J40: 14 | K40: 72 | L40: 90 | M40: 80 | N40: 106 | O40: 113 | P40: 124 | Q40: 54 | R40: 35 | S40: 25 | T40: 102 | U40: 99 | V40: 68 | W40: 155 | X40: 96
A41: 262 | B41: MARNE ARDENNES | C41: 11 | D41: REIMS | E41: 551365 | F41: DORMANS | G41: 2.5 | H41: 32 | I41: 93 | J41: 101 | K41: 73 | L41: 10 | M41: 8 | N41: 29 | O41: 167 | P41: 187 | Q41: 40 | R41: 53 | S41: 62 | T41: 42 | U41: 33 | V41: 32 | W41: 173 | X41: 14
A42: 262 | B42: MARNE ARDENNES | C42: 11 | D42: REIMS | E42: 451301 | F42: REIMS HOTEL DE VILLE | G42: 7.1 | H42: 33 | I42: 85 | J42: 82 | K42: 83 | L42: 53 | M42: 50 | N42: 63 | O42: 131 | P42: 156 | Q42: 33 | R42: 13 | S42: 10 | T42: 30 | U42: 45 | V42: 31 | W42: 111 | X42: 42
A43: 262 | B43: MOSELLE | C43: 45 | D43: METZ | E43: 557439 | F43: METZ POMPIDOU | G43: 2.4 | H43: 34 | I43: 65 | J43: 65 | K43: 63 | L43: 78 | M43: 124 | N43: 40 | O43: 10 | P43: 10 | Q43: 75 | R43: 133 | S43: 167 | T43: 65 | U43: 65 | V43: 45 | W43: 121 | X43: 86
A44: 262 | B44: MARNE ARDENNES | C44: 2 | D44: CHARLEVILLE MEZIERES | E44: 508839 | F44: GIVET | G44: 3.4 | H44: 35 | I44: 88 | J44: 84 | K44: 96 | L44: 67 | M44: 87 | N44: 47 | O44: 154 | P44: 173 | Q44: 41 | R44: 6 | S44: 4 | T44: 37 | U44: 40 | V44: 55 | W44: 32 | X44: 62
A45: 262 | B45: VOSGES | C45: 57 | D45: EPINAL | E45: 588336 | F45: GOLBEY | G45: 2.8 | H45: 36 | I45: 29 | J45: 28 | K45: 50 | L45: 108 | M45: 106 | N45: 113 | O45: 64 | P45: 61 | Q45: 97 | R45: 80 | S45: 73 | T45: 106 | U45: 63 | V45: 91 | W45: 91 | X45: 41
A46: 262 | B46: BAS RHIN | C46: 5006 | D46: STRASBOURG | E46: 4038 | F46: OBERHAUSBERGEN | G46: 3.3 | H46: 37 | I46: 60 | J46: 60 | K46: 65 | L46: 51 | M46: 81 | N46: 33 | O46: 15 | P46: 18 | Q46: 24 | R46: 200 | S46: 226 | T46: 68 | U46: 55 | V46: 29 | W46: 123 | X46: 71
A47: 262 | B47: MARNE ARDENNES | C47: 11 | D47: REIMS | E47: 451361 | F47: PIERRY LECLERC | G47: 1.8 | H47: 38 | I47: 64 | J47: 61 | K47: 79 | L47: 48 | M47: 46 | N47: 60 | O47: 22 | P47: 20 | Q47: 39 | R47: 119 | S47: 102 | T47: 160 | U47: 103 | V47: 54 | W47: 216 | X47: 72
A48: 262 | B48: MARNE ARDENNES | C48: 11 | D48: REIMS | E48: 551369 | F48: DAMERY | G48: 1.7 | H48: 39 | I48: 80 | J48: 55 | K48: 162 | L48: 28 | M48: 56 | N48: 23 | O48: 183 | P48: 162 | Q48: 192 | R48: 58 | S48: 88 | T48: 21 | U48: 20 | V48: 40 | W48: 56 | X48: 19
A49: 262 | B49: MOSELLE | C49: 45 | D49: METZ | E49: 457574 | F49: ROMBAS | G49: 2.7 | H49: 40 | I49: 34 | J49: 27 | K49: 70 | L49: 77 | M49: 77 | N49: 100 | O49: 122 | P49: 145 | Q49: 34 | R49: 24 | S49: 17 | T49: 59 | U49: 146 | V49: 112 | W49: 149 | X49: 140
A50: 262 | B50: MARNE ARDENNES | C50: 11 | D50: REIMS | E50: 551367 | F50: AY CHAMPAGNE | G50: 2.7 | H50: 41 | I50: 47 | J50: 39 | K50: 77 | L50: 105 | M50: 138 | N50: 69 | O50: 94 | P50: 74 | Q50: 194 | R50: 51 | S50: 57 | T50: 47 | U50: 54 | V50: 25 | W50: 209 | X50: 38
A51: 262 | B51: MOSELLE | C51: 42 | D51: MOSELLE EST | E51: 457583 | F51: SAINT AVOLD | G51: 7.0 | H51: 42 | I51: 44 | J51: 52 | K51: 51 | L51: 39 | M51: 31 | N51: 67 | O51: 88 | P51: 98 | Q51: 67 | R51: 75 | S51: 67 | T51: 92 | U51: 141 | V51: 119 | W51: 132 | X51: 129
A52: 262 | B52: MOSELLE | C52: 45 | D52: METZ | E52: 457446 | F52: METZ SAINT LOUIS | G52: 5.6 | H52: 43 | I52: 94 | J52: 104 | K52: 71 | L52: 32 | M52: 37 | N52: 49 | O52: 168 | P52: 215 | Q52: 12 | R52: 56 | S52: 53 | T52: 76 | U52: 25 | V52: 18 | W52: 117 | X52: 28
A53: 262 | B53: MEURTHE ET MOSELLE MEUSE | C53: 27 | D53: PONT A MOUSSON | E53: 554516 | F53: PAGNY SUR MOSELLE | G53: 2.8 | H53: 44 | I53: 109 | J53: 99 | K53: 132 | L53: 69 | M53: 65 | N53: 96 | O53: 48 | P53: 45 | Q53: 109 | R53: 23 | S53: 26 | T53: 29 | U53: 76 | V53: 51 | W53: 160 | X53: 75
A54: 262 | B54: MOSELLE | C54: 44 | D54: MOSELLE NORD | E54: 457350 | F54: HAYANGE | G54: 6.4 | H54: 45 | I54: 136 | J54: 129 | K54: 148 | L54: 34 | M54: 34 | N54: 53 | O54: 79 | P54: 119 | Q54: 14 | R54: 20 | S54: 20 | T54: 32 | U54: 47 | V54: 27 | W54: 139 | X54: 45
A55: 262 | B55: BAS RHIN | C55: 5006 | D55: STRASBOURG | E55: 4010 | F55: STRASBOURG MEINAU | G55: 2.7 | H55: 46 | I55: 90 | J55: 70 | K55: 146 | L55: 83 | M55: 116 | N55: 50 | O55: 46 | P55: 48 | Q55: 80 | R55: 21 | S55: 41 | T55: 13 | U55: 111 | V55: 167 | W55: 36 | X55: 158
A56: 262 | B56: BAS RHIN | C56: 5060 | D56: HAGUENAU | E56: 4092 | F56: HOCHFELDEN | G56: 1.7 | H56: 47 | I56: 61 | J56: 63 | K56: 52 | L56: 89 | M56: 146 | N56: 35 | O56: 21 | P56: 15 | Q56: 98 | R56: 125 | S56: 162 | T56: 57 | U56: 100 | V56: 71 | W56: 141 | X56: 104
A57: 262 | B57: MEURTHE ET MOSELLE MEUSE | C57: 31 | D57: VERDUN | E57: 555679 | F57: VERDUN MAZEL | G57: 3.6 | H57: 48 | I57: 15 | J57: 19 | K57: 16 | L57: 103 | M57: 92 | N57: 133 | O57: 72 | P57: 59 | Q57: 160 | R57: 123 | S57: 107 | T57: 168 | U57: 145 | V57: 126 | W57: 142 | X57: 123
A58: 262 | B58: MOSELLE | C58: 42 | D58: MOSELLE EST | E58: 457308 | F58: FORBACH CENTRALE | G58: 9.3 | H58: 49 | I58: 82 | J58: 69 | K58: 131 | L58: 37 | M58: 25 | N58: 75 | O58: 89 | P58: 93 | Q58: 77 | R58: 43 | S58: 38 | T58: 87 | U58: 90 | V58: 117 | W58: 45 | X58: 125
A59: 262 | B59: MEURTHE ET MOSELLE MEUSE | C59: 31 | D59: VERDUN | E59: 455678 | F59: VERDUN CENTRALE | G59: 9.6 | H59: 50 | I59: 19 | J59: 12 | K59: 64 | L59: 60 | M59: 76 | N59: 57 | O59: 224 | P59: 228 | Q59: 79 | R59: 129 | S59: 140 | T59: 111 | U59: 34 | V59: 33 | W59: 64 | X59: 36
A60: 262 | B60: MARNE ARDENNES | C60: 2 | D60: CHARLEVILLE MEZIERES | E60: 508833 | F60: VILLERS SEMEUSE CORA | G60: 3.2 | H60: 51 | I60: 192 | J60: 213 | K60: 173 | L60: 96 | M60: 149 | N60: 43 | O60: 30 | P60: 53 | Q60: 20 | R60: 8 | S60: 8 | T60: 15 | U60: 27 | V60: 38 | W60: 34 | X60: 30
A61: 262 | B61: VOSGES | C61: 55 | D61: SAINT DIE | E61: 488246 | F61: CORNIMONT LA BRESSE | G61: 2.6 | H61: 52 | I61: 9 | J61: 9 | K61: 23 | L61: 81 | M61: 82 | N61: 93 | O61: 139 | P61: 107 | Q61: 233 | R61: 101 | S61: 80 | T61: 163 | U61: 170 | V61: 220 | W61: 71 | X61: 200
A62: 262 | B62: MEURTHE ET MOSELLE MEUSE | C62: 31 | D62: VERDUN | E62: 554413 | F62: LONGWY BAS | G62: 3.5 | H62: 53 | I62: 21 | J62: 18 | K62: 54 | L62: 85 | M62: 74 | N62: 122 | O62: 127 | P62: 112 | Q62: 161 | R62: 105 | S62: 84 | T62: 174 | U62: 89 | V62: 73 | W62: 65 | X62: 148
A63: 262 | B63: BAS RHIN | C63: 5101 | D63: SELESTAT | E63: 4113 | F63: BARR | G63: 2.9 | H63: 54 | I63: 23 | J63: 44 | K63: 2 | L63: 41 | M63: 36 | N63: 73 | O63: 130 | P63: 157 | Q63: 32 | R63: 138 | S63: 114 | T63: 177 | U63: 128 | V63: 43 | W63: 242 | X63: 78
A64: 262 | B64: MOSELLE | C64: 45 | D64: METZ | E64: 557447 | F64: METZ SAINT MAXIMIN | G64: 2.2 | H64: 55 | I64: 165 | J64: 174 | K64: 151 | L64: 62 | M64: 107 | N64: 31 | O64: 57 | P64: 114 | Q64: 6 | R64: 4 | S64: 5 | T64: 12 | U64: 73 | V64: 80 | W64: 29 | X64: 164
A65: 262 | B65: MEURTHE ET MOSELLE MEUSE | C65: 31 | D65: VERDUN | E65: 454414 | F65: LONGWY HAUT | G65: 3.3 | H65: 56 | I65: 104 | J65: 110 | K65: 94 | L65: 88 | M65: 100 | N65: 72 | O65: 65 | P65: 57 | Q65: 124 | R65: 37 | S65: 43 | T65: 45 | U65: 53 | V65: 85 | W65: 26 | X65: 73
A66: 262 | B66: MEURTHE ET MOSELLE MEUSE | C66: 26 | D66: NANCY | E66: 554116 | F66: BACCARAT | G66: 2.8 | H66: 57 | I66: 5 | J66: 6 | K66: 17 | L66: 128 | M66: 94 | N66: 180 | O66: 95 | P66: 73 | Q66: 231 | R66: 112 | S66: 101 | T66: 146 | U66: 199 | V66: 157 | W66: 164 | X66: 218
A67: 262 | B67: MEURTHE ET MOSELLE MEUSE | C67: 26 | D67: NANCY | E67: 554636 | F67: TOMBLAINE | G67: 2.7 | H67: 58 | I67: 14 | J67: 23 | K67: 7 | L67: 155 | M67: 165 | N67: 137 | O67: 42 | P67: 52 | Q67: 57 | R67: 152 | S67: 158 | T67: 125 | U67: 156 | V67: 161 | W67: 169 | X67: 101
A68: 262 | B68: BAS RHIN | C68: 5060 | D68: HAGUENAU | E68: 4079 | F68: SOULTZ SOUS FORETS | G68: 1.9 | H68: 59 | I68: 52 | J68: 66 | K68: 26 | L68: 79 | M68: 67 | N68: 123 | O68: 43 | P68: 39 | Q68: 116 | R68: 77 | S68: 85 | T68: 80 | U68: 175 | V68: 188 | W68: 88 | X68: 212
A69: 262 | B69: MARNE ARDENNES | C69: 11 | D69: REIMS | E69: 551314 | F69: FISMES | G69: 2.7 | H69: 60 | I69: 25 | J69: 34 | K69: 10 | L69: 27 | M69: 40 | N69: 32 | O69: 217 | P69: 231 | Q69: 28 | R69: 147 | S69: 184 | T69: 56 | U69: 85 | V69: 62 | W69: 196 | X69: 55
A70: 262 | B70: BAS RHIN | C70: 5006 | D70: STRASBOURG | E70: 4054 | F70: STRASBOURG MONTAGNE VERTE | G70: 2.6 | H70: 61 | I70: 48 | J70: 31 | K70: 133 | L70: 91 | M70: 143 | N70: 41 | O70: 60 | P70: 68 | Q70: 63 | R70: 46 | S70: 63 | T70: 31 | U70: 207 | V70: 239 | W70: 145 | X70: 161
A71: 262 | B71: VOSGES | C71: 55 | D71: SAINT DIE | E71: 488326 | F71: GERARDMER | G71: 3.8 | H71: 62 | I71: 98 | J71: 89 | K71: 124 | L71: 119 | M71: 121 | N71: 112 | O71: 13 | P71: 9 | Q71: 140 | R71: 99 | S71: 93 | T71: 114 | U71: 70 | V71: 67 | W71: 78 | X71: 90
A72: 262 | B72: MOSELLE | C72: 42 | D72: MOSELLE EST | E72: 557668 | F72: VALMONT | G72: 2.6 | H72: 63 | I72: 50 | J72: 34 | K72: 116 | L72: 186 | M72: 188 | N72: 159 | O72: 18 | P72: 13 | Q72: 126 | R72: 82 | S72: 69 | T72: 124 | U72: 135 | V72: 201 | W72: 42 | X72: 188
A73: 262 | B73: VOSGES | C73: 55 | D73: SAINT DIE | E73: 588551 | F73: RAMBERVILLERS | G73: 2.6 | H73: 64 | I73: 28 | J73: 25 | K73: 57 | L73: 188 | M73: 218 | N73: 98 | O73: 68 | P73: 49 | Q73: 207 | R73: 209 | S73: 200 | T73: 185 | U73: 28 | V73: 60 | W73: 25 | X73: 27
A74: 262 | B74: MOSELLE | C74: 45 | D74: METZ | E74: 557434 | F74: MARLY | G74: 3.0 | H74: 65 | I74: 30 | J74: 21 | K74: 81 | L74: 121 | M74: 90 | N74: 160 | O74: 73 | P74: 63 | Q74: 173 | R74: 186 | S74: 165 | T74: 214 | U74: 79 | V74: 61 | W74: 159 | X74: 66
A75: 264 | B75: MARNE ARDENNES | C75: 11 | D75: REIMS | E75: 451336 | F75: TINQUEUX | G75: 4.8 | H75: 66 | I75: 147 | J75: 129 | K75: 174 | L75: 61 | M75: 59 | N75: 78 | O75: 7 | P75: 7 | Q75: 59 | R75: 108 | S75: 126 | T75: 85 | U75: 75 | V75: 47 | W75: 170 | X75: 69
A76: 264 | B76: MEURTHE ET MOSELLE MEUSE | C76: 27 | D76: PONT A MOUSSON | E76: 554686 | F76: VEZELISE | G76: 1.9 | H76: 67 | I76: 10 | J76: 12 | K76: 13 | L76: 123 | M76: 128 | N76: 115 | O76: 71 | P76: 54 | Q76: 188 | R76: 157 | S76: 144 | T76: 171 | U76: 224 | V76: 214 | W76: 180 | X76: 234
A77: 264 | B77: BAS RHIN | C77: 5101 | D77: SELESTAT | E77: 4104 | F77: ERSTEIN | G77: 4.4 | H77: 68 | I77: 212 | J77: 207 | K77: 206 | L77: 13 | M77: 2 | N77: 68 | O77: 39 | P77: 40 | Q77: 96 | R77: 39 | S77: 19 | T77: 159 | U77: 77 | V77: 44 | W77: 175 | X77: 83
A78: 264 | B78: MARNE ARDENNES | C78: 11 | D78: REIMS | E78: 551306 | F78: REIMS SAINT MARCEAUX | G78: 4.1 | H78: 69 | I78: 58 | J78: 45 | K78: 90 | L78: 14 | M78: 7 | N78: 42 | O78: 237 | P78: 239 | Q78: 58 | R78: 76 | S78: 82 | T78: 61 | U78: 59 | V78: 41 | W78: 191 | X78: 39
A79: 264 | B79: AUBE HAUTE MARNE | C79: 21 | D79: CHAUMONT | E79: 410541 | F79: LANGRES | G79: 8.2 | H79: 70 | I79: 77 | J79: 76 | K79: 80 | L79: 98 | M79: 70 | N79: 173 | O79: 63 | P79: 58 | Q79: 107 | R79: 68 | S79: 47 | T79: 135 | U79: 123 | V79: 189 | W79: 59 | X79: 132
A80: 264 | B80: MARNE ARDENNES | C80: 2 | D80: CHARLEVILLE MEZIERES | E80: 408840 | F80: RETHEL | G80: 4.3 | H80: 71 | I80: 139 | J80: 142 | K80: 135 | L80: 50 | M80: 41 | N80: 79 | O80: 70 | P80: 62 | Q80: 139 | R80: 67 | S80: 46 | T80: 137 | U80: 56 | V80: 84 | W80: 44 | X80: 60
A81: 264 | B81: MOSELLE | C81: 42 | D81: MOSELLE EST | E81: 457617 | F81: SARREGUEMINES | G81: 6.6 | H81: 72 | I81: 140 | J81: 147 | K81: 125 | L81: 55 | M81: 61 | N81: 58 | O81: 84 | P81: 104 | Q81: 46 | R81: 73 | S81: 74 | T81: 69 | U81: 36 | V81: 34 | W81: 68 | X81: 37
A82: 264 | B82: MEURTHE ET MOSELLE MEUSE | C82: 27 | D82: PONT A MOUSSON | E82: 454535 | F82: PONT A MOUSSON CENTRALE | G82: 5.2 | H82: 73 | I82: 232 | J82: 182 | K82: 231 | L82: 22 | M82: 39 | N82: 21 | O82: 101 | P82: 79 | Q82: 201 | R82: 29 | S82: 45 | T82: 23 | U82: 19 | V82: 13 | W82: 158 | X82: 20
A83: 264 | B83: MOSELLE | C83: 44 | D83: MOSELLE NORD | E83: 457632 | F83: THIONVILLE CENTRALE | G83: 10.6 | H83: 74 | I83: 131 | J83: 140 | K83: 109 | L83: 31 | M83: 29 | N83: 55 | O83: 178 | P83: 207 | Q83: 38 | R83: 27 | S83: 29 | T83: 47 | U83: 50 | V83: 30 | W83: 120 | X83: 56
A84: 264 | B84: MOSELLE | C84: 44 | D84: MOSELLE NORD | E84: 457348 | F84: HAGONDANGE | G84: 8.2 | H84: 75 | I84: 103 | J84: 97 | K84: 112 | L84: 56 | M84: 53 | N84: 81 | O84: 144 | P84: 138 | Q84: 101 | R84: 64 | S84: 51 | T84: 101 | U84: 57 | V84: 46 | W84: 95 | X84: 61
A85: 264 | B85: VOSGES | C85: 57 | D85: EPINAL | E85: 488561 | F85: REMIREMONT | G85: 7.2 | H85: 76 | I85: 11 | J85: 7 | K85: 37 | L85: 125 | M85: 84 | N85: 187 | O85: 165 | P85: 143 | Q85: 177 | R85: 109 | S85: 70 | T85: 213 | U85: 194 | V85: 141 | W85: 227 | X85: 120
A86: 264 | B86: VOSGES | C86: 55 | D86: SAINT DIE | E86: 588186 | F86: BRUYERES | G86: 3.5 | H86: 77 | I86: 26 | J86: 20 | K86: 58 | L86: 132 | M86: 122 | N86: 143 | O86: 141 | P86: 129 | Q86: 129 | R86: 149 | S86: 182 | T86: 64 | U86: 88 | V86: 131 | W86: 116 | X86: 49
A87: 264 | B87: MARNE ARDENNES | C87: 11 | D87: REIMS | E87: 451370 | F87: EPERNAY | G87: 8.9 | H87: 78 | I87: 76 | J87: 95 | K87: 41 | L87: 64 | M87: 54 | N87: 87 | O87: 140 | P87: 149 | Q87: 60 | R87: 96 | S87: 106 | T87: 94 | U87: 69 | V87: 77 | W87: 112 | X87: 52
A88: 264 | B88: BAS RHIN | C88: 5006 | D88: STRASBOURG | E88: 4043 | F88: STRASBOURG HALLES | G88: 7.7 | H88: 79 | I88: 148 | J88: 207 | K88: 89 | L88: 33 | M88: 69 | N88: 27 | O88: 142 | P88: 171 | Q88: 26 | R88: 9 | S88: 12 | T88: 7 | U88: 125 | V88: 74 | W88: 239 | X88: 54
A89: 264 | B89: MARNE ARDENNES | C89: 2 | D89: CHARLEVILLE MEZIERES | E89: 508802 | F89: CHARLEVILLE NEVERS | G89: 2.8 | H89: 80 | I89: 24 | J89: 30 | K89: 25 | L89: 209 | M89: 199 | N89: 212 | O89: 104 | P89: 87 | Q89: 168 | R89: 65 | S89: 36 | T89: 147 | U89: 144 | V89: 130 | W89: 86 | X89: 187
A90: 264 | B90: MOSELLE | C90: 45 | D90: METZ | E90: 557612 | F90: SAINTE MARIE AUX CHENES | G90: 3.7 | H90: 81 | I90: 32 | J90: 56 | K90: 3 | L90: 227 | M90: 206 | N90: 236 | O90: 14 | P90: 5 | Q90: 240 | R90: 122 | S90: 89 | T90: 197 | U90: 216 | V90: 233 | W90: 197 | X90: 128
A91: 264 | B91: MARNE ARDENNES | C91: 6 | D91: CHALONS EN CHAMPAGNE | E91: 451101 | F91: CHALONS VIVIERS | G91: 9.6 | H91: 82 | I91: 36 | J91: 45 | K91: 18 | L91: 126 | M91: 101 | N91: 151 | O91: 188 | P91: 201 | Q91: 74 | R91: 81 | S91: 77 | T91: 103 | U91: 101 | V91: 82 | W91: 152 | X91: 88
A92: 264 | B92: MOSELLE | C92: 44 | D92: MOSELLE NORD | E92: 557303 | F92: FAMECK | G92: 2.8 | H92: 83 | I92: 49 | J92: 56 | K92: 42 | L92: 82 | M92: 186 | N92: 22 | O92: 126 | P92: 140 | Q92: 55 | R92: 216 | S92: 215 | T92: 183 | U92: 41 | V92: 81 | W92: 30 | X92: 43
A93: 264 | B93: MEURTHE ET MOSELLE MEUSE | C93: 31 | D93: VERDUN | E93: 555406 | F93: LIGNY EN BARROIS | G93: 2.5 | H93: 84 | I93: 16 | J93: 8 | K93: 68 | L93: 131 | M93: 129 | N93: 132 | O93: 49 | P93: 44 | Q93: 132 | R93: 227 | S93: 227 | T93: 218 | U93: 181 | V93: 194 | W93: 161 | X93: 167
A94: 264 | B94: MOSELLE | C94: 44 | D94: MOSELLE NORD | E94: 457158 | F94: YUTZ | G94: 4.4 | H94: 85 | I94: 155 | J94: 186 | K94: 136 | L94: 54 | M94: 28 | N94: 127 | O94: 74 | P94: 70 | Q94: 133 | R94: 55 | S94: 49 | T94: 88 | U94: 58 | V94: 78 | W94: 18 | X94: 107
A95: 264 | B95: MOSELLE | C95: 42 | D95: MOSELLE EST | E95: 557305 | F95: FAULQUEMONT | G95: 4.3 | H95: 86 | I95: 223 | J95: 174 | K95: 227 | L95: 16 | M95: 26 | N95: 15 | O95: 207 | P95: 226 | Q95: 35 | R95: 49 | S95: 64 | T95: 33 | U95: 12 | V95: 17 | W95: 80 | X95: 8
A96: 264 | B96: MOSELLE | C96: 45 | D96: METZ | E96: 557444 | F96: SAINT JULIEN LES METZ | G96: 3.7 | H96: 87 | I96: 220 | J96: 174 | K96: 225 | L96: 72 | M96: 89 | N96: 54 | O96: 17 | P96: 17 | Q96: 29 | R96: 71 | S96: 123 | T96: 20 | U96: 49 | V96: 103 | W96: 8 | X96: 106
A97: 30 | B97: MOSELLE | C97: 44 | D97: MOSELLE NORD | E97: 457306 | F97: FLORANGE | G97: 4.7 | H97: 88 | I97: 230 | J97: 197 | K97: 226 | L97: 29 | M97: 38 | N97: 37 | O97: 111 | P97: 142 | Q97: 25 | R97: 91 | S97: 118 | T97: 54 | U97: 11 | V97: 10 | W97: 57 | X97: 22
A98: 30 | B98: MARNE ARDENNES | C98: 11 | D98: REIMS | E98: 551310 | F98: REIMS CHATILLONS | G98: 4.0 | H98: 89 | I98: 128 | J98: 116 | K98: 153 | L98: 47 | M98: 51 | N98: 52 | O98: 125 | P98: 117 | Q98: 112 | R98: 87 | S98: 95 | T98: 67 | U98: 66 | V98: 66 | W98: 184 | X98: 33
A99: 30 | B99: MOSELLE | C99: 42 | D99: MOSELLE EST | E99: 457543 | F99: PUTTELANGE AUX LACS | G99: 2.5 | H99: 90 | I99: 122 | J99: 123 | K99: 111 | L99: 99 | M99: 108 | N99: 97 | O99: 106 | P99: 123 | Q99: 45 | R99: 45 | S99: 56 | T99: 40 | U99: 72 | V99: 48 | W99: 204 | X99: 44
A100: 30 | B100: MOSELLE | C100: 44 | D100: MOSELLE NORD | E100: 557347 | F100: GUENANGE | G100: 4.5 | H100: 91 | I100: 209 | J100: 202 | K100: 200 | L100: 38 | M100: 23 | N100: 85 | O100: 148 | P100: 148 | Q100: 84 | R100: 40 | S100: 34 | T100: 81 | U100: 26 | V100: 24 | W100: 58 | X100: 35
A101: 30 | B101: AUBE HAUTE MARNE | C101: 14 | D101: TROYES | E101: 510570 | F101: NOGENT SUR SEINE | G101: 4.3 | H101: 92 | I101: 27 | J101: 23 | K101: 53 | L101: 109 | M101: 114 | N101: 104 | O101: 193 | P101: 196 | Q101: 108 | R101: 148 | S101: 121 | T101: 194 | U101: 119 | V101: 101 | W101: 99 | X101: 135
A102: 30 | B102: MARNE ARDENNES | C102: 6 | D102: CHALONS EN CHAMPAGNE | E102: 551128 | F102: SAINTE MENEHOULD | G102: 3.1 | H102: 93 | I102: 39 | J102: 36 | K102: 74 | L102: 115 | M102: 60 | N102: 226 | O102: 187 | P102: 167 | Q102: 195 | R102: 63 | S102: 40 | T102: 134 | U102: 177 | V102: 192 | W102: 81 | X102: 224
A103: 30 | B103: VOSGES | C103: 55 | D103: SAINT DIE | E103: 588666 | F103: VAGNEY | G103: 3.3 | H103: 94 | I103: 33 | J103: 32 | K103: 49 | L103: 181 | M103: 141 | N103: 229 | O103: 59 | P103: 47 | Q103: 158 | R103: 167 | S103: 122 | T103: 232 | U103: 174 | V103: 203 | W103: 98 | X103: 189
A104: 30 | B104: MEURTHE ET MOSELLE MEUSE | C104: 27 | D104: PONT A MOUSSON | E104: 554416 | F104: LUDRES | G104: 3.5 | H104: 95 | I104: 84 | J104: 90 | K104: 62 | L104: 146 | M104: 118 | N104: 174 | O104: 40 | P104: 29 | Q104: 187 | R104: 144 | S104: 104 | T104: 209 | U104: 110 | V104: 76 | W104: 156 | X104: 102
A105: 30 | B105: MARNE ARDENNES | C105: 11 | D105: REIMS | E105: 551341 | F105: REIMS JEAN JAURES | G105: 2.9 | H105: 96 | I105: 198 | J105: 182 | K105: 188 | L105: 65 | M105: 93 | N105: 38 | O105: 24 | P105: 23 | Q105: 69 | R105: 131 | S105: 171 | T105: 53 | U105: 42 | V105: 39 | W105: 212 | X105: 16
A106: 30 | B106: MOSELLE | C106: 42 | D106: MOSELLE EST | E106: 557523 | F106: PHALSBOURG | G106: 2.4 | H106: 97 | I106: 137 | J106: 150 | K106: 104 | L106: 156 | M106: 184 | N106: 105 | O106: 32 | P106: 34 | Q106: 76 | R106: 38 | S106: 22 | T106: 141 | U106: 106 | V106: 162 | W106: 20 | X106: 193
A107: 30 | B107: BAS RHIN | C107: 5060 | D107: HAGUENAU | E107: 4071 | F107: WISSEMBOURG | G107: 6.9 | H107: 98 | I107: 37 | J107: 43 | K107: 28 | L107: 133 | M107: 130 | N107: 135 | O107: 85 | P107: 77 | Q107: 123 | R107: 111 | S107: 111 | T107: 131 | U107: 227 | V107: 228 | W107: 188 | X107: 219
A108: 30 | B108: MEURTHE ET MOSELLE MEUSE | C108: 26 | D108: NANCY | E108: 454426 | F108: LUNEVILLE CARNOT | G108: 8.1 | H108: 99 | I108: 172 | J108: 147 | K108: 190 | L108: 73 | M108: 97 | N108: 46 | O108: 54 | P108: 55 | Q108: 88 | R108: 162 | S108: 188 | T108: 72 | U108: 29 | V108: 53 | W108: 28 | X108: 29
A109: 30 | B109: MOSELLE | C109: 45 | D109: METZ | E109: 557441 | F109: METZ PLAPPEVILLE | G109: 2.2 | H109: 100 | I109: 200 | J109: 162 | K109: 203 | L109: 152 | M109: 194 | N109: 82 | O109: 2 | P109: 2 | Q109: 90 | R109: 165 | S109: 156 | T109: 164 | U109: 98 | V109: 147 | W109: 47 | X109: 126
A110: 30 | B110: VOSGES | C110: 57 | D110: EPINAL | E110: 588396 | F110: LE VAL D AJOL | G110: 2.7 | H110: 101 | I110: 6 | J110: 9 | K110: 12 | L110: 178 | M110: 158 | N110: 207 | O110: 102 | P110: 80 | Q110: 190 | R110: 191 | S110: 160 | T110: 233 | U110: 236 | V110: 197 | W110: 240 | X110: 204
A111: 30 | B111: BAS RHIN | C111: 5006 | D111: STRASBOURG | E111: 4047 | F111: STRASBOURG CRONENBOURG | G111: 4.5 | H111: 102 | I111: 113 | J111: 138 | K111: 48 | L111: 52 | M111: 33 | N111: 101 | O111: 108 | P111: 121 | Q111: 47 | R111: 100 | S111: 92 | T111: 116 | U111: 160 | V111: 88 | W111: 198 | X111: 141
A112: 30 | B112: VOSGES | C112: 57 | D112: EPINAL | E112: 588631 | F112: THAON LES VOSGES | G112: 4.3 | H112: 103 | I112: 99 | J112: 79 | K112: 140 | L112: 80 | M112: 63 | N112: 136 | O112: 186 | P112: 175 | Q112: 166 | R112: 79 | S112: 99 | T112: 44 | U112: 78 | V112: 124 | W112: 41 | X112: 99
A113: 30 | B113: MARNE ARDENNES | C113: 2 | D113: CHARLEVILLE MEZIERES | E113: 408822 | F113: CHARLEVILLE MEZIERES | G113: 5.1 | H113: 104 | I113: 190 | J113: 163 | K113: 196 | L113: 137 | M113: 212 | N113: 34 | O113: 12 | P113: 32 | Q113: 5 | R113: 89 | S113: 138 | T113: 28 | U113: 64 | V113: 57 | W113: 235 | X113: 24
A114: 30 | B114: AUBE HAUTE MARNE | C114: 21 | D114: CHAUMONT | E114: 451154 | F114: JOINVILLE | G114: 1.9 | H114: 105 | I114: 71 | J114: 79 | K114: 45 | L114: 70 | M114: 85 | N114: 61 | O114: 232 | P114: 233 | Q114: 143 | R114: 36 | S114: 48 | T114: 36 | U114: 129 | V114: 168 | W114: 126 | X114: 91
A115: 30 | B115: MEURTHE ET MOSELLE MEUSE | C115: 27 | D115: PONT A MOUSSON | E115: 554376 | F115: LAXOU BOUFFLERS | G115: 2.8 | H115: 106 | I115: 239 | J115: 202 | K115: 238 | L115: 18 | M115: 47 | N115: 6 | O115: 218 | P115: 219 | Q115: 136 | R115: 48 | S115: 117 | T115: 6 | U115: 16 | V115: 21 | W115: 63 | X115: 9
A116: 30 | B116: MEURTHE ET MOSELLE MEUSE | C116: 31 | D116: VERDUN | E116: 555624 | F116: STENAY | G116: 3.3 | H116: 107 | I116: 181 | J116: 213 | K116: 164 | L116: 36 | M116: 73 | N116: 26 | O116: 100 | P116: 109 | Q116: 78 | R116: 175 | S116: 203 | T116: 84 | U116: 21 | V116: 72 | W116: 2 | X116: 58
A117: 30 | B117: BAS RHIN | C117: 5060 | D117: HAGUENAU | E117: 4041 | F117: HOERDT | G117: 1.7 | H117: 108 | I117: 68 | J117: 68 | K117: 88 | L117: 147 | M117: 119 | N117: 171 | O117: 47 | P117: 33 | Q117: 179 | R117: 181 | S117: 161 | T117: 217 | U117: 152 | V117: 102 | W117: 124 | X117: 196
A118: 30 | B118: VOSGES | C118: 57 | D118: EPINAL | E118: 488286 | F118: EPINAL ARISTIDE BRIAND | G118: 8.1 | H118: 109 | I118: 156 | J118: 155 | K118: 163 | L118: 49 | M118: 57 | N118: 48 | O118: 33 | P118: 43 | Q118: 51 | R118: 126 | S118: 155 | T118: 79 | U118: 131 | V118: 122 | W118: 183 | X118: 81
A119: 30 | B119: MOSELLE | C119: 45 | D119: METZ | E119: 557105 | F119: ARS SUR MOSELLE | G119: 3.3 | H119: 110 | I119: 91 | J119: 53 | K119: 185 | L119: 127 | M119: 152 | N119: 95 | O119: 162 | P119: 168 | Q119: 72 | R119: 177 | S119: 197 | T119: 110 | U119: 30 | V119: 28 | W119: 40 | X119: 48
A120: 30 | B120: MEURTHE ET MOSELLE MEUSE | C120: 31 | D120: VERDUN | E120: 455566 | F120: REVIGNY SUR ORNAIN | G120: 2.7 | H120: 111 | I120: 116 | J120: 117 | K120: 102 | L120: 139 | M120: 98 | N120: 199 | O120: 38 | P120: 25 | Q120: 203 | R120: 103 | S120: 76 | T120: 176 | U120: 153 | V120: 223 | W120: 39 | X120: 208
A121: 30 | B121: MARNE ARDENNES | C121: 6 | D121: CHALONS EN CHAMPAGNE | E121: 451381 | F121: SEZANNE | G121: 4.9 | H121: 112 | I121: 95 | J121: 90 | K121: 108 | L121: 113 | M121: 104 | N121: 134 | O121: 35 | P121: 30 | Q121: 119 | R121: 210 | S121: 206 | T121: 173 | U121: 117 | V121: 65 | W121: 202 | X121: 97
A122: 30 | B122: BAS RHIN | C122: 5006 | D122: STRASBOURG | E122: 4027 | F122: SCHILTIGHEIM CENTRE | G122: 3.8 | H122: 113 | I122: 201 | J122: 213 | K122: 179 | L122: 43 | M122: 35 | N122: 77 | O122: 77 | P122: 78 | Q122: 81 | R122: 60 | S122: 71 | T122: 39 | U122: 113 | V122: 118 | W122: 87 | X122: 113
A123: 30 | B123: MEURTHE ET MOSELLE MEUSE | C123: 31 | D123: VERDUN | E123: 455151 | F123: BAR LE DUC | G123: 10.0 | H123: 114 | I123: 62 | J123: 73 | K123: 30 | L123: 144 | M123: 110 | N123: 189 | O123: 164 | P123: 152 | Q123: 151 | R123: 117 | S123: 94 | T123: 167 | U123: 142 | V123: 175 | W123: 69 | X123: 169
A124: 30 | B124: MEURTHE ET MOSELLE MEUSE | C124: 31 | D124: VERDUN | E124: 554700 | F124: VILLERUPT | G124: 2.7 | H124: 115 | I124: 54 | J124: 45 | K124: 75 | L124: 106 | M124: 95 | N124: 128 | O124: 133 | P124: 141 | Q124: 68 | R124: 166 | S124: 163 | T124: 162 | U124: 190 | V124: 199 | W124: 90 | X124: 232
A125: 30 | B125: VOSGES | C125: 57 | D125: EPINAL | E125: 488281 | F125: ELOYES | G125: 3.3 | H125: 116 | I125: 45 | J125: 39 | K125: 76 | L125: 190 | M125: 168 | N125: 210 | O125: 50 | P125: 41 | Q125: 155 | R125: 221 | S125: 208 | T125: 234 | U125: 133 | V125: 187 | W125: 51 | X125: 174
A126: 30 | B126: VOSGES | C126: 57 | D126: EPINAL | E126: 588201 | F126: CHANTRAINE | G126: 3.6 | H126: 117 | I126: 97 | J126: 101 | K126: 95 | L126: 84 | M126: 72 | N126: 130 | O126: 76 | P126: 72 | Q126: 111 | R126: 176 | S126: 149 | T126: 223 | U126: 151 | V126: 128 | W126: 165 | X126: 118
A127: 30 | B127: MOSELLE | C127: 42 | D127: MOSELLE EST | E127: 557210 | F127: CHATEAU SALINS | G127: 1.4 | H127: 118 | I127: 173 | J127: 213 | K127: 145 | L127: 57 | M127: 66 | N127: 65 | O127: 174 | P127: 165 | Q127: 148 | R127: 31 | S127: 27 | T127: 77 | U127: 71 | V127: 213 | W127: 6 | X127: 165
A128: 30 | B128: BAS RHIN | C128: 5006 | D128: STRASBOURG | E128: 4023 | F128: STRASBOURG VOSGES | G128: 2.9 | H128: 119 | I128: 135 | J128: 125 | K128: 154 | L128: 112 | M128: 112 | N128: 121 | O128: 8 | P128: 11 | Q128: 49 | R128: 193 | S128: 181 | T128: 201 | U128: 164 | V128: 64 | W128: 230 | X128: 153
A129: 30 | B129: BAS RHIN | C129: 5006 | D129: STRASBOURG | E129: 4006 | F129: STRASBOURG NEUDORF | G129: 7.9 | H129: 120 | I129: 31 | J129: 41 | K129: 9 | L129: 162 | M129: 178 | N129: 138 | O129: 185 | P129: 166 | Q129: 191 | R129: 120 | S129: 119 | T129: 136 | U129: 202 | V129: 160 | W129: 226 | X129: 116
A130: 30 | B130: MARNE ARDENNES | C130: 6 | D130: CHALONS EN CHAMPAGNE | E130: 551103 | F130: FAGNIERES LECLERC | G130: 2.9 | H130: 121 | I130: 110 | J130: 142 | K130: 29 | L130: 193 | M130: 190 | N130: 175 | O130: 151 | P130: 160 | Q130: 64 | R130: 34 | S130: 31 | T130: 60 | U130: 95 | V130: 115 | W130: 62 | X130: 108
A131: 30 | B131: AUBE HAUTE MARNE | C131: 21 | D131: CHAUMONT | E131: 451156 | F131: SAINT DIZIER CENTRE | G131: 8.6 | H131: 122 | I131: 121 | J131: 112 | K131: 141 | L131: 122 | M131: 140 | N131: 94 | O131: 137 | P131: 125 | Q131: 128 | R131: 70 | S131: 60 | T131: 82 | U131: 112 | V131: 151 | W131: 113 | X131: 74
A132: 30 | B132: VOSGES | C132: 57 | D132: EPINAL | E132: 588716 | F132: XERTIGNY | G132: 2.8 | H132: 123 | I132: 67 | J132: 87 | K132: 27 | L132: 187 | M132: 144 | N132: 230 | O132: 75 | P132: 71 | Q132: 134 | R132: 113 | S132: 72 | T132: 220 | U132: 184 | V132: 177 | W132: 127 | X132: 207
A133: 30 | B133: BAS RHIN | C133: 5101 | D133: SELESTAT | E133: 4121 | F133: SCHIRMECK | G133: 2.8 | H133: 124 | I133: 63 | J133: 87 | K133: 11 | L133: 74 | M133: 62 | N133: 108 | O133: 198 | P133: 205 | Q133: 100 | R133: 202 | S133: 183 | T133: 216 | U133: 104 | V133: 98 | W133: 106 | X133: 100
A134: 30 | B134: VOSGES | C134: 55 | D134: SAINT DIE | E134: 588316 | F134: FRAIZE | G134: 3.7 | H134: 125 | I134: 89 | J134: 101 | K134: 56 | L134: 201 | M134: 185 | N134: 203 | O134: 96 | P134: 83 | Q134: 142 | R134: 86 | S134: 54 | T134: 179 | U134: 143 | V134: 153 | W134: 128 | X134: 110
A135: 30 | B135: MOSELLE | C135: 45 | D135: METZ | E135: 557432 | F135: MAIZIERES LES METZ | G135: 2.6 | H135: 126 | I135: 196 | J135: 213 | K135: 177 | L135: 66 | M135: 127 | N135: 28 | O135: 163 | P135: 174 | Q135: 65 | R135: 127 | S135: 146 | T135: 95 | U135: 22 | V135: 11 | W135: 135 | X135: 25
A136: 110 | B136: BAS RHIN | C136: 5101 | D136: SELESTAT | E136: 4126 | F136: MUTZIG | G136: 2.6 | H136: 127 | I136: 159 | J136: 213 | K136: 117 | L136: 44 | M136: 21 | N136: 126 | O136: 61 | P136: 67 | Q136: 71 | R136: 150 | S136: 147 | T136: 144 | U136: 150 | V136: 90 | W136: 232 | X136: 76
A137: 110 | B137: MOSELLE | C137: 42 | D137: MOSELLE EST | E137: 457435 | F137: MERLEBACH | G137: 2.8 | H137: 128 | I137: 106 | J137: 113 | K137: 92 | L137: 95 | M137: 167 | N137: 36 | O137: 204 | P137: 220 | Q137: 48 | R137: 121 | S137: 175 | T137: 34 | U137: 62 | V137: 183 | W137: 13 | X137: 87
A138: 110 | B138: BAS RHIN | C138: 5006 | D138: STRASBOURG | E138: 4020 | F138: STRASBOURG ROBERTSAU | G138: 5.3 | H138: 129 | I138: 130 | J138: 142 | K138: 101 | L138: 170 | M138: 163 | N138: 170 | O138: 5 | P138: 3 | Q138: 106 | R138: 198 | S138: 178 | T138: 227 | U138: 200 | V138: 208 | W138: 134 | X138: 211
A139: 110 | B139: VOSGES | C139: 55 | D139: SAINT DIE | E139: 588461 | F139: MOYENMOUTIER | G139: 4.3 | H139: 130 | I139: 86 | J139: 77 | K139: 105 | L139: 111 | M139: 48 | N139: 234 | O139: 116 | P139: 90 | Q139: 200 | R139: 116 | S139: 98 | T139: 156 | U139: 212 | V139: 236 | W139: 110 | X139: 210
A140: 110 | B140: BAS RHIN | C140: 5006 | D140: STRASBOURG | E140: 4024 | F140: STRASBOURG AUSTERLITZ | G140: 0.9 | H140: 131 | I140: 241 | J140: 202 | K140: 241 | L140: 75 | M140: 195 | N140: 9 | O140: 159 | P140: 206 | Q140: 13 | R140: 47 | S140: 214 | T140: 2 | U140: 18 | V140: 14 | W140: 82 | X140: 21
A141: 110 | B141: MOSELLE | C141: 44 | D141: MOSELLE NORD | E141: 557307 | F141: FONTOY | G141: 1.9 | H141: 132 | I141: 51 | J141: 45 | K141: 67 | L141: 210 | M141: 196 | N141: 222 | O141: 82 | P141: 65 | Q141: 228 | R141: 226 | S141: 220 | T141: 231 | U141: 82 | V141: 93 | W141: 31 | X141: 168
A142: 110 | B142: MEURTHE ET MOSELLE MEUSE | C142: 26 | D142: NANCY | E142: 554296 | F142: ESSEY LES NANCY | G142: 3.6 | H142: 133 | I142: 73 | J142: 83 | K142: 43 | L142: 135 | M142: 133 | N142: 129 | O142: 119 | P142: 94 | Q142: 182 | R142: 197 | S142: 189 | T142: 193 | U142: 139 | V142: 155 | W142: 187 | X142: 64
A143: 110 | B143: AUBE HAUTE MARNE | C143: 21 | D143: CHAUMONT | E143: 410566 | F143: CHAUMONT HOTEL DE VILLE | G143: 10.5 | H143: 134 | I143: 100 | J143: 97 | K143: 110 | L143: 168 | M143: 173 | N143: 152 | O143: 58 | P143: 51 | Q143: 146 | R143: 155 | S143: 125 | T143: 200 | U143: 155 | V143: 159 | W143: 83 | X143: 182
A144: 110 | B144: BAS RHIN | C144: 5060 | D144: HAGUENAU | E144: 4057 | F144: BISCHWILLER | G144: 7.2 | H144: 135 | I144: 79 | J144: 84 | K144: 60 | L144: 93 | M144: 49 | N144: 201 | O144: 160 | P144: 130 | Q144: 221 | R144: 118 | S144: 105 | T144: 154 | U144: 221 | V144: 243 | W144: 70 | X144: 233
A145: 110 | B145: BAS RHIN | C145: 5060 | D145: HAGUENAU | E145: 4031 | F145: TRUCHTERSHEIM | G145: 2.2 | H145: 136 | I145: 56 | J145: 45 | K145: 82 | L145: 59 | M145: 13 | N145: 224 | O145: 112 | P145: 81 | Q145: 220 | R145: 232 | S145: 222 | T145: 236 | U145: 233 | V145: 178 | W145: 229 | X145: 229
A146: 110 | B146: MOSELLE | C146: 42 | D146: MOSELLE EST | E146: 557503 | F146: NEUNKIRCH | G146: 3.3 | H146: 137 | I146: 4 | J146: 4 | K146: 5 | L146: 224 | M146: 202 | N146: 232 | O146: 208 | P146: 195 | Q146: 218 | R146: 229 | S146: 216 | T146: 240 | U146: 198 | V146: 198 | W146: 133 | X146: 215
A147: 110 | B147: BAS RHIN | C147: 5006 | D147: STRASBOURG | E147: 4019 | F147: STRASBOURG ANVERS | G147: 4.5 | H147: 138 | I147: 171 | J147: 186 | K147: 161 | L147: 40 | M147: 43 | N147: 45 | O147: 181 | P147: 209 | Q147: 37 | R147: 78 | S147: 81 | T147: 91 | U147: 109 | V147: 49 | W147: 222 | X147: 84
A148: 110 | B148: VOSGES | C148: 55 | D148: SAINT DIE | E148: 588386 | F148: LE THILLOT | G148: 2.4 | H148: 139 | I148: 13 | J148: 15 | K148: 24 | L148: 182 | M148: 126 | N148: 240 | O148: 214 | P148: 198 | Q148: 232 | R148: 196 | S148: 180 | T148: 212 | U148: 222 | V148: 229 | W148: 186 | X148: 177
A149: 110 | B149: VOSGES | C149: 57 | D149: EPINAL | E149: 588206 | F149: CHARMES | G149: 2.7 | H149: 140 | I149: 117 | J149: 149 | K149: 31 | L149: 138 | M149: 148 | N149: 111 | O149: 53 | P149: 38 | Q149: 203 | R149: 189 | S149: 204 | T149: 115 | U149: 162 | V149: 241 | W149: 77 | X149: 117
A150: 110 | B150: MEURTHE ET MOSELLE MEUSE | C150: 26 | D150: NANCY | E150: 554486 | F150: NANCY POINT CENTRAL | G150: 3.0 | H150: 141 | I150: 132 | J150: 94 | K150: 194 | L150: 199 | M150: 219 | N150: 110 | O150: 26 | P150: 26 | Q150: 82 | R150: 169 | S150: 166 | T150: 152 | U150: 130 | V150: 89 | W150: 104 | X150: 173
A151: 110 | B151: VOSGES | C151: 57 | D151: EPINAL | E151: 488706 | F151: VITTEL | G151: 3.1 | H151: 142 | I151: 102 | J151: 114 | K151: 69 | L151: 177 | M151: 154 | N151: 202 | O151: 173 | P151: 154 | Q151: 213 | R151: 92 | S151: 86 | T151: 121 | U151: 105 | V151: 163 | W151: 101 | X151: 65
A152: 110 | B152: MEURTHE ET MOSELLE MEUSE | C152: 27 | D152: PONT A MOUSSON | E152: 554496 | F152: NANCY TROIS MAISONS | G152: 2.2 | H152: 143 | I152: 163 | J152: 181 | K152: 143 | L152: 114 | M152: 151 | N152: 71 | O152: 129 | P152: 116 | Q152: 150 | R152: 90 | S152: 115 | T152: 49 | U152: 81 | V152: 100 | W152: 67 | X152: 89
A153: 110 | B153: HAUT RHIN | C153: 5130 | D153: COLMAR | E153: 4143 | F153: MUNSTER | G153: 4.2 | H153: 144 | I153: 141 | J153: 191 | K153: 61 | L153: 92 | M153: 42 | N153: 211 | O153: 83 | P153: 69 | Q153: 215 | R153: 141 | S153: 100 | T153: 208 | U153: 173 | V153: 184 | W153: 103 | X153: 199
A154: 110 | B154: MEURTHE ET MOSELLE MEUSE | C154: 27 | D154: PONT A MOUSSON | E154: 454651 | F154: TOUL | G154: 9.9 | H154: 145 | I154: 213 | J154: 167 | K154: 222 | L154: 153 | M154: 171 | N154: 118 | O154: 98 | P154: 96 | Q154: 93 | R154: 66 | S154: 68 | T154: 52 | U154: 44 | V154: 36 | W154: 66 | X154: 63
A155: 110 | B155: AUBE HAUTE MARNE | C155: 14 | D155: TROYES | E155: 510513 | F155: SAINT PARRES AUX TERTRES | G155: 2.3 | H155: 146 | I155: 240 | J155: 213 | K155: 236 | L155: 42 | M155: 96 | N155: 13 | O155: 149 | P155: 186 | Q155: 18 | R155: 30 | S155: 44 | T155: 26 | U155: 107 | V155: 99 | W155: 144 | X155: 80
A156: 110 | B156: MEURTHE ET MOSELLE MEUSE | C156: 26 | D156: NANCY | E156: 554166 | F156: BLAINVILLE | G156: 2.7 | H156: 147 | I156: 186 | J156: 213 | K156: 167 | L156: 63 | M156: 52 | N156: 89 | O156: 192 | P156: 190 | Q156: 152 | R156: 42 | S156: 35 | T156: 93 | U156: 115 | V156: 97 | W156: 168 | X156: 82
A157: 110 | B157: MARNE ARDENNES | C157: 2 | D157: CHARLEVILLE MEZIERES | E157: 408862 | F157: REVIN | G157: 3.9 | H157: 148 | I157: 83 | J157: 90 | K157: 59 | L157: 183 | M157: 181 | N157: 179 | O157: 179 | P157: 178 | Q157: 121 | R157: 85 | S157: 66 | T157: 140 | U157: 183 | V157: 149 | W157: 201 | X157: 146
A158: 110 | B158: BAS RHIN | C158: 5006 | D158: STRASBOURG | E158: 4039 | F158: REICHSTETT | G158: 1.6 | H158: 149 | I158: 169 | J158: 213 | K158: 134 | L158: 160 | M158: 142 | N158: 183 | O158: 45 | P158: 46 | Q158: 91 | R158: 84 | S158: 79 | T158: 108 | U158: 167 | V158: 123 | W158: 176 | X158: 157
A159: 110 | B159: MEURTHE ET MOSELLE MEUSE | C159: 31 | D159: VERDUN | E159: 554412 | F159: LONGUYON | G159: 2.8 | H159: 150 | I159: 101 | J159: 117 | K159: 55 | L159: 86 | M159: 105 | N159: 64 | O159: 191 | P159: 182 | Q159: 186 | R159: 161 | S159: 151 | T159: 169 | U159: 165 | V159: 106 | W159: 192 | X159: 145
A160: 110 | B160: MOSELLE | C160: 44 | D160: MOSELLE NORD | E160: 457192 | F160: CATTENOM | G160: 1.6 | H160: 151 | I160: 146 | J160: 159 | K160: 129 | L160: 97 | M160: 78 | N160: 149 | O160: 155 | P160: 183 | Q160: 30 | R160: 146 | S160: 137 | T160: 158 | U160: 86 | V160: 50 | W160: 94 | X160: 151
A161: 110 | B161: BAS RHIN | C161: 5060 | D161: HAGUENAU | E161: 4085 | F161: INGWILLER | G161: 3.5 | H161: 152 | I161: 142 | J161: 132 | K161: 159 | L161: 136 | M161: 131 | N161: 139 | O161: 124 | P161: 111 | Q161: 154 | R161: 115 | S161: 127 | T161: 109 | U161: 122 | V161: 186 | W161: 37 | X161: 179
A162: 110 | B162: BAS RHIN | C162: 5101 | D162: SELESTAT | E162: 4007 | F162: ILLKIRCH CENTRE | G162: 6.6 | H162: 153 | I162: 202 | J162: 194 | K162: 189 | L162: 129 | M162: 109 | N162: 153 | O162: 147 | P162: 136 | Q162: 137 | R162: 26 | S162: 18 | T162: 85 | U162: 137 | V162: 104 | W162: 131 | X162: 142
A163: 110 | B163: MEURTHE ET MOSELLE MEUSE | C163: 27 | D163: PONT A MOUSSON | E163: 454355 | F163: JARNY | G163: 4.1 | H163: 154 | I163: 112 | J163: 117 | K163: 85 | L163: 151 | M163: 147 | N163: 142 | O163: 136 | P163: 115 | Q163: 171 | R163: 128 | S163: 130 | T163: 133 | U163: 217 | V163: 204 | W163: 199 | X163: 183
A164: 110 | B164: MEURTHE ET MOSELLE MEUSE | C164: 26 | D164: NANCY | E164: 554266 | F164: DOMBASLE SUR MEURTHE | G164: 3.3 | H164: 155 | I164: 184 | J164: 213 | K164: 165 | L164: 226 | M164: 224 | N164: 190 | O164: 34 | P164: 27 | Q164: 145 | R164: 93 | S164: 109 | T164: 74 | U164: 93 | V164: 125 | W164: 35 | X164: 152
A165: 110 | B165: MEURTHE ET MOSELLE MEUSE | C165: 27 | D165: PONT A MOUSSON | E165: 554357 | F165: JOEUF | G165: 3.2 | H165: 156 | I165: 81 | J165: 77 | K165: 91 | L165: 154 | M165: 192 | N165: 92 | O165: 211 | P165: 208 | Q165: 178 | R165: 207 | S165: 218 | T165: 107 | U165: 92 | V165: 133 | W165: 43 | X165: 122
A166: 110 | B166: HAUT RHIN | C166: 5130 | D166: COLMAR | E166: 4157 | F166: NEUF BRISACH | G166: 2.8 | H166: 157 | I166: 167 | J166: 131 | K166: 199 | L166: 158 | M166: 180 | N166: 113 | O166: 123 | P166: 135 | Q166: 66 | R166: 83 | S166: 75 | T166: 113 | U166: 120 | V166: 164 | W166: 73 | X166: 114
A167: 110 | B167: AUBE HAUTE MARNE | C167: 14 | D167: TROYES | E167: 510523 | F167: LA CHAPELLE ST LUC | G167: 4.5 | H167: 158 | I167: 237 | J167: 194 | K167: 234 | L167: 101 | M167: 156 | N167: 44 | O167: 97 | P167: 122 | Q167: 31 | R167: 41 | S167: 65 | T167: 22 | U167: 127 | V167: 154 | W167: 105 | X167: 103
A168: 110 | B168: MARNE ARDENNES | C168: 2 | D168: CHARLEVILLE MEZIERES | E168: 408806 | F168: SEDAN | G168: 7.6 | H168: 159 | I168: 78 | J168: 96 | K168: 40 | L168: 176 | M168: 169 | N168: 177 | O168: 161 | P168: 159 | Q168: 99 | R168: 217 | S168: 202 | T168: 235 | U168: 121 | V168: 94 | W168: 167 | X168: 95
A169: 110 | B169: MOSELLE | C169: 42 | D169: MOSELLE EST | E169: 457614 | F169: SARREBOURG | G169: 8.0 | H169: 160 | I169: 123 | J169: 127 | K169: 103 | L169: 164 | M169: 139 | N169: 198 | O169: 135 | P169: 126 | Q169: 115 | R169: 132 | S169: 97 | T169: 191 | U169: 168 | V169: 150 | W169: 107 | X169: 206
A170: 110 | B170: MOSELLE | C170: 45 | D170: METZ | E170: 557712 | F170: WOIPPY | G170: 4.5 | H170: 161 | I170: 178 | J170: 111 | K170: 233 | L170: 104 | M170: 99 | N170: 120 | O170: 117 | P170: 132 | Q170: 53 | R170: 98 | S170: 91 | T170: 117 | U170: 158 | V170: 134 | W170: 140 | X170: 154
A171: 110 | B171: MOSELLE | C171: 45 | D171: METZ | E171: 557436 | F171: METZ CATHEDRALE | G171: 3.9 | H171: 162 | I171: 226 | J171: 213 | K171: 219 | L171: 142 | M171: 120 | N171: 165 | O171: 51 | P171: 42 | Q171: 149 | R171: 72 | S171: 55 | T171: 123 | U171: 166 | V171: 166 | W171: 154 | X171: 130
A172: 110 | B172: MEURTHE ET MOSELLE MEUSE | C172: 27 | D172: PONT A MOUSSON | E172: 454696 | F172: VILLERS GENERAL LECLERC | G172: 4.2 | H172: 163 | I172: 161 | J172: 213 | K172: 121 | L172: 202 | M172: 205 | N172: 156 | O172: 20 | P172: 12 | Q172: 185 | R172: 183 | S172: 168 | T172: 196 | U172: 182 | V172: 169 | W172: 147 | X172: 197
A173: 110 | B173: BAS RHIN | C173: 5101 | D173: SELESTAT | E173: 4127 | F173: ROSHEIM | G173: 1.7 | H173: 164 | I173: 129 | J173: 132 | K173: 114 | L173: 191 | M173: 177 | N173: 192 | O173: 37 | P173: 22 | Q173: 206 | R173: 211 | S173: 190 | T173: 225 | U173: 191 | V173: 195 | W173: 225 | X173: 94
A174: 110 | B174: MOSELLE | C174: 45 | D174: METZ | E174: 557433 | F174: MARANGE SILVANGE | G174: 2.9 | H174: 165 | I174: 180 | J174: 159 | K174: 195 | L174: 161 | M174: 155 | N174: 168 | O174: 118 | P174: 102 | Q174: 162 | R174: 135 | S174: 128 | T174: 150 | U174: 68 | V174: 174 | W174: 10 | X174: 112
A175: 110 | B175: MOSELLE | C175: 44 | D175: MOSELLE NORD | E175: 457180 | F175: BOUSSE | G175: 2.6 | H175: 166 | I175: 7 | J175: 5 | K175: 35 | L175: 222 | M175: 162 | N175: 244 | O175: 143 | P175: 82 | Q175: 244 | R175: 241 | S175: 234 | T175: 244 | U175: 244 | V175: 237 | W175: 244 | X175: 244
A176: 110 | B176: BAS RHIN | C176: 5101 | D176: SELESTAT | E176: 4008 | F176: FEGERSHEIM | G176: 2.3 | H176: 167 | I176: 107 | J176: 106 | K176: 113 | L176: 110 | M176: 58 | N176: 218 | O176: 152 | P176: 118 | Q176: 229 | R176: 178 | S176: 164 | T176: 203 | U176: 234 | V176: 218 | W176: 220 | X176: 230
A177: 110 | B177: MOSELLE | C177: 42 | D177: MOSELLE EST | E177: 457258 | F177: DIEUZE | G177: 3.0 | H177: 168 | I177: 75 | J177: 90 | K177: 47 | L177: 220 | M177: 207 | N177: 223 | O177: 134 | P177: 100 | Q177: 234 | R177: 158 | S177: 148 | T177: 165 | U177: 230 | V177: 222 | W177: 205 | X177: 221
A178: 160 | B178: VOSGES | C178: 55 | D178: SAINT DIE | E178: 488556 | F178: RAON L ETAPE | G178: 2.2 | H178: 169 | I178: 87 | J178: 75 | K178: 126 | L178: 217 | M178: 233 | N178: 123 | O178: 216 | P178: 211 | Q178: 217 | R178: 154 | S178: 173 | T178: 98 | U178: 102 | V178: 232 | W178: 38 | X178: 85
A179: 160 | B179: MOSELLE | C179: 45 | D179: METZ | E179: 557459 | F179: MOULINS LES METZ | G179: 2.5 | H179: 170 | I179: 70 | J179: 45 | K179: 147 | L179: 198 | M179: 166 | N179: 225 | O179: 206 | P179: 204 | Q179: 175 | R179: 163 | S179: 129 | T179: 211 | U179: 206 | V179: 176 | W179: 195 | X179: 180
A180: 160 | B180: MARNE ARDENNES | C180: 2 | D180: CHARLEVILLE MEZIERES | E180: 508815 | F180: CARIGNAN | G180: 2.6 | H180: 171 | I180: 92 | J180: 79 | K180: 127 | L180: 116 | M180: 153 | N180: 74 | O180: 171 | P180: 179 | Q180: 89 | R180: 220 | S180: 224 | T180: 180 | U180: 208 | V180: 107 | W180: 228 | X180: 184
A181: 160 | B181: BAS RHIN | C181: 5006 | D181: STRASBOURG | E181: 4028 | F181: BISCHHEIM | G181: 3.3 | H181: 172 | I181: 174 | J181: 210 | K181: 149 | L181: 172 | M181: 182 | N181: 148 | O181: 91 | P181: 97 | Q181: 73 | R181: 88 | S181: 96 | T181: 63 | U181: 203 | V181: 181 | W181: 181 | X181: 198
A182: 160 | B182: HAUT RHIN | C182: 5169 | D182: MULHOUSE | E182: 4170 | F182: MULHOUSE REUNION | G182: 7.5 | H182: 173 | I182: 151 | J182: 122 | K182: 198 | L182: 143 | M182: 159 | N182: 109 | O182: 196 | P182: 194 | Q182: 141 | R182: 107 | S182: 153 | T182: 43 | U182: 124 | V182: 113 | W182: 97 | X182: 134
A183: 160 | B183: MEURTHE ET MOSELLE MEUSE | C183: 26 | D183: NANCY | E183: 454671 | F183: VANDOEUVRE LES NANCY | G183: 4.2 | H183: 174 | I183: 182 | J183: 146 | K183: 213 | L183: 173 | M183: 187 | N183: 140 | O183: 99 | P183: 76 | Q183: 214 | R183: 142 | S183: 132 | T183: 149 | U183: 108 | V183: 63 | W183: 109 | X183: 172
A184: 160 | B184: BAS RHIN | C184: 5101 | D184: SELESTAT | E184: 4107 | F184: VILLE | G184: 2.3 | H184: 175 | I184: 217 | J184: 213 | K184: 209 | L184: 68 | M184: 20 | N184: 215 | O184: 36 | P184: 21 | Q184: 184 | R184: 171 | S184: 136 | T184: 226 | U184: 235 | V184: 234 | W184: 194 | X184: 235
A185: 160 | B185: MOSELLE | C185: 45 | D185: METZ | E185: 557559 | F185: REMILLY | G185: 3.5 | H185: 176 | I185: 162 | J185: 150 | K185: 170 | L185: 159 | M185: 125 | N185: 206 | O185: 121 | P185: 103 | Q185: 169 | R185: 190 | S185: 192 | T185: 151 | U185: 96 | V185: 132 | W185: 49 | X185: 124
A186: 160 | B186: HAUT RHIN | C186: 5130 | D186: COLMAR | E186: 4132 | F186: COLMAR MARAICHERS | G186: 3.8 | H186: 177 | I186: 134 | J186: 124 | K186: 152 | L186: 120 | M186: 103 | N186: 145 | O186: 146 | P186: 137 | Q186: 118 | R186: 164 | S186: 142 | T186: 189 | U186: 228 | V186: 231 | W186: 174 | X186: 225
A187: 160 | B187: BAS RHIN | C187: 5006 | D187: STRASBOURG | E187: 4029 | F187: SCHILTIGHEIM KLEBER | G187: 1.0 | H187: 178 | I187: 149 | J187: 145 | K187: 169 | L187: 237 | M187: 235 | N187: 167 | O187: 41 | P187: 35 | Q187: 131 | R187: 156 | S187: 228 | T187: 11 | U187: 159 | V187: 156 | W187: 153 | X187: 118
A188: 160 | B188: HAUT RHIN | C188: 5169 | D188: MULHOUSE | E188: 4178 | F188: SAINT LOUIS | G188: 6.4 | H188: 179 | I188: 185 | J188: 172 | K188: 186 | L188: 140 | M188: 136 | N188: 141 | O188: 69 | P188: 60 | Q188: 153 | R188: 143 | S188: 141 | T188: 138 | U188: 214 | V188: 136 | W188: 203 | X188: 216
A189: 160 | B189: AUBE HAUTE MARNE | C189: 14 | D189: TROYES | E189: 510520 | F189: SAINT ANDRE LES VERGERS | G189: 3.3 | H189: 180 | I189: 238 | J189: 210 | K189: 235 | L189: 141 | M189: 175 | N189: 88 | O189: 109 | P189: 105 | Q189: 114 | R189: 102 | S189: 139 | T189: 46 | U189: 83 | V189: 120 | W189: 33 | X189: 121
A190: 160 | B190: MARNE ARDENNES | C190: 2 | D190: CHARLEVILLE MEZIERES | E190: 508819 | F190: MOUZON | G190: 1.9 | H190: 181 | I190: 96 | J190: 84 | K190: 123 | L190: 238 | M190: 238 | N190: 117 | O190: 55 | P190: 56 | Q190: 92 | R190: 234 | S190: 241 | T190: 73 | U190: 178 | V190: 193 | W190: 243 | X190: 40
A191: 160 | B191: MARNE ARDENNES | C191: 11 | D191: REIMS | E191: 551309 | F191: REIMS EUROPE | G191: 2.9 | H191: 182 | I191: 120 | J191: 72 | K191: 201 | L191: 205 | M191: 228 | N191: 99 | O191: 201 | P191: 203 | Q191: 135 | R191: 124 | S191: 157 | T191: 62 | U191: 163 | V191: 111 | W191: 218 | X191: 98
A192: 160 | B192: MEURTHE ET MOSELLE MEUSE | C192: 27 | D192: PONT A MOUSSON | E192: 554196 | F192: CHAMPIGNEULLES | G192: 2.5 | H192: 183 | I192: 179 | J192: 213 | K192: 155 | L192: 196 | M192: 174 | N192: 209 | O192: 170 | P192: 158 | Q192: 172 | R192: 44 | S192: 33 | T192: 104 | U192: 169 | V192: 83 | W192: 217 | X192: 144
A193: 160 | B193: BAS RHIN | C193: 5006 | D193: STRASBOURG | E193: 4026 | F193: STRASBOURG DANUBE | G193: 3.2 | H193: 184 | I193: 193 | J193: 167 | K193: 197 | L193: 200 | M193: 216 | N193: 116 | O193: 90 | P193: 84 | Q193: 103 | R193: 134 | S193: 172 | T193: 55 | U193: 114 | V193: 140 | W193: 55 | X193: 166
A194: 160 | B194: HAUT RHIN | C194: 5130 | D194: COLMAR | E194: 4130 | F194: COLMAR REPUBLIQUE | G194: 6.1 | H194: 185 | I194: 194 | J194: 155 | K194: 208 | L194: 165 | M194: 135 | N194: 208 | O194: 157 | P194: 134 | Q194: 193 | R194: 59 | S194: 32 | T194: 145 | U194: 193 | V194: 180 | W194: 166 | X194: 195
A195: 160 | B195: HAUT RHIN | C195: 5169 | D195: MULHOUSE | E195: 4180 | F195: RIEDISHEIM | G195: 3.4 | H195: 186 | I195: 72 | J195: 45 | K195: 150 | L195: 174 | M195: 137 | N195: 217 | O195: 235 | P195: 234 | Q195: 227 | R195: 139 | S195: 116 | T195: 178 | U195: 215 | V195: 114 | W195: 211 | X195: 222
A196: 160 | B196: BAS RHIN | C196: 5060 | D196: HAGUENAU | E196: 4082 | F196: BOUXWILLER | G196: 2.2 | H196: 187 | I196: 46 | J196: 56 | K196: 38 | L196: 203 | M196: 198 | N196: 184 | O196: 242 | P196: 241 | Q196: 167 | R196: 94 | S196: 108 | T196: 78 | U196: 97 | V196: 92 | W196: 115 | X196: 92
A197: 160 | B197: MOSELLE | C197: 45 | D197: METZ | E197: 557440 | F197: METZ MOZART | G197: 3.0 | H197: 188 | I197: 164 | J197: 213 | K197: 122 | L197: 184 | M197: 145 | N197: 228 | O197: 81 | P197: 66 | Q197: 212 | R197: 153 | S197: 113 | T197: 214 | U197: 211 | V197: 144 | W197: 207 | X197: 194
A198: 160 | B198: AUBE HAUTE MARNE | C198: 14 | D198: TROYES | E198: 410550 | F198: BAR SUR AUBE | G198: 5.1 | H198: 189 | I198: 105 | J198: 99 | K198: 115 | L198: 166 | M198: 157 | N198: 176 | O198: 202 | P198: 189 | Q198: 210 | R198: 204 | S198: 193 | T198: 192 | U198: 180 | V198: 209 | W198: 102 | X198: 203
A199: 160 | B199: MARNE ARDENNES | C199: 11 | D199: REIMS | E199: 451308 | F199: REIMS SAINT THOMAS | G199: 5.3 | H199: 190 | I199: 235 | J199: 182 | K199: 237 | L199: 100 | M199: 117 | N199: 83 | O199: 213 | P199: 221 | Q199: 70 | R199: 114 | S199: 133 | T199: 97 | U199: 52 | V199: 26 | W199: 163 | X199: 51
A200: 160 | B200: BAS RHIN | C200: 5101 | D200: SELESTAT | E200: 4101 | F200: SELESTAT CENTRE | G200: 7.8 | H200: 191 | I200: 187 | J200: 186 | K200: 181 | L200: 134 | M200: 88 | N200: 200 | O200: 172 | P200: 151 | Q200: 226 | R200: 110 | S200: 112 | T200: 121 | U200: 161 | V200: 206 | W200: 85 | X200: 171
A201: 160 | B201: MARNE ARDENNES | C201: 2 | D201: CHARLEVILLE MEZIERES | E201: 508860 | F201: ROCROI | G201: 2.3 | H201: 192 | I201: 211 | J201: 197 | K201: 205 | L201: 87 | M201: 91 | N201: 80 | O201: 177 | P201: 177 | Q201: 117 | R201: 168 | S201: 177 | T201: 127 | U201: 116 | V201: 110 | W201: 136 | X201: 93
A202: 160 | B202: BAS RHIN | C202: 5060 | D202: HAGUENAU | E202: 4030 | F202: BRUMATH | G202: 4.1 | H202: 193 | I202: 221 | J202: 213 | K202: 214 | L202: 107 | M202: 71 | N202: 195 | O202: 31 | P202: 28 | Q202: 120 | R202: 219 | S202: 209 | T202: 222 | U202: 186 | V202: 109 | W202: 177 | X202: 217
A203: 160 | B203: BAS RHIN | C203: 5101 | D203: SELESTAT | E203: 4109 | F203: MARCKOLSHEIM | G203: 2.7 | H203: 194 | I203: 144 | J203: 213 | K203: 66 | L203: 117 | M203: 86 | N203: 157 | O203: 219 | P203: 224 | Q203: 94 | R203: 151 | S203: 174 | T203: 83 | U203: 171 | V203: 182 | W203: 157 | X203: 133
A204: 160 | B204: BAS RHIN | C204: 5060 | D204: HAGUENAU | E204: 4060 | F204: HAGUENAU HOUBLON | G204: 8.8 | H204: 195 | I204: 189 | J204: 167 | K204: 192 | L204: 171 | M204: 161 | N204: 186 | O204: 93 | P204: 75 | Q204: 176 | R204: 140 | S204: 120 | T204: 170 | U204: 197 | V204: 216 | W204: 143 | X204: 190
... 50 more rows

Sheet AG_FICHE
A1: Accueil
A2: BAROMETRE GRAND PUBLIC
A4: UNITE: | B4: Agence | E4: ETP perf : | F4: =VLOOKUP(A5,'RECAP AG'!$G$6:$CY$251,3,FALSE) -> 5.18
A5: =VLOOKUP(B5,LISTES!$C$6:$D$249,2,FALSE) -> 4189 | B5: ALTKIRCH
C6: Coefficient du critère | E6: Résultats | I6: Ecart au 1ier | K6: =IF(OR(A5=4017,A5=4022),"Rang estimé","Rang") -> Rang
E7: du 1ier | G7: de l'Agence
A9: RANG GRAND PUBLIC | K9: =VLOOKUP($A$5,'RECAP AG'!$G$6:$CY$251,96,FALSE) -> 244
A11: SATISFACTION CLIENTS | C11: 20% | K11: =VLOOKUP($A$5,'RECAP AG'!$G$6:$CY$251,13,FALSE) -> 244
B12: NPS à froid (SAE) | C12: 10% | E12: =+'RECAP AG'!K4 -> 60 | G12: =VLOOKUP($A$5,'RECAP AG'!$G$6:$CY$251,5,FALSE) -> 0.0 | I12: =VLOOKUP($A$5,'RECAP AG'!$G$6:$CY$251,6,FALSE) -> 100% | K12: =VLOOKUP($A$5,'RECAP AG'!$G$6:$CY$251,7,FALSE) -> 213
B13: NPS à chaud (QHD) | C13: 10% | E13: =+'RECAP AG'!N4 -> 89% | G13: =VLOOKUP($A$5,'RECAP AG'!$G$6:$CY$251,8,FALSE) -> 10% | I13: =VLOOKUP($A$5,'RECAP AG'!$G$6:$CY$251,9,FALSE) -> 88% | K13: =VLOOKUP($A$5,'RECAP AG'!$G$6:$CY$251,10,FALSE) -> 244
A15: BANCARISATION | C15: 20% | K15: =VLOOKUP($A$5,'RECAP AG'!$G$6:$CY$251,28,FALSE) -> 240
B16: Ventes Nettes produits pondérés | C16: 12% | E16: ='RECAP AG'!X4 -> 104.3 | G16: =VLOOKUP($A$5,'RECAP AG'!$G$6:$CY$251,19,FALSE) -> -10.3 | I16: =VLOOKUP($A$5,'RECAP AG'!$G$6:$CY$251,20,FALSE) -> 110% | K16: =VLOOKUP($A$5,'RECAP AG'!$G$6:$CY$251,21,FALSE) -> 237
B17: Ventes sur client non détenteur de l’univers | C17: 8% | E17: ='RECAP AG'!AB4 -> 125.0 | G17: =VLOOKUP($A$5,'RECAP AG'!$G$6:$CY$251,23,FALSE) -> 26.8 | I17: =VLOOKUP($A$5,'RECAP AG'!$G$6:$CY$251,24,FALSE) -> 79% | K17: =VLOOKUP($A$5,'RECAP AG'!$G$6:$CY$251,25,FALSE) -> 235
A19: EPARGNE | C19: 20% | K19: =VLOOKUP($A$5,'RECAP AG'!$G$6:$CY$251,43,FALSE) -> 230
B20: Excédent Epargne hors DAV pondéré | C20: 12% | E20: ='RECAP AG'!AM4 -> 1448.9 | G20: =VLOOKUP($A$5,'RECAP AG'!$G$6:$CY$251,34,FALSE) -> -356.1 | I20: =VLOOKUP($A$5,'RECAP AG'!$G$6:$CY$251,35,FALSE) -> 85% | K20: =VLOOKUP($A$5,'RECAP AG'!$G$6:$CY$251,36,FALSE) -> 230
B21: Ventes sur client non détenteur de l’univers | C21: 8% | E21: ='RECAP AG'!AQ4 -> 238.1 | G21: =VLOOKUP($A$5,'RECAP AG'!$G$6:$CY$251,38,FALSE) -> 29.7 | I21: =VLOOKUP($A$5,'RECAP AG'!$G$6:$CY$251,39,FALSE) -> 88% | K21: =VLOOKUP($A$5,'RECAP AG'!$G$6:$CY$251,40,FALSE) -> 218
A23: IARD PREVOYANCE | C23: 20% | K23: =VLOOKUP($A$5,'RECAP AG'!$G$6:$CY$251,77,FALSE) -> 239
B24: Ventes Nettes produits pondérés | C24: 12% | E24: ='RECAP AG'!BU4 -> 573.2 | G24: =VLOOKUP($A$5,'RECAP AG'!$G$6:$CY$251,68,FALSE) -> -39.4 | I24: =VLOOKUP($A$5,'RECAP AG'!$G$6:$CY$251,69,FALSE) -> 106% | K24: =VLOOKUP($A$5,'RECAP AG'!$G$6:$CY$251,70,FALSE) -> 240
B25: Ventes sur client non détenteur de l’univers | C25: 8% | E25: ='RECAP AG'!BY4 -> 131.5 | G25: =VLOOKUP($A$5,'RECAP AG'!$G$6:$CY$251,72,FALSE) -> 21.0 | I25: =VLOOKUP($A$5,'RECAP AG'!$G$6:$CY$251,73,FALSE) -> 84% | K25: =VLOOKUP($A$5,'RECAP AG'!$G$6:$CY$251,74,FALSE) -> 221
A27: CREDITS | C27: 20% | K27: =VLOOKUP($A$5,'RECAP AG'!$G$6:$CY$251,62,FALSE) -> 238
B28: Engagements et ventes accessoires pondérés Immo | C28: 6% | E28: ='RECAP AG'!BB4 -> 933.9 | G28: =VLOOKUP($A$5,'RECAP AG'!$G$6:$CY$251,49,FALSE) -> 44.9 | I28: =VLOOKUP($A$5,'RECAP AG'!$G$6:$CY$251,50,FALSE) -> 95% | K28: =VLOOKUP($A$5,'RECAP AG'!$G$6:$CY$251,51,FALSE) -> 240
B29: Engagements et ventes accessoires pondérés Conso | C29: 6% | E29: ='RECAP AG'!BF4 -> 105.4 | G29: =VLOOKUP($A$5,'RECAP AG'!$G$6:$CY$251,53,FALSE) -> 30.0 | I29: =VLOOKUP($A$5,'RECAP AG'!$G$6:$CY$251,54,FALSE) -> 72% | K29: =VLOOKUP($A$5,'RECAP AG'!$G$6:$CY$251,55,FALSE) -> 210
B30: Ventes sur client non détenteur de l’univers | C30: 8% | E30: ='RECAP AG'!BJ4 -> 73.8 | G30: =VLOOKUP($A$5,'RECAP AG'!$G$6:$CY$251,57,FALSE) -> 9.5 | I30: =VLOOKUP($A$5,'RECAP AG'!$G$6:$CY$251,58,FALSE) -> 87% | K30: =VLOOKUP($A$5,'RECAP AG'!$G$6:$CY$251,59,FALSE) -> 237

Sheet AG_TOTAL
B1: Accueil | H1: BAROMETRE BDD - AGENCES
H2: TOTAL GENERAL
H3: =ACCUEIL!F7 -> 2022-07-24
H7: TOTAL GENERAL | K7: Total Satisfaction Clients | N7: Total Bancarisation | Q7: Total Epargne | T7: Total IARD Prévoyance | W7: Total Crédits
I8: coef | J8: =M8+P8+S8+V8+Y8 -> 100% | L8: coef | M8: =AG_SATISFACTION!P8 -> 20% | O8: coef | P8: =AG_BANCA!R8 -> 20% | R8: coef | S8: =AG_EPARGNE!R8 -> 20% | U8: coef | V8: =AG_IARD!R8 -> 20% | X8: coef | Y8: =AG_CREDIT!V8 -> 20%
B9: Direction | C9: eds | D9: Territoire | E9: eds | F9: Agence | G9: ="ETP perf "&DATEMAJ!$C$28 -> ETP perf 24-juil | H9: Moyenne ecart au 1er | I9: % Ecart au 1er | J9: Rang CEGEE | K9: Moyenne ecart au 1er | L9: % Ecart au 1er | M9: Rang CEGEE | N9: Moyenne ecart au 1er | O9: % Ecart au 1er | P9: Rang CEGEE | Q9: Moyenne ecart au 1er | R9: % Ecart au 1er | S9: Rang CEGEE | T9: Moyenne ecart au 1er | U9: % Ecart au 1er | V9: Rang CEGEE | W9: Moyenne ecart au 1er | X9: % Ecart au 1er | Y9: Rang CEGEE
A10: 50 | B10: MOSELLE | C10: 44 | D10: MOSELLE NORD | E10: 557508 | F10: NILVANGE | G10: 1.7 | H10: 8% | I10: 0% | J10: 1 | K10: 37% | L10: 37% | M10: 59 | N10: 0% | O10: 0% | P10: 1 | Q10: 35% | R10: 3% | S10: 3 | T10: 0% | U10: 0% | V10: 1 | W10: 8% | X10: 0% | Y10: 1
A11: 50 | B11: MOSELLE | C11: 42 | D11: MOSELLE EST | E11: 457163 | F11: BEHREN LES FORBACH | G11: 1.9 | H11: 33% | I11: 25% | J11: 2 | K11: 20% | L11: 20% | M11: 12 | N11: 43% | O11: 43% | P11: 2 | Q11: 55% | R11: 24% | S11: 27 | T11: 67% | U11: 67% | V11: 32 | W11: 18% | X11: 10% | Y11: 2
A12: 50 | B12: VOSGES | C12: 57 | D12: EPINAL | E12: 488288 | F12: EPINAL LEOPOLD BOURG | G12: 2.0 | H12: 39% | I12: 31% | J12: 3 | K12: 4% | L12: 4% | M12: 2 | N12: 60% | O12: 60% | P12: 26 | Q12: 41% | R12: 9% | S12: 4 | T12: 72% | U12: 72% | V12: 69 | W12: 58% | X12: 50% | Y12: 32
A13: 50 | B13: MARNE ARDENNES | C13: 2 | D13: CHARLEVILLE MEZIERES | E13: 508820 | F13: VOUZIERS | G13: 2.9 | H13: 42% | I13: 34% | J13: 4 | K13: 34% | L13: 34% | M13: 42 | N13: 63% | O13: 63% | P13: 35 | Q13: 48% | R13: 16% | S13: 9 | T13: 45% | U13: 45% | V13: 3 | W13: 57% | X13: 49% | Y13: 31
A14: 50 | B14: MARNE ARDENNES | C14: 11 | D14: REIMS | E14: 551305 | F14: REIMS HIPPODROME | G14: 5.3 | H14: 44% | I14: 36% | J14: 5 | K14: 42% | L14: 42% | M14: 74 | N14: 58% | O14: 58% | P14: 21 | Q14: 52% | R14: 20% | S14: 19 | T14: 58% | U14: 58% | V14: 10 | W14: 48% | X14: 40% | Y14: 13
A15: 50 | B15: MARNE ARDENNES | C15: 6 | D15: CHALONS EN CHAMPAGNE | E15: 451115 | F15: MOURMELON LE GRAND | G15: 2.8 | H15: 45% | I15: 37% | J15: 6 | K15: 41% | L15: 41% | M15: 69 | N15: 49% | O15: 49% | P15: 6 | Q15: 55% | R15: 23% | S15: 25 | T15: 59% | U15: 59% | V15: 11 | W15: 60% | X15: 52% | Y15: 38
A16: 50 | B16: MOSELLE | C16: 44 | D16: MOSELLE NORD | E16: 557660 | F16: UCKANGE | G16: 1.8 | H16: 45% | I16: 37% | J16: 7 | K16: 76% | L16: 76% | M16: 228 | N16: 52% | O16: 52% | P16: 8 | Q16: 59% | R16: 27% | S16: 44 | T16: 45% | U16: 45% | V16: 2 | W16: 32% | X16: 24% | Y16: 3
A17: 50 | B17: MOSELLE | C17: 44 | D17: MOSELLE NORD | E17: 557113 | F17: AUDUN LE TICHE | G17: 2.0 | H17: 46% | I17: 38% | J17: 8 | K17: 54% | L17: 54% | M17: 124 | N17: 48% | O17: 48% | P17: 4 | Q17: 60% | R17: 28% | S17: 52 | T17: 60% | U17: 60% | V17: 12 | W17: 48% | X17: 41% | Y17: 14
A18: 50 | B18: MARNE ARDENNES | C18: 6 | D18: CHALONS EN CHAMPAGNE | E18: 551330 | F18: MONTMIRAIL | G18: 2.8 | H18: 46% | I18: 38% | J18: 9 | K18: 17% | L18: 17% | M18: 8 | N18: 59% | O18: 59% | P18: 24 | Q18: 66% | R18: 34% | S18: 87 | T18: 62% | U18: 62% | V18: 15 | W18: 68% | X18: 60% | Y18: 87
A19: 50 | B19: BAS RHIN | C19: 5006 | D19: STRASBOURG | E19: 4037 | F19: MUNDOLSHEIM | G19: 3.7 | H19: 47% | I19: 39% | J19: 10 | K19: 39% | L19: 39% | M19: 66 | N19: 58% | O19: 58% | P19: 20 | Q19: 65% | R19: 33% | S19: 86 | T19: 57% | U19: 57% | V19: 7 | W19: 54% | X19: 47% | Y19: 23
A20: 50 | B20: MEURTHE ET MOSELLE MEUSE | C20: 26 | D20: NANCY | E20: 554476 | F20: NANCY ARTEM | G20: 2.8 | H20: 47% | I20: 39% | J20: 11 | K20: 36% | L20: 36% | M20: 57 | N20: 56% | O20: 56% | P20: 15 | Q20: 72% | R20: 40% | S20: 150 | T20: 71% | U20: 71% | V20: 62 | W20: 39% | X20: 31% | Y20: 5
A21: 50 | B21: MEURTHE ET MOSELLE MEUSE | C21: 26 | D21: NANCY | E21: 554601 | F21: SAINT MAX | G21: 3.4 | H21: 47% | I21: 39% | J21: 12 | K21: 25% | L21: 25% | M21: 22 | N21: 70% | O21: 70% | P21: 71 | Q21: 49% | R21: 17% | S21: 11 | T21: 66% | U21: 66% | V21: 28 | W21: 65% | X21: 57% | Y21: 61
A22: 50 | B22: MARNE ARDENNES | C22: 6 | D22: CHALONS EN CHAMPAGNE | E22: 451120 | F22: SARRY | G22: 2.3 | H22: 47% | I22: 39% | J22: 13 | K22: 9% | L22: 9% | M22: 3 | N22: 59% | O22: 59% | P22: 25 | Q22: 70% | R22: 38% | S22: 128 | T22: 71% | U22: 71% | V22: 57 | W22: 67% | X22: 59% | Y22: 80
A23: 50 | B23: MOSELLE | C23: 45 | D23: METZ | E23: 457443 | F23: METZ REPUBLIQUE | G23: 3.6 | H23: 48% | I23: 40% | J23: 14 | K23: 32% | L23: 32% | M23: 38 | N23: 76% | O23: 76% | P23: 118 | Q23: 32% | R23: 0% | S23: 1 | T23: 64% | U23: 64% | V23: 22 | W23: 74% | X23: 66% | Y23: 157
A24: 50 | B24: MARNE ARDENNES | C24: 11 | D24: REIMS | E24: 551340 | F24: BETHENY | G24: 2.4 | H24: 48% | I24: 40% | J24: 15 | K24: 36% | L24: 36% | M24: 53 | N24: 56% | O24: 56% | P24: 17 | Q24: 62% | R24: 30% | S24: 67 | T24: 77% | U24: 77% | V24: 97 | W24: 49% | X24: 41% | Y24: 15
A25: 50 | B25: MARNE ARDENNES | C25: 11 | D25: REIMS | E25: 551349 | F25: REIMS SAINT REMI | G25: 2.9 | H25: 48% | I25: 40% | J25: 16 | K25: 55% | L25: 55% | M25: 126 | N25: 46% | O25: 46% | P25: 3 | Q25: 73% | R25: 41% | S25: 166 | T25: 61% | U25: 61% | V25: 14 | W25: 47% | X25: 39% | Y25: 9
A26: 50 | B26: MOSELLE | C26: 42 | D26: MOSELLE EST | E26: 457165 | F26: BITCHE | G26: 2.4 | H26: 49% | I26: 41% | J26: 17 | K26: 29% | L26: 29% | M26: 35 | N26: 53% | O26: 53% | P26: 11 | Q26: 68% | R26: 36% | S26: 105 | T26: 62% | U26: 62% | V26: 16 | W26: 72% | X26: 65% | Y26: 136
A27: 50 | B27: BAS RHIN | C27: 5006 | D27: STRASBOURG | E27: 4048 | F27: STRASBOURG KOENIGSHOFFEN | G27: 1.9 | H27: 50% | I27: 42% | J27: 18 | K27: 67% | L27: 67% | M27: 177 | N27: 54% | O27: 54% | P27: 12 | Q27: 51% | R27: 19% | S27: 16 | T27: 62% | U27: 62% | V27: 18 | W27: 54% | X27: 47% | Y27: 24
A28: 262 | B28: AUBE HAUTE MARNE | C28: 21 | D28: CHAUMONT | E28: 510590 | F28: CHAUMONT REPUBLIQUE | G28: 2.9 | H28: 50% | I28: 42% | J28: 19 | K28: 34% | L28: 34% | M28: 41 | N28: 77% | O28: 77% | P28: 130 | Q28: 56% | R28: 24% | S28: 28 | T28: 64% | U28: 64% | V28: 19 | W28: 60% | X28: 52% | Y28: 39
A29: 262 | B29: MEURTHE ET MOSELLE MEUSE | C29: 27 | D29: PONT A MOUSSON | E29: 554506 | F29: CHALIGNY NEUVES MAISONS | G29: 3.4 | H29: 50% | I29: 42% | J29: 20 | K29: 60% | L29: 60% | M29: 143 | N29: 53% | O29: 53% | P29: 9 | Q29: 75% | R29: 43% | S29: 176 | T29: 55% | U29: 55% | V29: 5 | W29: 47% | X29: 40% | Y29: 10
A30: 262 | B30: MARNE ARDENNES | C30: 2 | D30: CHARLEVILLE MEZIERES | E30: 408801 | F30: CHARLEVILLE JEAN JAURES | G30: 8.8 | H30: 50% | I30: 42% | J30: 21 | K30: 36% | L30: 36% | M30: 55 | N30: 68% | O30: 68% | P30: 58 | Q30: 62% | R30: 30% | S30: 66 | T30: 68% | U30: 68% | V30: 33 | W30: 58% | X30: 51% | Y30: 35
A31: 262 | B31: MOSELLE | C31: 42 | D31: MOSELLE EST | E31: 557250 | F31: CREUTZWALD | G31: 2.5 | H31: 51% | I31: 43% | J31: 22 | K31: 22% | L31: 22% | M31: 17 | N31: 79% | O31: 79% | P31: 149 | Q31: 65% | R31: 33% | S31: 80 | T31: 71% | U31: 71% | V31: 54 | W31: 59% | X31: 51% | Y31: 37
A32: 262 | B32: MOSELLE | C32: 45 | D32: METZ | E32: 457453 | F32: MONTIGNY LES METZ | G32: 7.0 | H32: 51% | I32: 43% | J32: 23 | K32: 22% | L32: 22% | M32: 18 | N32: 65% | O32: 65% | P32: 45 | Q32: 69% | R32: 37% | S32: 120 | T32: 78% | U32: 78% | V32: 106 | W32: 61% | X32: 53% | Y32: 43
A33: 262 | B33: MARNE ARDENNES | C33: 6 | D33: CHALONS EN CHAMPAGNE | E33: 551354 | F33: VERTUS | G33: 2.0 | H33: 51% | I33: 43% | J33: 24 | K33: 0% | L33: 0% | M33: 1 | N33: 82% | O33: 82% | P33: 167 | Q33: 56% | R33: 24% | S33: 29 | T33: 86% | U33: 86% | V33: 192 | W33: 72% | X33: 64% | Y33: 126
A34: 262 | B34: MARNE ARDENNES | C34: 11 | D34: REIMS | E34: 451350 | F34: REIMS CENTRE VILLE | G34: 6.5 | H34: 51% | I34: 43% | J34: 25 | K34: 63% | L34: 63% | M34: 153 | N34: 56% | O34: 56% | P34: 19 | Q34: 66% | R34: 34% | S34: 92 | T34: 66% | U34: 66% | V34: 25 | W34: 45% | X34: 37% | Y34: 7
A35: 262 | B35: MEURTHE ET MOSELLE MEUSE | C35: 27 | D35: PONT A MOUSSON | E35: 554381 | F35: LAXOU ARISTIDE BRIAND | G35: 2.4 | H35: 51% | I35: 43% | J35: 26 | K35: 66% | L35: 66% | M35: 175 | N35: 50% | O35: 50% | P35: 7 | Q35: 72% | R35: 40% | S35: 156 | T35: 62% | U35: 62% | V35: 17 | W35: 45% | X35: 38% | Y35: 8
A36: 262 | B36: MEURTHE ET MOSELLE MEUSE | C36: 27 | D36: PONT A MOUSSON | E36: 554531 | F36: POMPEY | G36: 3.0 | H36: 51% | I36: 43% | J36: 27 | K36: 73% | L36: 73% | M36: 210 | N36: 49% | O36: 49% | P36: 5 | Q36: 67% | R36: 35% | S36: 103 | T36: 71% | U36: 71% | V36: 52 | W36: 38% | X36: 30% | Y36: 4
A37: 262 | B37: MEURTHE ET MOSELLE MEUSE | C37: 26 | D37: NANCY | E37: 554356 | F37: JARVILLE LA MALGRANGE | G37: 4.3 | H37: 52% | I37: 44% | J37: 28 | K37: 33% | L37: 33% | M37: 40 | N37: 62% | O37: 62% | P37: 30 | Q37: 70% | R37: 38% | S37: 132 | T37: 71% | U37: 71% | V37: 61 | W37: 61% | X37: 54% | Y37: 46
A38: 262 | B38: MOSELLE | C38: 44 | D38: MOSELLE NORD | E38: 557352 | F38: HETTANGE GRANDE | G38: 2.9 | H38: 52% | I38: 44% | J38: 29 | K38: 63% | L38: 63% | M38: 152 | N38: 59% | O38: 59% | P38: 23 | Q38: 64% | R38: 32% | S38: 78 | T38: 70% | U38: 70% | V38: 50 | W38: 43% | X38: 36% | Y38: 6
A39: 262 | B39: MEURTHE ET MOSELLE MEUSE | C39: 26 | D39: NANCY | E39: 454481 | F39: NANCY PLACE DOMBASLE | G39: 7.9 | H39: 52% | I39: 44% | J39: 30 | K39: 64% | L39: 64% | M39: 157 | N39: 65% | O39: 65% | P39: 46 | Q39: 46% | R39: 14% | S39: 6 | T39: 76% | U39: 76% | V39: 95 | W39: 50% | X39: 42% | Y39: 17
A40: 262 | B40: MARNE ARDENNES | C40: 6 | D40: CHALONS EN CHAMPAGNE | E40: 551110 | F40: CHALONS ROOSEVELT | G40: 4.2 | H40: 52% | I40: 44% | J40: 31 | K40: 25% | L40: 25% | M40: 20 | N40: 72% | O40: 72% | P40: 90 | Q40: 68% | R40: 36% | S40: 113 | T40: 68% | U40: 68% | V40: 35 | W40: 69% | X40: 62% | Y40: 99
A41: 262 | B41: MARNE ARDENNES | C41: 11 | D41: REIMS | E41: 551365 | F41: DORMANS | G41: 2.5 | H41: 52% | I41: 44% | J41: 32 | K41: 47% | L41: 47% | M41: 93 | N41: 53% | O41: 53% | P41: 10 | Q41: 74% | R41: 42% | S41: 167 | T41: 71% | U41: 71% | V41: 53 | W41: 58% | X41: 50% | Y41: 33
A42: 262 | B42: MARNE ARDENNES | C42: 11 | D42: REIMS | E42: 451301 | F42: REIMS HOTEL DE VILLE | G42: 7.1 | H42: 53% | I42: 45% | J42: 33 | K42: 44% | L42: 44% | M42: 85 | N42: 66% | O42: 66% | P42: 53 | Q42: 70% | R42: 38% | S42: 131 | T42: 61% | U42: 61% | V42: 13 | W42: 61% | X42: 53% | Y42: 45
A43: 262 | B43: MOSELLE | C43: 45 | D43: METZ | E43: 557439 | F43: METZ POMPIDOU | G43: 2.4 | H43: 53% | I43: 45% | J43: 34 | K43: 39% | L43: 39% | M43: 65 | N43: 71% | O43: 71% | P43: 78 | Q43: 49% | R43: 17% | S43: 10 | T43: 80% | U43: 80% | V43: 133 | W43: 65% | X43: 57% | Y43: 65
A44: 262 | B44: MARNE ARDENNES | C44: 2 | D44: CHARLEVILLE MEZIERES | E44: 508839 | F44: GIVET | G44: 3.4 | H44: 53% | I44: 45% | J44: 35 | K44: 45% | L44: 45% | M44: 88 | N44: 69% | O44: 69% | P44: 67 | Q44: 72% | R44: 40% | S44: 154 | T44: 56% | U44: 56% | V44: 6 | W44: 60% | X44: 52% | Y44: 40
A45: 262 | B45: VOSGES | C45: 57 | D45: EPINAL | E45: 588336 | F45: GOLBEY | G45: 2.8 | H45: 53% | I45: 45% | J45: 36 | K45: 28% | L45: 28% | M45: 29 | N45: 75% | O45: 75% | P45: 108 | Q45: 62% | R45: 30% | S45: 64 | T45: 74% | U45: 74% | V45: 80 | W45: 65% | X45: 57% | Y45: 63
A46: 262 | B46: BAS RHIN | C46: 5006 | D46: STRASBOURG | E46: 4038 | F46: OBERHAUSBERGEN | G46: 3.3 | H46: 53% | I46: 45% | J46: 37 | K46: 37% | L46: 37% | M46: 60 | N46: 66% | O46: 66% | P46: 51 | Q46: 51% | R46: 19% | S46: 15 | T46: 87% | U46: 87% | V46: 200 | W46: 63% | X46: 55% | Y46: 55
A47: 262 | B47: MARNE ARDENNES | C47: 11 | D47: REIMS | E47: 451361 | F47: PIERRY LECLERC | G47: 1.8 | H47: 53% | I47: 45% | J47: 38 | K47: 39% | L47: 39% | M47: 64 | N47: 65% | O47: 65% | P47: 48 | Q47: 53% | R47: 21% | S47: 22 | T47: 79% | U47: 79% | V47: 119 | W47: 70% | X47: 62% | Y47: 103
A48: 262 | B48: MARNE ARDENNES | C48: 11 | D48: REIMS | E48: 551369 | F48: DAMERY | G48: 1.7 | H48: 53% | I48: 45% | J48: 39 | K48: 44% | L48: 44% | M48: 80 | N48: 61% | O48: 61% | P48: 28 | Q48: 76% | R48: 44% | S48: 183 | T48: 71% | U48: 71% | V48: 58 | W48: 54% | X48: 46% | Y48: 20
A49: 262 | B49: MOSELLE | C49: 45 | D49: METZ | E49: 457574 | F49: ROMBAS | G49: 2.7 | H49: 53% | I49: 45% | J49: 40 | K49: 29% | L49: 29% | M49: 34 | N49: 71% | O49: 71% | P49: 77 | Q49: 69% | R49: 37% | S49: 122 | T49: 64% | U49: 64% | V49: 24 | W49: 73% | X49: 66% | Y49: 146
A50: 262 | B50: MARNE ARDENNES | C50: 11 | D50: REIMS | E50: 551367 | F50: AY CHAMPAGNE | G50: 2.7 | H50: 54% | I50: 46% | J50: 41 | K50: 34% | L50: 34% | M50: 47 | N50: 75% | O50: 75% | P50: 105 | Q50: 66% | R50: 34% | S50: 94 | T50: 70% | U50: 70% | V50: 51 | W50: 63% | X50: 55% | Y50: 54
A51: 262 | B51: MOSELLE | C51: 42 | D51: MOSELLE EST | E51: 457583 | F51: SAINT AVOLD | G51: 7.0 | H51: 54% | I51: 46% | J51: 42 | K51: 34% | L51: 34% | M51: 44 | N51: 63% | O51: 63% | P51: 39 | Q51: 66% | R51: 34% | S51: 88 | T51: 73% | U51: 73% | V51: 75 | W51: 73% | X51: 65% | Y51: 141
A52: 262 | B52: MOSELLE | C52: 45 | D52: METZ | E52: 457446 | F52: METZ SAINT LOUIS | G52: 5.6 | H52: 54% | I52: 46% | J52: 43 | K52: 47% | L52: 47% | M52: 94 | N52: 63% | O52: 63% | P52: 32 | Q52: 74% | R52: 42% | S52: 168 | T52: 71% | U52: 71% | V52: 56 | W52: 55% | X52: 47% | Y52: 25
A53: 262 | B53: MEURTHE ET MOSELLE MEUSE | C53: 27 | D53: PONT A MOUSSON | E53: 554516 | F53: PAGNY SUR MOSELLE | G53: 2.8 | H53: 54% | I53: 46% | J53: 44 | K53: 50% | L53: 50% | M53: 109 | N53: 69% | O53: 69% | P53: 69 | Q53: 59% | R53: 27% | S53: 48 | T53: 64% | U53: 64% | V53: 23 | W53: 67% | X53: 59% | Y53: 76
A54: 262 | B54: MOSELLE | C54: 44 | D54: MOSELLE NORD | E54: 457350 | F54: HAYANGE | G54: 6.4 | H54: 54% | I54: 46% | J54: 45 | K54: 58% | L54: 58% | M54: 136 | N54: 63% | O54: 63% | P54: 34 | Q54: 65% | R54: 33% | S54: 79 | T54: 64% | U54: 64% | V54: 20 | W54: 61% | X54: 54% | Y54: 47
A55: 262 | B55: BAS RHIN | C55: 5006 | D55: STRASBOURG | E55: 4010 | F55: STRASBOURG MEINAU | G55: 2.7 | H55: 54% | I55: 46% | J55: 46 | K55: 46% | L55: 46% | M55: 90 | N55: 72% | O55: 72% | P55: 83 | Q55: 59% | R55: 27% | S55: 46 | T55: 64% | U55: 64% | V55: 21 | W55: 70% | X55: 62% | Y55: 111
A56: 262 | B56: BAS RHIN | C56: 5060 | D56: HAGUENAU | E56: 4092 | F56: HOCHFELDEN | G56: 1.7 | H56: 54% | I56: 46% | J56: 47 | K56: 37% | L56: 37% | M56: 61 | N56: 72% | O56: 72% | P56: 89 | Q56: 52% | R56: 20% | S56: 21 | T56: 79% | U56: 79% | V56: 125 | W56: 70% | X56: 62% | Y56: 100
A57: 262 | B57: MEURTHE ET MOSELLE MEUSE | C57: 31 | D57: VERDUN | E57: 555679 | F57: VERDUN MAZEL | G57: 3.6 | H57: 54% | I57: 46% | J57: 48 | K57: 21% | L57: 21% | M57: 15 | N57: 75% | O57: 75% | P57: 103 | Q57: 63% | R57: 31% | S57: 72 | T57: 79% | U57: 79% | V57: 123 | W57: 73% | X57: 65% | Y57: 145
A58: 262 | B58: MOSELLE | C58: 42 | D58: MOSELLE EST | E58: 457308 | F58: FORBACH CENTRALE | G58: 9.3 | H58: 54% | I58: 46% | J58: 49 | K58: 44% | L58: 44% | M58: 82 | N58: 63% | O58: 63% | P58: 37 | Q58: 66% | R58: 34% | S58: 89 | T58: 70% | U58: 70% | V58: 43 | W58: 68% | X58: 60% | Y58: 90
A59: 262 | B59: MEURTHE ET MOSELLE MEUSE | C59: 31 | D59: VERDUN | E59: 455678 | F59: VERDUN CENTRALE | G59: 9.6 | H59: 54% | I59: 46% | J59: 50 | K59: 23% | L59: 23% | M59: 19 | N59: 68% | O59: 68% | P59: 60 | Q59: 82% | R59: 50% | S59: 224 | T59: 80% | U59: 80% | V59: 129 | W59: 58% | X59: 50% | Y59: 34
A60: 262 | B60: MARNE ARDENNES | C60: 2 | D60: CHARLEVILLE MEZIERES | E60: 508833 | F60: VILLERS SEMEUSE CORA | G60: 3.2 | H60: 54% | I60: 46% | J60: 51 | K60: 69% | L60: 69% | M60: 192 | N60: 74% | O60: 74% | P60: 96 | Q60: 56% | R60: 24% | S60: 30 | T60: 57% | U60: 57% | V60: 8 | W60: 55% | X60: 48% | Y60: 27
A61: 262 | B61: VOSGES | C61: 55 | D61: SAINT DIE | E61: 488246 | F61: CORNIMONT LA BRESSE | G61: 2.6 | H61: 54% | I61: 46% | J61: 52 | K61: 18% | L61: 18% | M61: 9 | N61: 71% | O61: 71% | P61: 81 | Q61: 71% | R61: 39% | S61: 139 | T61: 77% | U61: 77% | V61: 101 | W61: 75% | X61: 68% | Y61: 170
A62: 262 | B62: MEURTHE ET MOSELLE MEUSE | C62: 31 | D62: VERDUN | E62: 554413 | F62: LONGWY BAS | G62: 3.5 | H62: 54% | I62: 46% | J62: 53 | K62: 25% | L62: 25% | M62: 21 | N62: 72% | O62: 72% | P62: 85 | Q62: 70% | R62: 38% | S62: 127 | T62: 78% | U62: 78% | V62: 105 | W62: 68% | X62: 60% | Y62: 89
A63: 262 | B63: BAS RHIN | C63: 5101 | D63: SELESTAT | E63: 4113 | F63: BARR | G63: 2.9 | H63: 55% | I63: 47% | J63: 54 | K63: 26% | L63: 26% | M63: 23 | N63: 64% | O63: 64% | P63: 41 | Q63: 70% | R63: 38% | S63: 130 | T63: 80% | U63: 80% | V63: 138 | W63: 72% | X63: 64% | Y63: 128
A64: 262 | B64: MOSELLE | C64: 45 | D64: METZ | E64: 557447 | F64: METZ SAINT MAXIMIN | G64: 2.2 | H64: 55% | I64: 47% | J64: 55 | K64: 64% | L64: 64% | M64: 165 | N64: 68% | O64: 68% | P64: 62 | Q64: 61% | R64: 29% | S64: 57 | T64: 54% | U64: 54% | V64: 4 | W64: 66% | X64: 59% | Y64: 73
A65: 262 | B65: MEURTHE ET MOSELLE MEUSE | C65: 31 | D65: VERDUN | E65: 454414 | F65: LONGWY HAUT | G65: 3.3 | H65: 55% | I65: 47% | J65: 56 | K65: 49% | L65: 49% | M65: 104 | N65: 72% | O65: 72% | P65: 88 | Q65: 62% | R65: 30% | S65: 65 | T65: 68% | U65: 68% | V65: 37 | W65: 63% | X65: 55% | Y65: 53
A66: 262 | B66: MEURTHE ET MOSELLE MEUSE | C66: 26 | D66: NANCY | E66: 554116 | F66: BACCARAT | G66: 2.8 | H66: 55% | I66: 47% | J66: 57 | K66: 14% | L66: 14% | M66: 5 | N66: 77% | O66: 77% | P66: 128 | Q66: 67% | R66: 35% | S66: 95 | T66: 78% | U66: 78% | V66: 112 | W66: 78% | X66: 70% | Y66: 199
A67: 262 | B67: MEURTHE ET MOSELLE MEUSE | C67: 26 | D67: NANCY | E67: 554636 | F67: TOMBLAINE | G67: 2.7 | H67: 55% | I67: 47% | J67: 58 | K67: 20% | L67: 20% | M67: 14 | N67: 80% | O67: 80% | P67: 155 | Q67: 59% | R67: 27% | S67: 42 | T67: 82% | U67: 82% | V67: 152 | W67: 74% | X67: 66% | Y67: 156
A68: 262 | B68: BAS RHIN | C68: 5060 | D68: HAGUENAU | E68: 4079 | F68: SOULTZ SOUS FORETS | G68: 1.9 | H68: 55% | I68: 47% | J68: 59 | K68: 35% | L68: 35% | M68: 52 | N68: 71% | O68: 71% | P68: 79 | Q68: 59% | R68: 27% | S68: 43 | T68: 74% | U68: 74% | V68: 77 | W68: 76% | X68: 68% | Y68: 175
A69: 262 | B69: MARNE ARDENNES | C69: 11 | D69: REIMS | E69: 551314 | F69: FISMES | G69: 2.7 | H69: 55% | I69: 47% | J69: 60 | K69: 26% | L69: 26% | M69: 25 | N69: 61% | O69: 61% | P69: 27 | Q69: 81% | R69: 49% | S69: 217 | T69: 81% | U69: 81% | V69: 147 | W69: 68% | X69: 60% | Y69: 85
A70: 262 | B70: BAS RHIN | C70: 5006 | D70: STRASBOURG | E70: 4054 | F70: STRASBOURG MONTAGNE VERTE | G70: 2.6 | H70: 55% | I70: 47% | J70: 61 | K70: 35% | L70: 35% | M70: 48 | N70: 72% | O70: 72% | P70: 91 | Q70: 61% | R70: 29% | S70: 60 | T70: 70% | U70: 70% | V70: 46 | W70: 78% | X70: 71% | Y70: 207
A71: 262 | B71: VOSGES | C71: 55 | D71: SAINT DIE | E71: 488326 | F71: GERARDMER | G71: 3.8 | H71: 55% | I71: 47% | J71: 62 | K71: 48% | L71: 48% | M71: 98 | N71: 76% | O71: 76% | P71: 119 | Q71: 50% | R71: 18% | S71: 13 | T71: 77% | U71: 77% | V71: 99 | W71: 66% | X71: 58% | Y71: 70
A72: 262 | B72: MOSELLE | C72: 42 | D72: MOSELLE EST | E72: 557668 | F72: VALMONT | G72: 2.6 | H72: 55% | I72: 47% | J72: 63 | K72: 35% | L72: 35% | M72: 50 | N72: 83% | O72: 83% | P72: 186 | Q72: 52% | R72: 20% | S72: 18 | T72: 75% | U72: 75% | V72: 82 | W72: 72% | X72: 65% | Y72: 135
A73: 262 | B73: VOSGES | C73: 55 | D73: SAINT DIE | E73: 588551 | F73: RAMBERVILLERS | G73: 2.6 | H73: 56% | I73: 48% | J73: 64 | K73: 27% | L73: 27% | M73: 28 | N73: 83% | O73: 83% | P73: 188 | Q73: 62% | R73: 30% | S73: 68 | T73: 88% | U73: 88% | V73: 209 | W73: 56% | X73: 48% | Y73: 28
A74: 262 | B74: MOSELLE | C74: 45 | D74: METZ | E74: 557434 | F74: MARLY | G74: 3.0 | H74: 56% | I74: 48% | J74: 65 | K74: 28% | L74: 28% | M74: 30 | N74: 76% | O74: 76% | P74: 121 | Q74: 63% | R74: 32% | S74: 73 | T74: 85% | U74: 85% | V74: 186 | W74: 67% | X74: 59% | Y74: 79
A75: 264 | B75: MARNE ARDENNES | C75: 11 | D75: REIMS | E75: 451336 | F75: TINQUEUX | G75: 4.8 | H75: 56% | I75: 48% | J75: 66 | K75: 61% | L75: 61% | M75: 147 | N75: 68% | O75: 68% | P75: 61 | Q75: 47% | R75: 15% | S75: 7 | T75: 78% | U75: 78% | V75: 108 | W75: 67% | X75: 59% | Y75: 75
A76: 264 | B76: MEURTHE ET MOSELLE MEUSE | C76: 27 | D76: PONT A MOUSSON | E76: 554686 | F76: VEZELISE | G76: 1.9 | H76: 56% | I76: 48% | J76: 67 | K76: 18% | L76: 18% | M76: 10 | N76: 76% | O76: 76% | P76: 123 | Q76: 63% | R76: 31% | S76: 71 | T76: 82% | U76: 82% | V76: 157 | W76: 81% | X76: 73% | Y76: 224
A77: 264 | B77: BAS RHIN | C77: 5101 | D77: SELESTAT | E77: 4104 | F77: ERSTEIN | G77: 4.4 | H77: 56% | I77: 48% | J77: 68 | K77: 73% | L77: 73% | M77: 212 | N77: 54% | O77: 54% | P77: 13 | Q77: 59% | R77: 27% | S77: 39 | T77: 69% | U77: 69% | V77: 39 | W77: 67% | X77: 59% | Y77: 77
A78: 264 | B78: MARNE ARDENNES | C78: 11 | D78: REIMS | E78: 551306 | F78: REIMS SAINT MARCEAUX | G78: 4.1 | H78: 56% | I78: 48% | J78: 69 | K78: 37% | L78: 37% | M78: 58 | N78: 56% | O78: 56% | P78: 14 | Q78: 92% | R78: 60% | S78: 237 | T78: 73% | U78: 73% | V78: 76 | W78: 64% | X78: 56% | Y78: 59
A79: 264 | B79: AUBE HAUTE MARNE | C79: 21 | D79: CHAUMONT | E79: 410541 | F79: LANGRES | G79: 8.2 | H79: 56% | I79: 48% | J79: 70 | K79: 43% | L79: 43% | M79: 77 | N79: 74% | O79: 74% | P79: 98 | Q79: 62% | R79: 30% | S79: 63 | T79: 72% | U79: 72% | V79: 68 | W79: 71% | X79: 64% | Y79: 123
A80: 264 | B80: MARNE ARDENNES | C80: 2 | D80: CHARLEVILLE MEZIERES | E80: 408840 | F80: RETHEL | G80: 4.3 | H80: 56% | I80: 48% | J80: 71 | K80: 58% | L80: 58% | M80: 139 | N80: 66% | O80: 66% | P80: 50 | Q80: 63% | R80: 31% | S80: 70 | T80: 72% | U80: 72% | V80: 67 | W80: 63% | X80: 55% | Y80: 56
A81: 264 | B81: MOSELLE | C81: 42 | D81: MOSELLE EST | E81: 457617 | F81: SARREGUEMINES | G81: 6.6 | H81: 56% | I81: 48% | J81: 72 | K81: 59% | L81: 59% | M81: 140 | N81: 67% | O81: 67% | P81: 55 | Q81: 65% | R81: 33% | S81: 84 | T81: 73% | U81: 73% | V81: 73 | W81: 59% | X81: 51% | Y81: 36
A82: 264 | B82: MEURTHE ET MOSELLE MEUSE | C82: 27 | D82: PONT A MOUSSON | E82: 454535 | F82: PONT A MOUSSON CENTRALE | G82: 5.2 | H82: 56% | I82: 48% | J82: 73 | K82: 77% | L82: 77% | M82: 232 | N82: 58% | O82: 58% | P82: 22 | Q82: 67% | R82: 35% | S82: 101 | T82: 66% | U82: 66% | V82: 29 | W82: 53% | X82: 46% | Y82: 19
A83: 264 | B83: MOSELLE | C83: 44 | D83: MOSELLE NORD | E83: 457632 | F83: THIONVILLE CENTRALE | G83: 10.6 | H83: 57% | I83: 49% | J83: 74 | K83: 56% | L83: 56% | M83: 131 | N83: 62% | O83: 62% | P83: 31 | Q83: 75% | R83: 43% | S83: 178 | T83: 66% | U83: 66% | V83: 27 | W83: 62% | X83: 54% | Y83: 50
A84: 264 | B84: MOSELLE | C84: 44 | D84: MOSELLE NORD | E84: 457348 | F84: HAGONDANGE | G84: 8.2 | H84: 57% | I84: 49% | J84: 75 | K84: 49% | L84: 49% | M84: 103 | N84: 68% | O84: 68% | P84: 56 | Q84: 71% | R84: 39% | S84: 144 | T84: 71% | U84: 71% | V84: 64 | W84: 64% | X84: 56% | Y84: 57
A85: 264 | B85: VOSGES | C85: 57 | D85: EPINAL | E85: 488561 | F85: REMIREMONT | G85: 7.2 | H85: 57% | I85: 49% | J85: 76 | K85: 18% | L85: 18% | M85: 11 | N85: 76% | O85: 76% | P85: 125 | Q85: 73% | R85: 41% | S85: 165 | T85: 78% | U85: 78% | V85: 109 | W85: 78% | X85: 70% | Y85: 194
A86: 264 | B86: VOSGES | C86: 55 | D86: SAINT DIE | E86: 588186 | F86: BRUYERES | G86: 3.5 | H86: 57% | I86: 49% | J86: 77 | K86: 26% | L86: 26% | M86: 26 | N86: 77% | O86: 77% | P86: 132 | Q86: 71% | R86: 39% | S86: 141 | T86: 82% | U86: 82% | V86: 149 | W86: 68% | X86: 60% | Y86: 88
A87: 264 | B87: MARNE ARDENNES | C87: 11 | D87: REIMS | E87: 451370 | F87: EPERNAY | G87: 8.9 | H87: 57% | I87: 49% | J87: 78 | K87: 43% | L87: 43% | M87: 76 | N87: 68% | O87: 68% | P87: 64 | Q87: 71% | R87: 39% | S87: 140 | T87: 77% | U87: 77% | V87: 96 | W87: 66% | X87: 58% | Y87: 69
A88: 264 | B88: BAS RHIN | C88: 5006 | D88: STRASBOURG | E88: 4043 | F88: STRASBOURG HALLES | G88: 7.7 | H88: 57% | I88: 49% | J88: 79 | K88: 61% | L88: 61% | M88: 148 | N88: 63% | O88: 63% | P88: 33 | Q88: 71% | R88: 39% | S88: 142 | T88: 58% | U88: 58% | V88: 9 | W88: 72% | X88: 64% | Y88: 125
A89: 264 | B89: MARNE ARDENNES | C89: 2 | D89: CHARLEVILLE MEZIERES | E89: 508802 | F89: CHARLEVILLE NEVERS | G89: 2.8 | H89: 57% | I89: 49% | J89: 80 | K89: 26% | L89: 26% | M89: 24 | N89: 87% | O89: 87% | P89: 209 | Q89: 68% | R89: 36% | S89: 104 | T89: 72% | U89: 72% | V89: 65 | W89: 73% | X89: 65% | Y89: 144
A90: 264 | B90: MOSELLE | C90: 45 | D90: METZ | E90: 557612 | F90: SAINTE MARIE AUX CHENES | G90: 3.7 | H90: 57% | I90: 49% | J90: 81 | K90: 28% | L90: 28% | M90: 32 | N90: 89% | O90: 89% | P90: 227 | Q90: 50% | R90: 18% | S90: 14 | T90: 79% | U90: 79% | V90: 122 | W90: 79% | X90: 72% | Y90: 216
A91: 264 | B91: MARNE ARDENNES | C91: 6 | D91: CHALONS EN CHAMPAGNE | E91: 451101 | F91: CHALONS VIVIERS | G91: 9.6 | H91: 57% | I91: 49% | J91: 82 | K91: 30% | L91: 30% | M91: 36 | N91: 76% | O91: 76% | P91: 126 | Q91: 76% | R91: 44% | S91: 188 | T91: 74% | U91: 74% | V91: 81 | W91: 70% | X91: 62% | Y91: 101
A92: 264 | B92: MOSELLE | C92: 44 | D92: MOSELLE NORD | E92: 557303 | F92: FAMECK | G92: 2.8 | H92: 57% | I92: 49% | J92: 83 | K92: 35% | L92: 35% | M92: 49 | N92: 72% | O92: 72% | P92: 82 | Q92: 70% | R92: 38% | S92: 126 | T92: 90% | U92: 90% | V92: 216 | W92: 61% | X92: 53% | Y92: 41
A93: 264 | B93: MEURTHE ET MOSELLE MEUSE | C93: 31 | D93: VERDUN | E93: 555406 | F93: LIGNY EN BARROIS | G93: 2.5 | H93: 58% | I93: 50% | J93: 84 | K93: 21% | L93: 21% | M93: 16 | N93: 77% | O93: 77% | P93: 131 | Q93: 60% | R93: 28% | S93: 49 | T93: 93% | U93: 93% | V93: 227 | W93: 77% | X93: 69% | Y93: 181
A94: 264 | B94: MOSELLE | C94: 44 | D94: MOSELLE NORD | E94: 457158 | F94: YUTZ | G94: 4.4 | H94: 58% | I94: 50% | J94: 85 | K94: 64% | L94: 64% | M94: 155 | N94: 67% | O94: 67% | P94: 54 | Q94: 64% | R94: 32% | S94: 74 | T94: 71% | U94: 71% | V94: 55 | W94: 64% | X94: 56% | Y94: 58
A95: 264 | B95: MOSELLE | C95: 42 | D95: MOSELLE EST | E95: 557305 | F95: FAULQUEMONT | G95: 4.3 | H95: 58% | I95: 50% | J95: 86 | K95: 75% | L95: 75% | M95: 223 | N95: 56% | O95: 56% | P95: 16 | Q95: 79% | R95: 47% | S95: 207 | T95: 70% | U95: 70% | V95: 49 | W95: 48% | X95: 40% | Y95: 12
A96: 264 | B96: MOSELLE | C96: 45 | D96: METZ | E96: 557444 | F96: SAINT JULIEN LES METZ | G96: 3.7 | H96: 58% | I96: 50% | J96: 87 | K96: 75% | L96: 75% | M96: 220 | N96: 70% | O96: 70% | P96: 72 | Q96: 51% | R96: 19% | S96: 17 | T96: 73% | U96: 73% | V96: 71 | W96: 62% | X96: 54% | Y96: 49
A97: 30 | B97: MOSELLE | C97: 44 | D97: MOSELLE NORD | E97: 457306 | F97: FLORANGE | G97: 4.7 | H97: 58% | I97: 50% | J97: 88 | K97: 77% | L97: 77% | M97: 230 | N97: 61% | O97: 61% | P97: 29 | Q97: 68% | R97: 36% | S97: 111 | T97: 76% | U97: 76% | V97: 91 | W97: 48% | X97: 40% | Y97: 11
A98: 30 | B98: MARNE ARDENNES | C98: 11 | D98: REIMS | E98: 551310 | F98: REIMS CHATILLONS | G98: 4.0 | H98: 58% | I98: 50% | J98: 89 | K98: 56% | L98: 56% | M98: 128 | N98: 65% | O98: 65% | P98: 47 | Q98: 69% | R98: 37% | S98: 125 | T98: 75% | U98: 75% | V98: 87 | W98: 65% | X98: 58% | Y98: 66
A99: 30 | B99: MOSELLE | C99: 42 | D99: MOSELLE EST | E99: 457543 | F99: PUTTELANGE AUX LACS | G99: 2.5 | H99: 58% | I99: 50% | J99: 90 | K99: 54% | L99: 54% | M99: 122 | N99: 74% | O99: 74% | P99: 99 | Q99: 68% | R99: 36% | S99: 106 | T99: 70% | U99: 70% | V99: 45 | W99: 66% | X99: 59% | Y99: 72
A100: 30 | B100: MOSELLE | C100: 44 | D100: MOSELLE NORD | E100: 557347 | F100: GUENANGE | G100: 4.5 | H100: 58% | I100: 50% | J100: 91 | K100: 72% | L100: 72% | M100: 209 | N100: 63% | O100: 63% | P100: 38 | Q100: 71% | R100: 39% | S100: 148 | T100: 69% | U100: 69% | V100: 40 | W100: 55% | X100: 48% | Y100: 26
A101: 30 | B101: AUBE HAUTE MARNE | C101: 14 | D101: TROYES | E101: 510570 | F101: NOGENT SUR SEINE | G101: 4.3 | H101: 58% | I101: 50% | J101: 92 | K101: 26% | L101: 26% | M101: 27 | N101: 75% | O101: 75% | P101: 109 | Q101: 77% | R101: 45% | S101: 193 | T101: 81% | U101: 81% | V101: 148 | W101: 71% | X101: 63% | Y101: 119
A102: 30 | B102: MARNE ARDENNES | C102: 6 | D102: CHALONS EN CHAMPAGNE | E102: 551128 | F102: SAINTE MENEHOULD | G102: 3.1 | H102: 58% | I102: 50% | J102: 93 | K102: 33% | L102: 33% | M102: 39 | N102: 75% | O102: 75% | P102: 115 | Q102: 76% | R102: 44% | S102: 187 | T102: 71% | U102: 71% | V102: 63 | W102: 76% | X102: 68% | Y102: 177
A103: 30 | B103: VOSGES | C103: 55 | D103: SAINT DIE | E103: 588666 | F103: VAGNEY | G103: 3.3 | H103: 58% | I103: 50% | J103: 94 | K103: 29% | L103: 29% | M103: 33 | N103: 83% | O103: 83% | P103: 181 | Q103: 61% | R103: 29% | S103: 59 | T103: 83% | U103: 83% | V103: 167 | W103: 76% | X103: 68% | Y103: 174
A104: 30 | B104: MEURTHE ET MOSELLE MEUSE | C104: 27 | D104: PONT A MOUSSON | E104: 554416 | F104: LUDRES | G104: 3.5 | H104: 59% | I104: 51% | J104: 95 | K104: 44% | L104: 44% | M104: 84 | N104: 78% | O104: 78% | P104: 146 | Q104: 59% | R104: 27% | S104: 40 | T104: 81% | U104: 81% | V104: 144 | W104: 70% | X104: 62% | Y104: 110
A105: 30 | B105: MARNE ARDENNES | C105: 11 | D105: REIMS | E105: 551341 | F105: REIMS JEAN JAURES | G105: 2.9 | H105: 59% | I105: 51% | J105: 96 | K105: 70% | L105: 70% | M105: 198 | N105: 68% | O105: 68% | P105: 65 | Q105: 55% | R105: 23% | S105: 24 | T105: 80% | U105: 80% | V105: 131 | W105: 61% | X105: 53% | Y105: 42
A106: 30 | B106: MOSELLE | C106: 42 | D106: MOSELLE EST | E106: 557523 | F106: PHALSBOURG | G106: 2.4 | H106: 59% | I106: 51% | J106: 97 | K106: 58% | L106: 58% | M106: 137 | N106: 80% | O106: 80% | P106: 156 | Q106: 57% | R106: 25% | S106: 32 | T106: 69% | U106: 69% | V106: 38 | W106: 70% | X106: 62% | Y106: 106
A107: 30 | B107: BAS RHIN | C107: 5060 | D107: HAGUENAU | E107: 4071 | F107: WISSEMBOURG | G107: 6.9 | H107: 59% | I107: 51% | J107: 98 | K107: 31% | L107: 31% | M107: 37 | N107: 77% | O107: 77% | P107: 133 | Q107: 65% | R107: 33% | S107: 85 | T107: 78% | U107: 78% | V107: 111 | W107: 81% | X107: 74% | Y107: 227
A108: 30 | B108: MEURTHE ET MOSELLE MEUSE | C108: 26 | D108: NANCY | E108: 454426 | F108: LUNEVILLE CARNOT | G108: 8.1 | H108: 59% | I108: 51% | J108: 99 | K108: 66% | L108: 66% | M108: 172 | N108: 70% | O108: 70% | P108: 73 | Q108: 61% | R108: 29% | S108: 54 | T108: 83% | U108: 83% | V108: 162 | W108: 56% | X108: 48% | Y108: 29
A109: 30 | B109: MOSELLE | C109: 45 | D109: METZ | E109: 557441 | F109: METZ PLAPPEVILLE | G109: 2.2 | H109: 59% | I109: 51% | J109: 100 | K109: 70% | L109: 70% | M109: 200 | N109: 80% | O109: 80% | P109: 152 | Q109: 34% | R109: 2% | S109: 2 | T109: 83% | U109: 83% | V109: 165 | W109: 69% | X109: 61% | Y109: 98
A110: 30 | B110: VOSGES | C110: 57 | D110: EPINAL | E110: 588396 | F110: LE VAL D AJOL | G110: 2.7 | H110: 59% | I110: 51% | J110: 101 | K110: 16% | L110: 16% | M110: 6 | N110: 83% | O110: 83% | P110: 178 | Q110: 67% | R110: 35% | S110: 102 | T110: 86% | U110: 86% | V110: 191 | W110: 84% | X110: 76% | Y110: 236
A111: 30 | B111: BAS RHIN | C111: 5006 | D111: STRASBOURG | E111: 4047 | F111: STRASBOURG CRONENBOURG | G111: 4.5 | H111: 59% | I111: 51% | J111: 102 | K111: 51% | L111: 51% | M111: 113 | N111: 66% | O111: 66% | P111: 52 | Q111: 68% | R111: 36% | S111: 108 | T111: 77% | U111: 77% | V111: 100 | W111: 74% | X111: 67% | Y111: 160
A112: 30 | B112: VOSGES | C112: 57 | D112: EPINAL | E112: 588631 | F112: THAON LES VOSGES | G112: 4.3 | H112: 59% | I112: 51% | J112: 103 | K112: 48% | L112: 48% | M112: 99 | N112: 71% | O112: 71% | P112: 80 | Q112: 76% | R112: 44% | S112: 186 | T112: 74% | U112: 74% | V112: 79 | W112: 67% | X112: 59% | Y112: 78
A113: 30 | B113: MARNE ARDENNES | C113: 2 | D113: CHARLEVILLE MEZIERES | E113: 408822 | F113: CHARLEVILLE MEZIERES | G113: 5.1 | H113: 59% | I113: 51% | J113: 104 | K113: 69% | L113: 69% | M113: 190 | N113: 78% | O113: 78% | P113: 137 | Q113: 50% | R113: 18% | S113: 12 | T113: 75% | U113: 75% | V113: 89 | W113: 65% | X113: 57% | Y113: 64
A114: 30 | B114: AUBE HAUTE MARNE | C114: 21 | D114: CHAUMONT | E114: 451154 | F114: JOINVILLE | G114: 1.9 | H114: 59% | I114: 51% | J114: 105 | K114: 41% | L114: 41% | M114: 71 | N114: 70% | O114: 70% | P114: 70 | Q114: 86% | R114: 54% | S114: 232 | T114: 68% | U114: 68% | V114: 36 | W114: 72% | X114: 64% | Y114: 129
A115: 30 | B115: MEURTHE ET MOSELLE MEUSE | C115: 27 | D115: PONT A MOUSSON | E115: 554376 | F115: LAXOU BOUFFLERS | G115: 2.8 | H115: 59% | I115: 51% | J115: 106 | K115: 80% | L115: 80% | M115: 239 | N115: 56% | O115: 56% | P115: 18 | Q115: 81% | R115: 49% | S115: 218 | T115: 70% | U115: 70% | V115: 48 | W115: 50% | X115: 42% | Y115: 16
A116: 30 | B116: MEURTHE ET MOSELLE MEUSE | C116: 31 | D116: VERDUN | E116: 555624 | F116: STENAY | G116: 3.3 | H116: 59% | I116: 51% | J116: 107 | K116: 68% | L116: 68% | M116: 181 | N116: 63% | O116: 63% | P116: 36 | Q116: 67% | R116: 35% | S116: 100 | T116: 84% | U116: 84% | V116: 175 | W116: 54% | X116: 46% | Y116: 21
A117: 30 | B117: BAS RHIN | C117: 5060 | D117: HAGUENAU | E117: 4041 | F117: HOERDT | G117: 1.7 | H117: 60% | I117: 52% | J117: 108 | K117: 40% | L117: 40% | M117: 68 | N117: 79% | O117: 79% | P117: 147 | Q117: 59% | R117: 27% | S117: 47 | T117: 85% | U117: 85% | V117: 181 | W117: 74% | X117: 66% | Y117: 152
A118: 30 | B118: VOSGES | C118: 57 | D118: EPINAL | E118: 488286 | F118: EPINAL ARISTIDE BRIAND | G118: 8.1 | H118: 60% | I118: 52% | J118: 109 | K118: 64% | L118: 64% | M118: 156 | N118: 66% | O118: 66% | P118: 49 | Q118: 57% | R118: 25% | S118: 33 | T118: 79% | U118: 79% | V118: 126 | W118: 72% | X118: 64% | Y118: 131
A119: 30 | B119: MOSELLE | C119: 45 | D119: METZ | E119: 557105 | F119: ARS SUR MOSELLE | G119: 3.3 | H119: 60% | I119: 52% | J119: 110 | K119: 47% | L119: 47% | M119: 91 | N119: 77% | O119: 77% | P119: 127 | Q119: 73% | R119: 41% | S119: 162 | T119: 85% | U119: 85% | V119: 177 | W119: 57% | X119: 49% | Y119: 30
A120: 30 | B120: MEURTHE ET MOSELLE MEUSE | C120: 31 | D120: VERDUN | E120: 455566 | F120: REVIGNY SUR ORNAIN | G120: 2.7 | H120: 60% | I120: 52% | J120: 111 | K120: 52% | L120: 52% | M120: 116 | N120: 78% | O120: 78% | P120: 139 | Q120: 58% | R120: 26% | S120: 38 | T120: 77% | U120: 77% | V120: 103 | W120: 74% | X120: 66% | Y120: 153
A121: 30 | B121: MARNE ARDENNES | C121: 6 | D121: CHALONS EN CHAMPAGNE | E121: 451381 | F121: SEZANNE | G121: 4.9 | H121: 60% | I121: 52% | J121: 112 | K121: 47% | L121: 47% | M121: 95 | N121: 75% | O121: 75% | P121: 113 | Q121: 57% | R121: 25% | S121: 35 | T121: 88% | U121: 88% | V121: 210 | W121: 71% | X121: 63% | Y121: 117
A122: 30 | B122: BAS RHIN | C122: 5006 | D122: STRASBOURG | E122: 4027 | F122: SCHILTIGHEIM CENTRE | G122: 3.8 | H122: 60% | I122: 52% | J122: 113 | K122: 70% | L122: 70% | M122: 201 | N122: 65% | O122: 65% | P122: 43 | Q122: 64% | R122: 32% | S122: 77 | T122: 71% | U122: 71% | V122: 60 | W122: 70% | X122: 63% | Y122: 113
A123: 30 | B123: MEURTHE ET MOSELLE MEUSE | C123: 31 | D123: VERDUN | E123: 455151 | F123: BAR LE DUC | G123: 10.0 | H123: 60% | I123: 52% | J123: 114 | K123: 38% | L123: 38% | M123: 62 | N123: 78% | O123: 78% | P123: 144 | Q123: 73% | R123: 41% | S123: 164 | T123: 79% | U123: 79% | V123: 117 | W123: 73% | X123: 65% | Y123: 142
A124: 30 | B124: MEURTHE ET MOSELLE MEUSE | C124: 31 | D124: VERDUN | E124: 554700 | F124: VILLERUPT | G124: 2.7 | H124: 60% | I124: 52% | J124: 115 | K124: 36% | L124: 36% | M124: 54 | N124: 75% | O124: 75% | P124: 106 | Q124: 70% | R124: 38% | S124: 133 | T124: 83% | U124: 83% | V124: 166 | W124: 77% | X124: 70% | Y124: 190
A125: 30 | B125: VOSGES | C125: 57 | D125: EPINAL | E125: 488281 | F125: ELOYES | G125: 3.3 | H125: 60% | I125: 52% | J125: 116 | K125: 34% | L125: 34% | M125: 45 | N125: 84% | O125: 84% | P125: 190 | Q125: 60% | R125: 28% | S125: 50 | T125: 91% | U125: 91% | V125: 221 | W125: 72% | X125: 64% | Y125: 133
A126: 30 | B126: VOSGES | C126: 57 | D126: EPINAL | E126: 588201 | F126: CHANTRAINE | G126: 3.6 | H126: 60% | I126: 52% | J126: 117 | K126: 48% | L126: 48% | M126: 97 | N126: 72% | O126: 72% | P126: 84 | Q126: 64% | R126: 32% | S126: 76 | T126: 85% | U126: 85% | V126: 176 | W126: 74% | X126: 66% | Y126: 151
A127: 30 | B127: MOSELLE | C127: 42 | D127: MOSELLE EST | E127: 557210 | F127: CHATEAU SALINS | G127: 1.4 | H127: 60% | I127: 52% | J127: 118 | K127: 66% | L127: 66% | M127: 173 | N127: 68% | O127: 68% | P127: 57 | Q127: 75% | R127: 43% | S127: 174 | T127: 67% | U127: 67% | V127: 31 | W127: 66% | X127: 58% | Y127: 71
A128: 30 | B128: BAS RHIN | C128: 5006 | D128: STRASBOURG | E128: 4023 | F128: STRASBOURG VOSGES | G128: 2.9 | H128: 61% | I128: 53% | J128: 119 | K128: 58% | L128: 58% | M128: 135 | N128: 75% | O128: 75% | P128: 112 | Q128: 48% | R128: 16% | S128: 8 | T128: 87% | U128: 87% | V128: 193 | W128: 75% | X128: 67% | Y128: 164
A129: 30 | B129: BAS RHIN | C129: 5006 | D129: STRASBOURG | E129: 4006 | F129: STRASBOURG NEUDORF | G129: 7.9 | H129: 61% | I129: 53% | J129: 120 | K129: 28% | L129: 28% | M129: 31 | N129: 81% | O129: 81% | P129: 162 | Q129: 76% | R129: 44% | S129: 185 | T129: 79% | U129: 79% | V129: 120 | W129: 78% | X129: 70% | Y129: 202
A130: 30 | B130: MARNE ARDENNES | C130: 6 | D130: CHALONS EN CHAMPAGNE | E130: 551103 | F130: FAGNIERES LECLERC | G130: 2.9 | H130: 61% | I130: 53% | J130: 121 | K130: 50% | L130: 50% | M130: 110 | N130: 84% | O130: 84% | P130: 193 | Q130: 72% | R130: 40% | S130: 151 | T130: 68% | U130: 68% | V130: 34 | W130: 69% | X130: 61% | Y130: 95
A131: 30 | B131: AUBE HAUTE MARNE | C131: 21 | D131: CHAUMONT | E131: 451156 | F131: SAINT DIZIER CENTRE | G131: 8.6 | H131: 61% | I131: 53% | J131: 122 | K131: 53% | L131: 53% | M131: 121 | N131: 76% | O131: 76% | P131: 122 | Q131: 71% | R131: 39% | S131: 137 | T131: 72% | U131: 72% | V131: 70 | W131: 70% | X131: 63% | Y131: 112
A132: 30 | B132: VOSGES | C132: 57 | D132: EPINAL | E132: 588716 | F132: XERTIGNY | G132: 2.8 | H132: 61% | I132: 53% | J132: 123 | K132: 40% | L132: 40% | M132: 67 | N132: 83% | O132: 83% | P132: 187 | Q132: 64% | R132: 32% | S132: 75 | T132: 79% | U132: 79% | V132: 113 | W132: 77% | X132: 69% | Y132: 184
A133: 30 | B133: BAS RHIN | C133: 5101 | D133: SELESTAT | E133: 4121 | F133: SCHIRMECK | G133: 2.8 | H133: 61% | I133: 53% | J133: 124 | K133: 38% | L133: 38% | M133: 63 | N133: 70% | O133: 70% | P133: 74 | Q133: 78% | R133: 46% | S133: 198 | T133: 87% | U133: 87% | V133: 202 | W133: 70% | X133: 62% | Y133: 104
A134: 30 | B134: VOSGES | C134: 55 | D134: SAINT DIE | E134: 588316 | F134: FRAIZE | G134: 3.7 | H134: 61% | I134: 53% | J134: 125 | K134: 45% | L134: 45% | M134: 89 | N134: 85% | O134: 85% | P134: 201 | Q134: 67% | R134: 35% | S134: 96 | T134: 75% | U134: 75% | V134: 86 | W134: 73% | X134: 65% | Y134: 143
A135: 30 | B135: MOSELLE | C135: 45 | D135: METZ | E135: 557432 | F135: MAIZIERES LES METZ | G135: 2.6 | H135: 61% | I135: 53% | J135: 126 | K135: 70% | L135: 70% | M135: 196 | N135: 68% | O135: 68% | P135: 66 | Q135: 73% | R135: 41% | S135: 163 | T135: 79% | U135: 79% | V135: 127 | W135: 54% | X135: 46% | Y135: 22
A136: 110 | B136: BAS RHIN | C136: 5101 | D136: SELESTAT | E136: 4126 | F136: MUTZIG | G136: 2.6 | H136: 61% | I136: 53% | J136: 127 | K136: 64% | L136: 64% | M136: 159 | N136: 65% | O136: 65% | P136: 44 | Q136: 62% | R136: 30% | S136: 61 | T136: 82% | U136: 82% | V136: 150 | W136: 74% | X136: 66% | Y136: 150
A137: 110 | B137: MOSELLE | C137: 42 | D137: MOSELLE EST | E137: 457435 | F137: MERLEBACH | G137: 2.8 | H137: 61% | I137: 53% | J137: 128 | K137: 50% | L137: 50% | M137: 106 | N137: 73% | O137: 73% | P137: 95 | Q137: 78% | R137: 46% | S137: 204 | T137: 79% | U137: 79% | V137: 121 | W137: 65% | X137: 57% | Y137: 62
A138: 110 | B138: BAS RHIN | C138: 5006 | D138: STRASBOURG | E138: 4020 | F138: STRASBOURG ROBERTSAU | G138: 5.3 | H138: 61% | I138: 53% | J138: 129 | K138: 56% | L138: 56% | M138: 130 | N138: 82% | O138: 82% | P138: 170 | Q138: 43% | R138: 11% | S138: 5 | T138: 87% | U138: 87% | V138: 198 | W138: 78% | X138: 70% | Y138: 200
A139: 110 | B139: VOSGES | C139: 55 | D139: SAINT DIE | E139: 588461 | F139: MOYENMOUTIER | G139: 4.3 | H139: 61% | I139: 53% | J139: 130 | K139: 45% | L139: 45% | M139: 86 | N139: 75% | O139: 75% | P139: 111 | Q139: 69% | R139: 37% | S139: 116 | T139: 79% | U139: 79% | V139: 116 | W139: 79% | X139: 71% | Y139: 212
A140: 110 | B140: BAS RHIN | C140: 5006 | D140: STRASBOURG | E140: 4024 | F140: STRASBOURG AUSTERLITZ | G140: 0.9 | H140: 61% | I140: 53% | J140: 131 | K140: 83% | L140: 83% | M140: 241 | N140: 70% | O140: 70% | P140: 75 | Q140: 73% | R140: 41% | S140: 159 | T140: 70% | U140: 70% | V140: 47 | W140: 51% | X140: 43% | Y140: 18
A141: 110 | B141: MOSELLE | C141: 44 | D141: MOSELLE NORD | E141: 557307 | F141: FONTOY | G141: 1.9 | H141: 61% | I141: 53% | J141: 132 | K141: 35% | L141: 35% | M141: 51 | N141: 87% | O141: 87% | P141: 210 | Q141: 65% | R141: 33% | S141: 82 | T141: 93% | U141: 93% | V141: 226 | W141: 67% | X141: 60% | Y141: 82
A142: 110 | B142: MEURTHE ET MOSELLE MEUSE | C142: 26 | D142: NANCY | E142: 554296 | F142: ESSEY LES NANCY | G142: 3.6 | H142: 62% | I142: 54% | J142: 133 | K142: 41% | L142: 41% | M142: 73 | N142: 77% | O142: 77% | P142: 135 | Q142: 69% | R142: 37% | S142: 119 | T142: 87% | U142: 87% | V142: 197 | W142: 73% | X142: 65% | Y142: 139
A143: 110 | B143: AUBE HAUTE MARNE | C143: 21 | D143: CHAUMONT | E143: 410566 | F143: CHAUMONT HOTEL DE VILLE | G143: 10.5 | H143: 62% | I143: 54% | J143: 134 | K143: 49% | L143: 49% | M143: 100 | N143: 82% | O143: 82% | P143: 168 | Q143: 61% | R143: 29% | S143: 58 | T143: 82% | U143: 82% | V143: 155 | W143: 74% | X143: 66% | Y143: 155
A144: 110 | B144: BAS RHIN | C144: 5060 | D144: HAGUENAU | E144: 4057 | F144: BISCHWILLER | G144: 7.2 | H144: 62% | I144: 54% | J144: 135 | K144: 43% | L144: 43% | M144: 79 | N144: 73% | O144: 73% | P144: 93 | Q144: 73% | R144: 41% | S144: 160 | T144: 79% | U144: 79% | V144: 118 | W144: 80% | X144: 72% | Y144: 221
A145: 110 | B145: BAS RHIN | C145: 5060 | D145: HAGUENAU | E145: 4031 | F145: TRUCHTERSHEIM | G145: 2.2 | H145: 62% | I145: 54% | J145: 136 | K145: 36% | L145: 36% | M145: 56 | N145: 68% | O145: 68% | P145: 59 | Q145: 68% | R145: 36% | S145: 112 | T145: 94% | U145: 94% | V145: 232 | W145: 83% | X145: 75% | Y145: 233
A146: 110 | B146: MOSELLE | C146: 42 | D146: MOSELLE EST | E146: 557503 | F146: NEUNKIRCH | G146: 3.3 | H146: 62% | I146: 54% | J146: 137 | K146: 11% | L146: 11% | M146: 4 | N146: 88% | O146: 88% | P146: 224 | Q146: 79% | R146: 47% | S146: 208 | T146: 93% | U146: 93% | V146: 229 | W146: 78% | X146: 70% | Y146: 198
A147: 110 | B147: BAS RHIN | C147: 5006 | D147: STRASBOURG | E147: 4019 | F147: STRASBOURG ANVERS | G147: 4.5 | H147: 62% | I147: 54% | J147: 138 | K147: 66% | L147: 66% | M147: 171 | N147: 64% | O147: 64% | P147: 40 | Q147: 76% | R147: 44% | S147: 181 | T147: 74% | U147: 74% | V147: 78 | W147: 70% | X147: 62% | Y147: 109
A148: 110 | B148: VOSGES | C148: 55 | D148: SAINT DIE | E148: 588386 | F148: LE THILLOT | G148: 2.4 | H148: 62% | I148: 54% | J148: 139 | K148: 20% | L148: 20% | M148: 13 | N148: 83% | O148: 83% | P148: 182 | Q148: 80% | R148: 48% | S148: 214 | T148: 87% | U148: 87% | V148: 196 | W148: 80% | X148: 72% | Y148: 222
A149: 110 | B149: VOSGES | C149: 57 | D149: EPINAL | E149: 588206 | F149: CHARMES | G149: 2.7 | H149: 62% | I149: 54% | J149: 140 | K149: 52% | L149: 52% | M149: 117 | N149: 78% | O149: 78% | P149: 138 | Q149: 61% | R149: 29% | S149: 53 | T149: 86% | U149: 86% | V149: 189 | W149: 75% | X149: 67% | Y149: 162
A150: 110 | B150: MEURTHE ET MOSELLE MEUSE | C150: 26 | D150: NANCY | E150: 554486 | F150: NANCY POINT CENTRAL | G150: 3.0 | H150: 62% | I150: 54% | J150: 141 | K150: 56% | L150: 56% | M150: 132 | N150: 84% | O150: 84% | P150: 199 | Q150: 55% | R150: 23% | S150: 26 | T150: 83% | U150: 83% | V150: 169 | W150: 72% | X150: 64% | Y150: 130
A151: 110 | B151: VOSGES | C151: 57 | D151: EPINAL | E151: 488706 | F151: VITTEL | G151: 3.1 | H151: 62% | I151: 54% | J151: 142 | K151: 49% | L151: 49% | M151: 102 | N151: 82% | O151: 82% | P151: 177 | Q151: 75% | R151: 43% | S151: 173 | T151: 76% | U151: 76% | V151: 92 | W151: 70% | X151: 62% | Y151: 105
A152: 110 | B152: MEURTHE ET MOSELLE MEUSE | C152: 27 | D152: PONT A MOUSSON | E152: 554496 | F152: NANCY TROIS MAISONS | G152: 2.2 | H152: 62% | I152: 54% | J152: 143 | K152: 64% | L152: 64% | M152: 163 | N152: 75% | O152: 75% | P152: 114 | Q152: 70% | R152: 38% | S152: 129 | T152: 76% | U152: 76% | V152: 90 | W152: 67% | X152: 59% | Y152: 81
A153: 110 | B153: HAUT RHIN | C153: 5130 | D153: COLMAR | E153: 4143 | F153: MUNSTER | G153: 4.2 | H153: 63% | I153: 55% | J153: 144 | K153: 59% | L153: 59% | M153: 141 | N153: 73% | O153: 73% | P153: 92 | Q153: 65% | R153: 33% | S153: 83 | T153: 81% | U153: 81% | V153: 141 | W153: 76% | X153: 68% | Y153: 173
A154: 110 | B154: MEURTHE ET MOSELLE MEUSE | C154: 27 | D154: PONT A MOUSSON | E154: 454651 | F154: TOUL | G154: 9.9 | H154: 63% | I154: 55% | J154: 145 | K154: 73% | L154: 73% | M154: 213 | N154: 80% | O154: 80% | P154: 153 | Q154: 67% | R154: 35% | S154: 98 | T154: 72% | U154: 72% | V154: 66 | W154: 61% | X154: 53% | Y154: 44
A155: 110 | B155: AUBE HAUTE MARNE | C155: 14 | D155: TROYES | E155: 510513 | F155: SAINT PARRES AUX TERTRES | G155: 2.3 | H155: 63% | I155: 55% | J155: 146 | K155: 80% | L155: 80% | M155: 240 | N155: 65% | O155: 65% | P155: 42 | Q155: 71% | R155: 39% | S155: 149 | T155: 67% | U155: 67% | V155: 30 | W155: 70% | X155: 62% | Y155: 107
A156: 110 | B156: MEURTHE ET MOSELLE MEUSE | C156: 26 | D156: NANCY | E156: 554166 | F156: BLAINVILLE | G156: 2.7 | H156: 63% | I156: 55% | J156: 147 | K156: 69% | L156: 69% | M156: 186 | N156: 68% | O156: 68% | P156: 63 | Q156: 77% | R156: 45% | S156: 192 | T156: 69% | U156: 69% | V156: 42 | W156: 71% | X156: 63% | Y156: 115
A157: 110 | B157: MARNE ARDENNES | C157: 2 | D157: CHARLEVILLE MEZIERES | E157: 408862 | F157: REVIN | G157: 3.9 | H157: 63% | I157: 55% | J157: 148 | K157: 44% | L157: 44% | M157: 83 | N157: 83% | O157: 83% | P157: 183 | Q157: 75% | R157: 43% | S157: 179 | T157: 75% | U157: 75% | V157: 85 | W157: 77% | X157: 69% | Y157: 183
A158: 110 | B158: BAS RHIN | C158: 5006 | D158: STRASBOURG | E158: 4039 | F158: REICHSTETT | G158: 1.6 | H158: 63% | I158: 55% | J158: 149 | K158: 65% | L158: 65% | M158: 169 | N158: 81% | O158: 81% | P158: 160 | Q158: 59% | R158: 27% | S158: 45 | T158: 75% | U158: 75% | V158: 84 | W158: 75% | X158: 67% | Y158: 167
A159: 110 | B159: MEURTHE ET MOSELLE MEUSE | C159: 31 | D159: VERDUN | E159: 554412 | F159: LONGUYON | G159: 2.8 | H159: 63% | I159: 55% | J159: 150 | K159: 49% | L159: 49% | M159: 101 | N159: 72% | O159: 72% | P159: 86 | Q159: 77% | R159: 45% | S159: 191 | T159: 83% | U159: 83% | V159: 161 | W159: 75% | X159: 67% | Y159: 165
A160: 110 | B160: MOSELLE | C160: 44 | D160: MOSELLE NORD | E160: 457192 | F160: CATTENOM | G160: 1.6 | H160: 63% | I160: 55% | J160: 151 | K160: 60% | L160: 60% | M160: 146 | N160: 74% | O160: 74% | P160: 97 | Q160: 72% | R160: 40% | S160: 155 | T160: 81% | U160: 81% | V160: 146 | W160: 68% | X160: 60% | Y160: 86
A161: 110 | B161: BAS RHIN | C161: 5060 | D161: HAGUENAU | E161: 4085 | F161: INGWILLER | G161: 3.5 | H161: 63% | I161: 55% | J161: 152 | K161: 60% | L161: 60% | M161: 142 | N161: 77% | O161: 77% | P161: 136 | Q161: 69% | R161: 37% | S161: 124 | T161: 79% | U161: 79% | V161: 115 | W161: 71% | X161: 64% | Y161: 122
A162: 110 | B162: BAS RHIN | C162: 5101 | D162: SELESTAT | E162: 4007 | F162: ILLKIRCH CENTRE | G162: 6.6 | H162: 64% | I162: 56% | J162: 153 | K162: 70% | L162: 70% | M162: 202 | N162: 77% | O162: 77% | P162: 129 | Q162: 71% | R162: 39% | S162: 147 | T162: 66% | U162: 66% | V162: 26 | W162: 73% | X162: 65% | Y162: 137
A163: 110 | B163: MEURTHE ET MOSELLE MEUSE | C163: 27 | D163: PONT A MOUSSON | E163: 454355 | F163: JARNY | G163: 4.1 | H163: 64% | I163: 56% | J163: 154 | K163: 51% | L163: 51% | M163: 112 | N163: 79% | O163: 79% | P163: 151 | Q163: 70% | R163: 38% | S163: 136 | T163: 80% | U163: 80% | V163: 128 | W163: 79% | X163: 72% | Y163: 217
A164: 110 | B164: MEURTHE ET MOSELLE MEUSE | C164: 26 | D164: NANCY | E164: 554266 | F164: DOMBASLE SUR MEURTHE | G164: 3.3 | H164: 64% | I164: 56% | J164: 155 | K164: 69% | L164: 69% | M164: 184 | N164: 89% | O164: 89% | P164: 226 | Q164: 57% | R164: 25% | S164: 34 | T164: 76% | U164: 76% | V164: 93 | W164: 69% | X164: 61% | Y164: 93
A165: 110 | B165: MEURTHE ET MOSELLE MEUSE | C165: 27 | D165: PONT A MOUSSON | E165: 554357 | F165: JOEUF | G165: 3.2 | H165: 64% | I165: 56% | J165: 156 | K165: 44% | L165: 44% | M165: 81 | N165: 80% | O165: 80% | P165: 154 | Q165: 80% | R165: 48% | S165: 211 | T165: 88% | U165: 88% | V165: 207 | W165: 69% | X165: 61% | Y165: 92
A166: 110 | B166: HAUT RHIN | C166: 5130 | D166: COLMAR | E166: 4157 | F166: NEUF BRISACH | G166: 2.8 | H166: 64% | I166: 56% | J166: 157 | K166: 65% | L166: 65% | M166: 167 | N166: 80% | O166: 80% | P166: 158 | Q166: 69% | R166: 37% | S166: 123 | T166: 75% | U166: 75% | V166: 83 | W166: 71% | X166: 63% | Y166: 120
A167: 110 | B167: AUBE HAUTE MARNE | C167: 14 | D167: TROYES | E167: 510523 | F167: LA CHAPELLE ST LUC | G167: 4.5 | H167: 64% | I167: 56% | J167: 158 | K167: 79% | L167: 79% | M167: 237 | N167: 74% | O167: 74% | P167: 101 | Q167: 67% | R167: 35% | S167: 97 | T167: 69% | U167: 69% | V167: 41 | W167: 72% | X167: 64% | Y167: 127
A168: 110 | B168: MARNE ARDENNES | C168: 2 | D168: CHARLEVILLE MEZIERES | E168: 408806 | F168: SEDAN | G168: 7.6 | H168: 64% | I168: 56% | J168: 159 | K168: 43% | L168: 43% | M168: 78 | N168: 82% | O168: 82% | P168: 176 | Q168: 73% | R168: 41% | S168: 161 | T168: 90% | U168: 90% | V168: 217 | W168: 71% | X168: 63% | Y168: 121
A169: 110 | B169: MOSELLE | C169: 42 | D169: MOSELLE EST | E169: 457614 | F169: SARREBOURG | G169: 8.0 | H169: 64% | I169: 56% | J169: 160 | K169: 54% | L169: 54% | M169: 123 | N169: 81% | O169: 81% | P169: 164 | Q169: 70% | R169: 38% | S169: 135 | T169: 80% | U169: 80% | V169: 132 | W169: 75% | X169: 68% | Y169: 168
A170: 110 | B170: MOSELLE | C170: 45 | D170: METZ | E170: 557712 | F170: WOIPPY | G170: 4.5 | H170: 64% | I170: 56% | J170: 161 | K170: 67% | L170: 67% | M170: 178 | N170: 75% | O170: 75% | P170: 104 | Q170: 69% | R170: 37% | S170: 117 | T170: 77% | U170: 77% | V170: 98 | W170: 74% | X170: 66% | Y170: 158
A171: 110 | B171: MOSELLE | C171: 45 | D171: METZ | E171: 557436 | F171: METZ CATHEDRALE | G171: 3.9 | H171: 64% | I171: 56% | J171: 162 | K171: 76% | L171: 76% | M171: 226 | N171: 78% | O171: 78% | P171: 142 | Q171: 60% | R171: 28% | S171: 51 | T171: 73% | U171: 73% | V171: 72 | W171: 75% | X171: 67% | Y171: 166
A172: 110 | B172: MEURTHE ET MOSELLE MEUSE | C172: 27 | D172: PONT A MOUSSON | E172: 454696 | F172: VILLERS GENERAL LECLERC | G172: 4.2 | H172: 65% | I172: 57% | J172: 163 | K172: 64% | L172: 64% | M172: 161 | N172: 85% | O172: 85% | P172: 202 | Q172: 52% | R172: 20% | S172: 20 | T172: 85% | U172: 85% | V172: 183 | W172: 77% | X172: 69% | Y172: 182
A173: 110 | B173: BAS RHIN | C173: 5101 | D173: SELESTAT | E173: 4127 | F173: ROSHEIM | G173: 1.7 | H173: 65% | I173: 57% | J173: 164 | K173: 56% | L173: 56% | M173: 129 | N173: 84% | O173: 84% | P173: 191 | Q173: 58% | R173: 26% | S173: 37 | T173: 89% | U173: 89% | V173: 211 | W173: 77% | X173: 70% | Y173: 191
A174: 110 | B174: MOSELLE | C174: 45 | D174: METZ | E174: 557433 | F174: MARANGE SILVANGE | G174: 2.9 | H174: 65% | I174: 57% | J174: 165 | K174: 68% | L174: 68% | M174: 180 | N174: 81% | O174: 81% | P174: 161 | Q174: 69% | R174: 37% | S174: 118 | T174: 80% | U174: 80% | V174: 135 | W174: 66% | X174: 58% | Y174: 68
A175: 110 | B175: MOSELLE | C175: 44 | D175: MOSELLE NORD | E175: 457180 | F175: BOUSSE | G175: 2.6 | H175: 65% | I175: 57% | J175: 166 | K175: 16% | L175: 16% | M175: 7 | N175: 88% | O175: 88% | P175: 222 | Q175: 71% | R175: 39% | S175: 143 | T175: 99% | U175: 99% | V175: 241 | W175: 91% | X175: 83% | Y175: 244
A176: 110 | B176: BAS RHIN | C176: 5101 | D176: SELESTAT | E176: 4008 | F176: FEGERSHEIM | G176: 2.3 | H176: 65% | I176: 57% | J176: 167 | K176: 50% | L176: 50% | M176: 107 | N176: 75% | O176: 75% | P176: 110 | Q176: 72% | R176: 40% | S176: 152 | T176: 85% | U176: 85% | V176: 178 | W176: 83% | X176: 76% | Y176: 234
A177: 110 | B177: MOSELLE | C177: 42 | D177: MOSELLE EST | E177: 457258 | F177: DIEUZE | G177: 3.0 | H177: 65% | I177: 57% | J177: 168 | K177: 43% | L177: 43% | M177: 75 | N177: 88% | O177: 88% | P177: 220 | Q177: 70% | R177: 38% | S177: 134 | T177: 82% | U177: 82% | V177: 158 | W177: 82% | X177: 74% | Y177: 230
A178: 160 | B178: VOSGES | C178: 55 | D178: SAINT DIE | E178: 488556 | F178: RAON L ETAPE | G178: 2.2 | H178: 65% | I178: 57% | J178: 169 | K178: 45% | L178: 45% | M178: 87 | N178: 88% | O178: 88% | P178: 217 | Q178: 81% | R178: 49% | S178: 216 | T178: 82% | U178: 82% | V178: 154 | W178: 70% | X178: 62% | Y178: 102
A179: 160 | B179: MOSELLE | C179: 45 | D179: METZ | E179: 557459 | F179: MOULINS LES METZ | G179: 2.5 | H179: 65% | I179: 57% | J179: 170 | K179: 41% | L179: 41% | M179: 70 | N179: 84% | O179: 84% | P179: 198 | Q179: 79% | R179: 47% | S179: 206 | T179: 83% | U179: 83% | V179: 163 | W179: 78% | X179: 71% | Y179: 206
A180: 160 | B180: MARNE ARDENNES | C180: 2 | D180: CHARLEVILLE MEZIERES | E180: 508815 | F180: CARIGNAN | G180: 2.6 | H180: 65% | I180: 57% | J180: 171 | K180: 47% | L180: 47% | M180: 92 | N180: 76% | O180: 76% | P180: 116 | Q180: 75% | R180: 43% | S180: 171 | T180: 91% | U180: 91% | V180: 220 | W180: 78% | X180: 71% | Y180: 208
A181: 160 | B181: BAS RHIN | C181: 5006 | D181: STRASBOURG | E181: 4028 | F181: BISCHHEIM | G181: 3.3 | H181: 66% | I181: 58% | J181: 172 | K181: 66% | L181: 66% | M181: 174 | N181: 82% | O181: 82% | P181: 172 | Q181: 66% | R181: 34% | S181: 91 | T181: 75% | U181: 75% | V181: 88 | W181: 78% | X181: 70% | Y181: 203
A182: 160 | B182: HAUT RHIN | C182: 5169 | D182: MULHOUSE | E182: 4170 | F182: MULHOUSE REUNION | G182: 7.5 | H182: 66% | I182: 58% | J182: 173 | K182: 63% | L182: 63% | M182: 151 | N182: 78% | O182: 78% | P182: 143 | Q182: 78% | R182: 46% | S182: 196 | T182: 78% | U182: 78% | V182: 107 | W182: 71% | X182: 64% | Y182: 124
A183: 160 | B183: MEURTHE ET MOSELLE MEUSE | C183: 26 | D183: NANCY | E183: 454671 | F183: VANDOEUVRE LES NANCY | G183: 4.2 | H183: 66% | I183: 58% | J183: 174 | K183: 68% | L183: 68% | M183: 182 | N183: 82% | O183: 82% | P183: 173 | Q183: 67% | R183: 35% | S183: 99 | T183: 81% | U183: 81% | V183: 142 | W183: 70% | X183: 62% | Y183: 108
A184: 160 | B184: BAS RHIN | C184: 5101 | D184: SELESTAT | E184: 4107 | F184: VILLE | G184: 2.3 | H184: 66% | I184: 58% | J184: 175 | K184: 74% | L184: 74% | M184: 217 | N184: 69% | O184: 69% | P184: 68 | Q184: 57% | R184: 25% | S184: 36 | T184: 84% | U184: 84% | V184: 171 | W184: 83% | X184: 76% | Y184: 235
A185: 160 | B185: MOSELLE | C185: 45 | D185: METZ | E185: 557559 | F185: REMILLY | G185: 3.5 | H185: 66% | I185: 58% | J185: 176 | K185: 64% | L185: 64% | M185: 162 | N185: 80% | O185: 80% | P185: 159 | Q185: 69% | R185: 37% | S185: 121 | T185: 86% | U185: 86% | V185: 190 | W185: 69% | X185: 61% | Y185: 96
A186: 160 | B186: HAUT RHIN | C186: 5130 | D186: COLMAR | E186: 4132 | F186: COLMAR MARAICHERS | G186: 3.8 | H186: 66% | I186: 58% | J186: 177 | K186: 57% | L186: 57% | M186: 134 | N186: 76% | O186: 76% | P186: 120 | Q186: 71% | R186: 39% | S186: 146 | T186: 83% | U186: 83% | V186: 164 | W186: 82% | X186: 74% | Y186: 228
A187: 160 | B187: BAS RHIN | C187: 5006 | D187: STRASBOURG | E187: 4029 | F187: SCHILTIGHEIM KLEBER | G187: 1.0 | H187: 66% | I187: 58% | J187: 178 | K187: 62% | L187: 62% | M187: 149 | N187: 92% | O187: 92% | P187: 237 | Q187: 59% | R187: 27% | S187: 41 | T187: 82% | U187: 82% | V187: 156 | W187: 74% | X187: 67% | Y187: 159
A188: 160 | B188: HAUT RHIN | C188: 5169 | D188: MULHOUSE | E188: 4178 | F188: SAINT LOUIS | G188: 6.4 | H188: 66% | I188: 58% | J188: 179 | K188: 69% | L188: 69% | M188: 185 | N188: 78% | O188: 78% | P188: 140 | Q188: 63% | R188: 31% | S188: 69 | T188: 81% | U188: 81% | V188: 143 | W188: 79% | X188: 71% | Y188: 214
A189: 160 | B189: AUBE HAUTE MARNE | C189: 14 | D189: TROYES | E189: 510520 | F189: SAINT ANDRE LES VERGERS | G189: 3.3 | H189: 66% | I189: 58% | J189: 180 | K189: 80% | L189: 80% | M189: 238 | N189: 78% | O189: 78% | P189: 141 | Q189: 68% | R189: 36% | S189: 109 | T189: 77% | U189: 77% | V189: 102 | W189: 67% | X189: 60% | Y189: 83
A190: 160 | B190: MARNE ARDENNES | C190: 2 | D190: CHARLEVILLE MEZIERES | E190: 508819 | F190: MOUZON | G190: 1.9 | H190: 66% | I190: 58% | J190: 181 | K190: 47% | L190: 47% | M190: 96 | N190: 92% | O190: 92% | P190: 238 | Q190: 61% | R190: 29% | S190: 55 | T190: 94% | U190: 94% | V190: 234 | W190: 76% | X190: 68% | Y190: 178
A191: 160 | B191: MARNE ARDENNES | C191: 11 | D191: REIMS | E191: 551309 | F191: REIMS EUROPE | G191: 2.9 | H191: 66% | I191: 58% | J191: 182 | K191: 53% | L191: 53% | M191: 120 | N191: 85% | O191: 85% | P191: 205 | Q191: 78% | R191: 46% | S191: 201 | T191: 79% | U191: 79% | V191: 124 | W191: 75% | X191: 67% | Y191: 163
A192: 160 | B192: MEURTHE ET MOSELLE MEUSE | C192: 27 | D192: PONT A MOUSSON | E192: 554196 | F192: CHAMPIGNEULLES | G192: 2.5 | H192: 66% | I192: 58% | J192: 183 | K192: 67% | L192: 67% | M192: 179 | N192: 84% | O192: 84% | P192: 196 | Q192: 75% | R192: 43% | S192: 170 | T192: 70% | U192: 70% | V192: 44 | W192: 75% | X192: 68% | Y192: 169
A193: 160 | B193: BAS RHIN | C193: 5006 | D193: STRASBOURG | E193: 4026 | F193: STRASBOURG DANUBE | G193: 3.2 | H193: 66% | I193: 58% | J193: 184 | K193: 69% | L193: 69% | M193: 193 | N193: 85% | O193: 85% | P193: 200 | Q193: 66% | R193: 34% | S193: 90 | T193: 80% | U193: 80% | V193: 134 | W193: 71% | X193: 63% | Y193: 114
A194: 160 | B194: HAUT RHIN | C194: 5130 | D194: COLMAR | E194: 4130 | F194: COLMAR REPUBLIQUE | G194: 6.1 | H194: 66% | I194: 58% | J194: 185 | K194: 69% | L194: 69% | M194: 194 | N194: 81% | O194: 81% | P194: 165 | Q194: 72% | R194: 40% | S194: 157 | T194: 71% | U194: 71% | V194: 59 | W194: 78% | X194: 70% | Y194: 193
A195: 160 | B195: HAUT RHIN | C195: 5169 | D195: MULHOUSE | E195: 4180 | F195: RIEDISHEIM | G195: 3.4 | H195: 67% | I195: 59% | J195: 186 | K195: 41% | L195: 41% | M195: 72 | N195: 82% | O195: 82% | P195: 174 | Q195: 89% | R195: 57% | S195: 235 | T195: 81% | U195: 81% | V195: 139 | W195: 79% | X195: 71% | Y195: 215
A196: 160 | B196: BAS RHIN | C196: 5060 | D196: HAGUENAU | E196: 4082 | F196: BOUXWILLER | G196: 2.2 | H196: 67% | I196: 59% | J196: 187 | K196: 34% | L196: 34% | M196: 46 | N196: 85% | O196: 85% | P196: 203 | Q196: 107% | R196: 75% | S196: 242 | T196: 76% | U196: 76% | V196: 94 | W196: 69% | X196: 61% | Y196: 97
A197: 160 | B197: MOSELLE | C197: 45 | D197: METZ | E197: 557440 | F197: METZ MOZART | G197: 3.0 | H197: 67% | I197: 59% | J197: 188 | K197: 64% | L197: 64% | M197: 164 | N197: 83% | O197: 83% | P197: 184 | Q197: 65% | R197: 33% | S197: 81 | T197: 82% | U197: 82% | V197: 153 | W197: 79% | X197: 71% | Y197: 211
A198: 160 | B198: AUBE HAUTE MARNE | C198: 14 | D198: TROYES | E198: 410550 | F198: BAR SUR AUBE | G198: 5.1 | H198: 67% | I198: 59% | J198: 189 | K198: 49% | L198: 49% | M198: 105 | N198: 81% | O198: 81% | P198: 166 | Q198: 78% | R198: 46% | S198: 202 | T198: 87% | U198: 87% | V198: 204 | W198: 76% | X198: 69% | Y198: 180
A199: 160 | B199: MARNE ARDENNES | C199: 11 | D199: REIMS | E199: 451308 | F199: REIMS SAINT THOMAS | G199: 5.3 | H199: 67% | I199: 59% | J199: 190 | K199: 78% | L199: 78% | M199: 235 | N199: 74% | O199: 74% | P199: 100 | Q199: 80% | R199: 48% | S199: 213 | T199: 79% | U199: 79% | V199: 114 | W199: 63% | X199: 55% | Y199: 52
A200: 160 | B200: BAS RHIN | C200: 5101 | D200: SELESTAT | E200: 4101 | F200: SELESTAT CENTRE | G200: 7.8 | H200: 67% | I200: 59% | J200: 191 | K200: 69% | L200: 69% | M200: 187 | N200: 77% | O200: 77% | P200: 134 | Q200: 75% | R200: 43% | S200: 172 | T200: 78% | U200: 78% | V200: 110 | W200: 75% | X200: 67% | Y200: 161
A201: 160 | B201: MARNE ARDENNES | C201: 2 | D201: CHARLEVILLE MEZIERES | E201: 508860 | F201: ROCROI | G201: 2.3 | H201: 67% | I201: 59% | J201: 192 | K201: 73% | L201: 73% | M201: 211 | N201: 72% | O201: 72% | P201: 87 | Q201: 75% | R201: 43% | S201: 177 | T201: 83% | U201: 83% | V201: 168 | W201: 71% | X201: 63% | Y201: 116
A202: 160 | B202: BAS RHIN | C202: 5060 | D202: HAGUENAU | E202: 4030 | F202: BRUMATH | G202: 4.1 | H202: 67% | I202: 59% | J202: 193 | K202: 75% | L202: 75% | M202: 221 | N202: 75% | O202: 75% | P202: 107 | Q202: 57% | R202: 25% | S202: 31 | T202: 91% | U202: 91% | V202: 219 | W202: 77% | X202: 69% | Y202: 186
A203: 160 | B203: BAS RHIN | C203: 5101 | D203: SELESTAT | E203: 4109 | F203: MARCKOLSHEIM | G203: 2.7 | H203: 67% | I203: 59% | J203: 194 | K203: 60% | L203: 60% | M203: 144 | N203: 76% | O203: 76% | P203: 117 | Q203: 81% | R203: 49% | S203: 219 | T203: 82% | U203: 82% | V203: 151 | W203: 75% | X203: 68% | Y203: 171
... 51 more rows

Sheet AG_BANCA
B1: Accueil | H1: BAROMETRE BDD - AGENCES
H2: BANCARISATION
H3: =ACCUEIL!F7 -> 2022-07-24
H7: Ventes Nettes produits pondérés | L7: Ventes sur client non détenteur de l’univers | P7: Total Bancarisation
H8: =DATEMAJ!C8 -> au 24/07 | J8: coef | K8: ='RECAP DIRCOM'!AA4 -> 12% | L8: =DATEMAJ!C9 -> au 24/07 | N8: coef | O8: ='RECAP DIRCOM'!AE4 -> 8% | Q8: coef | R8: ='RECAP DIRCOM'!$AH$4 -> 20%
B9: Direction | C9: eds | D9: Territoire | E9: eds | F9: Agence | G9: ="ETP perf "&DATEMAJ!$C$28 -> ETP perf 24-juil | H9: VN | I9: VN / ETP | J9: % Ecart au 1er | K9: Rang | L9: VB | M9: VB / ETP | N9: % Ecart au 1er | O9: Rang | P9: Moyenne ecart au 1er | Q9: % Ecart au 1er | R9: Rang CEGEE
A10: 50 | B10: AUBE HAUTE MARNE | C10: 21 | D10: CHAUMONT | E10: 410541 | F10: LANGRES | G10: =VLOOKUP($E10,'RECAP AG'!$G$6:$CU$250,3,FALSE) -> 8.2 | H10: =VLOOKUP($E10,'RECAP AG'!$G$6:$CU$250,18,FALSE) -> 203.6 | I10: =VLOOKUP($E10,'RECAP AG'!$G$6:$CU$250,19,FALSE) -> 24.74 | J10: =VLOOKUP($E10,'RECAP AG'!$G$6:$CU$250,20,FALSE) -> 76% | K10: =VLOOKUP($E10,'RECAP AG'!$G$6:$CU$250,21,FALSE) -> 70 | L10: =VLOOKUP($E10,'RECAP AG'!$G$6:$CU$250,22,FALSE) -> 312 | M10: =VLOOKUP($E10,'RECAP AG'!$G$6:$CU$250,23,FALSE) -> 37.91 | N10: =VLOOKUP($E10,'RECAP AG'!$G$6:$CU$250,24,FALSE) -> 70% | O10: =VLOOKUP($E10,'RECAP AG'!$G$6:$CU$250,25,FALSE) -> 173 | P10: =VLOOKUP($E10,'RECAP AG'!$G$6:$CU$250,26,FALSE) -> 74% | Q10: =VLOOKUP($E10,'RECAP AG'!$G$6:$CU$250,27,FALSE) -> 74% | R10: =VLOOKUP($E10,'RECAP AG'!$G$6:$CU$250,28,FALSE) -> 98
A11: 50 | B11: AUBE HAUTE MARNE | C11: 21 | D11: CHAUMONT | E11: 410566 | F11: CHAUMONT HOTEL DE VILLE | G11: =VLOOKUP($E11,'RECAP AG'!$G$6:$CU$250,3,FALSE) -> 10.5 | H11: =VLOOKUP($E11,'RECAP AG'!$G$6:$CU$250,18,FALSE) -> 100.6 | I11: =VLOOKUP($E11,'RECAP AG'!$G$6:$CU$250,19,FALSE) -> 9.62 | J11: =VLOOKUP($E11,'RECAP AG'!$G$6:$CU$250,20,FALSE) -> 91% | K11: =VLOOKUP($E11,'RECAP AG'!$G$6:$CU$250,21,FALSE) -> 173 | L11: =VLOOKUP($E11,'RECAP AG'!$G$6:$CU$250,22,FALSE) -> 419 | M11: =VLOOKUP($E11,'RECAP AG'!$G$6:$CU$250,23,FALSE) -> 40.06 | N11: =VLOOKUP($E11,'RECAP AG'!$G$6:$CU$250,24,FALSE) -> 68% | O11: =VLOOKUP($E11,'RECAP AG'!$G$6:$CU$250,25,FALSE) -> 152 | P11: =VLOOKUP($E11,'RECAP AG'!$G$6:$CU$250,26,FALSE) -> 82% | Q11: =VLOOKUP($E11,'RECAP AG'!$G$6:$CU$250,27,FALSE) -> 82% | R11: =VLOOKUP($E11,'RECAP AG'!$G$6:$CU$250,28,FALSE) -> 168
A12: 50 | B12: AUBE HAUTE MARNE | C12: 21 | D12: CHAUMONT | E12: 510590 | F12: CHAUMONT REPUBLIQUE | G12: =VLOOKUP($E12,'RECAP AG'!$G$6:$CU$250,3,FALSE) -> 2.9 | H12: =VLOOKUP($E12,'RECAP AG'!$G$6:$CU$250,18,FALSE) -> 26.4 | I12: =VLOOKUP($E12,'RECAP AG'!$G$6:$CU$250,19,FALSE) -> 9.26 | J12: =VLOOKUP($E12,'RECAP AG'!$G$6:$CU$250,20,FALSE) -> 91% | K12: =VLOOKUP($E12,'RECAP AG'!$G$6:$CU$250,21,FALSE) -> 176 | L12: =VLOOKUP($E12,'RECAP AG'!$G$6:$CU$250,22,FALSE) -> 156 | M12: =VLOOKUP($E12,'RECAP AG'!$G$6:$CU$250,23,FALSE) -> 54.74 | N12: =VLOOKUP($E12,'RECAP AG'!$G$6:$CU$250,24,FALSE) -> 56% | O12: =VLOOKUP($E12,'RECAP AG'!$G$6:$CU$250,25,FALSE) -> 70 | P12: =VLOOKUP($E12,'RECAP AG'!$G$6:$CU$250,26,FALSE) -> 77% | Q12: =VLOOKUP($E12,'RECAP AG'!$G$6:$CU$250,27,FALSE) -> 77% | R12: =VLOOKUP($E12,'RECAP AG'!$G$6:$CU$250,28,FALSE) -> 130
A13: 50 | B13: AUBE HAUTE MARNE | C13: 21 | D13: CHAUMONT | E13: 451154 | F13: JOINVILLE | G13: =VLOOKUP($E13,'RECAP AG'!$G$6:$CU$250,3,FALSE) -> 1.9 | H13: =VLOOKUP($E13,'RECAP AG'!$G$6:$CU$250,18,FALSE) -> 38.8 | I13: =VLOOKUP($E13,'RECAP AG'!$G$6:$CU$250,19,FALSE) -> 20.86 | J13: =VLOOKUP($E13,'RECAP AG'!$G$6:$CU$250,20,FALSE) -> 80% | K13: =VLOOKUP($E13,'RECAP AG'!$G$6:$CU$250,21,FALSE) -> 85 | L13: =VLOOKUP($E13,'RECAP AG'!$G$6:$CU$250,22,FALSE) -> 106 | M13: =VLOOKUP($E13,'RECAP AG'!$G$6:$CU$250,23,FALSE) -> 56.99 | N13: =VLOOKUP($E13,'RECAP AG'!$G$6:$CU$250,24,FALSE) -> 54% | O13: =VLOOKUP($E13,'RECAP AG'!$G$6:$CU$250,25,FALSE) -> 61 | P13: =VLOOKUP($E13,'RECAP AG'!$G$6:$CU$250,26,FALSE) -> 70% | Q13: =VLOOKUP($E13,'RECAP AG'!$G$6:$CU$250,27,FALSE) -> 70% | R13: =VLOOKUP($E13,'RECAP AG'!$G$6:$CU$250,28,FALSE) -> 70
A14: 50 | B14: AUBE HAUTE MARNE | C14: 21 | D14: CHAUMONT | E14: 451156 | F14: SAINT DIZIER CENTRE | G14: =VLOOKUP($E14,'RECAP AG'!$G$6:$CU$250,3,FALSE) -> 8.6 | H14: =VLOOKUP($E14,'RECAP AG'!$G$6:$CU$250,18,FALSE) -> 114.4 | I14: =VLOOKUP($E14,'RECAP AG'!$G$6:$CU$250,19,FALSE) -> 13.33 | J14: =VLOOKUP($E14,'RECAP AG'!$G$6:$CU$250,20,FALSE) -> 87% | K14: =VLOOKUP($E14,'RECAP AG'!$G$6:$CU$250,21,FALSE) -> 140 | L14: =VLOOKUP($E14,'RECAP AG'!$G$6:$CU$250,22,FALSE) -> 431 | M14: =VLOOKUP($E14,'RECAP AG'!$G$6:$CU$250,23,FALSE) -> 50.23 | N14: =VLOOKUP($E14,'RECAP AG'!$G$6:$CU$250,24,FALSE) -> 60% | O14: =VLOOKUP($E14,'RECAP AG'!$G$6:$CU$250,25,FALSE) -> 94 | P14: =VLOOKUP($E14,'RECAP AG'!$G$6:$CU$250,26,FALSE) -> 76% | Q14: =VLOOKUP($E14,'RECAP AG'!$G$6:$CU$250,27,FALSE) -> 76% | R14: =VLOOKUP($E14,'RECAP AG'!$G$6:$CU$250,28,FALSE) -> 122
A15: 50 | B15: AUBE HAUTE MARNE | C15: 21 | D15: CHAUMONT | E15: 451151 | F15: WASSY | G15: =VLOOKUP($E15,'RECAP AG'!$G$6:$CU$250,3,FALSE) -> 1.9 | H15: =VLOOKUP($E15,'RECAP AG'!$G$6:$CU$250,18,FALSE) -> 23.6 | I15: =VLOOKUP($E15,'RECAP AG'!$G$6:$CU$250,19,FALSE) -> 12.36 | J15: =VLOOKUP($E15,'RECAP AG'!$G$6:$CU$250,20,FALSE) -> 88% | K15: =VLOOKUP($E15,'RECAP AG'!$G$6:$CU$250,21,FALSE) -> 150 | L15: =VLOOKUP($E15,'RECAP AG'!$G$6:$CU$250,22,FALSE) -> 76 | M15: =VLOOKUP($E15,'RECAP AG'!$G$6:$CU$250,23,FALSE) -> 39.79 | N15: =VLOOKUP($E15,'RECAP AG'!$G$6:$CU$250,24,FALSE) -> 68% | O15: =VLOOKUP($E15,'RECAP AG'!$G$6:$CU$250,25,FALSE) -> 155 | P15: =VLOOKUP($E15,'RECAP AG'!$G$6:$CU$250,26,FALSE) -> 80% | Q15: =VLOOKUP($E15,'RECAP AG'!$G$6:$CU$250,27,FALSE) -> 80% | R15: =VLOOKUP($E15,'RECAP AG'!$G$6:$CU$250,28,FALSE) -> 157
A16: 50 | B16: AUBE HAUTE MARNE | C16: 14 | D16: TROYES | E16: 510523 | F16: LA CHAPELLE ST LUC | G16: =VLOOKUP($E16,'RECAP AG'!$G$6:$CU$250,3,FALSE) -> 4.5 | H16: =VLOOKUP($E16,'RECAP AG'!$G$6:$CU$250,18,FALSE) -> 51.6 | I16: =VLOOKUP($E16,'RECAP AG'!$G$6:$CU$250,19,FALSE) -> 11.52 | J16: =VLOOKUP($E16,'RECAP AG'!$G$6:$CU$250,20,FALSE) -> 89% | K16: =VLOOKUP($E16,'RECAP AG'!$G$6:$CU$250,21,FALSE) -> 156 | L16: =VLOOKUP($E16,'RECAP AG'!$G$6:$CU$250,22,FALSE) -> 271 | M16: =VLOOKUP($E16,'RECAP AG'!$G$6:$CU$250,23,FALSE) -> 60.49 | N16: =VLOOKUP($E16,'RECAP AG'!$G$6:$CU$250,24,FALSE) -> 52% | O16: =VLOOKUP($E16,'RECAP AG'!$G$6:$CU$250,25,FALSE) -> 44 | P16: =VLOOKUP($E16,'RECAP AG'!$G$6:$CU$250,26,FALSE) -> 74% | Q16: =VLOOKUP($E16,'RECAP AG'!$G$6:$CU$250,27,FALSE) -> 74% | R16: =VLOOKUP($E16,'RECAP AG'!$G$6:$CU$250,28,FALSE) -> 101
A17: 50 | B17: AUBE HAUTE MARNE | C17: 14 | D17: TROYES | E17: 510530 | F17: ARCIS SUR AUBE | G17: =VLOOKUP($E17,'RECAP AG'!$G$6:$CU$250,3,FALSE) -> 3.6 | H17: =VLOOKUP($E17,'RECAP AG'!$G$6:$CU$250,18,FALSE) -> 40.8 | I17: =VLOOKUP($E17,'RECAP AG'!$G$6:$CU$250,19,FALSE) -> 11.33 | J17: =VLOOKUP($E17,'RECAP AG'!$G$6:$CU$250,20,FALSE) -> 89% | K17: =VLOOKUP($E17,'RECAP AG'!$G$6:$CU$250,21,FALSE) -> 160 | L17: =VLOOKUP($E17,'RECAP AG'!$G$6:$CU$250,22,FALSE) -> 133 | M17: =VLOOKUP($E17,'RECAP AG'!$G$6:$CU$250,23,FALSE) -> 36.94 | N17: =VLOOKUP($E17,'RECAP AG'!$G$6:$CU$250,24,FALSE) -> 70% | O17: =VLOOKUP($E17,'RECAP AG'!$G$6:$CU$250,25,FALSE) -> 178 | P17: =VLOOKUP($E17,'RECAP AG'!$G$6:$CU$250,26,FALSE) -> 82% | Q17: =VLOOKUP($E17,'RECAP AG'!$G$6:$CU$250,27,FALSE) -> 82% | R17: =VLOOKUP($E17,'RECAP AG'!$G$6:$CU$250,28,FALSE) -> 169
A18: 50 | B18: AUBE HAUTE MARNE | C18: 14 | D18: TROYES | E18: 410550 | F18: BAR SUR AUBE | G18: =VLOOKUP($E18,'RECAP AG'!$G$6:$CU$250,3,FALSE) -> 5.1 | H18: =VLOOKUP($E18,'RECAP AG'!$G$6:$CU$250,18,FALSE) -> 58.6 | I18: =VLOOKUP($E18,'RECAP AG'!$G$6:$CU$250,19,FALSE) -> 11.47 | J18: =VLOOKUP($E18,'RECAP AG'!$G$6:$CU$250,20,FALSE) -> 89% | K18: =VLOOKUP($E18,'RECAP AG'!$G$6:$CU$250,21,FALSE) -> 157 | L18: =VLOOKUP($E18,'RECAP AG'!$G$6:$CU$250,22,FALSE) -> 191 | M18: =VLOOKUP($E18,'RECAP AG'!$G$6:$CU$250,23,FALSE) -> 37.38 | N18: =VLOOKUP($E18,'RECAP AG'!$G$6:$CU$250,24,FALSE) -> 70% | O18: =VLOOKUP($E18,'RECAP AG'!$G$6:$CU$250,25,FALSE) -> 176 | P18: =VLOOKUP($E18,'RECAP AG'!$G$6:$CU$250,26,FALSE) -> 81% | Q18: =VLOOKUP($E18,'RECAP AG'!$G$6:$CU$250,27,FALSE) -> 81% | R18: =VLOOKUP($E18,'RECAP AG'!$G$6:$CU$250,28,FALSE) -> 166
A19: 50 | B19: AUBE HAUTE MARNE | C19: 14 | D19: TROYES | E19: 510556 | F19: BAR SUR SEINE | G19: =VLOOKUP($E19,'RECAP AG'!$G$6:$CU$250,3,FALSE) -> 2.6 | H19: =VLOOKUP($E19,'RECAP AG'!$G$6:$CU$250,18,FALSE) -> 15.0 | I19: =VLOOKUP($E19,'RECAP AG'!$G$6:$CU$250,19,FALSE) -> 5.68 | J19: =VLOOKUP($E19,'RECAP AG'!$G$6:$CU$250,20,FALSE) -> 95% | K19: =VLOOKUP($E19,'RECAP AG'!$G$6:$CU$250,21,FALSE) -> 197 | L19: =VLOOKUP($E19,'RECAP AG'!$G$6:$CU$250,22,FALSE) -> 83 | M19: =VLOOKUP($E19,'RECAP AG'!$G$6:$CU$250,23,FALSE) -> 31.44 | N19: =VLOOKUP($E19,'RECAP AG'!$G$6:$CU$250,24,FALSE) -> 75% | O19: =VLOOKUP($E19,'RECAP AG'!$G$6:$CU$250,25,FALSE) -> 214 | P19: =VLOOKUP($E19,'RECAP AG'!$G$6:$CU$250,26,FALSE) -> 87% | Q19: =VLOOKUP($E19,'RECAP AG'!$G$6:$CU$250,27,FALSE) -> 87% | R19: =VLOOKUP($E19,'RECAP AG'!$G$6:$CU$250,28,FALSE) -> 211
A20: 50 | B20: AUBE HAUTE MARNE | C20: 14 | D20: TROYES | E20: 510570 | F20: NOGENT SUR SEINE | G20: =VLOOKUP($E20,'RECAP AG'!$G$6:$CU$250,3,FALSE) -> 4.3 | H20: =VLOOKUP($E20,'RECAP AG'!$G$6:$CU$250,18,FALSE) -> 72.8 | I20: =VLOOKUP($E20,'RECAP AG'!$G$6:$CU$250,19,FALSE) -> 16.93 | J20: =VLOOKUP($E20,'RECAP AG'!$G$6:$CU$250,20,FALSE) -> 84% | K20: =VLOOKUP($E20,'RECAP AG'!$G$6:$CU$250,21,FALSE) -> 114 | L20: =VLOOKUP($E20,'RECAP AG'!$G$6:$CU$250,22,FALSE) -> 206 | M20: =VLOOKUP($E20,'RECAP AG'!$G$6:$CU$250,23,FALSE) -> 47.91 | N20: =VLOOKUP($E20,'RECAP AG'!$G$6:$CU$250,24,FALSE) -> 62% | O20: =VLOOKUP($E20,'RECAP AG'!$G$6:$CU$250,25,FALSE) -> 104 | P20: =VLOOKUP($E20,'RECAP AG'!$G$6:$CU$250,26,FALSE) -> 75% | Q20: =VLOOKUP($E20,'RECAP AG'!$G$6:$CU$250,27,FALSE) -> 75% | R20: =VLOOKUP($E20,'RECAP AG'!$G$6:$CU$250,28,FALSE) -> 109
A21: 50 | B21: AUBE HAUTE MARNE | C21: 14 | D21: TROYES | E21: 410571 | F21: ROMILLY SUR SEINE | G21: =VLOOKUP($E21,'RECAP AG'!$G$6:$CU$250,3,FALSE) -> 4.7 | H21: =VLOOKUP($E21,'RECAP AG'!$G$6:$CU$250,18,FALSE) -> 12.1 | I21: =VLOOKUP($E21,'RECAP AG'!$G$6:$CU$250,19,FALSE) -> 2.56 | J21: =VLOOKUP($E21,'RECAP AG'!$G$6:$CU$250,20,FALSE) -> 98% | K21: =VLOOKUP($E21,'RECAP AG'!$G$6:$CU$250,21,FALSE) -> 211 | L21: =VLOOKUP($E21,'RECAP AG'!$G$6:$CU$250,22,FALSE) -> 198 | M21: =VLOOKUP($E21,'RECAP AG'!$G$6:$CU$250,23,FALSE) -> 41.95 | N21: =VLOOKUP($E21,'RECAP AG'!$G$6:$CU$250,24,FALSE) -> 66% | O21: =VLOOKUP($E21,'RECAP AG'!$G$6:$CU$250,25,FALSE) -> 144 | P21: =VLOOKUP($E21,'RECAP AG'!$G$6:$CU$250,26,FALSE) -> 85% | Q21: =VLOOKUP($E21,'RECAP AG'!$G$6:$CU$250,27,FALSE) -> 85% | R21: =VLOOKUP($E21,'RECAP AG'!$G$6:$CU$250,28,FALSE) -> 204
A22: 50 | B22: AUBE HAUTE MARNE | C22: 14 | D22: TROYES | E22: 510520 | F22: SAINT ANDRE LES VERGERS | G22: =VLOOKUP($E22,'RECAP AG'!$G$6:$CU$250,3,FALSE) -> 3.3 | H22: =VLOOKUP($E22,'RECAP AG'!$G$6:$CU$250,18,FALSE) -> 30.3 | I22: =VLOOKUP($E22,'RECAP AG'!$G$6:$CU$250,19,FALSE) -> 9.32 | J22: =VLOOKUP($E22,'RECAP AG'!$G$6:$CU$250,20,FALSE) -> 91% | K22: =VLOOKUP($E22,'RECAP AG'!$G$6:$CU$250,21,FALSE) -> 175 | L22: =VLOOKUP($E22,'RECAP AG'!$G$6:$CU$250,22,FALSE) -> 166 | M22: =VLOOKUP($E22,'RECAP AG'!$G$6:$CU$250,23,FALSE) -> 51.08 | N22: =VLOOKUP($E22,'RECAP AG'!$G$6:$CU$250,24,FALSE) -> 59% | O22: =VLOOKUP($E22,'RECAP AG'!$G$6:$CU$250,25,FALSE) -> 88 | P22: =VLOOKUP($E22,'RECAP AG'!$G$6:$CU$250,26,FALSE) -> 78% | Q22: =VLOOKUP($E22,'RECAP AG'!$G$6:$CU$250,27,FALSE) -> 78% | R22: =VLOOKUP($E22,'RECAP AG'!$G$6:$CU$250,28,FALSE) -> 141
A23: 50 | B23: AUBE HAUTE MARNE | C23: 14 | D23: TROYES | E23: 410524 | F23: SAINT JULIEN LES VILLAS | G23: =VLOOKUP($E23,'RECAP AG'!$G$6:$CU$250,3,FALSE) -> 5.1 | H23: =VLOOKUP($E23,'RECAP AG'!$G$6:$CU$250,18,FALSE) -> 35.3 | I23: =VLOOKUP($E23,'RECAP AG'!$G$6:$CU$250,19,FALSE) -> 6.92 | J23: =VLOOKUP($E23,'RECAP AG'!$G$6:$CU$250,20,FALSE) -> 93% | K23: =VLOOKUP($E23,'RECAP AG'!$G$6:$CU$250,21,FALSE) -> 191 | L23: =VLOOKUP($E23,'RECAP AG'!$G$6:$CU$250,22,FALSE) -> 203 | M23: =VLOOKUP($E23,'RECAP AG'!$G$6:$CU$250,23,FALSE) -> 39.80 | N23: =VLOOKUP($E23,'RECAP AG'!$G$6:$CU$250,24,FALSE) -> 68% | O23: =VLOOKUP($E23,'RECAP AG'!$G$6:$CU$250,25,FALSE) -> 154 | P23: =VLOOKUP($E23,'RECAP AG'!$G$6:$CU$250,26,FALSE) -> 83% | Q23: =VLOOKUP($E23,'RECAP AG'!$G$6:$CU$250,27,FALSE) -> 83% | R23: =VLOOKUP($E23,'RECAP AG'!$G$6:$CU$250,28,FALSE) -> 185
A24: 50 | B24: AUBE HAUTE MARNE | C24: 14 | D24: TROYES | E24: 410521 | F24: SAINTE SAVINE | G24: =VLOOKUP($E24,'RECAP AG'!$G$6:$CU$250,3,FALSE) -> 4.2 | H24: =VLOOKUP($E24,'RECAP AG'!$G$6:$CU$250,18,FALSE) -> 18.6 | I24: =VLOOKUP($E24,'RECAP AG'!$G$6:$CU$250,19,FALSE) -> 4.47 | J24: =VLOOKUP($E24,'RECAP AG'!$G$6:$CU$250,20,FALSE) -> 96% | K24: =VLOOKUP($E24,'RECAP AG'!$G$6:$CU$250,21,FALSE) -> 203 | L24: =VLOOKUP($E24,'RECAP AG'!$G$6:$CU$250,22,FALSE) -> 173 | M24: =VLOOKUP($E24,'RECAP AG'!$G$6:$CU$250,23,FALSE) -> 41.59 | N24: =VLOOKUP($E24,'RECAP AG'!$G$6:$CU$250,24,FALSE) -> 67% | O24: =VLOOKUP($E24,'RECAP AG'!$G$6:$CU$250,25,FALSE) -> 146 | P24: =VLOOKUP($E24,'RECAP AG'!$G$6:$CU$250,26,FALSE) -> 84% | Q24: =VLOOKUP($E24,'RECAP AG'!$G$6:$CU$250,27,FALSE) -> 84% | R24: =VLOOKUP($E24,'RECAP AG'!$G$6:$CU$250,28,FALSE) -> 197
A25: 50 | B25: AUBE HAUTE MARNE | C25: 14 | D25: TROYES | E25: 510513 | F25: SAINT PARRES AUX TERTRES | G25: =VLOOKUP($E25,'RECAP AG'!$G$6:$CU$250,3,FALSE) -> 2.3 | H25: =VLOOKUP($E25,'RECAP AG'!$G$6:$CU$250,18,FALSE) -> 42.7 | I25: =VLOOKUP($E25,'RECAP AG'!$G$6:$CU$250,19,FALSE) -> 18.98 | J25: =VLOOKUP($E25,'RECAP AG'!$G$6:$CU$250,20,FALSE) -> 82% | K25: =VLOOKUP($E25,'RECAP AG'!$G$6:$CU$250,21,FALSE) -> 96 | L25: =VLOOKUP($E25,'RECAP AG'!$G$6:$CU$250,22,FALSE) -> 172 | M25: =VLOOKUP($E25,'RECAP AG'!$G$6:$CU$250,23,FALSE) -> 76.44 | N25: =VLOOKUP($E25,'RECAP AG'!$G$6:$CU$250,24,FALSE) -> 39% | O25: =VLOOKUP($E25,'RECAP AG'!$G$6:$CU$250,25,FALSE) -> 13 | P25: =VLOOKUP($E25,'RECAP AG'!$G$6:$CU$250,26,FALSE) -> 65% | Q25: =VLOOKUP($E25,'RECAP AG'!$G$6:$CU$250,27,FALSE) -> 65% | R25: =VLOOKUP($E25,'RECAP AG'!$G$6:$CU$250,28,FALSE) -> 42
A26: 50 | B26: AUBE HAUTE MARNE | C26: 14 | D26: TROYES | E26: 410510 | F26: TROYES GAMBETTA | G26: =VLOOKUP($E26,'RECAP AG'!$G$6:$CU$250,3,FALSE) -> 8.9 | H26: =VLOOKUP($E26,'RECAP AG'!$G$6:$CU$250,18,FALSE) -> 87.0 | I26: =VLOOKUP($E26,'RECAP AG'!$G$6:$CU$250,19,FALSE) -> 9.78 | J26: =VLOOKUP($E26,'RECAP AG'!$G$6:$CU$250,20,FALSE) -> 91% | K26: =VLOOKUP($E26,'RECAP AG'!$G$6:$CU$250,21,FALSE) -> 172 | L26: =VLOOKUP($E26,'RECAP AG'!$G$6:$CU$250,22,FALSE) -> 340 | M26: =VLOOKUP($E26,'RECAP AG'!$G$6:$CU$250,23,FALSE) -> 38.20 | N26: =VLOOKUP($E26,'RECAP AG'!$G$6:$CU$250,24,FALSE) -> 69% | O26: =VLOOKUP($E26,'RECAP AG'!$G$6:$CU$250,25,FALSE) -> 169 | P26: =VLOOKUP($E26,'RECAP AG'!$G$6:$CU$250,26,FALSE) -> 82% | Q26: =VLOOKUP($E26,'RECAP AG'!$G$6:$CU$250,27,FALSE) -> 82% | R26: =VLOOKUP($E26,'RECAP AG'!$G$6:$CU$250,28,FALSE) -> 175
A27: 50 | B27: AUBE HAUTE MARNE | C27: 14 | D27: TROYES | E27: 410512 | F27: TROYES ZOLA | G27: =VLOOKUP($E27,'RECAP AG'!$G$6:$CU$250,3,FALSE) -> 5.3 | H27: =VLOOKUP($E27,'RECAP AG'!$G$6:$CU$250,18,FALSE) -> -15.4 | I27: =VLOOKUP($E27,'RECAP AG'!$G$6:$CU$250,19,FALSE) -> -2.90 | J27: =VLOOKUP($E27,'RECAP AG'!$G$6:$CU$250,20,FALSE) -> 103% | K27: =VLOOKUP($E27,'RECAP AG'!$G$6:$CU$250,21,FALSE) -> 231 | L27: =VLOOKUP($E27,'RECAP AG'!$G$6:$CU$250,22,FALSE) -> 204 | M27: =VLOOKUP($E27,'RECAP AG'!$G$6:$CU$250,23,FALSE) -> 38.42 | N27: =VLOOKUP($E27,'RECAP AG'!$G$6:$CU$250,24,FALSE) -> 69% | O27: =VLOOKUP($E27,'RECAP AG'!$G$6:$CU$250,25,FALSE) -> 166 | P27: =VLOOKUP($E27,'RECAP AG'!$G$6:$CU$250,26,FALSE) -> 89% | Q27: =VLOOKUP($E27,'RECAP AG'!$G$6:$CU$250,27,FALSE) -> 89% | R27: =VLOOKUP($E27,'RECAP AG'!$G$6:$CU$250,28,FALSE) -> 229
A28: 262 | B28: BAS RHIN | C28: 5060 | D28: HAGUENAU | E28: 4057 | F28: BISCHWILLER | G28: =VLOOKUP($E28,'RECAP AG'!$G$6:$CU$250,3,FALSE) -> 7.2 | H28: =VLOOKUP($E28,'RECAP AG'!$G$6:$CU$250,18,FALSE) -> 200.1 | I28: =VLOOKUP($E28,'RECAP AG'!$G$6:$CU$250,19,FALSE) -> 27.91 | J28: =VLOOKUP($E28,'RECAP AG'!$G$6:$CU$250,20,FALSE) -> 73% | K28: =VLOOKUP($E28,'RECAP AG'!$G$6:$CU$250,21,FALSE) -> 49 | L28: =VLOOKUP($E28,'RECAP AG'!$G$6:$CU$250,22,FALSE) -> 244 | M28: =VLOOKUP($E28,'RECAP AG'!$G$6:$CU$250,23,FALSE) -> 34.03 | N28: =VLOOKUP($E28,'RECAP AG'!$G$6:$CU$250,24,FALSE) -> 73% | O28: =VLOOKUP($E28,'RECAP AG'!$G$6:$CU$250,25,FALSE) -> 201 | P28: =VLOOKUP($E28,'RECAP AG'!$G$6:$CU$250,26,FALSE) -> 73% | Q28: =VLOOKUP($E28,'RECAP AG'!$G$6:$CU$250,27,FALSE) -> 73% | R28: =VLOOKUP($E28,'RECAP AG'!$G$6:$CU$250,28,FALSE) -> 93
A29: 262 | B29: BAS RHIN | C29: 5060 | D29: HAGUENAU | E29: 4082 | F29: BOUXWILLER | G29: =VLOOKUP($E29,'RECAP AG'!$G$6:$CU$250,3,FALSE) -> 2.2 | H29: =VLOOKUP($E29,'RECAP AG'!$G$6:$CU$250,18,FALSE) -> 12.6 | I29: =VLOOKUP($E29,'RECAP AG'!$G$6:$CU$250,19,FALSE) -> 5.63 | J29: =VLOOKUP($E29,'RECAP AG'!$G$6:$CU$250,20,FALSE) -> 95% | K29: =VLOOKUP($E29,'RECAP AG'!$G$6:$CU$250,21,FALSE) -> 198 | L29: =VLOOKUP($E29,'RECAP AG'!$G$6:$CU$250,22,FALSE) -> 82 | M29: =VLOOKUP($E29,'RECAP AG'!$G$6:$CU$250,23,FALSE) -> 36.61 | N29: =VLOOKUP($E29,'RECAP AG'!$G$6:$CU$250,24,FALSE) -> 71% | O29: =VLOOKUP($E29,'RECAP AG'!$G$6:$CU$250,25,FALSE) -> 184 | P29: =VLOOKUP($E29,'RECAP AG'!$G$6:$CU$250,26,FALSE) -> 85% | Q29: =VLOOKUP($E29,'RECAP AG'!$G$6:$CU$250,27,FALSE) -> 85% | R29: =VLOOKUP($E29,'RECAP AG'!$G$6:$CU$250,28,FALSE) -> 203
A30: 262 | B30: BAS RHIN | C30: 5060 | D30: HAGUENAU | E30: 4030 | F30: BRUMATH | G30: =VLOOKUP($E30,'RECAP AG'!$G$6:$CU$250,3,FALSE) -> 4.1 | H30: =VLOOKUP($E30,'RECAP AG'!$G$6:$CU$250,18,FALSE) -> 101.3 | I30: =VLOOKUP($E30,'RECAP AG'!$G$6:$CU$250,19,FALSE) -> 24.65 | J30: =VLOOKUP($E30,'RECAP AG'!$G$6:$CU$250,20,FALSE) -> 76% | K30: =VLOOKUP($E30,'RECAP AG'!$G$6:$CU$250,21,FALSE) -> 71 | L30: =VLOOKUP($E30,'RECAP AG'!$G$6:$CU$250,22,FALSE) -> 142 | M30: =VLOOKUP($E30,'RECAP AG'!$G$6:$CU$250,23,FALSE) -> 34.55 | N30: =VLOOKUP($E30,'RECAP AG'!$G$6:$CU$250,24,FALSE) -> 72% | O30: =VLOOKUP($E30,'RECAP AG'!$G$6:$CU$250,25,FALSE) -> 195 | P30: =VLOOKUP($E30,'RECAP AG'!$G$6:$CU$250,26,FALSE) -> 75% | Q30: =VLOOKUP($E30,'RECAP AG'!$G$6:$CU$250,27,FALSE) -> 75% | R30: =VLOOKUP($E30,'RECAP AG'!$G$6:$CU$250,28,FALSE) -> 107
A31: 262 | B31: BAS RHIN | C31: 5060 | D31: HAGUENAU | E31: 4060 | F31: HAGUENAU HOUBLON | G31: =VLOOKUP($E31,'RECAP AG'!$G$6:$CU$250,3,FALSE) -> 8.8 | H31: =VLOOKUP($E31,'RECAP AG'!$G$6:$CU$250,18,FALSE) -> 98.8 | I31: =VLOOKUP($E31,'RECAP AG'!$G$6:$CU$250,19,FALSE) -> 11.29 | J31: =VLOOKUP($E31,'RECAP AG'!$G$6:$CU$250,20,FALSE) -> 89% | K31: =VLOOKUP($E31,'RECAP AG'!$G$6:$CU$250,21,FALSE) -> 161 | L31: =VLOOKUP($E31,'RECAP AG'!$G$6:$CU$250,22,FALSE) -> 318 | M31: =VLOOKUP($E31,'RECAP AG'!$G$6:$CU$250,23,FALSE) -> 36.34 | N31: =VLOOKUP($E31,'RECAP AG'!$G$6:$CU$250,24,FALSE) -> 71% | O31: =VLOOKUP($E31,'RECAP AG'!$G$6:$CU$250,25,FALSE) -> 186 | P31: =VLOOKUP($E31,'RECAP AG'!$G$6:$CU$250,26,FALSE) -> 82% | Q31: =VLOOKUP($E31,'RECAP AG'!$G$6:$CU$250,27,FALSE) -> 82% | R31: =VLOOKUP($E31,'RECAP AG'!$G$6:$CU$250,28,FALSE) -> 171
A32: 262 | B32: BAS RHIN | C32: 5060 | D32: HAGUENAU | E32: 4092 | F32: HOCHFELDEN | G32: =VLOOKUP($E32,'RECAP AG'!$G$6:$CU$250,3,FALSE) -> 1.7 | H32: =VLOOKUP($E32,'RECAP AG'!$G$6:$CU$250,18,FALSE) -> 21.6 | I32: =VLOOKUP($E32,'RECAP AG'!$G$6:$CU$250,19,FALSE) -> 12.56 | J32: =VLOOKUP($E32,'RECAP AG'!$G$6:$CU$250,20,FALSE) -> 88% | K32: =VLOOKUP($E32,'RECAP AG'!$G$6:$CU$250,21,FALSE) -> 146 | L32: =VLOOKUP($E32,'RECAP AG'!$G$6:$CU$250,22,FALSE) -> 112 | M32: =VLOOKUP($E32,'RECAP AG'!$G$6:$CU$250,23,FALSE) -> 65.12 | N32: =VLOOKUP($E32,'RECAP AG'!$G$6:$CU$250,24,FALSE) -> 48% | O32: =VLOOKUP($E32,'RECAP AG'!$G$6:$CU$250,25,FALSE) -> 35 | P32: =VLOOKUP($E32,'RECAP AG'!$G$6:$CU$250,26,FALSE) -> 72% | Q32: =VLOOKUP($E32,'RECAP AG'!$G$6:$CU$250,27,FALSE) -> 72% | R32: =VLOOKUP($E32,'RECAP AG'!$G$6:$CU$250,28,FALSE) -> 89
A33: 262 | B33: BAS RHIN | C33: 5060 | D33: HAGUENAU | E33: 4041 | F33: HOERDT | G33: =VLOOKUP($E33,'RECAP AG'!$G$6:$CU$250,3,FALSE) -> 1.7 | H33: =VLOOKUP($E33,'RECAP AG'!$G$6:$CU$250,18,FALSE) -> 27.0 | I33: =VLOOKUP($E33,'RECAP AG'!$G$6:$CU$250,19,FALSE) -> 16.27 | J33: =VLOOKUP($E33,'RECAP AG'!$G$6:$CU$250,20,FALSE) -> 84% | K33: =VLOOKUP($E33,'RECAP AG'!$G$6:$CU$250,21,FALSE) -> 119 | L33: =VLOOKUP($E33,'RECAP AG'!$G$6:$CU$250,22,FALSE) -> 63 | M33: =VLOOKUP($E33,'RECAP AG'!$G$6:$CU$250,23,FALSE) -> 37.95 | N33: =VLOOKUP($E33,'RECAP AG'!$G$6:$CU$250,24,FALSE) -> 70% | O33: =VLOOKUP($E33,'RECAP AG'!$G$6:$CU$250,25,FALSE) -> 171 | P33: =VLOOKUP($E33,'RECAP AG'!$G$6:$CU$250,26,FALSE) -> 79% | Q33: =VLOOKUP($E33,'RECAP AG'!$G$6:$CU$250,27,FALSE) -> 79% | R33: =VLOOKUP($E33,'RECAP AG'!$G$6:$CU$250,28,FALSE) -> 147
A34: 262 | B34: BAS RHIN | C34: 5060 | D34: HAGUENAU | E34: 4085 | F34: INGWILLER | G34: =VLOOKUP($E34,'RECAP AG'!$G$6:$CU$250,3,FALSE) -> 3.5 | H34: =VLOOKUP($E34,'RECAP AG'!$G$6:$CU$250,18,FALSE) -> 52.5 | I34: =VLOOKUP($E34,'RECAP AG'!$G$6:$CU$250,19,FALSE) -> 15.09 | J34: =VLOOKUP($E34,'RECAP AG'!$G$6:$CU$250,20,FALSE) -> 86% | K34: =VLOOKUP($E34,'RECAP AG'!$G$6:$CU$250,21,FALSE) -> 131 | L34: =VLOOKUP($E34,'RECAP AG'!$G$6:$CU$250,22,FALSE) -> 151 | M34: =VLOOKUP($E34,'RECAP AG'!$G$6:$CU$250,23,FALSE) -> 43.39 | N34: =VLOOKUP($E34,'RECAP AG'!$G$6:$CU$250,24,FALSE) -> 65% | O34: =VLOOKUP($E34,'RECAP AG'!$G$6:$CU$250,25,FALSE) -> 139 | P34: =VLOOKUP($E34,'RECAP AG'!$G$6:$CU$250,26,FALSE) -> 77% | Q34: =VLOOKUP($E34,'RECAP AG'!$G$6:$CU$250,27,FALSE) -> 77% | R34: =VLOOKUP($E34,'RECAP AG'!$G$6:$CU$250,28,FALSE) -> 136
A35: 262 | B35: BAS RHIN | C35: 5060 | D35: HAGUENAU | E35: 4066 | F35: NIEDERBRONN LES BAINS | G35: =VLOOKUP($E35,'RECAP AG'!$G$6:$CU$250,3,FALSE) -> 5.7 | H35: =VLOOKUP($E35,'RECAP AG'!$G$6:$CU$250,18,FALSE) -> -3.8 | I35: =VLOOKUP($E35,'RECAP AG'!$G$6:$CU$250,19,FALSE) -> -0.67 | J35: =VLOOKUP($E35,'RECAP AG'!$G$6:$CU$250,20,FALSE) -> 101% | K35: =VLOOKUP($E35,'RECAP AG'!$G$6:$CU$250,21,FALSE) -> 225 | L35: =VLOOKUP($E35,'RECAP AG'!$G$6:$CU$250,22,FALSE) -> 195 | M35: =VLOOKUP($E35,'RECAP AG'!$G$6:$CU$250,23,FALSE) -> 34.51 | N35: =VLOOKUP($E35,'RECAP AG'!$G$6:$CU$250,24,FALSE) -> 72% | O35: =VLOOKUP($E35,'RECAP AG'!$G$6:$CU$250,25,FALSE) -> 197 | P35: =VLOOKUP($E35,'RECAP AG'!$G$6:$CU$250,26,FALSE) -> 89% | Q35: =VLOOKUP($E35,'RECAP AG'!$G$6:$CU$250,27,FALSE) -> 89% | R35: =VLOOKUP($E35,'RECAP AG'!$G$6:$CU$250,28,FALSE) -> 228
A36: 262 | B36: BAS RHIN | C36: 5060 | D36: HAGUENAU | E36: 4067 | F36: PFAFFENHOFFEN | G36: =VLOOKUP($E36,'RECAP AG'!$G$6:$CU$250,3,FALSE) -> 1.9 | H36: =VLOOKUP($E36,'RECAP AG'!$G$6:$CU$250,18,FALSE) -> 32.1 | I36: =VLOOKUP($E36,'RECAP AG'!$G$6:$CU$250,19,FALSE) -> 17.17 | J36: =VLOOKUP($E36,'RECAP AG'!$G$6:$CU$250,20,FALSE) -> 84% | K36: =VLOOKUP($E36,'RECAP AG'!$G$6:$CU$250,21,FALSE) -> 113 | L36: =VLOOKUP($E36,'RECAP AG'!$G$6:$CU$250,22,FALSE) -> 68 | M36: =VLOOKUP($E36,'RECAP AG'!$G$6:$CU$250,23,FALSE) -> 36.36 | N36: =VLOOKUP($E36,'RECAP AG'!$G$6:$CU$250,24,FALSE) -> 71% | O36: =VLOOKUP($E36,'RECAP AG'!$G$6:$CU$250,25,FALSE) -> 185 | P36: =VLOOKUP($E36,'RECAP AG'!$G$6:$CU$250,26,FALSE) -> 78% | Q36: =VLOOKUP($E36,'RECAP AG'!$G$6:$CU$250,27,FALSE) -> 78% | R36: =VLOOKUP($E36,'RECAP AG'!$G$6:$CU$250,28,FALSE) -> 145
A37: 262 | B37: BAS RHIN | C37: 5060 | D37: HAGUENAU | E37: 4095 | F37: SARRE UNION | G37: =VLOOKUP($E37,'RECAP AG'!$G$6:$CU$250,3,FALSE) -> 2.6 | H37: =VLOOKUP($E37,'RECAP AG'!$G$6:$CU$250,18,FALSE) -> 36.2 | I37: =VLOOKUP($E37,'RECAP AG'!$G$6:$CU$250,19,FALSE) -> 14.14 | J37: =VLOOKUP($E37,'RECAP AG'!$G$6:$CU$250,20,FALSE) -> 86% | K37: =VLOOKUP($E37,'RECAP AG'!$G$6:$CU$250,21,FALSE) -> 134 | L37: =VLOOKUP($E37,'RECAP AG'!$G$6:$CU$250,22,FALSE) -> 85 | M37: =VLOOKUP($E37,'RECAP AG'!$G$6:$CU$250,23,FALSE) -> 33.20 | N37: =VLOOKUP($E37,'RECAP AG'!$G$6:$CU$250,24,FALSE) -> 73% | O37: =VLOOKUP($E37,'RECAP AG'!$G$6:$CU$250,25,FALSE) -> 204 | P37: =VLOOKUP($E37,'RECAP AG'!$G$6:$CU$250,26,FALSE) -> 81% | Q37: =VLOOKUP($E37,'RECAP AG'!$G$6:$CU$250,27,FALSE) -> 81% | R37: =VLOOKUP($E37,'RECAP AG'!$G$6:$CU$250,28,FALSE) -> 163
A38: 262 | B38: BAS RHIN | C38: 5060 | D38: HAGUENAU | E38: 4087 | F38: SAVERNE | G38: =VLOOKUP($E38,'RECAP AG'!$G$6:$CU$250,3,FALSE) -> 6.3 | H38: =VLOOKUP($E38,'RECAP AG'!$G$6:$CU$250,18,FALSE) -> 156.3 | I38: =VLOOKUP($E38,'RECAP AG'!$G$6:$CU$250,19,FALSE) -> 24.97 | J38: =VLOOKUP($E38,'RECAP AG'!$G$6:$CU$250,20,FALSE) -> 76% | K38: =VLOOKUP($E38,'RECAP AG'!$G$6:$CU$250,21,FALSE) -> 68 | L38: =VLOOKUP($E38,'RECAP AG'!$G$6:$CU$250,22,FALSE) -> 221 | M38: =VLOOKUP($E38,'RECAP AG'!$G$6:$CU$250,23,FALSE) -> 35.30 | N38: =VLOOKUP($E38,'RECAP AG'!$G$6:$CU$250,24,FALSE) -> 72% | O38: =VLOOKUP($E38,'RECAP AG'!$G$6:$CU$250,25,FALSE) -> 191 | P38: =VLOOKUP($E38,'RECAP AG'!$G$6:$CU$250,26,FALSE) -> 74% | Q38: =VLOOKUP($E38,'RECAP AG'!$G$6:$CU$250,27,FALSE) -> 74% | R38: =VLOOKUP($E38,'RECAP AG'!$G$6:$CU$250,28,FALSE) -> 102
A39: 262 | B39: BAS RHIN | C39: 5060 | D39: HAGUENAU | E39: 4079 | F39: SOULTZ SOUS FORETS | G39: =VLOOKUP($E39,'RECAP AG'!$G$6:$CU$250,3,FALSE) -> 1.9 | H39: =VLOOKUP($E39,'RECAP AG'!$G$6:$CU$250,18,FALSE) -> 46.8 | I39: =VLOOKUP($E39,'RECAP AG'!$G$6:$CU$250,19,FALSE) -> 25.03 | J39: =VLOOKUP($E39,'RECAP AG'!$G$6:$CU$250,20,FALSE) -> 76% | K39: =VLOOKUP($E39,'RECAP AG'!$G$6:$CU$250,21,FALSE) -> 67 | L39: =VLOOKUP($E39,'RECAP AG'!$G$6:$CU$250,22,FALSE) -> 85 | M39: =VLOOKUP($E39,'RECAP AG'!$G$6:$CU$250,23,FALSE) -> 45.45 | N39: =VLOOKUP($E39,'RECAP AG'!$G$6:$CU$250,24,FALSE) -> 64% | O39: =VLOOKUP($E39,'RECAP AG'!$G$6:$CU$250,25,FALSE) -> 123 | P39: =VLOOKUP($E39,'RECAP AG'!$G$6:$CU$250,26,FALSE) -> 71% | Q39: =VLOOKUP($E39,'RECAP AG'!$G$6:$CU$250,27,FALSE) -> 71% | R39: =VLOOKUP($E39,'RECAP AG'!$G$6:$CU$250,28,FALSE) -> 79
A40: 262 | B40: BAS RHIN | C40: 5060 | D40: HAGUENAU | E40: 4031 | F40: TRUCHTERSHEIM | G40: =VLOOKUP($E40,'RECAP AG'!$G$6:$CU$250,3,FALSE) -> 2.2 | H40: =VLOOKUP($E40,'RECAP AG'!$G$6:$CU$250,18,FALSE) -> 85.6 | I40: =VLOOKUP($E40,'RECAP AG'!$G$6:$CU$250,19,FALSE) -> 39.09 | J40: =VLOOKUP($E40,'RECAP AG'!$G$6:$CU$250,20,FALSE) -> 63% | K40: =VLOOKUP($E40,'RECAP AG'!$G$6:$CU$250,21,FALSE) -> 13 | L40: =VLOOKUP($E40,'RECAP AG'!$G$6:$CU$250,22,FALSE) -> 66 | M40: =VLOOKUP($E40,'RECAP AG'!$G$6:$CU$250,23,FALSE) -> 30.14 | N40: =VLOOKUP($E40,'RECAP AG'!$G$6:$CU$250,24,FALSE) -> 76% | O40: =VLOOKUP($E40,'RECAP AG'!$G$6:$CU$250,25,FALSE) -> 224 | P40: =VLOOKUP($E40,'RECAP AG'!$G$6:$CU$250,26,FALSE) -> 68% | Q40: =VLOOKUP($E40,'RECAP AG'!$G$6:$CU$250,27,FALSE) -> 68% | R40: =VLOOKUP($E40,'RECAP AG'!$G$6:$CU$250,28,FALSE) -> 59
A41: 262 | B41: BAS RHIN | C41: 5060 | D41: HAGUENAU | E41: 4071 | F41: WISSEMBOURG | G41: =VLOOKUP($E41,'RECAP AG'!$G$6:$CU$250,3,FALSE) -> 6.9 | H41: =VLOOKUP($E41,'RECAP AG'!$G$6:$CU$250,18,FALSE) -> 104.9 | I41: =VLOOKUP($E41,'RECAP AG'!$G$6:$CU$250,19,FALSE) -> 15.16 | J41: =VLOOKUP($E41,'RECAP AG'!$G$6:$CU$250,20,FALSE) -> 85% | K41: =VLOOKUP($E41,'RECAP AG'!$G$6:$CU$250,21,FALSE) -> 130 | L41: =VLOOKUP($E41,'RECAP AG'!$G$6:$CU$250,22,FALSE) -> 303 | M41: =VLOOKUP($E41,'RECAP AG'!$G$6:$CU$250,23,FALSE) -> 43.79 | N41: =VLOOKUP($E41,'RECAP AG'!$G$6:$CU$250,24,FALSE) -> 65% | O41: =VLOOKUP($E41,'RECAP AG'!$G$6:$CU$250,25,FALSE) -> 135 | P41: =VLOOKUP($E41,'RECAP AG'!$G$6:$CU$250,26,FALSE) -> 77% | Q41: =VLOOKUP($E41,'RECAP AG'!$G$6:$CU$250,27,FALSE) -> 77% | R41: =VLOOKUP($E41,'RECAP AG'!$G$6:$CU$250,28,FALSE) -> 133
A42: 262 | B42: BAS RHIN | C42: 5101 | D42: SELESTAT | E42: 4113 | F42: BARR | G42: =VLOOKUP($E42,'RECAP AG'!$G$6:$CU$250,3,FALSE) -> 2.9 | H42: =VLOOKUP($E42,'RECAP AG'!$G$6:$CU$250,18,FALSE) -> 91.1 | I42: =VLOOKUP($E42,'RECAP AG'!$G$6:$CU$250,19,FALSE) -> 31.74 | J42: =VLOOKUP($E42,'RECAP AG'!$G$6:$CU$250,20,FALSE) -> 70% | K42: =VLOOKUP($E42,'RECAP AG'!$G$6:$CU$250,21,FALSE) -> 36 | L42: =VLOOKUP($E42,'RECAP AG'!$G$6:$CU$250,22,FALSE) -> 156 | M42: =VLOOKUP($E42,'RECAP AG'!$G$6:$CU$250,23,FALSE) -> 54.36 | N42: =VLOOKUP($E42,'RECAP AG'!$G$6:$CU$250,24,FALSE) -> 57% | O42: =VLOOKUP($E42,'RECAP AG'!$G$6:$CU$250,25,FALSE) -> 73 | P42: =VLOOKUP($E42,'RECAP AG'!$G$6:$CU$250,26,FALSE) -> 64% | Q42: =VLOOKUP($E42,'RECAP AG'!$G$6:$CU$250,27,FALSE) -> 64% | R42: =VLOOKUP($E42,'RECAP AG'!$G$6:$CU$250,28,FALSE) -> 41
A43: 262 | B43: BAS RHIN | C43: 5101 | D43: SELESTAT | E43: 4111 | F43: BENFELD | G43: =VLOOKUP($E43,'RECAP AG'!$G$6:$CU$250,3,FALSE) -> 2.9 | H43: =VLOOKUP($E43,'RECAP AG'!$G$6:$CU$250,18,FALSE) -> 14.4 | I43: =VLOOKUP($E43,'RECAP AG'!$G$6:$CU$250,19,FALSE) -> 4.98 | J43: =VLOOKUP($E43,'RECAP AG'!$G$6:$CU$250,20,FALSE) -> 95% | K43: =VLOOKUP($E43,'RECAP AG'!$G$6:$CU$250,21,FALSE) -> 201 | L43: =VLOOKUP($E43,'RECAP AG'!$G$6:$CU$250,22,FALSE) -> 89 | M43: =VLOOKUP($E43,'RECAP AG'!$G$6:$CU$250,23,FALSE) -> 30.80 | N43: =VLOOKUP($E43,'RECAP AG'!$G$6:$CU$250,24,FALSE) -> 75% | O43: =VLOOKUP($E43,'RECAP AG'!$G$6:$CU$250,25,FALSE) -> 219 | P43: =VLOOKUP($E43,'RECAP AG'!$G$6:$CU$250,26,FALSE) -> 87% | Q43: =VLOOKUP($E43,'RECAP AG'!$G$6:$CU$250,27,FALSE) -> 87% | R43: =VLOOKUP($E43,'RECAP AG'!$G$6:$CU$250,28,FALSE) -> 214
A44: 262 | B44: BAS RHIN | C44: 5101 | D44: SELESTAT | E44: 4104 | F44: ERSTEIN | G44: =VLOOKUP($E44,'RECAP AG'!$G$6:$CU$250,3,FALSE) -> 4.4 | H44: =VLOOKUP($E44,'RECAP AG'!$G$6:$CU$250,18,FALSE) -> 217.9 | I44: =VLOOKUP($E44,'RECAP AG'!$G$6:$CU$250,19,FALSE) -> 49.86 | J44: =VLOOKUP($E44,'RECAP AG'!$G$6:$CU$250,20,FALSE) -> 52% | K44: =VLOOKUP($E44,'RECAP AG'!$G$6:$CU$250,21,FALSE) -> 2 | L44: =VLOOKUP($E44,'RECAP AG'!$G$6:$CU$250,22,FALSE) -> 240 | M44: =VLOOKUP($E44,'RECAP AG'!$G$6:$CU$250,23,FALSE) -> 54.92 | N44: =VLOOKUP($E44,'RECAP AG'!$G$6:$CU$250,24,FALSE) -> 56% | O44: =VLOOKUP($E44,'RECAP AG'!$G$6:$CU$250,25,FALSE) -> 68 | P44: =VLOOKUP($E44,'RECAP AG'!$G$6:$CU$250,26,FALSE) -> 54% | Q44: =VLOOKUP($E44,'RECAP AG'!$G$6:$CU$250,27,FALSE) -> 54% | R44: =VLOOKUP($E44,'RECAP AG'!$G$6:$CU$250,28,FALSE) -> 13
A45: 262 | B45: BAS RHIN | C45: 5101 | D45: SELESTAT | E45: 4008 | F45: FEGERSHEIM | G45: =VLOOKUP($E45,'RECAP AG'!$G$6:$CU$250,3,FALSE) -> 2.3 | H45: =VLOOKUP($E45,'RECAP AG'!$G$6:$CU$250,18,FALSE) -> 60.3 | I45: =VLOOKUP($E45,'RECAP AG'!$G$6:$CU$250,19,FALSE) -> 26.33 | J45: =VLOOKUP($E45,'RECAP AG'!$G$6:$CU$250,20,FALSE) -> 75% | K45: =VLOOKUP($E45,'RECAP AG'!$G$6:$CU$250,21,FALSE) -> 58 | L45: =VLOOKUP($E45,'RECAP AG'!$G$6:$CU$250,22,FALSE) -> 71 | M45: =VLOOKUP($E45,'RECAP AG'!$G$6:$CU$250,23,FALSE) -> 31.00 | N45: =VLOOKUP($E45,'RECAP AG'!$G$6:$CU$250,24,FALSE) -> 75% | O45: =VLOOKUP($E45,'RECAP AG'!$G$6:$CU$250,25,FALSE) -> 218 | P45: =VLOOKUP($E45,'RECAP AG'!$G$6:$CU$250,26,FALSE) -> 75% | Q45: =VLOOKUP($E45,'RECAP AG'!$G$6:$CU$250,27,FALSE) -> 75% | R45: =VLOOKUP($E45,'RECAP AG'!$G$6:$CU$250,28,FALSE) -> 110
A46: 262 | B46: BAS RHIN | C46: 5101 | D46: SELESTAT | E46: 4007 | F46: ILLKIRCH CENTRE | G46: =VLOOKUP($E46,'RECAP AG'!$G$6:$CU$250,3,FALSE) -> 6.6 | H46: =VLOOKUP($E46,'RECAP AG'!$G$6:$CU$250,18,FALSE) -> 116.0 | I46: =VLOOKUP($E46,'RECAP AG'!$G$6:$CU$250,19,FALSE) -> 17.68 | J46: =VLOOKUP($E46,'RECAP AG'!$G$6:$CU$250,20,FALSE) -> 83% | K46: =VLOOKUP($E46,'RECAP AG'!$G$6:$CU$250,21,FALSE) -> 109 | L46: =VLOOKUP($E46,'RECAP AG'!$G$6:$CU$250,22,FALSE) -> 262 | M46: =VLOOKUP($E46,'RECAP AG'!$G$6:$CU$250,23,FALSE) -> 39.94 | N46: =VLOOKUP($E46,'RECAP AG'!$G$6:$CU$250,24,FALSE) -> 68% | O46: =VLOOKUP($E46,'RECAP AG'!$G$6:$CU$250,25,FALSE) -> 153 | P46: =VLOOKUP($E46,'RECAP AG'!$G$6:$CU$250,26,FALSE) -> 77% | Q46: =VLOOKUP($E46,'RECAP AG'!$G$6:$CU$250,27,FALSE) -> 77% | R46: =VLOOKUP($E46,'RECAP AG'!$G$6:$CU$250,28,FALSE) -> 129
A47: 262 | B47: BAS RHIN | C47: 5101 | D47: SELESTAT | E47: 4015 | F47: LINGOLSHEIM | G47: =VLOOKUP($E47,'RECAP AG'!$G$6:$CU$250,3,FALSE) -> 2.2 | H47: =VLOOKUP($E47,'RECAP AG'!$G$6:$CU$250,18,FALSE) -> -25.9 | I47: =VLOOKUP($E47,'RECAP AG'!$G$6:$CU$250,19,FALSE) -> -11.94 | J47: =VLOOKUP($E47,'RECAP AG'!$G$6:$CU$250,20,FALSE) -> 111% | K47: =VLOOKUP($E47,'RECAP AG'!$G$6:$CU$250,21,FALSE) -> 240 | L47: =VLOOKUP($E47,'RECAP AG'!$G$6:$CU$250,22,FALSE) -> 102 | M47: =VLOOKUP($E47,'RECAP AG'!$G$6:$CU$250,23,FALSE) -> 47.00 | N47: =VLOOKUP($E47,'RECAP AG'!$G$6:$CU$250,24,FALSE) -> 62% | O47: =VLOOKUP($E47,'RECAP AG'!$G$6:$CU$250,25,FALSE) -> 107 | P47: =VLOOKUP($E47,'RECAP AG'!$G$6:$CU$250,26,FALSE) -> 92% | Q47: =VLOOKUP($E47,'RECAP AG'!$G$6:$CU$250,27,FALSE) -> 92% | R47: =VLOOKUP($E47,'RECAP AG'!$G$6:$CU$250,28,FALSE) -> 236
A48: 262 | B48: BAS RHIN | C48: 5101 | D48: SELESTAT | E48: 4109 | F48: MARCKOLSHEIM | G48: =VLOOKUP($E48,'RECAP AG'!$G$6:$CU$250,3,FALSE) -> 2.7 | H48: =VLOOKUP($E48,'RECAP AG'!$G$6:$CU$250,18,FALSE) -> 54.3 | I48: =VLOOKUP($E48,'RECAP AG'!$G$6:$CU$250,19,FALSE) -> 20.41 | J48: =VLOOKUP($E48,'RECAP AG'!$G$6:$CU$250,20,FALSE) -> 80% | K48: =VLOOKUP($E48,'RECAP AG'!$G$6:$CU$250,21,FALSE) -> 86 | L48: =VLOOKUP($E48,'RECAP AG'!$G$6:$CU$250,22,FALSE) -> 104 | M48: =VLOOKUP($E48,'RECAP AG'!$G$6:$CU$250,23,FALSE) -> 39.10 | N48: =VLOOKUP($E48,'RECAP AG'!$G$6:$CU$250,24,FALSE) -> 69% | O48: =VLOOKUP($E48,'RECAP AG'!$G$6:$CU$250,25,FALSE) -> 157 | P48: =VLOOKUP($E48,'RECAP AG'!$G$6:$CU$250,26,FALSE) -> 76% | Q48: =VLOOKUP($E48,'RECAP AG'!$G$6:$CU$250,27,FALSE) -> 76% | R48: =VLOOKUP($E48,'RECAP AG'!$G$6:$CU$250,28,FALSE) -> 117
A49: 262 | B49: BAS RHIN | C49: 5101 | D49: SELESTAT | E49: 4120 | F49: WASSELONNE | G49: =VLOOKUP($E49,'RECAP AG'!$G$6:$CU$250,3,FALSE) -> 2.7 | H49: =VLOOKUP($E49,'RECAP AG'!$G$6:$CU$250,18,FALSE) -> -15.1 | I49: =VLOOKUP($E49,'RECAP AG'!$G$6:$CU$250,19,FALSE) -> -5.68 | J49: =VLOOKUP($E49,'RECAP AG'!$G$6:$CU$250,20,FALSE) -> 105% | K49: =VLOOKUP($E49,'RECAP AG'!$G$6:$CU$250,21,FALSE) -> 234 | L49: =VLOOKUP($E49,'RECAP AG'!$G$6:$CU$250,22,FALSE) -> 104 | M49: =VLOOKUP($E49,'RECAP AG'!$G$6:$CU$250,23,FALSE) -> 39.10 | N49: =VLOOKUP($E49,'RECAP AG'!$G$6:$CU$250,24,FALSE) -> 69% | O49: =VLOOKUP($E49,'RECAP AG'!$G$6:$CU$250,25,FALSE) -> 157 | P49: =VLOOKUP($E49,'RECAP AG'!$G$6:$CU$250,26,FALSE) -> 91% | Q49: =VLOOKUP($E49,'RECAP AG'!$G$6:$CU$250,27,FALSE) -> 91% | R49: =VLOOKUP($E49,'RECAP AG'!$G$6:$CU$250,28,FALSE) -> 233
